Workbook

Sheet Титульный
A1: Базовая комплектация | AY1: 1
A2: 1. Каркас модулей изготовлен из ЛДСП оклеенной кромкой ПВХ 0,4 мм. Задняя стенка модулей из облагороженной ХДФ;
A3: 2. Фасад; | AY3: 1
A4: 3. Петли Hettich Sensys плавного закрывания;
A5: 4. | B5: Полки ЛДСП
A6: 5. Роликовые направляющие в выкатных ящиках тумб и шкафов;
A7: 6. Шариковые направляющие Hafele в выкатном ящике стола туалетного, кровати 2 ящика и тумб с соответствующей пометкой "Шар";
A8: 7. Штанга в шкафах для одежды и шкафах комбинированных;
A9: 8. Регулируемые ножки PI04;
A10: 9. Стекло тонированное в шкафах-витринах;
A11: 10. Крючки FK 009 020 на панелях настенных. (На панелях шириной 400 - 2 крючка, а на панелях шириной 540 - 3 крючка)
A12: 11. Обращаем внимание, что в стоимость мебели ручки не входят! Кроме: кнопка "Латунь" в мебели для гостинной "Альфа" и ручка Скоба 1069, 128 мм. для мебели "Бета". "Сириус" комплектуется ручкой FM-021.
A13: Марго, краткое описание
A14: 1 | B14: Фасад Марого и Марго 16 выполнен из ЛДСП толщиной 16 мм. оклеенной кромкой ПВХ толщиной 1 мм.
A15: 2 | B15: Фасад шкафов витрин и полувитрин - рамочный, из алюминиевого профиля толщиной 21 мм. Стекло - Тонированное
A16: 3 | B16: Крышки столов, тумб, комода, стола туалетного, спинки кроватей Марго выполнены из ЛДСП толщиной 22 мм. и оклеенной кромкой ПВХ толщиной 1 мм.
A17: 4 | B17: Сверловка под ручку 160 мм.
A18: 5 | B18: Обращаем Ваше внимание на то, что каркас "Марго" изготавливается только следующих цветов - Капучино, Дуб шамони темный и Дуб шамони светлый, Сонома
A19: 6 | B19: Обращаем Ваше внимание на то, что каркас тумб Марго 16 может изготавливаться в любом цвете ЛДСП за исключением Зеленого лайма и Лаванды. Фасад набора мебели Марго и тумб Марго 16 может изготавливаться в любом цвете ЛДСП согласно классификации цветов фасадов.
A20: 7 | B20: Для фасада Марго и Марго 16 может быть использовано только накладное зеркало.
A21: Классификация цветов фасадов Марго и Марго 16
A22: 1 ценовая категория Марго 16 | K22: 2 ценовая категория Марго 16 | V22: 3 ценовая категория Марго 16 | AH22: 4 ценовая категория Марго 16 | AT22: Цвета Марго
A23: Антрацит | K23: Бежевый | V23: Винтаж+ | AH23: Дуб Хантон EG | AT23: Дуб шамони темный
A24: Белая шагрень+ | K24: Сонома+ | V24: Сосна Касцина EG | AH24: Дуб Галифакс натур-й EG | AT24: Дуб шамони светлый
A25: Венге+ | K25: Дуб шамони светлый+ | V25: Чикаго серый EG | AT25: Сонома
A26: Капучино | K26: Дуб шамони темный+ | V26: Чикаго темный EG
A27: Зеленый лайм+
A28: Черный
A29: Дуб гранж колон-ный+
A30: Дуб эвок приб-ный +
A31: Выбеленное дерево+
A32: Лаванда | O32: Внимание! Следующие цвета ЛДСП: Лаванда, Бежевый, Серый, Антрацит и Черный кромяться кромкой тощиной 0.4 мм. | AI32: В случае заказа каркаса в цветах не 1-й ц.к., нужно к стоимости каркаса прибавить % соответсвующей категории
A33: Серый | AI33: 2 ц.к. - 5% | AP33: 4 ц.к. - 60%
AI34: 3 ц.к. - 20%
A36: Классификация цветов фасадов МДФ в пленке ПВХ
A38: 1 ценовая категория
A39: Древесные матовые | I39: Сандал белый, Дуб Венге, Дуб Сонома, Кремовый Ясень, Ель сизая, Крымское дерево, Дримвуд Латте, Софора канзати, Софора давиди, Карельская береза, Снежное дерево, Миндаль
A40: Однотонные матовые | I40: Черные цветы, Белая матовая, Моти, Макарун
A42: 2 ценовая категория
A43: Супер матовые | I43: Графит, Шафран, Тирамиссу, Пикрит, Керамик, Миррис, Пудра, Риолит, Базальт, Магнолия, Рубелит, Селенит, Нефрит, Обсидиан
A44: Древесные матовые | I44: Белая сосна, Оливковое дерево, Лазурное дерево, Дуб филадельфия, Сосна фактурная, Зеленый патина белая, Стоун, Тис, Квазар, Темное дерево
A45: Однотонные глянцевые | I45: Белый металлик, Ваниль металлик, Белый глянец, Черный глянец, Латте, Макиотти глянец
A48: 3 ценовая категория
A49: Древесные матовые | I49: Вяз седой, Томан, Московский ясень
A50: Супер матовые | I50: ,Авери, Шелк аметист, Желтый пик, Космический оранжевый
A51: Фантазийные | I51: Камень гранж светлый Бруклин
A52: ВНИМАНИЕ!!! Возможны незначительные изменения в тональности пленки ПВХ (2-3 тона), что не является браком
A54: Таблица зависимости цвета внутренней стороны фасада от цвета пленки ПВХ:
A57: Пленка ПВХ | H57: Обратная сторона | P57: Пленка ПВХ | W57: Обратная сторона | AE57: Пленка ПВХ | AL57: Обратная сторона
A58: Платан глянец | H58: Белая | P58: Серебрянный дождь | W58: Белая | AE58: Ярко-зеленый мет | AL58: Белая
A59: Каштан золотистый | H59: Белая | P59: Черный глянец | W59: Белая | AE59: Кожа крокодила | AL59: Белая
A60: Тик | H60: Белая | P60: Желтый глянец | W60: Белая | AE60: Черные цветы | AL60: Белая
A61: Яблоня Тадж | H61: Белая | P61: Белый глянец | W61: Белая | AE61: Шелк Аметист | AL61: Белая
A62: Дуб сокальский | H62: Белая | P62: Ваниль глянец | W62: Белая | AE62: Шелк Крем | AL62: Белая
A63: Миндаль | H63: Белая | P63: Серый металлик | W63: Белая | AE63: Бонди металлик | AL63: Белая
A64: Оливковый глянец | H64: Белая | P64: Красный металлик | W64: Белая | AE64: Фиолет | AL64: Белая
A65: Чайное дерево | H65: Белая | P65: Белый металлик | W65: Белая | AE65: Лайм | AL65: Белая
A66: Темный Венге | H66: Белая | P66: Золотой металлик | W66: Белая | AE66: Индиго | AL66: Белая
A67: Вяз седой | H67: Белая | P67: Хамелеон коричневый | W67: Белая | AE67: Базилик | AL67: Белая
A68: Сандал белый | H68: Белая | P68: Фиолетовый мет | W68: Белая | AE68: Графит | AL68: Белая
A69: Дуб солнечный | H69: Белая | P69: Черный металлик | W69: Белая | AE69: Шафран | AL69: Белая
A70: Дуб беленый | H70: Белая | P70: Оранжевый мет | W70: Белая | AE70: Венге глянец | AL70: Белая
A71: Бордо глянец | H71: Белая | P71: Салатовый мет | W71: Белая | AE71: Латте | AL71: Белая
A72: Кремовый ясень | H72: Белая | P72: Огни Нью-Йорка | W72: Белая | AE72: Гранат металлик | AL72: Белая
A73: Патина Радиал | H73: Белая | P73: Цветы | W73: Белая
A74: Дуб сонома | H74: Белая | P74: Жемчужное дерево | W74: Белая
A75: Ель сизая | H75: Белая | P75: Крымское дерево | W75: Белая
A76: Гриджио/Крема Вен | H76: Белая | P76: Шоколад | W76: Белая
A77: Цветовое исполнение каркасов
A78: Белый, Серый, Венге, Бежевый, Выбеленное дерево, Капучино, Дуб шамони темный, Дуб шамони светлый, Сонома, Антрацит
A80: Варианты фрезеровок фасадов с привязкой ручки
A81: Для новой серии модулей разработаны следующие типы фасадов:
B83: Прованс | J83: Вензель цинк, 96мм | V83: Ручка RS407BAB.4 "Вензель латунь" 96мм | AL83: Юлия
J84: =CEILING('Титульный 2'!J79:L79*Титульный!$AY$1,Титульный!$AY$3) -> 101 | M84: руб/шт. | V84: =CEILING('Титульный 2'!V79:X79*Титульный!$AY$1,Титульный!$AY$3) -> 101
J85: Скоба зол/сер 96мм. | V85: Ручка RS408BAZ.4 "Ладья цинк, 96мм
J86: =CEILING('Титульный 2'!J81:L81*Титульный!$AY$1,Титульный!$AY$3) -> 72 | M86: руб/шт. | V86: =CEILING('Титульный 2'!V81:X81*Титульный!$AY$1,Титульный!$AY$3) -> 141 | Y86: руб/шт.
V87: Ручка RS408BAB.4 "Ладья латунь" 96 мм.
M88: руб/шт. | V88: =CEILING('Титульный 2'!V83:X83*Титульный!$AY$1,Титульный!$AY$3) -> 113 | Y88: руб/шт.
J89: Ручка RS-75, антик латунь, 96 мм. | V89: ОФК 747, 96мм Бронза+белый
J90: =CEILING('Титульный 2'!J85:L85*Титульный!$AY$1,Титульный!$AY$3) -> 96 | M90: руб/шт. | V90: =CEILING('Титульный 2'!V85:X85*Титульный!$AY$1,Титульный!$AY$3) -> 108 | Y90: руб/шт.
J91: Ручка Рейлинг 96 | V91: Ручка RS-77, 96 мм.
J92: =CEILING('Титульный 2'!J87:L87*Титульный!$AY$1,Титульный!$AY$3) -> 66 | M92: руб/шт. | V92: =CEILING('Титульный 2'!V87:X87*Титульный!$AY$1,Титульный!$AY$3) -> 83 | Y92: руб/шт.
J93: Ручка 96 (фарфор/узор золото)
J94: =CEILING('Титульный 2'!J89:L89*Титульный!$AY$1,Титульный!$AY$3) -> 81 | M94: руб/шт.
B96: Бриз | F96: Амелия | J96: Марго | V96: Ручка FS-074 "Волна" 160мм | AH96: Ручка RS-47-1 "хром+черный 160 мм
V97: =CEILING('Титульный 2'!V92:X92*Титульный!$AY$1,Титульный!$AY$3) -> 185 | Y97: руб/шт. | AH97: =CEILING('Титульный 2'!AH92:AJ92*Титульный!$AY$1,Титульный!$AY$3) -> 216 | AK97: руб/шт.
V98: Ручка Модерн 160 мм.
V99: =CEILING('Титульный 2'!V94:X94*Титульный!$AY$1,Титульный!$AY$3) -> 215 | Y99: руб/шт.
V100: Ручка FS-040 , 160мм
V101: =CEILING('Титульный 2'!V96:X96*Титульный!$AY$1,Титульный!$AY$3) -> 318 | Y101: руб/шт.
V102: Ручка Рейлинг 160 мм
V103: =CEILING('Титульный 2'!V98:X98*Титульный!$AY$1,Титульный!$AY$3) -> 62 | Y103: руб/шт.
V104: Ручка RS-74 "Бруш" сатин светлый, 160 мм.
V105: =CEILING('Титульный 2'!V100:X100*Титульный!$AY$1,Титульный!$AY$3) -> 168 | Y105: руб/шт.
V106: Ручка RS-47 "хром+белый 160 мм
V107: =CEILING('Титульный 2'!V102:X102*Титульный!$AY$1,Титульный!$AY$3) -> 216 | Y107: руб/шт.
B109: Лаура | F109: Натали | M109: Скоба 224мм | V109: Диана | AC109: Скоба 1069, 128 мм | AN109: Ручка скоба RS-33 128 мм.
M110: =CEILING('Титульный 2'!M105:O105*Титульный!$AY$1,Титульный!$AY$3) -> 155 | P110: руб/шт. | AC110: =CEILING('Титульный 2'!AC105:AE105*Титульный!$AY$1,Титульный!$AY$3) -> 164 | AF110: руб/шт. | AN110: =CEILING('Титульный 2'!AN105:AP105*Титульный!$AY$1,Титульный!$AY$3) -> 188 | AQ110: руб/шт.
M111: Скоба RLB224, 224 мм
M112: =CEILING('Титульный 2'!M107:O107*Титульный!$AY$1,Титульный!$AY$3) -> 155 | P112: руб/шт.
AC113: Ручка FS-111 "Сатин светлый" 128мм.
AC114: =CEILING('Титульный 2'!AC109:AE109*Титульный!$AY$1,Титульный!$AY$3) -> 345 | AF114: руб/шт.
AC115: Ручка скоба RS-52 128 мм.
AC116: =CEILING('Титульный 2'!AC111:AE111*Титульный!$AY$1,Титульный!$AY$3) -> 84 | AF116: руб/шт.
AC117: Ручка скоба RS-56 128 мм.
AC118: =CEILING('Титульный 2'!AC113:AE113*Титульный!$AY$1,Титульный!$AY$3) -> 185 | AF118: руб/шт.
AC119: Ручка скоба "Спираль" 128 мм.
AC120: =CEILING('Титульный 2'!AC115:AE115*Титульный!$AY$1,Титульный!$AY$3) -> 176 | AF120: руб/шт.
B122: Гретта | Z122: Ручка RC404BAZ.4 "Вензель цинк"
J123: =CEILING('Титульный 2'!J118:L118*Титульный!$AY$1,Титульный!$AY$3) -> 301 | M123: руб/шт. | Z123: =CEILING('Титульный 2'!Z118:AB118*Титульный!$AY$1,Титульный!$AY$3) -> 141 | AC123: руб/шт.
Z124: Ручка RC404BAВ.4 "Вензель латунь"
M125: руб/шт. | Z125: =CEILING('Титульный 2'!Z120:AB120*Титульный!$AY$1,Титульный!$AY$3) -> 71 | AC125: руб/шт.
Z126: Ручка RC405BAZ.4 "Ладья цинк"
M127: руб/шт. | Z127: =CEILING('Титульный 2'!Z122:AB122*Титульный!$AY$1,Титульный!$AY$3) -> 24 | AC127: руб/шт.
Z128: Ручка - кнопка (фарфор/узор золото)
M129: руб/шт. | Z129: =CEILING('Титульный 2'!Z124:AB124*Титульный!$AY$1,Титульный!$AY$3) -> 60 | AC129: руб/шт.
J130: Ручка RC405BAB.4 "Ладья латунь"
J131: =CEILING('Титульный 2'!J126:L126*Титульный!$AY$1,Титульный!$AY$3) -> 30 | M131: руб/шт.
J132: RC 052AB.4/w16 Бронза+белый
J133: =CEILING('Титульный 2'!J128:L128*Титульный!$AY$1,Титульный!$AY$3) -> 76 | M133: руб/шт.
A146: Фасады UV-лак
A147: Фасады UV-лак для корпусной мебели могут быть изготовлены, по умолчанию, в кромке ABS и, по желанию, в кромке 3D акриловой 2 в 1.
A151: Белый скандинавский | E151: Желтый Нарцисс | M151: Капучино | AA151: Оранжевый | AG151: Крем | AL151: Серый шелк
A152: ВНИМАНИЕ! | E152: Фасады UV-лак не изготавливаются на шкафы - витрины!
A157: Рекомендуемые ручки:
F158: Ручка FS-074 "Волна" 160мм | T158: Ручка Модерн 160 мм. | AF158: Ручка FS-040 , 160мм | AR158: Ручка Рейлинг 160 мм
F159: =V97 -> 185 | I159: руб/шт. | T159: =V99 -> 215 | W159: руб/шт. | AF159: =V101 -> 318 | AI159: руб/шт. | AR159: =V103 -> 62 | AU159: руб/шт.
E161: Ручка RS-74 "Бруш" сатин светлый, 160 мм. | Y161: Ручка RS-47 "хром+белый 160 мм | AN161: Ручка RS-47-1 "хром+черный 160 мм
E162: =V105 -> 168 | H162: руб/шт. | Y162: =V107 -> 216 | AB162: руб/шт. | AN162: =AH97 -> 216 | AQ162: руб/шт.
A164: Александрия
H165: Максимальная высота шкафов - 2040 мм. В прайс-листе считается по колонке "1ЦК+патина"
H166: Для Вашего удобства мы рекомендуем Вам комплектовать шкафы багетными блоками.
H167: Багетный блок состоит:
V168: 1. Багет 16, запиленный под необходимым углом;
V169: 2. Панель - козырек "Классика"
H172: Все составляющие багетного блока имеют необходимые сверловки для облегчения процесса сборки и правильной
B173: Фасад | H173: стыковки багета.
H174: Наименование | T174: Габариты, ШхГхВ мм. | AA174: Цена, руб.\шт.
AA175: 1 ЦК | AE175: 1 ЦК + патина | AI175: 2 ЦК | AM175: 3 ЦК
H176: Багетный блок 16 (420) 420 | T176: 510х475х86 | AA176: =_xlfn.CEILING.PRECISE('Титульный 2'!AA159:AD159*Титульный!$AY$1,Титульный!$AY$3) -> 1014 | AE176: =_xlfn.CEILING.PRECISE('Титульный 2'!AE159:AH159*Титульный!$AY$1,Титульный!$AY$3) -> 2054 | AI176: =_xlfn.CEILING.PRECISE('Титульный 2'!AI159:AL159*Титульный!$AY$1,Титульный!$AY$3) -> 1174 | AM176: =_xlfn.CEILING.PRECISE('Титульный 2'!AM159:AP159*Титульный!$AY$1,Титульный!$AY$3) -> 1484
H177: Багетный блок 16 (420) 560 | T177: 650х475х86 | AA177: =_xlfn.CEILING.PRECISE('Титульный 2'!AA160:AD160*Титульный!$AY$1,Титульный!$AY$3) -> 1244 | AE177: =_xlfn.CEILING.PRECISE('Титульный 2'!AE160:AH160*Титульный!$AY$1,Титульный!$AY$3) -> 2544 | AI177: =_xlfn.CEILING.PRECISE('Титульный 2'!AI160:AL160*Титульный!$AY$1,Титульный!$AY$3) -> 1434 | AM177: =_xlfn.CEILING.PRECISE('Титульный 2'!AM160:AP160*Титульный!$AY$1,Титульный!$AY$3) -> 1834
A178: Кремовый ясень | H178: Багетный блок 16 (420) 840 | T178: 930х475х86 | AA178: =_xlfn.CEILING.PRECISE('Титульный 2'!AA161:AD161*Титульный!$AY$1,Титульный!$AY$3) -> 1714 | AE178: =_xlfn.CEILING.PRECISE('Титульный 2'!AE161:AH161*Титульный!$AY$1,Титульный!$AY$3) -> 3504 | AI178: =_xlfn.CEILING.PRECISE('Титульный 2'!AI161:AL161*Титульный!$AY$1,Титульный!$AY$3) -> 1984 | AM178: =_xlfn.CEILING.PRECISE('Титульный 2'!AM161:AP161*Титульный!$AY$1,Титульный!$AY$3) -> 2534
A179: с золотой патиной | H179: Багетный блок 16 (420) 1120 | T179: 1210х475х86 | AA179: =_xlfn.CEILING.PRECISE('Титульный 2'!AA162:AD162*Титульный!$AY$1,Титульный!$AY$3) -> 2194 | AE179: =_xlfn.CEILING.PRECISE('Титульный 2'!AE162:AH162*Титульный!$AY$1,Титульный!$AY$3) -> 4484 | AI179: =_xlfn.CEILING.PRECISE('Титульный 2'!AI162:AL162*Титульный!$AY$1,Титульный!$AY$3) -> 2524 | AM179: =_xlfn.CEILING.PRECISE('Титульный 2'!AM162:AP162*Титульный!$AY$1,Титульный!$AY$3) -> 3244
H180: Багетный блок 16 (420) 1260 | T180: 1350х475х86 | AA180: =_xlfn.CEILING.PRECISE('Титульный 2'!AA163:AD163*Титульный!$AY$1,Титульный!$AY$3) -> 2424 | AE180: =_xlfn.CEILING.PRECISE('Титульный 2'!AE163:AH163*Титульный!$AY$1,Титульный!$AY$3) -> 4964 | AI180: =_xlfn.CEILING.PRECISE('Титульный 2'!AI163:AL163*Титульный!$AY$1,Титульный!$AY$3) -> 2794 | AM180: =_xlfn.CEILING.PRECISE('Титульный 2'!AM163:AP163*Титульный!$AY$1,Титульный!$AY$3) -> 3584
H181: Багетный блок 16 (420) 1400 | T181: 1490х475х86 | AA181: =_xlfn.CEILING.PRECISE('Титульный 2'!AA164:AD164*Титульный!$AY$1,Титульный!$AY$3) -> 2654 | AE181: =_xlfn.CEILING.PRECISE('Титульный 2'!AE164:AH164*Титульный!$AY$1,Титульный!$AY$3) -> 5454 | AI181: =_xlfn.CEILING.PRECISE('Титульный 2'!AI164:AL164*Титульный!$AY$1,Титульный!$AY$3) -> 3064 | AM181: =_xlfn.CEILING.PRECISE('Титульный 2'!AM164:AP164*Титульный!$AY$1,Титульный!$AY$3) -> 3934
A182: Ручка-кнопка "Вензель латунь" | H182: Багетный блок 16 (420) 1680 | T182: 1770х475х86 | AA182: =_xlfn.CEILING.PRECISE('Титульный 2'!AA165:AD165*Титульный!$AY$1,Титульный!$AY$3) -> 3134 | AE182: =_xlfn.CEILING.PRECISE('Титульный 2'!AE165:AH165*Титульный!$AY$1,Титульный!$AY$3) -> 6424 | AI182: =_xlfn.CEILING.PRECISE('Титульный 2'!AI165:AL165*Титульный!$AY$1,Титульный!$AY$3) -> 3604 | AM182: =_xlfn.CEILING.PRECISE('Титульный 2'!AM165:AP165*Титульный!$AY$1,Титульный!$AY$3) -> 4644
H183: Багетный блок 16 (420) 1960 | T183: 2050х475х86 | AA183: =_xlfn.CEILING.PRECISE('Титульный 2'!AA166:AD166*Титульный!$AY$1,Титульный!$AY$3) -> 3594 | AE183: =_xlfn.CEILING.PRECISE('Титульный 2'!AE166:AH166*Титульный!$AY$1,Титульный!$AY$3) -> 7394 | AI183: =_xlfn.CEILING.PRECISE('Титульный 2'!AI166:AL166*Титульный!$AY$1,Титульный!$AY$3) -> 4154 | AM183: =_xlfn.CEILING.PRECISE('Титульный 2'!AM166:AP166*Титульный!$AY$1,Титульный!$AY$3) -> 5354
H184: Багетный блок 16 (420) 2240 | T184: 2330х475х86 | AA184: =_xlfn.CEILING.PRECISE('Титульный 2'!AA167:AD167*Титульный!$AY$1,Титульный!$AY$3) -> 4074 | AE184: =_xlfn.CEILING.PRECISE('Титульный 2'!AE167:AH167*Титульный!$AY$1,Титульный!$AY$3) -> 8364 | AI184: =_xlfn.CEILING.PRECISE('Титульный 2'!AI167:AL167*Титульный!$AY$1,Титульный!$AY$3) -> 4694 | AM184: =_xlfn.CEILING.PRECISE('Титульный 2'!AM167:AP167*Титульный!$AY$1,Титульный!$AY$3) -> 6044
H185: Багетный блок 16 (560) 420 | T185: 510х615х86 | AA185: =_xlfn.CEILING.PRECISE('Титульный 2'!AA168:AD168*Титульный!$AY$1,Титульный!$AY$3) -> 1274 | AE185: =_xlfn.CEILING.PRECISE('Титульный 2'!AE168:AH168*Титульный!$AY$1,Титульный!$AY$3) -> 2594 | AI185: =_xlfn.CEILING.PRECISE('Титульный 2'!AI168:AL168*Титульный!$AY$1,Титульный!$AY$3) -> 1464 | AM185: =_xlfn.CEILING.PRECISE('Титульный 2'!AM168:AP168*Титульный!$AY$1,Титульный!$AY$3) -> 1894
H186: Багетный блок 16 (560) 560 | T186: 650х615х86 | AA186: =_xlfn.CEILING.PRECISE('Титульный 2'!AA169:AD169*Титульный!$AY$1,Титульный!$AY$3) -> 1574 | AE186: =_xlfn.CEILING.PRECISE('Титульный 2'!AE169:AH169*Титульный!$AY$1,Титульный!$AY$3) -> 3214 | AI186: =_xlfn.CEILING.PRECISE('Титульный 2'!AI169:AL169*Титульный!$AY$1,Титульный!$AY$3) -> 1804 | AM186: =_xlfn.CEILING.PRECISE('Титульный 2'!AM169:AP169*Титульный!$AY$1,Титульный!$AY$3) -> 2334
H187: Багетный блок 16 (560) 840 | T187: 930х615х86 | AA187: =_xlfn.CEILING.PRECISE('Титульный 2'!AA170:AD170*Титульный!$AY$1,Титульный!$AY$3) -> 2174 | AE187: =_xlfn.CEILING.PRECISE('Титульный 2'!AE170:AH170*Титульный!$AY$1,Титульный!$AY$3) -> 4444 | AI187: =_xlfn.CEILING.PRECISE('Титульный 2'!AI170:AL170*Титульный!$AY$1,Титульный!$AY$3) -> 2504 | AM187: =_xlfn.CEILING.PRECISE('Титульный 2'!AM170:AP170*Титульный!$AY$1,Титульный!$AY$3) -> 3224
H188: Багетный блок 16 (560) 1120 | T188: 1210х615х86 | AA188: =_xlfn.CEILING.PRECISE('Титульный 2'!AA171:AD171*Титульный!$AY$1,Титульный!$AY$3) -> 2774 | AE188: =_xlfn.CEILING.PRECISE('Титульный 2'!AE171:AH171*Титульный!$AY$1,Титульный!$AY$3) -> 5694 | AI188: =_xlfn.CEILING.PRECISE('Титульный 2'!AI171:AL171*Титульный!$AY$1,Титульный!$AY$3) -> 3184 | AM188: =_xlfn.CEILING.PRECISE('Титульный 2'!AM171:AP171*Титульный!$AY$1,Титульный!$AY$3) -> 4124
H189: Багетный блок 16 (560) 1260 | T189: 1350х615х86 | AA189: =_xlfn.CEILING.PRECISE('Титульный 2'!AA172:AD172*Титульный!$AY$1,Титульный!$AY$3) -> 3074 | AE189: =_xlfn.CEILING.PRECISE('Титульный 2'!AE172:AH172*Титульный!$AY$1,Титульный!$AY$3) -> 6304 | AI189: =_xlfn.CEILING.PRECISE('Титульный 2'!AI172:AL172*Титульный!$AY$1,Титульный!$AY$3) -> 3534 | AM189: =_xlfn.CEILING.PRECISE('Титульный 2'!AM172:AP172*Титульный!$AY$1,Титульный!$AY$3) -> 4564
H190: Багетный блок 16 (560) 1400 | T190: 1490х615х86 | AA190: =_xlfn.CEILING.PRECISE('Титульный 2'!AA173:AD173*Титульный!$AY$1,Титульный!$AY$3) -> 3374 | AE190: =_xlfn.CEILING.PRECISE('Титульный 2'!AE173:AH173*Титульный!$AY$1,Титульный!$AY$3) -> 6924 | AI190: =_xlfn.CEILING.PRECISE('Титульный 2'!AI173:AL173*Титульный!$AY$1,Титульный!$AY$3) -> 3884 | AM190: =_xlfn.CEILING.PRECISE('Титульный 2'!AM173:AP173*Титульный!$AY$1,Титульный!$AY$3) -> 5014
H191: Багетный блок 16 (560) 1680 | T191: 1770х615х86 | AA191: =_xlfn.CEILING.PRECISE('Титульный 2'!AA174:AD174*Титульный!$AY$1,Титульный!$AY$3) -> 3974 | AE191: =_xlfn.CEILING.PRECISE('Титульный 2'!AE174:AH174*Титульный!$AY$1,Титульный!$AY$3) -> 8154 | AI191: =_xlfn.CEILING.PRECISE('Титульный 2'!AI174:AL174*Титульный!$AY$1,Титульный!$AY$3) -> 4574 | AM191: =_xlfn.CEILING.PRECISE('Титульный 2'!AM174:AP174*Титульный!$AY$1,Титульный!$AY$3) -> 5914
H192: Багетный блок 16 (560) 1960 | T192: 2050х615х86 | AA192: =_xlfn.CEILING.PRECISE('Титульный 2'!AA175:AD175*Титульный!$AY$1,Титульный!$AY$3) -> 4574 | AE192: =_xlfn.CEILING.PRECISE('Титульный 2'!AE175:AH175*Титульный!$AY$1,Титульный!$AY$3) -> 9404 | AI192: =_xlfn.CEILING.PRECISE('Титульный 2'!AI175:AL175*Титульный!$AY$1,Титульный!$AY$3) -> 5264 | AM192: =_xlfn.CEILING.PRECISE('Титульный 2'!AM175:AP175*Титульный!$AY$1,Титульный!$AY$3) -> 6814
H193: Багетный блок 16 (560) 2240 | T193: 2330х615х86 | AA193: =_xlfn.CEILING.PRECISE('Титульный 2'!AA176:AD176*Титульный!$AY$1,Титульный!$AY$3) -> 5184 | AE193: =_xlfn.CEILING.PRECISE('Титульный 2'!AE176:AH176*Титульный!$AY$1,Титульный!$AY$3) -> 10634 | AI193: =_xlfn.CEILING.PRECISE('Титульный 2'!AI176:AL176*Титульный!$AY$1,Титульный!$AY$3) -> 5954 | AM193: =_xlfn.CEILING.PRECISE('Титульный 2'!AM176:AP176*Титульный!$AY$1,Титульный!$AY$3) -> 7704
A195: Схема расположения зеркал
B200: 1 зеркало | Z200: 2 зеркала
A201: Внимание!!! В прайс-листе указана стоимость за комплект зеркал
A202: Обращаем Ваше внимание на необходимость при заказе шкафа с зеркалом указывать накладное оно или в рамке!!!
B204: Зеркало накладное* | Z204: Зеркало в рамке**
Z212: **-Зеркало крепится на дверь стеклодержателями
A213: 1. ВНИМАНИЕ! Для наборов мебели "Марго" использовать только зеркало накладное!
A215: Шкафы-витрины с фрезеровкой Прованс.
A216: Обращаем Ваше внимание, что фасады шкафа (420) 1 дверь или 2 двери витрины, с фрезеровкой "Прованс" будут изготовлены с перемычкой
B224: Шкаф (420) | L224: Шкаф (420) | U224: Шкаф (420) | AD224: Шкаф (420) | AM224: Шкаф (420)
A225: 1 дв. 2 ящ. Витрина | K225: 2 дв. 1 ящ. Витрина | U225: 1 дв. Витрина | AC225: 2 дв. 2 ящ. Витрина | AM225: 2 дв. Витрина
A227: Шкафы-витрины с фрезеровками Бриз, Амелия, Лаура, Юлия, Гретта, Диана
A228: Обращаем Ваше внимание, что фасады на всех шкафах-витринах с фрезеровками Амелия, Бриз, Лаура, Юлия, выглядят следующим образом
B235: Шкаф (420) | L235: Шкаф (420) | U235: Шкаф (420) | AD235: Шкаф (420) | AM235: Шкаф (420)
A236: 1 дв. 2 ящ. Витрина | K236: 2 дв. 1 ящ. Витрина | U236: 1 дв. Витрина | AC236: 2 дв. 2 ящ. Витрина | AM236: 2 дв. Витрина
A237: Козырьки МДФ
B238: Козырьки, по желанию, могут быть отфрезерованы под светодиодную ленту (необходимо указывать в заказе), за исключением
A239: козырьков торцевых радиусных и торцевых скошенных.
B241: Козырек МДФ прямой | Y241: Козырек МДФ на шкаф угл. (420) трапеция
A242: Изображение | H242: Длина, мм | L242: Цена, руб.\шт. | Y242: Изображение | AF242: Цена, руб.\шт.
L243: 1 ЦК | O243: 1 ЦК + патина | R243: 2 ЦК | U243: 3 ЦК | AF243: 1 ЦК | AJ243: 1 ЦК + патина | AN243: 2 ЦК | AR243: 3 ЦК
A244: Козырек МДФ прямой | H244: 420 | L244: =CEILING('Титульный 2'!L224:N224*Титульный!$AY$1,Титульный!$AY$3) -> 420 | O244: =CEILING('Титульный 2'!O224:Q224*Титульный!$AY$1,Титульный!$AY$3) -> 750 | R244: =CEILING('Титульный 2'!R224:T224*Титульный!$AY$1,Титульный!$AY$3) -> 510 | U244: =CEILING('Титульный 2'!U224:W224*Титульный!$AY$1,Титульный!$AY$3) -> 600 | Y244: Козырек МДФ на шкаф угл. (420) трапеция | AF244: =CEILING('Титульный 2'!AF224:AH224*Титульный!$AY$1,Титульный!$AY$3) -> 420 | AJ244: =CEILING('Титульный 2'!AJ224:AL224*Титульный!$AY$1,Титульный!$AY$3) -> 730 | AN244: =CEILING('Титульный 2'!AN224:AP224*Титульный!$AY$1,Титульный!$AY$3) -> 500 | AR244: =CEILING('Титульный 2'!AR224:AT224*Титульный!$AY$1,Титульный!$AY$3) -> 590
H245: 560 | L245: =CEILING('Титульный 2'!L225:N225*Титульный!$AY$1,Титульный!$AY$3) -> 570 | O245: =CEILING('Титульный 2'!O225:Q225*Титульный!$AY$1,Титульный!$AY$3) -> 1000 | R245: =CEILING('Титульный 2'!R225:T225*Титульный!$AY$1,Титульный!$AY$3) -> 680 | U245: =CEILING('Титульный 2'!U225:W225*Титульный!$AY$1,Титульный!$AY$3) -> 800
H246: 840 | L246: =CEILING('Титульный 2'!L226:N226*Титульный!$AY$1,Титульный!$AY$3) -> 850 | O246: =CEILING('Титульный 2'!O226:Q226*Титульный!$AY$1,Титульный!$AY$3) -> 1500 | R246: =CEILING('Титульный 2'!R226:T226*Титульный!$AY$1,Титульный!$AY$3) -> 1010 | U246: =CEILING('Титульный 2'!U226:W226*Титульный!$AY$1,Титульный!$AY$3) -> 1200
H247: 1120 | L247: =CEILING('Титульный 2'!L227:N227*Титульный!$AY$1,Титульный!$AY$3) -> 1130 | O247: =CEILING('Титульный 2'!O227:Q227*Титульный!$AY$1,Титульный!$AY$3) -> 1990 | R247: =CEILING('Титульный 2'!R227:T227*Титульный!$AY$1,Титульный!$AY$3) -> 1350 | U247: =CEILING('Титульный 2'!U227:W227*Титульный!$AY$1,Титульный!$AY$3) -> 1590 | Y247: Козырек МДФ на шкаф угл. (560) трапеция
H248: 1260 | L248: =CEILING('Титульный 2'!L228:N228*Титульный!$AY$1,Титульный!$AY$3) -> 1270 | O248: =CEILING('Титульный 2'!O228:Q228*Титульный!$AY$1,Титульный!$AY$3) -> 2240 | R248: =CEILING('Титульный 2'!R228:T228*Титульный!$AY$1,Титульный!$AY$3) -> 1520 | U248: =CEILING('Титульный 2'!U228:W228*Титульный!$AY$1,Титульный!$AY$3) -> 1790 | Y248: Изображение | AF248: Цена, руб.\шт.
H249: 1400 | L249: =CEILING('Титульный 2'!L229:N229*Титульный!$AY$1,Титульный!$AY$3) -> 1410 | O249: =CEILING('Титульный 2'!O229:Q229*Титульный!$AY$1,Титульный!$AY$3) -> 2490 | R249: =CEILING('Титульный 2'!R229:T229*Титульный!$AY$1,Титульный!$AY$3) -> 1690 | U249: =CEILING('Титульный 2'!U229:W229*Титульный!$AY$1,Титульный!$AY$3) -> 1990 | AF249: 1 ЦК | AJ249: 1 ЦК + патина | AN249: 2 ЦК | AR249: 3 ЦК
H250: 1680 | L250: =CEILING('Титульный 2'!L230:N230*Титульный!$AY$1,Титульный!$AY$3) -> 1700 | O250: =CEILING('Титульный 2'!O230:Q230*Титульный!$AY$1,Титульный!$AY$3) -> 2990 | R250: =CEILING('Титульный 2'!R230:T230*Титульный!$AY$1,Титульный!$AY$3) -> 2030 | U250: =CEILING('Титульный 2'!U230:W230*Титульный!$AY$1,Титульный!$AY$3) -> 2390 | Y250: Козырек МДФ на шкаф угл. (560) трапеция | AF250: =CEILING('Титульный 2'!AF230:AH230*Титульный!$AY$1,Титульный!$AY$3) -> 540 | AJ250: =CEILING('Титульный 2'!AJ230:AL230*Титульный!$AY$1,Титульный!$AY$3) -> 950 | AN250: =CEILING('Титульный 2'!AN230:AP230*Титульный!$AY$1,Титульный!$AY$3) -> 640 | AR250: =CEILING('Титульный 2'!AR230:AT230*Титульный!$AY$1,Титульный!$AY$3) -> 760
H251: 1960 | L251: =CEILING('Титульный 2'!L231:N231*Титульный!$AY$1,Титульный!$AY$3) -> 1980 | O251: =CEILING('Титульный 2'!O231:Q231*Титульный!$AY$1,Титульный!$AY$3) -> 3490 | R251: =CEILING('Титульный 2'!R231:T231*Титульный!$AY$1,Титульный!$AY$3) -> 2360 | U251: =CEILING('Титульный 2'!U231:W231*Титульный!$AY$1,Титульный!$AY$3) -> 2790
H252: 2240 | L252: =CEILING('Титульный 2'!L232:N232*Титульный!$AY$1,Титульный!$AY$3) -> 2260 | O252: =CEILING('Титульный 2'!O232:Q232*Титульный!$AY$1,Титульный!$AY$3) -> 3990 | R252: =CEILING('Титульный 2'!R232:T232*Титульный!$AY$1,Титульный!$AY$3) -> 2700 | U252: =CEILING('Титульный 2'!U232:W232*Титульный!$AY$1,Титульный!$AY$3) -> 3190
A255: Козырьки торцевые радиусные и скошенные
A257: Козырек МДФ на шкаф (420) торцевой скошенный Л\Пр. | Y257: Козырек МДФ на стеллаж (420) торцевой радиусный Л\Пр.
H258: Цена руб.\шт. | AF258: Цена, руб.\шт.
H259: 1 ЦК | L259: 1 ЦК + патина | P259: 2 ЦК | T259: 3 ЦК | AF259: 1 ЦК | AJ259: 1 ЦК + патина | AN259: 2 ЦК | AR259: 3 ЦК
H260: =CEILING('Титульный 2'!H240:K240*Титульный!$AY$1,Титульный!$AY$3) -> 600 | L260: =CEILING('Титульный 2'!L240:O240*Титульный!$AY$1,Титульный!$AY$3) -> 1060 | P260: =CEILING('Титульный 2'!P240:S240*Титульный!$AY$1,Титульный!$AY$3) -> 720 | T260: =CEILING('Титульный 2'!T240:W240*Титульный!$AY$1,Титульный!$AY$3) -> 850 | AF260: =CEILING('Титульный 2'!AF240:AI240*Титульный!$AY$1,Титульный!$AY$3) -> 500 | AJ260: =CEILING('Титульный 2'!AJ240:AM240*Титульный!$AY$1,Титульный!$AY$3) -> 880 | AN260: =CEILING('Титульный 2'!AN240:AQ240*Титульный!$AY$1,Титульный!$AY$3) -> 590 | AR260: =CEILING('Титульный 2'!AR240:AU240*Титульный!$AY$1,Титульный!$AY$3) -> 700
A262: Козырек_02 МДФ на шкаф (420) торц скошенный Л\Пр. | Y262: Козырек_02 МДФ на стеллаж (420) торц радиусный Л\Пр.
H263: Цена руб.\шт. | AF263: Цена, руб.\шт.
H264: 1 ЦК | L264: 1 ЦК + патина | P264: 2 ЦК | T264: 3 ЦК | AF264: 1 ЦК | AJ264: 1 ЦК + патина | AN264: 2 ЦК | AR264: 3 ЦК
H265: =CEILING('Титульный 2'!H245:K245*Титульный!$AY$1,Титульный!$AY$3) -> 590 | L265: =CEILING('Титульный 2'!L245:O245*Титульный!$AY$1,Титульный!$AY$3) -> 1030 | P265: =CEILING('Титульный 2'!P245:S245*Титульный!$AY$1,Титульный!$AY$3) -> 700 | T265: =CEILING('Титульный 2'!T245:W245*Титульный!$AY$1,Титульный!$AY$3) -> 830 | AF265: =CEILING('Титульный 2'!AF245:AI245*Титульный!$AY$1,Титульный!$AY$3) -> 500 | AJ265: =CEILING('Титульный 2'!AJ245:AM245*Титульный!$AY$1,Титульный!$AY$3) -> 890 | AN265: =CEILING('Титульный 2'!AN245:AQ245*Титульный!$AY$1,Титульный!$AY$3) -> 600 | AR265: =CEILING('Титульный 2'!AR245:AU245*Титульный!$AY$1,Титульный!$AY$3) -> 710
A267: Козырек МДФ на шкаф (560) торцевой скошенный Л\Пр. | Y267: Козырек МДФ стеллаж (560) торцевой радиусный Л\Пр.
H268: Цена руб.\шт. | AF268: Цена руб.\шт.
H269: 1 ЦК | L269: 1 ЦК + патина | P269: 2 ЦК | T269: 3 ЦК | AF269: 1 ЦК | AJ269: 1 ЦК + патина | AN269: 2 ЦК | AR269: 3 ЦК
H270: =CEILING('Титульный 2'!H250:K250*Титульный!$AY$1,Титульный!$AY$3) -> 960 | L270: =CEILING('Титульный 2'!L250:O250*Титульный!$AY$1,Титульный!$AY$3) -> 1690 | P270: =CEILING('Титульный 2'!P250:S250*Титульный!$AY$1,Титульный!$AY$3) -> 1140 | T270: =CEILING('Титульный 2'!T250:W250*Титульный!$AY$1,Титульный!$AY$3) -> 1350 | AF270: =CEILING('Титульный 2'!AF250:AI250*Титульный!$AY$1,Титульный!$AY$3) -> 710 | AJ270: =CEILING('Титульный 2'!AJ250:AM250*Титульный!$AY$1,Титульный!$AY$3) -> 1250 | AN270: =CEILING('Титульный 2'!AN250:AQ250*Титульный!$AY$1,Титульный!$AY$3) -> 840 | AR270: =CEILING('Титульный 2'!AR250:AU250*Титульный!$AY$1,Титульный!$AY$3) -> 1000
... 26 more rows

Sheet Титульный 2 (hidden)
A1: Базовая комплектация
A2: 1. Каркас модулей изготовлен из ЛДСП оклеенной кромкой ПВХ 0,4 мм. Задняя стенка модулей из облагороженной ХДФ;
A3: 2. Фасад из МДФ, покрытый пленкой ПВХ с лицевой стороны (базовая ценовая категория), обратная сторона (см. таблицу зависимости);
A4: 3. Петли Hettich Sensys плавного закрывания;
A5: 4. | B5: Полки ЛДСП
A6: 5. Роликовые направляющие в выкатных ящиках тумб и шкафов;
A7: 6. Шариковые направляющие Hafele в выкатном ящике стола туалетного и кровати 2 ящика;
A8: 7. Штанга в шкафах для одежды и шкафах комбинированных;
A9: 8. Регулируемые ножки PI04;
A10: 9. Стекло тонированное в шкафах-витринах;
A11: 10. Крючки FK 009 020 на панелях настенных. (На панелях шириной 400 - 2 крючка, а на панелях шириной 540 - 3 крючка)
A12: Марго, краткое описание
A13: 1 | B13: Фасад выполнен из ЛДСП толщиной 16 мм. оклеенной кромкой ПВХ толщиной 2 мм.
A14: 2 | B14: Фасад шкафов витрин и полувитрин - рамочный, из алюминиевого профиля толщиной 21 мм. Стекло - Тонированное
A15: 3 | B15: Крышки столов, тумб, комода, стола туалетного, спинки кроватей выполнены из ЛДСП толщиной 22 мм. и оклеенной кромкой ПВХ толщиной 2 мм.
A16: 4 | B16: Ручка - FS040, 160 мм.
A17: 5 | B17: Обращаем Ваше внимание на то, что каркас "Марго" изготавливается только следующих цветов - Капучино и Выбеленное дерево, Дуб шамони темный, Дуб шамони светлый
A18: 6 | B18: Обращаем Ваше внимание на то, что каркас тумб Марго 16 может изготавливаться в любом цвете ЛДСП за исключением серого и 3-й ценовой категории. Фасад набора мебели Марго и тумб Марго 16 может изготавливаться в любом цвете ЛДСП за исключением серого.
A19: 7 | B19: Для фасада Марго может быть использовано только накладное зеркало.
A30: Классификация цветов фасадов
A31: 1 ценовая категория
A32: Древесные матовые | I32: Ольха, Тик, Слива Тадж, Орех золотистый, Сандал белый, Темный Венге, Дуб беленый, Дуб солнечный, Каштан золотистый, Яблоня Тадж, Коричневый холст, Бежевый холст
A33: Однотонные матовые | I33: Белые цветы, Черные цветы
A35: 2 ценовая категория
A36: Древесные матовые | I36: Эффект старения
A37: Однотонные матовые | I37: Фиолет, Лайм, Фуксия, Индиго
A38: Древесные глянцевые | I38: Вишня, Клен, Платан, Жемчужное Дерево
A39: Однотонные глянцевые | I39: Красный металлик, Чёрный металлик, Белый металлик, Оранжевый металлик, Фиолетовый металлик, Салатовый металлик, Синий металлик, Серый металлик, Золотистый металлик, Корица металлик, Хамелеон Коричневый, Белый глянец, Оливковый, Баклажан, Бордо, Ваниль, Оранжевый, Желтый, Черный.
A40: Фантазийные | I40: Мрамор глянцевый, Кожа крокодила, Огни Нью-Йорка, Цветы, Серебряный дождь.
A42: 3 ценовая категория
A44: Фантазийные | I44: Вяз седой, Синга-крем, Синга-аметист, Шелк-крем, Шелк-аметист
A45: ВНИМАНИЕ!!! Возможны незначительные изменения в тональности пленки ПВХ (2-3 тона), что не является браком
A48: Таблица зависимости цвета внутренней стороны фасада от цвета пленки ПВХ:
B49: Цвет внутренней стороны фасадов зависит от цвета пленки ПВХ, исключение составляют наборы мебели, каркасы
A50: которых изготовлены из ЛДСП цвета "Бук Бавария", в этом случае обратная сторона фасадов будет всегда в цвете "Ольха"
A52: Пленка ПВХ | H52: Обратная сторона | P52: Пленка ПВХ | W52: Обратная сторона | AE52: Пленка ПВХ | AL52: Обратная сторона
A53: Слива Тадж | H53: Ольха | P53: Оливковый глянец | W53: Белая | AE53: Салатовый металлик | AL53: Белая
A54: Вишня глянец | H54: Ольха | P54: Баклажан глянец | W54: Белая | AE54: Огни Нью-Йорка | AL54: Белая
A55: Клен глянец | H55: Ольха | P55: Черный глянец | W55: Белая | AE55: Цветы | AL55: Белая
A56: Платан глянец | H56: Ольха | P56: Желтый глянец | W56: Белая | AE56: Жемчужное дерево | AL56: Белая
A57: Каштан золотистый | H57: Ольха | P57: Белый глянец | W57: Белая | AE57: Серебрянный дождь | AL57: Белая
A58: Тик | H58: Ольха | P58: Ваниль глянец | W58: Белая | AE58: Белые цветы | AL58: Белая
A59: Орех золотистый | H59: Ольха | P59: Оранжевый глянец | W59: Белая | AE59: Кожа крокодила | AL59: Белая
A60: Яблоня Тадж | H60: Ольха | P60: Серый металлик | W60: Белая | AE60: Черные цветы | AL60: Белая
A61: Ольха | H61: Ольха | P61: Красный металлик | W61: Белая | AE61: Шелк Аметист | AL61: Белая
A62: Темный Венге | H62: Белая | P62: Белый металлик | W62: Белая | AE62: Шелк Крем | AL62: Белая
A63: Эффект старения | H63: Белая | P63: Корица металлик | W63: Белая | AE63: Синга Аметист | AL63: Белая
A64: Вяз седой | H64: Белая | P64: Синий металлик | W64: Белая | AE64: Коричневый холст | AL64: Белая
A65: Сандал белый | H65: Белая | P65: Золотой металлик | W65: Белая | AE65: Бежевый холст | AL65: Белая
A66: Дуб солнечный | H66: Белая | P66: Хамелион коричневый | W66: Белая | AE66: Фиолет | AL66: Белая
A67: Дуб беленый | H67: Белая | P67: Фиолетовый металлик | W67: Белая | AE67: Лайм | AL67: Белая
A68: Бордо глянец | H68: Белая | P68: Черный металлик | W68: Белая | AE68: Фуксия | AL68: Белая
A69: Мрамор глянец | H69: Белая | P69: Оранжевый металлик | W69: Белая | AE69: Индиго | AL69: Белая
A71: Цветовое исполнение каркасов
A72: Белый, Серый, Бук Бавария, Орех итальянский, Гварнери, Венге, Бежевый, Выбеленное дерево, Капучино
A75: Варианты фрезеровок фасадов с привязкой ручки
A76: Для новой серии модулей разработаны следующие типы фасадов:
B78: Прованс | J78: Вензель цинк, 96мм | V78: Ручка RS407BAB.4 "Вензель латунь" 96мм
J79: 101 | M79: руб/шт. | V79: 101
J80: Скоба зол/сер 96мм. | V80: Ручка RS408BAZ.4 "Ладья цинк, 96мм
J81: 72 | M81: руб/шт. | V81: 141 | Y81: руб/шт.
V82: Ручка RS408BAB.4 "Ладья латунь" 96 мм.
M83: руб/шт. | V83: 113 | Y83: руб/шт.
J84: Ручка RS-75, антик латунь, 96 мм. | V84: ОФК 747, 96мм Бронза+белый
J85: 96 | M85: руб/шт. | V85: 108 | Y85: руб/шт.
J86: Ручка Рейлинг 96 | V86: Ручка RS-77, 96 мм.
J87: 66 | M87: руб/шт. | V87: 83 | Y87: руб/шт.
J88: Ручка 96 (фарфор/узор золото)
J89: 81 | M89: руб/шт.
B91: Бриз | F91: Амелия | J91: Марго | V91: Ручка FS-074 "Волна" 160мм | AH91: Ручка RS-47-1 "хром+черный 160 мм
V92: 185 | Y92: руб/шт. | AH92: 216 | AK92: руб/шт.
V93: Ручка Модерн 160 мм.
V94: 215 | Y94: руб/шт.
V95: Ручка FS-040 , 160мм
V96: 318 | Y96: руб/шт.
V97: Ручка Рейлинг 160 мм
V98: 62 | Y98: руб/шт.
V99: Ручка RS-74 "Бруш" сатин светлый, 160 мм.
V100: 168 | Y100: руб/шт.
V101: Ручка RS-47 "хром+белый 160 мм
V102: 216 | Y102: руб/шт.
B104: Лаура | F104: Натали | M104: Скоба 224мм | V104: Диана | AC104: Скоба 1069, 128 мм | AN104: Ручка скоба RS-33 128 мм.
M105: 155 | P105: руб/шт. | AC105: 164 | AF105: руб/шт. | AN105: 188 | AQ105: руб/шт.
M106: Скоба RLB224, 224 мм
M107: 155 | P107: руб/шт. | AF107: руб/шт.
AC108: Ручка FS-111 "Сатин светлый" 128мм.
AC109: 345 | AF109: руб/шт.
AC110: Ручка скоба RS-52 128 мм.
AC111: 84 | AF111: руб/шт.
AC112: Ручка скоба RS-56 128 мм.
AC113: 185 | AF113: руб/шт.
AC114: Ручка скоба "Спираль" 128 мм.
AC115: 176 | AF115: руб/шт.
B117: Гретта | J117: Ручка GG-3105 кнопка "Латунь" | Z117: Ручка RC404BAZ.4 "Вензель цинк"
J118: 301 | M118: руб/шт. | Z118: 141 | AC118: руб/шт.
Z119: Ручка RC404BAВ.4 "Вензель латунь"
J120: - | M120: руб/шт. | Z120: 71 | AC120: руб/шт.
Z121: Ручка RC405BAZ.4 "Ладья цинк"
J122: 127 | M122: руб/шт. | Z122: 24 | AC122: руб/шт.
J123: Ручка GR-1006 кнопка "Никель" | Z123: Ручка - кнопка (фарфор/узор золото)
M124: руб/шт. | Z124: 60 | AC124: руб/шт.
J125: Ручка RC405BAB.4 "Ладья латунь"
J126: 30 | M126: руб/шт.
J127: RC 052AB.4/w16 Бронза+белый
J128: 76 | M128: руб/шт.
B130: Юлия
J131: FS024 064, 64 мм
J132: 180 | M132: руб/шт.
H157: Наименование | T157: Габариты, ШхГхВ мм. | AA157: Цена, руб.\шт.
AA158: 1 ЦК | AE158: 1 ЦК + патина | AI158: 2 ЦК | AM158: 3 ЦК
H159: Багетный блок 16 (420) 420 | AA159: 1014 | AE159: 2054 | AI159: 1174 | AM159: 1484
H160: Багетный блок 16 (420) 560 | AA160: 1244 | AE160: 2544 | AI160: 1434 | AM160: 1834
H161: Багетный блок 16 (420) 840 | AA161: 1714 | AE161: 3504 | AI161: 1984 | AM161: 2534
H162: Багетный блок 16 (420) 1120 | AA162: 2194 | AE162: 4484 | AI162: 2524 | AM162: 3244
H163: Багетный блок 16 (420) 1260 | AA163: 2424 | AE163: 4964 | AI163: 2794 | AM163: 3584
H164: Багетный блок 16 (420) 1400 | AA164: 2654 | AE164: 5454 | AI164: 3064 | AM164: 3934
H165: Багетный блок 16 (420) 1680 | AA165: 3134 | AE165: 6424 | AI165: 3604 | AM165: 4644
H166: Багетный блок 16 (420) 1960 | AA166: 3594 | AE166: 7394 | AI166: 4154 | AM166: 5354
H167: Багетный блок 16 (420) 2240 | AA167: 4074 | AE167: 8364 | AI167: 4694 | AM167: 6044
H168: Багетный блок 16 (560) 420 | AA168: 1274 | AE168: 2594 | AI168: 1464 | AM168: 1894
H169: Багетный блок 16 (560) 560 | AA169: 1574 | AE169: 3214 | AI169: 1804 | AM169: 2334
H170: Багетный блок 16 (560) 840 | AA170: 2174 | AE170: 4444 | AI170: 2504 | AM170: 3224
H171: Багетный блок 16 (560) 1120 | AA171: 2774 | AE171: 5694 | AI171: 3184 | AM171: 4124
H172: Багетный блок 16 (560) 1260 | AA172: 3074 | AE172: 6304 | AI172: 3534 | AM172: 4564
H173: Багетный блок 16 (560) 1400 | AA173: 3374 | AE173: 6924 | AI173: 3884 | AM173: 5014
H174: Багетный блок 16 (560) 1680 | AA174: 3974 | AE174: 8154 | AI174: 4574 | AM174: 5914
H175: Багетный блок 16 (560) 1960 | AA175: 4574 | AE175: 9404 | AI175: 5264 | AM175: 6814
H176: Багетный блок 16 (560) 2240 | AA176: 5184 | AE176: 10634 | AI176: 5954 | AM176: 7704
A178: Схема расположения зеркал
B183: 1 зеркало | Z183: 2 зеркала
A184: Внимание!!! В прайс-листе указана стоимость за комплект зеркал
B185: Зеркало накладное | Z185: Зеркало в рамке
A196: Шкафы-витрины с фрезеровкой "Прованс"
A217: Козырьки МДФ
B218: Козырьки, по желанию, могут быть отфрезерованы под светодиодную ленту (необходимо указывать в заказе), за исключением
A219: козырьков торцевых радиусных и торцевых скошенных.
B221: Козырек МДФ прямой | Y221: Козырек МДФ на шкаф угл. (420) трапеция
A222: Изображение | H222: Длина, мм | L222: Цена, руб.\шт. | Y222: Изображение | AF222: Цена, руб.\шт.
L223: 1 ЦК | O223: 1 ЦК + патина | R223: 2 ЦК | U223: 3 ЦК | AF223: 0 ЦК | AJ223: 1 ЦК | AN223: 2 ЦК | AR223: 3 ЦК
H224: 420 | L224: 420 | O224: 750 | P224: 350 | Q224: 350 | R224: 510 | S224: 230 | T224: 230 | U224: 600 | V224: 290 | W224: 290 | AF224: 420 | AJ224: 730 | AN224: 500 | AR224: 590
H225: 560 | L225: 570 | M225: 250 | N225: 250 | O225: 1000 | P225: 470 | Q225: 470 | R225: 680 | S225: 310 | T225: 310 | U225: 800 | V225: 380 | W225: 380
H226: 840 | L226: 850 | M226: 370 | N226: 370 | O226: 1500 | P226: 710 | Q226: 710 | R226: 1010 | S226: 460 | T226: 460 | U226: 1200 | V226: 570 | W226: 570
H227: 1120 | L227: 1130 | M227: 490 | N227: 490 | O227: 1990 | P227: 940 | Q227: 940 | R227: 1350 | S227: 610 | T227: 610 | U227: 1590 | V227: 770 | W227: 770 | Y227: Козырек МДФ на шкаф угл. (560) трапеция
H228: 1260 | L228: 1270 | M228: 550 | N228: 550 | O228: 2240 | P228: 1060 | Q228: 1060 | R228: 1520 | S228: 690 | T228: 690 | U228: 1790 | V228: 860 | W228: 860 | Y228: Изображение | AF228: Цена, руб.\шт.
H229: 1400 | L229: 1410 | M229: 620 | N229: 620 | O229: 2490 | P229: 1180 | Q229: 1180 | R229: 1690 | S229: 760 | T229: 760 | U229: 1990 | V229: 960 | W229: 960 | AF229: 0 ЦК | AJ229: 1 ЦК | AN229: 2 ЦК | AR229: 3 ЦК
H230: 1680 | L230: 1700 | M230: 740 | N230: 740 | O230: 2990 | P230: 1410 | Q230: 1410 | R230: 2030 | S230: 920 | T230: 920 | U230: 2390 | V230: 1150 | W230: 1150 | AF230: 540 | AJ230: 950 | AN230: 640 | AR230: 760
H231: 1960 | L231: 1980 | M231: 860 | N231: 860 | O231: 3490 | P231: 1650 | Q231: 1650 | R231: 2360 | S231: 1070 | T231: 1070 | U231: 2790 | V231: 1340 | W231: 1340
H232: 2240 | L232: 2260 | M232: 990 | N232: 990 | O232: 3990 | P232: 1880 | Q232: 1880 | R232: 2700 | S232: 1220 | T232: 1220 | U232: 3190 | V232: 1530 | W232: 1530
A235: Козырьки торцевые радиусные и скошенные
A237: Козырек МДФ на шкаф (420) торцевой скошенный Л\Пр. | Y237: Козырек МДФ на стеллаж (420) торцевой радиусный Л\Пр.
H238: Цена руб.\шт. | AF238: Цена, руб.\шт.
H239: 0 ЦК | L239: 1 ЦК | P239: 2 ЦК | T239: 3 ЦК | AF239: 0 ЦК | AJ239: 1 ЦК | AN239: 2 ЦК | AR239: 3 ЦК
H240: 600 | L240: 1060 | P240: 720 | T240: 850 | AF240: 500 | AJ240: 880 | AN240: 590 | AR240: 700
A242: Козырек_02 МДФ на шкаф (420) торц скошенный Л\Пр. | Y242: Козырек_02 МДФ на стеллаж (420) торц радиусный Л\Пр.
H243: Цена руб.\шт. | AF243: Цена, руб.\шт.
H244: 0 ЦК | L244: 1 ЦК | P244: 2 ЦК | T244: 3 ЦК | AF244: 0 ЦК | AJ244: 1 ЦК | AN244: 2 ЦК | AR244: 3 ЦК
H245: 590 | L245: 1030 | P245: 700 | T245: 830 | AF245: 500 | AJ245: 890 | AN245: 600 | AR245: 710
A247: Козырек МДФ на шкаф (560) торцевой скошенный Л\Пр. | Y247: Козырек МДФ стеллаж (560) торцевой радиусный Л\Пр.
H248: Цена руб.\шт. | AF248: Цена руб.\шт.
H249: 0 ЦК | L249: 1 ЦК | P249: 2 ЦК | T249: 3 ЦК | AF249: 0 ЦК | AJ249: 1 ЦК | AN249: 2 ЦК | AR249: 3 ЦК
H250: 960 | L250: 1690 | P250: 1140 | T250: 1350 | AF250: 710 | AJ250: 1250 | AN250: 840 | AR250: 1000
A252: Козырек_02 МДФ на шкаф (560) торц скошенный Л\Пр. | Y252: Козырек_02 МДФ стеллаж (560) торц радиусный Л\Пр.
H253: Цена руб.\шт. | AF253: Цена руб.\шт.
H254: 0 ЦК | L254: 1 ЦК | P254: 2 ЦК | T254: 3 ЦК | AF254: 0 ЦК | AJ254: 1 ЦК | AN254: 2 ЦК | AR254: 3 ЦК
H255: 930 | L255: 1640 | P255: 1110 | T255: 1310 | AF255: 710 | AJ255: 1250 | AN255: 850 | AR255: 1000
A257: ВНИМАНИЕ!!! Для шкафа угл (560х420) Прямого 1000 козырька нет.
A259: Козырек_02 МДФ на шкафы прямых позиций.2200х100 мм.*
H260: Цена руб.\шт.
H261: 0 ЦК | L261: 1 ЦК | P261: 2 ЦК | T261: 3 ЦК
H262: 1110 | L262: 1960 | P262: 1330 | T262: 1570
A264: Багеты
A265: Багет прямой, высотой 75 мм, может стыковаться под углом в 90⁰ без запила, с использованием углового элемента.
H267: Багет высотой 75мм, L-1200 | AE267: Багет высотой 75мм, L-2400
H268: Цена руб.\шт. | AF268: Цена руб.\шт.
H269: 0 ЦК | L269: 1 ЦК | P269: 2 ЦК | T269: 3 ЦК | AF269: 0 ЦК | AJ269: 1 ЦК | AN269: 2 ЦК | AR269: 3 ЦК
H270: 610 | L270: 1070 | P270: 720 | T270: 850 | AF270: 1110 | AJ270: 1960 | AN270: 1330 | AR270: 1570
H272: Угол внешни, 90⁰
H273: Цена руб.\шт.
H274: Б.Ц.К. | L274: 1 ЦК | P274: 2 ЦК | T274: 3 ЦК
H275: 1592 | L275: 1592 | P275: 1960 | T275: 2380
A277: Светильник
L279: Светильник FC103,с выкл.на плафоне руб./шт.
L280: 1725
A284: Пояснения и ограничения
A285: 1. Для кровати с наборным изголовьем, необходимо заказывать основание с круглыми опорами. Кроватьс не устанавливается
A286: без основания
A287: 2. Каркас "Кровати 2 ящика" не может быть исполнен в Сером цвете.
A289: 3. Схема стыковки шкафа углового прямого со шкафом 1 дверным
A297: 4. Схема шкафа углового (560х420) Трапеция

Sheet прайс-лист
A1: Шкафы глубиной 420мм
A2: Наименование | B2: Эскиз | C2: Габариты, ШхГхВ мм. | D2: МДФ фасады | H2: Марго16 | M2: UV-лак | O2: ТСС | Q2: ТСС сборный | R2: Стоимость зеркал
D3: 1 ЦК | E3: 1 ЦК + патина | F3: 2 ЦК | G3: 3 ЦК | H3: 1 ц.к. | I3: 2 ц.к. | J3: 3 ц.к. | K3: 4 ц.к. | L3: 5 ц.к. | M3: UV-лак кромка ABC/AL кромка | N3: кромка 3D | O3: 1 ЦК | P3: 2 ЦК | R3: Зеркало в рамке** | S3: Зеркало накладное*
A4: Шкаф (420) 1дв 2040х420 | C4: 420х440х2040 | D4: =CEILING('прайс-лист2'!E4*Титульный!$AY$1,Титульный!$AY$3) -> 9478 | E4: =CEILING('прайс-лист2'!F4*Титульный!$AY$1,Титульный!$AY$3) -> 12688 | F4: =CEILING('прайс-лист2'!G4*Титульный!$AY$1,Титульный!$AY$3) -> 9958 | G4: =CEILING('прайс-лист2'!H4*Титульный!$AY$1,Титульный!$AY$3) -> 11158 | H4: =CEILING('прайс-лист2'!I4*Титульный!$AY$1,Титульный!$AY$3) -> 8028 | I4: =CEILING('прайс-лист2'!J4*Титульный!$AY$1,Титульный!$AY$3) -> 8108 | J4: =CEILING('прайс-лист2'!K4*Титульный!$AY$1,Титульный!$AY$3) -> 8358 | K4: =CEILING('прайс-лист2'!L4*Титульный!$AY$1,Титульный!$AY$3) -> 9028 | L4: - | M4: =CEILING('прайс-лист2'!N4*Титульный!$AY$1,Титульный!$AY$3) -> 11768 | N4: =CEILING('прайс-лист2'!O4*Титульный!$AY$1,Титульный!$AY$3) -> 12688 | O4: =CEILING('прайс-лист2'!P4*Титульный!$AY$1,Титульный!$AY$3) -> 13598 | P4: =CEILING('прайс-лист2'!Q4*Титульный!$AY$1,Титульный!$AY$3) -> 14938 | Q4: =CEILING('прайс-лист2'!R4*Титульный!$AY$1,Титульный!$AY$3) -> 15228 | R4: =CEILING('прайс-лист2'!S4*Титульный!$AY$1,Титульный!$AY$3) -> 849 | S4: =CEILING('прайс-лист2'!T4*Титульный!$AY$1,Титульный!$AY$3) -> 2473
A5: Шкаф (420) 1дв 2040х560 | C5: 560х440х2040 | D5: =CEILING('прайс-лист2'!E5*Титульный!$AY$1,Титульный!$AY$3) -> 11208 | E5: =CEILING('прайс-лист2'!F5*Титульный!$AY$1,Титульный!$AY$3) -> 15498 | F5: =CEILING('прайс-лист2'!G5*Титульный!$AY$1,Титульный!$AY$3) -> 11858 | G5: =CEILING('прайс-лист2'!H5*Титульный!$AY$1,Титульный!$AY$3) -> 13458 | H5: =CEILING('прайс-лист2'!I5*Титульный!$AY$1,Титульный!$AY$3) -> 9278 | I5: =CEILING('прайс-лист2'!J5*Титульный!$AY$1,Титульный!$AY$3) -> 9388 | J5: =CEILING('прайс-лист2'!K5*Титульный!$AY$1,Титульный!$AY$3) -> 9728 | K5: =CEILING('прайс-лист2'!L5*Титульный!$AY$1,Титульный!$AY$3) -> 10618 | L5: - | M5: =CEILING('прайс-лист2'!N5*Титульный!$AY$1,Титульный!$AY$3) -> 14048 | N5: =CEILING('прайс-лист2'!O5*Титульный!$AY$1,Титульный!$AY$3) -> 15018 | O5: =CEILING('прайс-лист2'!P5*Титульный!$AY$1,Титульный!$AY$3) -> 16478 | P5: =CEILING('прайс-лист2'!Q5*Титульный!$AY$1,Титульный!$AY$3) -> 18278 | Q5: =CEILING('прайс-лист2'!R5*Титульный!$AY$1,Титульный!$AY$3) -> 18148 | R5: =CEILING('прайс-лист2'!S5*Титульный!$AY$1,Титульный!$AY$3) -> 1220 | S5: =CEILING('прайс-лист2'!T5*Титульный!$AY$1,Титульный!$AY$3) -> 3084
A6: Шкаф (420) 1дв 2240х420 | C6: 420х440х2240 | D6: =CEILING('прайс-лист2'!E6*Титульный!$AY$1,Титульный!$AY$3) -> 10285 | E6: =CEILING('прайс-лист2'!F6*Титульный!$AY$1,Титульный!$AY$3) -> 13815 | F6: =CEILING('прайс-лист2'!G6*Титульный!$AY$1,Титульный!$AY$3) -> 10815 | G6: =CEILING('прайс-лист2'!H6*Титульный!$AY$1,Титульный!$AY$3) -> 12135 | H6: =CEILING('прайс-лист2'!I6*Титульный!$AY$1,Титульный!$AY$3) -> 8695 | I6: =CEILING('прайс-лист2'!J6*Титульный!$AY$1,Титульный!$AY$3) -> 8785 | J6: =CEILING('прайс-лист2'!K6*Титульный!$AY$1,Титульный!$AY$3) -> 9065 | K6: =CEILING('прайс-лист2'!L6*Титульный!$AY$1,Титульный!$AY$3) -> 9795 | L6: - | M6: =CEILING('прайс-лист2'!N6*Титульный!$AY$1,Титульный!$AY$3) -> 12795 | N6: =CEILING('прайс-лист2'!O6*Титульный!$AY$1,Титульный!$AY$3) -> 13795 | O6: =CEILING('прайс-лист2'!P6*Титульный!$AY$1,Титульный!$AY$3) -> 14805 | P6: =CEILING('прайс-лист2'!Q6*Титульный!$AY$1,Титульный!$AY$3) -> 16275 | Q6: =CEILING('прайс-лист2'!R6*Титульный!$AY$1,Титульный!$AY$3) -> 16555 | R6: =CEILING('прайс-лист2'!S6*Титульный!$AY$1,Титульный!$AY$3) -> 963 | S6: =CEILING('прайс-лист2'!T6*Титульный!$AY$1,Титульный!$AY$3) -> 2675
A7: Шкаф (420) 1дв 2240х560 | C7: 560х440х2240 | D7: =CEILING('прайс-лист2'!E7*Титульный!$AY$1,Титульный!$AY$3) -> 12192 | E7: =CEILING('прайс-лист2'!F7*Титульный!$AY$1,Титульный!$AY$3) -> 16922 | F7: =CEILING('прайс-лист2'!G7*Титульный!$AY$1,Титульный!$AY$3) -> 12912 | G7: =CEILING('прайс-лист2'!H7*Титульный!$AY$1,Титульный!$AY$3) -> 14672 | H7: =CEILING('прайс-лист2'!I7*Титульный!$AY$1,Титульный!$AY$3) -> 10072 | I7: =CEILING('прайс-лист2'!J7*Титульный!$AY$1,Титульный!$AY$3) -> 10202 | J7: =CEILING('прайс-лист2'!K7*Титульный!$AY$1,Титульный!$AY$3) -> 10562 | K7: =CEILING('прайс-лист2'!L7*Титульный!$AY$1,Титульный!$AY$3) -> 11542 | L7: - | M7: =CEILING('прайс-лист2'!N7*Титульный!$AY$1,Титульный!$AY$3) -> 15302 | N7: =CEILING('прайс-лист2'!O7*Титульный!$AY$1,Титульный!$AY$3) -> 16352 | O7: =CEILING('прайс-лист2'!P7*Титульный!$AY$1,Титульный!$AY$3) -> 17982 | P7: =CEILING('прайс-лист2'!Q7*Титульный!$AY$1,Титульный!$AY$3) -> 19952 | Q7: =CEILING('прайс-лист2'!R7*Титульный!$AY$1,Титульный!$AY$3) -> 19762 | R7: =CEILING('прайс-лист2'!S7*Титульный!$AY$1,Титульный!$AY$3) -> 1490 | S7: =CEILING('прайс-лист2'!T7*Титульный!$AY$1,Титульный!$AY$3) -> 3130
A8: Шкаф (420) 1дв 1240х420 | C8: 420х440х1240 | D8: =CEILING('прайс-лист2'!E8*Титульный!$AY$1,Титульный!$AY$3) -> 6357 | E8: =CEILING('прайс-лист2'!F8*Титульный!$AY$1,Титульный!$AY$3) -> 8287 | F8: =CEILING('прайс-лист2'!G8*Титульный!$AY$1,Титульный!$AY$3) -> 6647 | G8: =CEILING('прайс-лист2'!H8*Титульный!$AY$1,Титульный!$AY$3) -> 7367 | H8: =CEILING('прайс-лист2'!I8*Титульный!$AY$1,Титульный!$AY$3) -> 5487 | I8: =CEILING('прайс-лист2'!J8*Титульный!$AY$1,Титульный!$AY$3) -> 5537 | J8: =CEILING('прайс-лист2'!K8*Титульный!$AY$1,Титульный!$AY$3) -> 5687 | K8: =CEILING('прайс-лист2'!L8*Титульный!$AY$1,Титульный!$AY$3) -> 6087 | L8: - | M8: =CEILING('прайс-лист2'!N8*Титульный!$AY$1,Титульный!$AY$3) -> 7787 | N8: =CEILING('прайс-лист2'!O8*Титульный!$AY$1,Титульный!$AY$3) -> 8407 | O8: =CEILING('прайс-лист2'!P8*Титульный!$AY$1,Титульный!$AY$3) -> 8887 | P8: =CEILING('прайс-лист2'!Q8*Титульный!$AY$1,Титульный!$AY$3) -> 9687 | Q8: =CEILING('прайс-лист2'!R8*Титульный!$AY$1,Титульный!$AY$3) -> 10037 | R8: - | S8: -
A9: Шкаф (420) 1дв 1240х560 | C9: 560х440х1240 | D9: =CEILING('прайс-лист2'!E9*Титульный!$AY$1,Титульный!$AY$3) -> 7339 | E9: =CEILING('прайс-лист2'!F9*Титульный!$AY$1,Титульный!$AY$3) -> 9919 | F9: =CEILING('прайс-лист2'!G9*Титульный!$AY$1,Титульный!$AY$3) -> 7729 | G9: =CEILING('прайс-лист2'!H9*Титульный!$AY$1,Титульный!$AY$3) -> 8689 | H9: =CEILING('прайс-лист2'!I9*Титульный!$AY$1,Титульный!$AY$3) -> 6189 | I9: =CEILING('прайс-лист2'!J9*Титульный!$AY$1,Титульный!$AY$3) -> 6249 | J9: =CEILING('прайс-лист2'!K9*Титульный!$AY$1,Титульный!$AY$3) -> 6449 | K9: =CEILING('прайс-лист2'!L9*Титульный!$AY$1,Титульный!$AY$3) -> 6989 | L9: - | M9: =CEILING('прайс-лист2'!N9*Титульный!$AY$1,Титульный!$AY$3) -> 9119 | N9: =CEILING('прайс-лист2'!O9*Титульный!$AY$1,Титульный!$AY$3) -> 9789 | O9: =CEILING('прайс-лист2'!P9*Титульный!$AY$1,Титульный!$AY$3) -> 10579 | P9: =CEILING('прайс-лист2'!Q9*Титульный!$AY$1,Титульный!$AY$3) -> 11659 | Q9: =CEILING('прайс-лист2'!R9*Титульный!$AY$1,Титульный!$AY$3) -> 11789 | R9: - | S9: -
A10: Шкаф (420) 1дв витрина 1240х420 | C10: 420х440х1240 | D10: =CEILING('прайс-лист2'!E10*Титульный!$AY$1,Титульный!$AY$3) -> 7465 | E10: =CEILING('прайс-лист2'!F10*Титульный!$AY$1,Титульный!$AY$3) -> 9395 | F10: =CEILING('прайс-лист2'!G10*Титульный!$AY$1,Титульный!$AY$3) -> 7755 | G10: =CEILING('прайс-лист2'!H10*Титульный!$AY$1,Титульный!$AY$3) -> 8475 | H10: =CEILING('прайс-лист2'!I10*Титульный!$AY$1,Титульный!$AY$3) -> 6189 | I10: =CEILING('прайс-лист2'!J10*Титульный!$AY$1,Титульный!$AY$3) -> 6249 | J10: =CEILING('прайс-лист2'!K10*Титульный!$AY$1,Титульный!$AY$3) -> 6399 | K10: =CEILING('прайс-лист2'!L10*Титульный!$AY$1,Титульный!$AY$3) -> 6819 | L10: - | M10: - | N10: - | O10: =CEILING('прайс-лист2'!P10*Титульный!$AY$1,Титульный!$AY$3) -> 9899 | P10: =CEILING('прайс-лист2'!Q10*Титульный!$AY$1,Титульный!$AY$3) -> 10739 | Q10: =CEILING('прайс-лист2'!R10*Титульный!$AY$1,Титульный!$AY$3) -> 9079 | R10: - | S10: -
A11: Шкаф (420) 1дв витрина 1240х560 | C11: 560х440х1240 | D11: =CEILING('прайс-лист2'!E11*Титульный!$AY$1,Титульный!$AY$3) -> 8851 | E11: =CEILING('прайс-лист2'!F11*Титульный!$AY$1,Титульный!$AY$3) -> 11431 | F11: =CEILING('прайс-лист2'!G11*Титульный!$AY$1,Титульный!$AY$3) -> 9241 | G11: =CEILING('прайс-лист2'!H11*Титульный!$AY$1,Титульный!$AY$3) -> 10201 | H11: =CEILING('прайс-лист2'!I11*Титульный!$AY$1,Титульный!$AY$3) -> 7104 | I11: =CEILING('прайс-лист2'!J11*Титульный!$AY$1,Титульный!$AY$3) -> 7174 | J11: =CEILING('прайс-лист2'!K11*Титульный!$AY$1,Титульный!$AY$3) -> 7384 | K11: =CEILING('прайс-лист2'!L11*Титульный!$AY$1,Титульный!$AY$3) -> 7944 | L11: - | M11: - | N11: - | O11: =CEILING('прайс-лист2'!P11*Титульный!$AY$1,Титульный!$AY$3) -> 11904 | P11: =CEILING('прайс-лист2'!Q11*Титульный!$AY$1,Титульный!$AY$3) -> 13034 | Q11: =CEILING('прайс-лист2'!R11*Титульный!$AY$1,Титульный!$AY$3) -> 10164 | R11: - | S11: -
A12: Шкаф (420) 1дв витрина 2040х420 | C12: 420х440х2040 | D12: =CEILING('прайс-лист2'!E12*Титульный!$AY$1,Титульный!$AY$3) -> 10377 | E12: =CEILING('прайс-лист2'!F12*Титульный!$AY$1,Титульный!$AY$3) -> 13587 | F12: =CEILING('прайс-лист2'!G12*Титульный!$AY$1,Титульный!$AY$3) -> 10857 | G12: =CEILING('прайс-лист2'!H12*Титульный!$AY$1,Титульный!$AY$3) -> 12057 | H12: =CEILING('прайс-лист2'!I12*Титульный!$AY$1,Титульный!$AY$3) -> 8228 | I12: =CEILING('прайс-лист2'!J12*Титульный!$AY$1,Титульный!$AY$3) -> 8318 | J12: =CEILING('прайс-лист2'!K12*Титульный!$AY$1,Титульный!$AY$3) -> 8588 | K12: =CEILING('прайс-лист2'!L12*Титульный!$AY$1,Титульный!$AY$3) -> 9298 | L12: - | M12: - | N12: - | O12: =CEILING('прайс-лист2'!P12*Титульный!$AY$1,Титульный!$AY$3) -> 14318 | P12: =CEILING('прайс-лист2'!Q12*Титульный!$AY$1,Титульный!$AY$3) -> 15748 | Q12: =CEILING('прайс-лист2'!R12*Титульный!$AY$1,Титульный!$AY$3) -> 12488 | R12: - | S12: -
A13: Шкаф (420) 1дв витрина 2040х560 | C13: 560х440х2040 | D13: =CEILING('прайс-лист2'!E13*Титульный!$AY$1,Титульный!$AY$3) -> 11859 | E13: =CEILING('прайс-лист2'!F13*Титульный!$AY$1,Титульный!$AY$3) -> 16149 | F13: =CEILING('прайс-лист2'!G13*Титульный!$AY$1,Титульный!$AY$3) -> 12509 | G13: =CEILING('прайс-лист2'!H13*Титульный!$AY$1,Титульный!$AY$3) -> 14109 | H13: =CEILING('прайс-лист2'!I13*Титульный!$AY$1,Титульный!$AY$3) -> 8909 | I13: =CEILING('прайс-лист2'!J13*Титульный!$AY$1,Титульный!$AY$3) -> 9029 | J13: =CEILING('прайс-лист2'!K13*Титульный!$AY$1,Титульный!$AY$3) -> 9379 | K13: =CEILING('прайс-лист2'!L13*Титульный!$AY$1,Титульный!$AY$3) -> 10329 | L13: - | M13: - | N13: - | O13: =CEILING('прайс-лист2'!P13*Титульный!$AY$1,Титульный!$AY$3) -> 16789 | P13: =CEILING('прайс-лист2'!Q13*Титульный!$AY$1,Титульный!$AY$3) -> 18709 | Q13: =CEILING('прайс-лист2'!R13*Титульный!$AY$1,Титульный!$AY$3) -> 13269
A14: Шкаф (420) 1дв витрина 2240х420 | C14: 420х440х2240 | D14: =CEILING('прайс-лист2'!E14*Титульный!$AY$1,Титульный!$AY$3) -> 11265 | E14: =CEILING('прайс-лист2'!F14*Титульный!$AY$1,Титульный!$AY$3) -> 14795 | F14: =CEILING('прайс-лист2'!G14*Титульный!$AY$1,Титульный!$AY$3) -> 11795 | G14: =CEILING('прайс-лист2'!H14*Титульный!$AY$1,Титульный!$AY$3) -> 13115 | H14: =CEILING('прайс-лист2'!I14*Титульный!$AY$1,Титульный!$AY$3) -> 8894 | I14: =CEILING('прайс-лист2'!J14*Титульный!$AY$1,Титульный!$AY$3) -> 8994 | J14: =CEILING('прайс-лист2'!K14*Титульный!$AY$1,Титульный!$AY$3) -> 9294 | K14: =CEILING('прайс-лист2'!L14*Титульный!$AY$1,Титульный!$AY$3) -> 10074 | L14: - | M14: - | N14: - | O14: =CEILING('прайс-лист2'!P14*Титульный!$AY$1,Титульный!$AY$3) -> 15584 | P14: =CEILING('прайс-лист2'!Q14*Титульный!$AY$1,Титульный!$AY$3) -> 17164 | Q14: =CEILING('прайс-лист2'!R14*Титульный!$AY$1,Титульный!$AY$3) -> 13504 | R14: - | S14: -
A15: Шкаф (420) 1дв 2ящ 2040х420 | C15: 420х440х2040 | D15: =CEILING('прайс-лист2'!E15*Титульный!$AY$1,Титульный!$AY$3) -> 10395 | E15: =CEILING('прайс-лист2'!F15*Титульный!$AY$1,Титульный!$AY$3) -> 13605 | F15: =CEILING('прайс-лист2'!G15*Титульный!$AY$1,Титульный!$AY$3) -> 10885 | G15: =CEILING('прайс-лист2'!H15*Титульный!$AY$1,Титульный!$AY$3) -> 12085 | H15: =CEILING('прайс-лист2'!I15*Титульный!$AY$1,Титульный!$AY$3) -> 8965 | I15: =CEILING('прайс-лист2'!J15*Титульный!$AY$1,Титульный!$AY$3) -> 9025 | J15: =CEILING('прайс-лист2'!K15*Титульный!$AY$1,Титульный!$AY$3) -> 9285 | K15: =CEILING('прайс-лист2'!L15*Титульный!$AY$1,Титульный!$AY$3) -> 9945 | L15: - | M15: =CEILING('прайс-лист2'!N15*Титульный!$AY$1,Титульный!$AY$3) -> 12965 | N15: =CEILING('прайс-лист2'!O15*Титульный!$AY$1,Титульный!$AY$3) -> 14215 | O15: =CEILING('прайс-лист2'!P15*Титульный!$AY$1,Титульный!$AY$3) -> 14805 | P15: =CEILING('прайс-лист2'!Q15*Титульный!$AY$1,Титульный!$AY$3) -> 16135 | Q15: =CEILING('прайс-лист2'!R15*Титульный!$AY$1,Титульный!$AY$3) -> 16875 | R15: =CEILING('прайс-лист2'!S15*Титульный!$AY$1,Титульный!$AY$3) -> 849 | S15: =CEILING('прайс-лист2'!T15*Титульный!$AY$1,Титульный!$AY$3) -> 2090
A16: Шкаф (420) 1дв 2ящ 2240х420 | C16: 420х440х2240 | D16: =CEILING('прайс-лист2'!E16*Титульный!$AY$1,Титульный!$AY$3) -> 11201 | E16: =CEILING('прайс-лист2'!F16*Титульный!$AY$1,Титульный!$AY$3) -> 14741 | F16: =CEILING('прайс-лист2'!G16*Титульный!$AY$1,Титульный!$AY$3) -> 11741 | G16: =CEILING('прайс-лист2'!H16*Титульный!$AY$1,Титульный!$AY$3) -> 13061 | H16: =CEILING('прайс-лист2'!I16*Титульный!$AY$1,Титульный!$AY$3) -> 9621 | I16: =CEILING('прайс-лист2'!J16*Титульный!$AY$1,Титульный!$AY$3) -> 9701 | J16: =CEILING('прайс-лист2'!K16*Титульный!$AY$1,Титульный!$AY$3) -> 9981 | K16: =CEILING('прайс-лист2'!L16*Титульный!$AY$1,Титульный!$AY$3) -> 10711 | L16: - | M16: =CEILING('прайс-лист2'!N16*Титульный!$AY$1,Титульный!$AY$3) -> 13991 | N16: =CEILING('прайс-лист2'!O16*Титульный!$AY$1,Титульный!$AY$3) -> 15311 | O16: =CEILING('прайс-лист2'!P16*Титульный!$AY$1,Титульный!$AY$3) -> 16011 | P16: =CEILING('прайс-лист2'!Q16*Титульный!$AY$1,Титульный!$AY$3) -> 17481 | Q16: =CEILING('прайс-лист2'!R16*Титульный!$AY$1,Титульный!$AY$3) -> 18201 | R16: =CEILING('прайс-лист2'!S16*Титульный!$AY$1,Титульный!$AY$3) -> 963 | S16: =CEILING('прайс-лист2'!T16*Титульный!$AY$1,Титульный!$AY$3) -> 2281
A17: Шкаф (420) 1дв 2ящ 2040х560 | C17: 560х440х2040 | D17: =CEILING('прайс-лист2'!E17*Титульный!$AY$1,Титульный!$AY$3) -> 12226 | E17: =CEILING('прайс-лист2'!F17*Титульный!$AY$1,Титульный!$AY$3) -> 16516 | F17: =CEILING('прайс-лист2'!G17*Титульный!$AY$1,Титульный!$AY$3) -> 12876 | G17: =CEILING('прайс-лист2'!H17*Титульный!$AY$1,Титульный!$AY$3) -> 14486 | H17: =CEILING('прайс-лист2'!I17*Титульный!$AY$1,Титульный!$AY$3) -> 10296 | I17: =CEILING('прайс-лист2'!J17*Титульный!$AY$1,Титульный!$AY$3) -> 10406 | J17: =CEILING('прайс-лист2'!K17*Титульный!$AY$1,Титульный!$AY$3) -> 10756 | K17: =CEILING('прайс-лист2'!L17*Титульный!$AY$1,Титульный!$AY$3) -> 11626 | L17: - | M17: =CEILING('прайс-лист2'!N17*Титульный!$AY$1,Титульный!$AY$3) -> 15436 | N17: =CEILING('прайс-лист2'!O17*Титульный!$AY$1,Титульный!$AY$3) -> 16836 | O17: =CEILING('прайс-лист2'!P17*Титульный!$AY$1,Титульный!$AY$3) -> 17876 | P17: =CEILING('прайс-лист2'!Q17*Титульный!$AY$1,Титульный!$AY$3) -> 19656 | Q17: =CEILING('прайс-лист2'!R17*Титульный!$AY$1,Титульный!$AY$3) -> 20056 | R17: =CEILING('прайс-лист2'!S17*Титульный!$AY$1,Титульный!$AY$3) -> 1220 | S17: =CEILING('прайс-лист2'!T17*Титульный!$AY$1,Титульный!$AY$3) -> 2448
A18: Шкаф (420) 1дв 2ящ 2240х560 | C18: 560х440х2240 | D18: =CEILING('прайс-лист2'!E18*Титульный!$AY$1,Титульный!$AY$3) -> 13198 | E18: =CEILING('прайс-лист2'!F18*Титульный!$AY$1,Титульный!$AY$3) -> 17918 | F18: =CEILING('прайс-лист2'!G18*Титульный!$AY$1,Титульный!$AY$3) -> 13918 | G18: =CEILING('прайс-лист2'!H18*Титульный!$AY$1,Титульный!$AY$3) -> 15688 | H18: =CEILING('прайс-лист2'!I18*Титульный!$AY$1,Титульный!$AY$3) -> 11088 | I18: =CEILING('прайс-лист2'!J18*Титульный!$AY$1,Титульный!$AY$3) -> 11208 | J18: =CEILING('прайс-лист2'!K18*Титульный!$AY$1,Титульный!$AY$3) -> 11588 | K18: =CEILING('прайс-лист2'!L18*Титульный!$AY$1,Титульный!$AY$3) -> 12548 | L18: - | M18: =CEILING('прайс-лист2'!N18*Титульный!$AY$1,Титульный!$AY$3) -> 16678 | N18: =CEILING('прайс-лист2'!O18*Титульный!$AY$1,Титульный!$AY$3) -> 18148 | O18: =CEILING('прайс-лист2'!P18*Титульный!$AY$1,Титульный!$AY$3) -> 19368 | P18: =CEILING('прайс-лист2'!Q18*Титульный!$AY$1,Титульный!$AY$3) -> 21318 | Q18: =CEILING('прайс-лист2'!R18*Титульный!$AY$1,Титульный!$AY$3) -> 21658 | R18: =CEILING('прайс-лист2'!S18*Титульный!$AY$1,Титульный!$AY$3) -> 1490 | S18: =CEILING('прайс-лист2'!T18*Титульный!$AY$1,Титульный!$AY$3) -> 2797
A19: Шкаф (420) 1дв 2ящ Шар 2040х420 | C19: 420х440х2040 | D19: =CEILING('прайс-лист2'!E19*Титульный!$AY$1,Титульный!$AY$3) -> 10934 | E19: =CEILING('прайс-лист2'!F19*Титульный!$AY$1,Титульный!$AY$3) -> 14144 | F19: =CEILING('прайс-лист2'!G19*Титульный!$AY$1,Титульный!$AY$3) -> 11424 | G19: =CEILING('прайс-лист2'!H19*Титульный!$AY$1,Титульный!$AY$3) -> 12624 | H19: =CEILING('прайс-лист2'!I19*Титульный!$AY$1,Титульный!$AY$3) -> 9504 | I19: =CEILING('прайс-лист2'!J19*Титульный!$AY$1,Титульный!$AY$3) -> 9564 | J19: =CEILING('прайс-лист2'!K19*Титульный!$AY$1,Титульный!$AY$3) -> 9824 | K19: =CEILING('прайс-лист2'!L19*Титульный!$AY$1,Титульный!$AY$3) -> 10484 | L19: - | M19: =CEILING('прайс-лист2'!N19*Титульный!$AY$1,Титульный!$AY$3) -> 13504 | N19: =CEILING('прайс-лист2'!O19*Титульный!$AY$1,Титульный!$AY$3) -> 14754 | O19: =CEILING('прайс-лист2'!P19*Титульный!$AY$1,Титульный!$AY$3) -> 15344 | P19: =CEILING('прайс-лист2'!Q19*Титульный!$AY$1,Титульный!$AY$3) -> 16674 | Q19: =CEILING('прайс-лист2'!R19*Титульный!$AY$1,Титульный!$AY$3) -> 17414 | R19: =CEILING('прайс-лист2'!S19*Титульный!$AY$1,Титульный!$AY$3) -> 849 | S19: =CEILING('прайс-лист2'!T19*Титульный!$AY$1,Титульный!$AY$3) -> 2090
A20: Шкаф (420) 1дв 2ящ Шар 2240х420 | C20: 420х440х2240 | D20: =CEILING('прайс-лист2'!E20*Титульный!$AY$1,Титульный!$AY$3) -> 11730 | E20: =CEILING('прайс-лист2'!F20*Титульный!$AY$1,Титульный!$AY$3) -> 15270 | F20: =CEILING('прайс-лист2'!G20*Титульный!$AY$1,Титульный!$AY$3) -> 12270 | G20: =CEILING('прайс-лист2'!H20*Титульный!$AY$1,Титульный!$AY$3) -> 13590 | H20: =CEILING('прайс-лист2'!I20*Титульный!$AY$1,Титульный!$AY$3) -> 10150 | I20: =CEILING('прайс-лист2'!J20*Титульный!$AY$1,Титульный!$AY$3) -> 10230 | J20: =CEILING('прайс-лист2'!K20*Титульный!$AY$1,Титульный!$AY$3) -> 10510 | K20: =CEILING('прайс-лист2'!L20*Титульный!$AY$1,Титульный!$AY$3) -> 11240 | L20: - | M20: =CEILING('прайс-лист2'!N20*Титульный!$AY$1,Титульный!$AY$3) -> 14520 | N20: =CEILING('прайс-лист2'!O20*Титульный!$AY$1,Титульный!$AY$3) -> 15840 | O20: =CEILING('прайс-лист2'!P20*Титульный!$AY$1,Титульный!$AY$3) -> 16540 | P20: =CEILING('прайс-лист2'!Q20*Титульный!$AY$1,Титульный!$AY$3) -> 18010 | Q20: =CEILING('прайс-лист2'!R20*Титульный!$AY$1,Титульный!$AY$3) -> 18730 | R20: =CEILING('прайс-лист2'!S20*Титульный!$AY$1,Титульный!$AY$3) -> 963 | S20: =CEILING('прайс-лист2'!T20*Титульный!$AY$1,Титульный!$AY$3) -> 2281
A21: Шкаф (420) 1дв 2ящ Шар 2040х560 | C21: 560х440х2040 | D21: =CEILING('прайс-лист2'!E21*Титульный!$AY$1,Титульный!$AY$3) -> 12697 | E21: =CEILING('прайс-лист2'!F21*Титульный!$AY$1,Титульный!$AY$3) -> 16987 | F21: =CEILING('прайс-лист2'!G21*Титульный!$AY$1,Титульный!$AY$3) -> 13347 | G21: =CEILING('прайс-лист2'!H21*Титульный!$AY$1,Титульный!$AY$3) -> 14957 | H21: =CEILING('прайс-лист2'!I21*Титульный!$AY$1,Титульный!$AY$3) -> 10767 | I21: =CEILING('прайс-лист2'!J21*Титульный!$AY$1,Титульный!$AY$3) -> 10877 | J21: =CEILING('прайс-лист2'!K21*Титульный!$AY$1,Титульный!$AY$3) -> 11227 | K21: =CEILING('прайс-лист2'!L21*Титульный!$AY$1,Титульный!$AY$3) -> 12097 | L21: - | M21: =CEILING('прайс-лист2'!N21*Титульный!$AY$1,Титульный!$AY$3) -> 15907 | N21: =CEILING('прайс-лист2'!O21*Титульный!$AY$1,Титульный!$AY$3) -> 17307 | O21: =CEILING('прайс-лист2'!P21*Титульный!$AY$1,Титульный!$AY$3) -> 18347 | P21: =CEILING('прайс-лист2'!Q21*Титульный!$AY$1,Титульный!$AY$3) -> 20127 | Q21: =CEILING('прайс-лист2'!R21*Титульный!$AY$1,Титульный!$AY$3) -> 20527 | R21: =CEILING('прайс-лист2'!S21*Титульный!$AY$1,Титульный!$AY$3) -> 1220 | S21: =CEILING('прайс-лист2'!T21*Титульный!$AY$1,Титульный!$AY$3) -> 2448
A22: Шкаф (420) 1дв 2ящ Шар 2240х560 | C22: 560х440х2240 | D22: =CEILING('прайс-лист2'!E22*Титульный!$AY$1,Титульный!$AY$3) -> 13609 | E22: =CEILING('прайс-лист2'!F22*Титульный!$AY$1,Титульный!$AY$3) -> 18329 | F22: =CEILING('прайс-лист2'!G22*Титульный!$AY$1,Титульный!$AY$3) -> 14329 | G22: =CEILING('прайс-лист2'!H22*Титульный!$AY$1,Титульный!$AY$3) -> 16099 | H22: =CEILING('прайс-лист2'!I22*Титульный!$AY$1,Титульный!$AY$3) -> 11499 | I22: =CEILING('прайс-лист2'!J22*Титульный!$AY$1,Титульный!$AY$3) -> 11619 | J22: =CEILING('прайс-лист2'!K22*Титульный!$AY$1,Титульный!$AY$3) -> 11999 | K22: =CEILING('прайс-лист2'!L22*Титульный!$AY$1,Титульный!$AY$3) -> 12959 | L22: - | M22: =CEILING('прайс-лист2'!N22*Титульный!$AY$1,Титульный!$AY$3) -> 17089 | N22: =CEILING('прайс-лист2'!O22*Титульный!$AY$1,Титульный!$AY$3) -> 18559 | O22: =CEILING('прайс-лист2'!P22*Титульный!$AY$1,Титульный!$AY$3) -> 19779 | P22: =CEILING('прайс-лист2'!Q22*Титульный!$AY$1,Титульный!$AY$3) -> 21729 | Q22: =CEILING('прайс-лист2'!R22*Титульный!$AY$1,Титульный!$AY$3) -> 22069 | R22: =CEILING('прайс-лист2'!S22*Титульный!$AY$1,Титульный!$AY$3) -> 1490 | S22: =CEILING('прайс-лист2'!T22*Титульный!$AY$1,Титульный!$AY$3) -> 2797
A23: Шкаф (420) 1дв 2ящ витрина 2040х420 | C23: 420х440х2040 | D23: =CEILING('прайс-лист2'!E23*Титульный!$AY$1,Титульный!$AY$3) -> 11171 | E23: =CEILING('прайс-лист2'!F23*Титульный!$AY$1,Титульный!$AY$3) -> 14381 | F23: =CEILING('прайс-лист2'!G23*Титульный!$AY$1,Титульный!$AY$3) -> 11661 | G23: =CEILING('прайс-лист2'!H23*Титульный!$AY$1,Титульный!$AY$3) -> 12861 | H23: =CEILING('прайс-лист2'!I23*Титульный!$AY$1,Титульный!$AY$3) -> 9115 | I23: =CEILING('прайс-лист2'!J23*Титульный!$AY$1,Титульный!$AY$3) -> 9185 | J23: =CEILING('прайс-лист2'!K23*Титульный!$AY$1,Титульный!$AY$3) -> 9455 | K23: =CEILING('прайс-лист2'!L23*Титульный!$AY$1,Титульный!$AY$3) -> 10145 | L23: - | M23: - | N23: - | O23: =CEILING('прайс-лист2'!P23*Титульный!$AY$1,Титульный!$AY$3) -> 15375 | P23: =CEILING('прайс-лист2'!Q23*Титульный!$AY$1,Титульный!$AY$3) -> 16765 | Q23: =CEILING('прайс-лист2'!R23*Титульный!$AY$1,Титульный!$AY$3) -> 14735 | R23: - | S23: -
A24: Шкаф (420) 1дв 2ящ витрина 2240х420 | C24: 420х440х2240 | D24: =CEILING('прайс-лист2'!E24*Титульный!$AY$1,Титульный!$AY$3) -> 11992 | E24: =CEILING('прайс-лист2'!F24*Титульный!$AY$1,Титульный!$AY$3) -> 15532 | F24: =CEILING('прайс-лист2'!G24*Титульный!$AY$1,Титульный!$AY$3) -> 12532 | G24: =CEILING('прайс-лист2'!H24*Титульный!$AY$1,Титульный!$AY$3) -> 13852 | H24: =CEILING('прайс-лист2'!I24*Титульный!$AY$1,Титульный!$AY$3) -> 9794 | I24: =CEILING('прайс-лист2'!J24*Титульный!$AY$1,Титульный!$AY$3) -> 9874 | J24: =CEILING('прайс-лист2'!K24*Титульный!$AY$1,Титульный!$AY$3) -> 10174 | K24: =CEILING('прайс-лист2'!L24*Титульный!$AY$1,Титульный!$AY$3) -> 10924 | L24: - | M24: - | N24: - | O24: =CEILING('прайс-лист2'!P24*Титульный!$AY$1,Титульный!$AY$3) -> 16644 | P24: =CEILING('прайс-лист2'!Q24*Титульный!$AY$1,Титульный!$AY$3) -> 18184 | Q24: =CEILING('прайс-лист2'!R24*Титульный!$AY$1,Титульный!$AY$3) -> 15754 | R24: - | S24: -
A25: Шкаф (420) 2дв 1ящ 2040х420 | C25: 420х440х2040 | D25: =CEILING('прайс-лист2'!E25*Титульный!$AY$1,Титульный!$AY$3) -> 9870 | E25: =CEILING('прайс-лист2'!F25*Титульный!$AY$1,Титульный!$AY$3) -> 13090 | F25: =CEILING('прайс-лист2'!G25*Титульный!$AY$1,Титульный!$AY$3) -> 10360 | G25: =CEILING('прайс-лист2'!H25*Титульный!$AY$1,Титульный!$AY$3) -> 11560 | H25: =CEILING('прайс-лист2'!I25*Титульный!$AY$1,Титульный!$AY$3) -> 8430 | I25: =CEILING('прайс-лист2'!J25*Титульный!$AY$1,Титульный!$AY$3) -> 8510 | J25: =CEILING('прайс-лист2'!K25*Титульный!$AY$1,Титульный!$AY$3) -> 8760 | K25: =CEILING('прайс-лист2'!L25*Титульный!$AY$1,Титульный!$AY$3) -> 9420 | L25: - | M25: =CEILING('прайс-лист2'!N25*Титульный!$AY$1,Титульный!$AY$3) -> 12440 | N25: =CEILING('прайс-лист2'!O25*Титульный!$AY$1,Титульный!$AY$3) -> 13680 | O25: =CEILING('прайс-лист2'!P25*Титульный!$AY$1,Титульный!$AY$3) -> 14270 | P25: =CEILING('прайс-лист2'!Q25*Титульный!$AY$1,Титульный!$AY$3) -> 15600 | Q25: =CEILING('прайс-лист2'!R25*Титульный!$AY$1,Титульный!$AY$3) -> 16550 | R25: - | S25: -
A26: Шкаф (420) 2дв 1ящ 2240х420 | C26: 420х440х2240 | D26: =CEILING('прайс-лист2'!E26*Титульный!$AY$1,Титульный!$AY$3) -> 10664 | E26: =CEILING('прайс-лист2'!F26*Титульный!$AY$1,Титульный!$AY$3) -> 14204 | F26: =CEILING('прайс-лист2'!G26*Титульный!$AY$1,Титульный!$AY$3) -> 11204 | G26: =CEILING('прайс-лист2'!H26*Титульный!$AY$1,Титульный!$AY$3) -> 12524 | H26: =CEILING('прайс-лист2'!I26*Титульный!$AY$1,Титульный!$AY$3) -> 9084 | I26: =CEILING('прайс-лист2'!J26*Титульный!$AY$1,Титульный!$AY$3) -> 9164 | J26: =CEILING('прайс-лист2'!K26*Титульный!$AY$1,Титульный!$AY$3) -> 9444 | K26: =CEILING('прайс-лист2'!L26*Титульный!$AY$1,Титульный!$AY$3) -> 10174 | L26: - | M26: =CEILING('прайс-лист2'!N26*Титульный!$AY$1,Титульный!$AY$3) -> 13454 | N26: =CEILING('прайс-лист2'!O26*Титульный!$AY$1,Титульный!$AY$3) -> 14774 | O26: =CEILING('прайс-лист2'!P26*Титульный!$AY$1,Титульный!$AY$3) -> 15464 | P26: =CEILING('прайс-лист2'!Q26*Титульный!$AY$1,Титульный!$AY$3) -> 16934 | Q26: =CEILING('прайс-лист2'!R26*Титульный!$AY$1,Титульный!$AY$3) -> 17864 | R26: - | S26: -
A27: Шкаф (420) 2дв 1ящ витрина 2040х420 | C27: 420х440х2040 | D27: =CEILING('прайс-лист2'!E27*Титульный!$AY$1,Титульный!$AY$3) -> 10643 | E27: =CEILING('прайс-лист2'!F27*Титульный!$AY$1,Титульный!$AY$3) -> 13863 | F27: =CEILING('прайс-лист2'!G27*Титульный!$AY$1,Титульный!$AY$3) -> 11133 | G27: =CEILING('прайс-лист2'!H27*Титульный!$AY$1,Титульный!$AY$3) -> 12333 | H27: =CEILING('прайс-лист2'!I27*Титульный!$AY$1,Титульный!$AY$3) -> 8631 | I27: =CEILING('прайс-лист2'!J27*Титульный!$AY$1,Титульный!$AY$3) -> 8711 | J27: =CEILING('прайс-лист2'!K27*Титульный!$AY$1,Титульный!$AY$3) -> 8961 | K27: =CEILING('прайс-лист2'!L27*Титульный!$AY$1,Титульный!$AY$3) -> 9641 | L27: - | M27: - | N27: - | O27: =CEILING('прайс-лист2'!P27*Титульный!$AY$1,Титульный!$AY$3) -> 14911 | P27: =CEILING('прайс-лист2'!Q27*Титульный!$AY$1,Титульный!$AY$3) -> 16281 | Q27: =CEILING('прайс-лист2'!R27*Титульный!$AY$1,Титульный!$AY$3) -> 14371 | R27: - | S27: -
A28: Шкаф (420) 2дв 1ящ витрина 2240х420 | C28: 420х440х2240 | D28: =CEILING('прайс-лист2'!E28*Титульный!$AY$1,Титульный!$AY$3) -> 11602 | E28: =CEILING('прайс-лист2'!F28*Титульный!$AY$1,Титульный!$AY$3) -> 15142 | F28: =CEILING('прайс-лист2'!G28*Титульный!$AY$1,Титульный!$AY$3) -> 12142 | G28: =CEILING('прайс-лист2'!H28*Титульный!$AY$1,Титульный!$AY$3) -> 13462 | H28: =CEILING('прайс-лист2'!I28*Титульный!$AY$1,Титульный!$AY$3) -> 9368 | I28: =CEILING('прайс-лист2'!J28*Титульный!$AY$1,Титульный!$AY$3) -> 9458 | J28: =CEILING('прайс-лист2'!K28*Титульный!$AY$1,Титульный!$AY$3) -> 9738 | K28: =CEILING('прайс-лист2'!L28*Титульный!$AY$1,Титульный!$AY$3) -> 10488 | L28: - | M28: - | N28: - | O28: =CEILING('прайс-лист2'!P28*Титульный!$AY$1,Титульный!$AY$3) -> 16258 | P28: =CEILING('прайс-лист2'!Q28*Титульный!$AY$1,Титульный!$AY$3) -> 17768 | Q28: =CEILING('прайс-лист2'!R28*Титульный!$AY$1,Титульный!$AY$3) -> 15458 | R28: - | S28: -
A29: Шкаф (420) 2дв 1ящ шар 2040х420 | C29: 420х440х2040 | D29: =CEILING('прайс-лист2'!E29*Титульный!$AY$1,Титульный!$AY$3) -> 10064 | E29: =CEILING('прайс-лист2'!F29*Титульный!$AY$1,Титульный!$AY$3) -> 13284 | F29: =CEILING('прайс-лист2'!G29*Титульный!$AY$1,Титульный!$AY$3) -> 10554 | G29: =CEILING('прайс-лист2'!H29*Титульный!$AY$1,Титульный!$AY$3) -> 11754 | H29: =CEILING('прайс-лист2'!I29*Титульный!$AY$1,Титульный!$AY$3) -> 8624 | I29: =CEILING('прайс-лист2'!J29*Титульный!$AY$1,Титульный!$AY$3) -> 8704 | J29: =CEILING('прайс-лист2'!K29*Титульный!$AY$1,Титульный!$AY$3) -> 8954 | K29: =CEILING('прайс-лист2'!L29*Титульный!$AY$1,Титульный!$AY$3) -> 9614 | L29: - | M29: =CEILING('прайс-лист2'!N29*Титульный!$AY$1,Титульный!$AY$3) -> 12634 | N29: =CEILING('прайс-лист2'!O29*Титульный!$AY$1,Титульный!$AY$3) -> 13874 | O29: =CEILING('прайс-лист2'!P29*Титульный!$AY$1,Титульный!$AY$3) -> 14464 | P29: =CEILING('прайс-лист2'!Q29*Титульный!$AY$1,Титульный!$AY$3) -> 15794 | Q29: =CEILING('прайс-лист2'!R29*Титульный!$AY$1,Титульный!$AY$3) -> 16744
A30: Шкаф (420) 2дв 1ящ шар 2240х420 | C30: 420х440х2240 | D30: =CEILING('прайс-лист2'!E30*Титульный!$AY$1,Титульный!$AY$3) -> 10851 | E30: =CEILING('прайс-лист2'!F30*Титульный!$AY$1,Титульный!$AY$3) -> 14391 | F30: =CEILING('прайс-лист2'!G30*Титульный!$AY$1,Титульный!$AY$3) -> 11391 | G30: =CEILING('прайс-лист2'!H30*Титульный!$AY$1,Титульный!$AY$3) -> 12711 | H30: =CEILING('прайс-лист2'!I30*Титульный!$AY$1,Титульный!$AY$3) -> 9271 | I30: =CEILING('прайс-лист2'!J30*Титульный!$AY$1,Титульный!$AY$3) -> 9351 | J30: =CEILING('прайс-лист2'!K30*Титульный!$AY$1,Титульный!$AY$3) -> 9631 | K30: =CEILING('прайс-лист2'!L30*Титульный!$AY$1,Титульный!$AY$3) -> 10361 | L30: - | M30: =CEILING('прайс-лист2'!N30*Титульный!$AY$1,Титульный!$AY$3) -> 13641 | N30: =CEILING('прайс-лист2'!O30*Титульный!$AY$1,Титульный!$AY$3) -> 14961 | O30: =CEILING('прайс-лист2'!P30*Титульный!$AY$1,Титульный!$AY$3) -> 15651 | P30: =CEILING('прайс-лист2'!Q30*Титульный!$AY$1,Титульный!$AY$3) -> 17121 | Q30: =CEILING('прайс-лист2'!R30*Титульный!$AY$1,Титульный!$AY$3) -> 18051
A31: Шкаф (420) 2дв 1ящ шар витрина 2040х420 | C31: 420х440х2040 | D31: =CEILING('прайс-лист2'!E31*Титульный!$AY$1,Титульный!$AY$3) -> 10965 | E31: =CEILING('прайс-лист2'!F31*Титульный!$AY$1,Титульный!$AY$3) -> 14185 | F31: =CEILING('прайс-лист2'!G31*Титульный!$AY$1,Титульный!$AY$3) -> 11455 | G31: =CEILING('прайс-лист2'!H31*Титульный!$AY$1,Титульный!$AY$3) -> 12655 | H31: =CEILING('прайс-лист2'!I31*Титульный!$AY$1,Титульный!$AY$3) -> 8953 | I31: =CEILING('прайс-лист2'!J31*Титульный!$AY$1,Титульный!$AY$3) -> 9033 | J31: =CEILING('прайс-лист2'!K31*Титульный!$AY$1,Титульный!$AY$3) -> 9283 | K31: =CEILING('прайс-лист2'!L31*Титульный!$AY$1,Титульный!$AY$3) -> 9963 | L31: - | M31: =CEILING('прайс-лист2'!N31*Титульный!$AY$1,Титульный!$AY$3) -> 13383 | N31: =CEILING('прайс-лист2'!O31*Титульный!$AY$1,Титульный!$AY$3) -> 15023 | O31: =CEILING('прайс-лист2'!P31*Титульный!$AY$1,Титульный!$AY$3) -> 15233 | P31: =CEILING('прайс-лист2'!Q31*Титульный!$AY$1,Титульный!$AY$3) -> 16603 | Q31: =CEILING('прайс-лист2'!R31*Титульный!$AY$1,Титульный!$AY$3) -> 14693
A32: Шкаф (420) 2дв 1ящ шар витрина 2240х420 | C32: 420х440х2240 | D32: =CEILING('прайс-лист2'!E32*Титульный!$AY$1,Титульный!$AY$3) -> 11785 | E32: =CEILING('прайс-лист2'!F32*Титульный!$AY$1,Титульный!$AY$3) -> 15325 | F32: =CEILING('прайс-лист2'!G32*Титульный!$AY$1,Титульный!$AY$3) -> 12325 | G32: =CEILING('прайс-лист2'!H32*Титульный!$AY$1,Титульный!$AY$3) -> 13645 | H32: =CEILING('прайс-лист2'!I32*Титульный!$AY$1,Титульный!$AY$3) -> 9551 | I32: =CEILING('прайс-лист2'!J32*Титульный!$AY$1,Титульный!$AY$3) -> 9641 | J32: =CEILING('прайс-лист2'!K32*Титульный!$AY$1,Титульный!$AY$3) -> 9921 | K32: =CEILING('прайс-лист2'!L32*Титульный!$AY$1,Титульный!$AY$3) -> 10671 | L32: - | M32: =CEILING('прайс-лист2'!N32*Титульный!$AY$1,Титульный!$AY$3) -> 14381 | N32: =CEILING('прайс-лист2'!O32*Титульный!$AY$1,Титульный!$AY$3) -> 16101 | O32: =CEILING('прайс-лист2'!P32*Титульный!$AY$1,Титульный!$AY$3) -> 16441 | P32: =CEILING('прайс-лист2'!Q32*Титульный!$AY$1,Титульный!$AY$3) -> 17951 | Q32: =CEILING('прайс-лист2'!R32*Титульный!$AY$1,Титульный!$AY$3) -> 15641
A33: Шкаф (420) 2дв 2040х840 | C33: 840х440х2040 | D33: =CEILING('прайс-лист2'!E33*Титульный!$AY$1,Титульный!$AY$3) -> 15950 | E33: =CEILING('прайс-лист2'!F33*Титульный!$AY$1,Титульный!$AY$3) -> 22370 | F33: =CEILING('прайс-лист2'!G33*Титульный!$AY$1,Титульный!$AY$3) -> 16910 | G33: =CEILING('прайс-лист2'!H33*Титульный!$AY$1,Титульный!$AY$3) -> 19310 | H33: =CEILING('прайс-лист2'!I33*Титульный!$AY$1,Титульный!$AY$3) -> 13050 | I33: =CEILING('прайс-лист2'!J33*Титульный!$AY$1,Титульный!$AY$3) -> 13210 | J33: =CEILING('прайс-лист2'!K33*Титульный!$AY$1,Титульный!$AY$3) -> 13710 | K33: =CEILING('прайс-лист2'!L33*Титульный!$AY$1,Титульный!$AY$3) -> 15050 | L33: - | M33: =CEILING('прайс-лист2'!N33*Титульный!$AY$1,Титульный!$AY$3) -> 20530 | N33: =CEILING('прайс-лист2'!O33*Титульный!$AY$1,Титульный!$AY$3) -> 22370 | O33: =CEILING('прайс-лист2'!P33*Титульный!$AY$1,Титульный!$AY$3) -> 24190 | P33: =CEILING('прайс-лист2'!Q33*Титульный!$AY$1,Титульный!$AY$3) -> 26870 | Q33: =CEILING('прайс-лист2'!R33*Титульный!$AY$1,Титульный!$AY$3) -> 27450 | R33: =CEILING('прайс-лист2'!S33*Титульный!$AY$1,Титульный!$AY$3) -> 1698 | S33: =CEILING('прайс-лист2'!T33*Титульный!$AY$1,Титульный!$AY$3) -> 4946
A34: Шкаф (420) 2дв 2240х840 | C34: 840х440х2240 | D34: =CEILING('прайс-лист2'!E34*Титульный!$AY$1,Титульный!$AY$3) -> 17319 | E34: =CEILING('прайс-лист2'!F34*Титульный!$AY$1,Титульный!$AY$3) -> 24379 | F34: =CEILING('прайс-лист2'!G34*Титульный!$AY$1,Титульный!$AY$3) -> 18379 | G34: =CEILING('прайс-лист2'!H34*Титульный!$AY$1,Титульный!$AY$3) -> 21019 | H34: =CEILING('прайс-лист2'!I34*Титульный!$AY$1,Титульный!$AY$3) -> 14139 | I34: =CEILING('прайс-лист2'!J34*Титульный!$AY$1,Титульный!$AY$3) -> 14319 | J34: =CEILING('прайс-лист2'!K34*Титульный!$AY$1,Титульный!$AY$3) -> 14879 | K34: =CEILING('прайс-лист2'!L34*Титульный!$AY$1,Титульный!$AY$3) -> 16339 | L34: - | M34: =CEILING('прайс-лист2'!N34*Титульный!$AY$1,Титульный!$AY$3) -> 22339 | N34: =CEILING('прайс-лист2'!O34*Титульный!$AY$1,Титульный!$AY$3) -> 24339 | O34: =CEILING('прайс-лист2'!P34*Титульный!$AY$1,Титульный!$AY$3) -> 26359 | P34: =CEILING('прайс-лист2'!Q34*Титульный!$AY$1,Титульный!$AY$3) -> 29299 | Q34: =CEILING('прайс-лист2'!R34*Титульный!$AY$1,Титульный!$AY$3) -> 29859 | R34: =CEILING('прайс-лист2'!S34*Титульный!$AY$1,Титульный!$AY$3) -> 1926 | S34: =CEILING('прайс-лист2'!T34*Титульный!$AY$1,Титульный!$AY$3) -> 5350
A35: Шкаф (420) комб 2дв 2040х840 | C35: 840х440х2040 | D35: =CEILING('прайс-лист2'!E35*Титульный!$AY$1,Титульный!$AY$3) -> 17280 | E35: =CEILING('прайс-лист2'!F35*Титульный!$AY$1,Титульный!$AY$3) -> 23700 | F35: =CEILING('прайс-лист2'!G35*Титульный!$AY$1,Титульный!$AY$3) -> 18240 | G35: =CEILING('прайс-лист2'!H35*Титульный!$AY$1,Титульный!$AY$3) -> 20640 | H35: =CEILING('прайс-лист2'!I35*Титульный!$AY$1,Титульный!$AY$3) -> 14380 | I35: =CEILING('прайс-лист2'!J35*Титульный!$AY$1,Титульный!$AY$3) -> 14540 | J35: =CEILING('прайс-лист2'!K35*Титульный!$AY$1,Титульный!$AY$3) -> 15040 | K35: =CEILING('прайс-лист2'!L35*Титульный!$AY$1,Титульный!$AY$3) -> 16380 | L35: - | M35: =CEILING('прайс-лист2'!N35*Титульный!$AY$1,Титульный!$AY$3) -> 21860 | N35: =CEILING('прайс-лист2'!O35*Титульный!$AY$1,Титульный!$AY$3) -> 23700 | O35: =CEILING('прайс-лист2'!P35*Титульный!$AY$1,Титульный!$AY$3) -> 25520 | P35: =CEILING('прайс-лист2'!Q35*Титульный!$AY$1,Титульный!$AY$3) -> 28200 | Q35: =CEILING('прайс-лист2'!R35*Титульный!$AY$1,Титульный!$AY$3) -> 28780 | R35: =CEILING('прайс-лист2'!S35*Титульный!$AY$1,Титульный!$AY$3) -> 1698 | S35: =CEILING('прайс-лист2'!T35*Титульный!$AY$1,Титульный!$AY$3) -> 4946
A36: Шкаф (420) комб 2дв 2240х840 | C36: 840х440х2240 | D36: =CEILING('прайс-лист2'!E36*Титульный!$AY$1,Титульный!$AY$3) -> 18524 | E36: =CEILING('прайс-лист2'!F36*Титульный!$AY$1,Титульный!$AY$3) -> 25584 | F36: =CEILING('прайс-лист2'!G36*Титульный!$AY$1,Титульный!$AY$3) -> 19584 | G36: =CEILING('прайс-лист2'!H36*Титульный!$AY$1,Титульный!$AY$3) -> 22224 | H36: =CEILING('прайс-лист2'!I36*Титульный!$AY$1,Титульный!$AY$3) -> 15344 | I36: =CEILING('прайс-лист2'!J36*Титульный!$AY$1,Титульный!$AY$3) -> 15524 | J36: =CEILING('прайс-лист2'!K36*Титульный!$AY$1,Титульный!$AY$3) -> 16084 | K36: =CEILING('прайс-лист2'!L36*Титульный!$AY$1,Титульный!$AY$3) -> 17544 | L36: - | M36: =CEILING('прайс-лист2'!N36*Титульный!$AY$1,Титульный!$AY$3) -> 23544 | N36: =CEILING('прайс-лист2'!O36*Титульный!$AY$1,Титульный!$AY$3) -> 25544 | O36: =CEILING('прайс-лист2'!P36*Титульный!$AY$1,Титульный!$AY$3) -> 27564 | P36: =CEILING('прайс-лист2'!Q36*Титульный!$AY$1,Титульный!$AY$3) -> 30504 | Q36: =CEILING('прайс-лист2'!R36*Титульный!$AY$1,Титульный!$AY$3) -> 31064 | R36: =CEILING('прайс-лист2'!S36*Титульный!$AY$1,Титульный!$AY$3) -> 1926 | S36: =CEILING('прайс-лист2'!T36*Титульный!$AY$1,Титульный!$AY$3) -> 5350
A37: Шкаф (420) 2дв витрина 2040х840 | C37: 840х440х2040 | D37: =CEILING('прайс-лист2'!E37*Титульный!$AY$1,Титульный!$AY$3) -> 18425 | E37: =CEILING('прайс-лист2'!F37*Титульный!$AY$1,Титульный!$AY$3) -> 24845 | F37: =CEILING('прайс-лист2'!G37*Титульный!$AY$1,Титульный!$AY$3) -> 19385 | G37: =CEILING('прайс-лист2'!H37*Титульный!$AY$1,Титульный!$AY$3) -> 21785 | H37: =CEILING('прайс-лист2'!I37*Титульный!$AY$1,Титульный!$AY$3) -> 13447 | I37: =CEILING('прайс-лист2'!J37*Титульный!$AY$1,Титульный!$AY$3) -> 13627 | J37: =CEILING('прайс-лист2'!K37*Титульный!$AY$1,Титульный!$AY$3) -> 14167 | K37: =CEILING('прайс-лист2'!L37*Титульный!$AY$1,Титульный!$AY$3) -> 15587 | L37: - | M37: - | N37: - | O37: =CEILING('прайс-лист2'!P37*Титульный!$AY$1,Титульный!$AY$3) -> 25627 | P37: =CEILING('прайс-лист2'!Q37*Титульный!$AY$1,Титульный!$AY$3) -> 28487 | Q37: =CEILING('прайс-лист2'!R37*Титульный!$AY$1,Титульный!$AY$3) -> 21967 | R37: - | S37: -
A38: Шкаф (420) 2дв витрина 2240х840 | C38: 840х440х2240 | D38: =CEILING('прайс-лист2'!E38*Титульный!$AY$1,Титульный!$AY$3) -> 20041 | E38: =CEILING('прайс-лист2'!F38*Титульный!$AY$1,Титульный!$AY$3) -> 27101 | F38: =CEILING('прайс-лист2'!G38*Титульный!$AY$1,Титульный!$AY$3) -> 21101 | G38: =CEILING('прайс-лист2'!H38*Титульный!$AY$1,Титульный!$AY$3) -> 23741 | H38: =CEILING('прайс-лист2'!I38*Титульный!$AY$1,Титульный!$AY$3) -> 14545 | I38: =CEILING('прайс-лист2'!J38*Титульный!$AY$1,Титульный!$AY$3) -> 14745 | J38: =CEILING('прайс-лист2'!K38*Титульный!$AY$1,Титульный!$AY$3) -> 15345 | K38: =CEILING('прайс-лист2'!L38*Титульный!$AY$1,Титульный!$AY$3) -> 16905 | L38: - | M38: - | N38: - | O38: =CEILING('прайс-лист2'!P38*Титульный!$AY$1,Титульный!$AY$3) -> 27925 | P38: =CEILING('прайс-лист2'!Q38*Титульный!$AY$1,Титульный!$AY$3) -> 31085 | Q38: =CEILING('прайс-лист2'!R38*Титульный!$AY$1,Титульный!$AY$3) -> 23765 | R38: - | S38: -
A39: Внимание!!! Для наборов мебели "Марго" использовать только накладные зеркала
A40: Шкафы глубиной 420мм
A41: Наименование | B41: Эскиз | C41: Габариты, ШхГхВ мм. | D41: МДФ фасады | H41: Марго16 | M41: UV-лак | O41: ТСС | Q41: ТСС сборный | R41: Стоимость зеркал
D42: 1 ЦК | E42: 1 ЦК + патина | F42: 2 ЦК | G42: 3 ЦК | H42: 1 ц.к. | I42: 2 ц.к. | J42: 3 ц.к. | K42: 4 ц.к. | L42: 5 ц.к. | M42: UV-лак кромка ABC/AL кромка | N42: кромка 3D | O42: 1 ЦК | P42: 2 ЦК | R42: Зеркало в рамке** | S42: Зеркало накладное*
A43: Шкаф (420) 2дв 2ящ 2040х840 | C43: 840х440х2040 | D43: =CEILING('прайс-лист2'!E39*Титульный!$AY$1,Титульный!$AY$3) -> 17005 | E43: =CEILING('прайс-лист2'!F39*Титульный!$AY$1,Титульный!$AY$3) -> 23425 | F43: =CEILING('прайс-лист2'!G39*Титульный!$AY$1,Титульный!$AY$3) -> 17985 | G43: =CEILING('прайс-лист2'!H39*Титульный!$AY$1,Титульный!$AY$3) -> 20365 | H43: =CEILING('прайс-лист2'!I39*Титульный!$AY$1,Титульный!$AY$3) -> 14125 | I43: =CEILING('прайс-лист2'!J39*Титульный!$AY$1,Титульный!$AY$3) -> 14285 | J43: =CEILING('прайс-лист2'!K39*Титульный!$AY$1,Титульный!$AY$3) -> 14785 | K43: =CEILING('прайс-лист2'!L39*Титульный!$AY$1,Титульный!$AY$3) -> 16125 | L43: - | M43: =CEILING('прайс-лист2'!N39*Титульный!$AY$1,Титульный!$AY$3) -> 22025 | N43: =CEILING('прайс-лист2'!O39*Титульный!$AY$1,Титульный!$AY$3) -> 24365 | O43: =CEILING('прайс-лист2'!P39*Титульный!$AY$1,Титульный!$AY$3) -> 25685 | P43: =CEILING('прайс-лист2'!Q39*Титульный!$AY$1,Титульный!$AY$3) -> 28345 | Q43: =CEILING('прайс-лист2'!R39*Титульный!$AY$1,Титульный!$AY$3) -> 29365 | R43: =CEILING('прайс-лист2'!S39*Титульный!$AY$1,Титульный!$AY$3) -> 1698 | S43: =CEILING('прайс-лист2'!T39*Титульный!$AY$1,Титульный!$AY$3) -> 4946
A44: Шкаф (420) 2дв 2ящ 2240х840 | C44: 840х440х2240 | D44: =CEILING('прайс-лист2'!E40*Титульный!$AY$1,Титульный!$AY$3) -> 18402 | E44: =CEILING('прайс-лист2'!F40*Титульный!$AY$1,Титульный!$AY$3) -> 25482 | F44: =CEILING('прайс-лист2'!G40*Титульный!$AY$1,Титульный!$AY$3) -> 19482 | G44: =CEILING('прайс-лист2'!H40*Титульный!$AY$1,Титульный!$AY$3) -> 22102 | H44: =CEILING('прайс-лист2'!I40*Титульный!$AY$1,Титульный!$AY$3) -> 15222 | I44: =CEILING('прайс-лист2'!J40*Титульный!$AY$1,Титульный!$AY$3) -> 15422 | J44: =CEILING('прайс-лист2'!K40*Титульный!$AY$1,Титульный!$AY$3) -> 15962 | K44: =CEILING('прайс-лист2'!L40*Титульный!$AY$1,Титульный!$AY$3) -> 17442 | L44: - | M44: =CEILING('прайс-лист2'!N40*Титульный!$AY$1,Титульный!$AY$3) -> 23862 | N44: =CEILING('прайс-лист2'!O40*Титульный!$AY$1,Титульный!$AY$3) -> 26342 | O44: =CEILING('прайс-лист2'!P40*Титульный!$AY$1,Титульный!$AY$3) -> 27882 | P44: =CEILING('прайс-лист2'!Q40*Титульный!$AY$1,Титульный!$AY$3) -> 30822 | Q44: =CEILING('прайс-лист2'!R40*Титульный!$AY$1,Титульный!$AY$3) -> 31802 | R44: =CEILING('прайс-лист2'!S40*Титульный!$AY$1,Титульный!$AY$3) -> 1926 | S44: =CEILING('прайс-лист2'!T40*Титульный!$AY$1,Титульный!$AY$3) -> 5350
A45: Шкаф (420) 2дв 2ящ витрина 2040х840 | C45: 840х440х2040 | D45: =CEILING('прайс-лист2'!E41*Титульный!$AY$1,Титульный!$AY$3) -> 18960 | E45: =CEILING('прайс-лист2'!F41*Титульный!$AY$1,Титульный!$AY$3) -> 25380 | F45: =CEILING('прайс-лист2'!G41*Титульный!$AY$1,Титульный!$AY$3) -> 19940 | G45: =CEILING('прайс-лист2'!H41*Титульный!$AY$1,Титульный!$AY$3) -> 22320 | H45: =CEILING('прайс-лист2'!I41*Титульный!$AY$1,Титульный!$AY$3) -> 14428 | I45: =CEILING('прайс-лист2'!J41*Титульный!$AY$1,Титульный!$AY$3) -> 14608 | J45: =CEILING('прайс-лист2'!K41*Титульный!$AY$1,Титульный!$AY$3) -> 15128 | K45: =CEILING('прайс-лист2'!L41*Титульный!$AY$1,Титульный!$AY$3) -> 16528 | L45: - | M45: - | N45: - | O45: =CEILING('прайс-лист2'!P41*Титульный!$AY$1,Титульный!$AY$3) -> 26828 | P45: =CEILING('прайс-лист2'!Q41*Титульный!$AY$1,Титульный!$AY$3) -> 29608 | Q45: =CEILING('прайс-лист2'!R41*Титульный!$AY$1,Титульный!$AY$3) -> 25088 | R45: - | S45: -
A46: Шкаф (420) 2дв 2ящ витрина 2240х840 | C46: 840х440х2240 | D46: =CEILING('прайс-лист2'!E42*Титульный!$AY$1,Титульный!$AY$3) -> 20338 | E46: =CEILING('прайс-лист2'!F42*Титульный!$AY$1,Титульный!$AY$3) -> 27418 | F46: =CEILING('прайс-лист2'!G42*Титульный!$AY$1,Титульный!$AY$3) -> 21418 | G46: =CEILING('прайс-лист2'!H42*Титульный!$AY$1,Титульный!$AY$3) -> 24038 | H46: =CEILING('прайс-лист2'!I42*Титульный!$AY$1,Титульный!$AY$3) -> 15310 | I46: =CEILING('прайс-лист2'!J42*Титульный!$AY$1,Титульный!$AY$3) -> 15510 | J46: =CEILING('прайс-лист2'!K42*Титульный!$AY$1,Титульный!$AY$3) -> 16090 | K46: =CEILING('прайс-лист2'!L42*Титульный!$AY$1,Титульный!$AY$3) -> 17610 | L46: - | M46: - | N46: - | O46: =CEILING('прайс-лист2'!P42*Титульный!$AY$1,Титульный!$AY$3) -> 28890 | P46: =CEILING('прайс-лист2'!Q42*Титульный!$AY$1,Титульный!$AY$3) -> 31970 | Q46: =CEILING('прайс-лист2'!R42*Титульный!$AY$1,Титульный!$AY$3) -> 26650 | R46: - | S46: -
A47: Шкаф (420) 2дв 2ящ шар 2040х840 | C47: 840х440х2040 | D47: =CEILING('прайс-лист2'!E43*Титульный!$AY$1,Титульный!$AY$3) -> 17130 | E47: =CEILING('прайс-лист2'!F43*Титульный!$AY$1,Титульный!$AY$3) -> 23550 | F47: =CEILING('прайс-лист2'!G43*Титульный!$AY$1,Титульный!$AY$3) -> 18110 | G47: =CEILING('прайс-лист2'!H43*Титульный!$AY$1,Титульный!$AY$3) -> 20490 | H47: =CEILING('прайс-лист2'!I43*Титульный!$AY$1,Титульный!$AY$3) -> 14250 | I47: =CEILING('прайс-лист2'!J43*Титульный!$AY$1,Титульный!$AY$3) -> 14410 | J47: =CEILING('прайс-лист2'!K43*Титульный!$AY$1,Титульный!$AY$3) -> 14910 | K47: =CEILING('прайс-лист2'!L43*Титульный!$AY$1,Титульный!$AY$3) -> 16250 | L47: - | M47: =CEILING('прайс-лист2'!N43*Титульный!$AY$1,Титульный!$AY$3) -> 22150 | N47: =CEILING('прайс-лист2'!O43*Титульный!$AY$1,Титульный!$AY$3) -> 24490 | O47: =CEILING('прайс-лист2'!P43*Титульный!$AY$1,Титульный!$AY$3) -> 25810 | P47: =CEILING('прайс-лист2'!Q43*Титульный!$AY$1,Титульный!$AY$3) -> 28470 | Q47: =CEILING('прайс-лист2'!R43*Титульный!$AY$1,Титульный!$AY$3) -> 29490
A48: Шкаф (420) 2дв 2ящ шар 2240х840 | C48: 840х440х2240 | D48: =CEILING('прайс-лист2'!E44*Титульный!$AY$1,Титульный!$AY$3) -> 18500 | E48: =CEILING('прайс-лист2'!F44*Титульный!$AY$1,Титульный!$AY$3) -> 25580 | F48: =CEILING('прайс-лист2'!G44*Титульный!$AY$1,Титульный!$AY$3) -> 19580 | G48: =CEILING('прайс-лист2'!H44*Титульный!$AY$1,Титульный!$AY$3) -> 22200 | H48: =CEILING('прайс-лист2'!I44*Титульный!$AY$1,Титульный!$AY$3) -> 15320 | I48: =CEILING('прайс-лист2'!J44*Титульный!$AY$1,Титульный!$AY$3) -> 15520 | J48: =CEILING('прайс-лист2'!K44*Титульный!$AY$1,Титульный!$AY$3) -> 16060 | K48: =CEILING('прайс-лист2'!L44*Титульный!$AY$1,Титульный!$AY$3) -> 17540 | L48: - | M48: =CEILING('прайс-лист2'!N44*Титульный!$AY$1,Титульный!$AY$3) -> 23960 | N48: =CEILING('прайс-лист2'!O44*Титульный!$AY$1,Титульный!$AY$3) -> 26440 | O48: =CEILING('прайс-лист2'!P44*Титульный!$AY$1,Титульный!$AY$3) -> 27980 | P48: =CEILING('прайс-лист2'!Q44*Титульный!$AY$1,Титульный!$AY$3) -> 30920 | Q48: =CEILING('прайс-лист2'!R44*Титульный!$AY$1,Титульный!$AY$3) -> 31900
A49: Шкаф (420) 2дв 2ящ шар витрина 2040х840 | C49: 840х440х2040 | D49: =CEILING('прайс-лист2'!E45*Титульный!$AY$1,Титульный!$AY$3) -> 19080 | E49: =CEILING('прайс-лист2'!F45*Титульный!$AY$1,Титульный!$AY$3) -> 25500 | F49: =CEILING('прайс-лист2'!G45*Титульный!$AY$1,Титульный!$AY$3) -> 20060 | G49: =CEILING('прайс-лист2'!H45*Титульный!$AY$1,Титульный!$AY$3) -> 22440 | H49: =CEILING('прайс-лист2'!I45*Титульный!$AY$1,Титульный!$AY$3) -> 14548 | I49: =CEILING('прайс-лист2'!J45*Титульный!$AY$1,Титульный!$AY$3) -> 14728 | J49: =CEILING('прайс-лист2'!K45*Титульный!$AY$1,Титульный!$AY$3) -> 15248 | K49: =CEILING('прайс-лист2'!L45*Титульный!$AY$1,Титульный!$AY$3) -> 16648 | L49: - | M49: =CEILING('прайс-лист2'!N45*Титульный!$AY$1,Титульный!$AY$3) -> 23128 | N49: =CEILING('прайс-лист2'!O45*Титульный!$AY$1,Титульный!$AY$3) -> 25908 | O49: =CEILING('прайс-лист2'!P45*Титульный!$AY$1,Титульный!$AY$3) -> 26948 | P49: =CEILING('прайс-лист2'!Q45*Титульный!$AY$1,Титульный!$AY$3) -> 29728 | Q49: =CEILING('прайс-лист2'!R45*Титульный!$AY$1,Титульный!$AY$3) -> 25208
A50: Шкаф (420) 2дв 2ящ шар витрина 2240х840 | C50: 840х440х2240 | D50: =CEILING('прайс-лист2'!E46*Титульный!$AY$1,Титульный!$AY$3) -> 20965 | E50: =CEILING('прайс-лист2'!F46*Титульный!$AY$1,Титульный!$AY$3) -> 28045 | F50: =CEILING('прайс-лист2'!G46*Титульный!$AY$1,Титульный!$AY$3) -> 22045 | G50: =CEILING('прайс-лист2'!H46*Титульный!$AY$1,Титульный!$AY$3) -> 24665 | H50: =CEILING('прайс-лист2'!I46*Титульный!$AY$1,Титульный!$AY$3) -> 15937 | I50: =CEILING('прайс-лист2'!J46*Титульный!$AY$1,Титульный!$AY$3) -> 16137 | J50: =CEILING('прайс-лист2'!K46*Титульный!$AY$1,Титульный!$AY$3) -> 16717 | K50: =CEILING('прайс-лист2'!L46*Титульный!$AY$1,Титульный!$AY$3) -> 18237 | L50: - | M50: =CEILING('прайс-лист2'!N46*Титульный!$AY$1,Титульный!$AY$3) -> 25297 | N50: =CEILING('прайс-лист2'!O46*Титульный!$AY$1,Титульный!$AY$3) -> 28237 | O50: =CEILING('прайс-лист2'!P46*Титульный!$AY$1,Титульный!$AY$3) -> 29517 | P50: =CEILING('прайс-лист2'!Q46*Титульный!$AY$1,Титульный!$AY$3) -> 32597 | Q50: =CEILING('прайс-лист2'!R46*Титульный!$AY$1,Титульный!$AY$3) -> 27277
A51: Шкаф (420) 1дв полувитрина 2040х420 | C51: 420х440х2040 | D51: =CEILING('прайс-лист2'!E47*Титульный!$AY$1,Титульный!$AY$3) -> 10400 | E51: =CEILING('прайс-лист2'!F47*Титульный!$AY$1,Титульный!$AY$3) -> 13610 | F51: =CEILING('прайс-лист2'!G47*Титульный!$AY$1,Титульный!$AY$3) -> 10880 | G51: =CEILING('прайс-лист2'!H47*Титульный!$AY$1,Титульный!$AY$3) -> 12080 | H51: - | I51: - | J51: - | K51: - | L51: - | M51: - | N51: - | O51: =CEILING('прайс-лист2'!P47*Титульный!$AY$1,Титульный!$AY$3) -> 14454 | P51: =CEILING('прайс-лист2'!Q47*Титульный!$AY$1,Титульный!$AY$3) -> 15884 | Q51: =CEILING('прайс-лист2'!R47*Титульный!$AY$1,Титульный!$AY$3) -> 12624 | R51: - | S51: -
A52: Шкаф (420) 1дв полувитрина 2040х560 | C52: 560х440х2040 | D52: =CEILING('прайс-лист2'!E48*Титульный!$AY$1,Титульный!$AY$3) -> 12313 | E52: =CEILING('прайс-лист2'!F48*Титульный!$AY$1,Титульный!$AY$3) -> 16603 | F52: =CEILING('прайс-лист2'!G48*Титульный!$AY$1,Титульный!$AY$3) -> 12963 | G52: =CEILING('прайс-лист2'!H48*Титульный!$AY$1,Титульный!$AY$3) -> 14563 | H52: - | I52: - | J52: - | K52: - | L52: - | M52: - | N52: - | O52: =CEILING('прайс-лист2'!P48*Титульный!$AY$1,Титульный!$AY$3) -> 17407 | P52: =CEILING('прайс-лист2'!Q48*Титульный!$AY$1,Титульный!$AY$3) -> 19327 | Q52: =CEILING('прайс-лист2'!R48*Титульный!$AY$1,Титульный!$AY$3) -> 13887 | R52: - | S52: -
A53: Шкаф (420) 1дв полувитрина 2240х420 | C53: 420х440х2240 | D53: =CEILING('прайс-лист2'!E49*Титульный!$AY$1,Титульный!$AY$3) -> 11229 | E53: =CEILING('прайс-лист2'!F49*Титульный!$AY$1,Титульный!$AY$3) -> 14759 | F53: =CEILING('прайс-лист2'!G49*Титульный!$AY$1,Титульный!$AY$3) -> 11759 | G53: =CEILING('прайс-лист2'!H49*Титульный!$AY$1,Титульный!$AY$3) -> 13079 | H53: - | I53: - | J53: - | K53: - | L53: - | M53: - | N53: - | O53: =CEILING('прайс-лист2'!P49*Титульный!$AY$1,Титульный!$AY$3) -> 15731 | P53: =CEILING('прайс-лист2'!Q49*Титульный!$AY$1,Титульный!$AY$3) -> 17311 | Q53: =CEILING('прайс-лист2'!R49*Титульный!$AY$1,Титульный!$AY$3) -> 13651 | R53: - | S53: -
A54: Шкаф (420) 1дв полувитрина 2240х560 | C54: 560х440х2240 | D54: =CEILING('прайс-лист2'!E50*Титульный!$AY$1,Титульный!$AY$3) -> 13321 | E54: =CEILING('прайс-лист2'!F50*Титульный!$AY$1,Титульный!$AY$3) -> 18051 | F54: =CEILING('прайс-лист2'!G50*Титульный!$AY$1,Титульный!$AY$3) -> 14041 | G54: =CEILING('прайс-лист2'!H50*Титульный!$AY$1,Титульный!$AY$3) -> 15801 | H54: - | I54: - | J54: - | K54: - | L54: - | M54: - | N54: - | O54: =CEILING('прайс-лист2'!P50*Титульный!$AY$1,Титульный!$AY$3) -> 18993 | P54: =CEILING('прайс-лист2'!Q50*Титульный!$AY$1,Титульный!$AY$3) -> 21103 | Q54: =CEILING('прайс-лист2'!R50*Титульный!$AY$1,Титульный!$AY$3) -> 15033 | R54: - | S54: -
A55: Шкаф (420) 2дв полувитрина 2040х840 | C55: 840х440х2040 | D55: =CEILING('прайс-лист2'!E51*Титульный!$AY$1,Титульный!$AY$3) -> 18033 | E55: =CEILING('прайс-лист2'!F51*Титульный!$AY$1,Титульный!$AY$3) -> 24453 | F55: =CEILING('прайс-лист2'!G51*Титульный!$AY$1,Титульный!$AY$3) -> 18993 | G55: =CEILING('прайс-лист2'!H51*Титульный!$AY$1,Титульный!$AY$3) -> 21393 | H55: - | I55: - | J55: - | K55: - | L55: - | M55: - | N55: - | O55: =CEILING('прайс-лист2'!P51*Титульный!$AY$1,Титульный!$AY$3) -> 25741 | P55: =CEILING('прайс-лист2'!Q51*Титульный!$AY$1,Титульный!$AY$3) -> 28601 | Q55: =CEILING('прайс-лист2'!R51*Титульный!$AY$1,Титульный!$AY$3) -> 22081 | R55: - | S55: -
A56: Шкаф (420) 2дв полувитрина 2240х840 | C56: 840х440х2240 | D56: =CEILING('прайс-лист2'!E52*Титульный!$AY$1,Титульный!$AY$3) -> 19658 | E56: =CEILING('прайс-лист2'!F52*Титульный!$AY$1,Титульный!$AY$3) -> 26718 | F56: =CEILING('прайс-лист2'!G52*Титульный!$AY$1,Титульный!$AY$3) -> 20718 | G56: =CEILING('прайс-лист2'!H52*Титульный!$AY$1,Титульный!$AY$3) -> 23358 | H56: - | I56: - | J56: - | K56: - | L56: - | M56: - | N56: - | O56: =CEILING('прайс-лист2'!P52*Титульный!$AY$1,Титульный!$AY$3) -> 28050 | P56: =CEILING('прайс-лист2'!Q52*Титульный!$AY$1,Титульный!$AY$3) -> 31210 | Q56: =CEILING('прайс-лист2'!R52*Титульный!$AY$1,Титульный!$AY$3) -> 23890 | R56: - | S56: -
A57: Шкаф (420) 1дв витрина 1дв глух 2040х420 | C57: 420х440х2040 | D57: =CEILING('прайс-лист2'!E53*Титульный!$AY$1,Титульный!$AY$3) -> 10915 | E57: =CEILING('прайс-лист2'!F53*Титульный!$AY$1,Титульный!$AY$3) -> 14125 | F57: =CEILING('прайс-лист2'!G53*Титульный!$AY$1,Титульный!$AY$3) -> 11405 | G57: =CEILING('прайс-лист2'!H53*Титульный!$AY$1,Титульный!$AY$3) -> 12605 | H57: =CEILING('прайс-лист2'!I53*Титульный!$AY$1,Титульный!$AY$3) -> 8849 | I57: =CEILING('прайс-лист2'!J53*Титульный!$AY$1,Титульный!$AY$3) -> 8939 | J57: =CEILING('прайс-лист2'!K53*Титульный!$AY$1,Титульный!$AY$3) -> 9199 | K57: =CEILING('прайс-лист2'!L53*Титульный!$AY$1,Титульный!$AY$3) -> 9899 | L57: - | M57: - | N57: - | O57: =CEILING('прайс-лист2'!P53*Титульный!$AY$1,Титульный!$AY$3) -> 14979 | P57: =CEILING('прайс-лист2'!Q53*Титульный!$AY$1,Титульный!$AY$3) -> 16369 | Q57: =CEILING('прайс-лист2'!R53*Титульный!$AY$1,Титульный!$AY$3) -> 14319 | R57: - | S57: -
A58: Шкаф (420) 1дв витрина 1дв глух 2040х560 | C58: 560х440х2040 | D58: =CEILING('прайс-лист2'!E54*Титульный!$AY$1,Титульный!$AY$3) -> 12843 | E58: =CEILING('прайс-лист2'!F54*Титульный!$AY$1,Титульный!$AY$3) -> 17123 | F58: =CEILING('прайс-лист2'!G54*Титульный!$AY$1,Титульный!$AY$3) -> 13483 | G58: =CEILING('прайс-лист2'!H54*Титульный!$AY$1,Титульный!$AY$3) -> 15093 | H58: =CEILING('прайс-лист2'!I54*Титульный!$AY$1,Титульный!$AY$3) -> 10007 | I58: =CEILING('прайс-лист2'!J54*Титульный!$AY$1,Титульный!$AY$3) -> 10127 | J58: =CEILING('прайс-лист2'!K54*Титульный!$AY$1,Титульный!$AY$3) -> 10467 | K58: =CEILING('прайс-лист2'!L54*Титульный!$AY$1,Титульный!$AY$3) -> 11407 | L58: - | M58: - | N58: - | O58: =CEILING('прайс-лист2'!P54*Титульный!$AY$1,Титульный!$AY$3) -> 17937 | P58: =CEILING('прайс-лист2'!Q54*Титульный!$AY$1,Титульный!$AY$3) -> 19817 | Q58: =CEILING('прайс-лист2'!R54*Титульный!$AY$1,Титульный!$AY$3) -> 16057 | R58: - | S58: -
A59: Шкаф (420) 1дв витрина 1дв глух 2240х420 | C59: 420х440х2240 | D59: =CEILING('прайс-лист2'!E55*Титульный!$AY$1,Титульный!$AY$3) -> 11746 | E59: =CEILING('прайс-лист2'!F55*Титульный!$AY$1,Титульный!$AY$3) -> 15286 | F59: =CEILING('прайс-лист2'!G55*Титульный!$AY$1,Титульный!$AY$3) -> 12286 | G59: =CEILING('прайс-лист2'!H55*Титульный!$AY$1,Титульный!$AY$3) -> 13606 | H59: =CEILING('прайс-лист2'!I55*Титульный!$AY$1,Титульный!$AY$3) -> 9538 | I59: =CEILING('прайс-лист2'!J55*Титульный!$AY$1,Титульный!$AY$3) -> 9638 | J59: =CEILING('прайс-лист2'!K55*Титульный!$AY$1,Титульный!$AY$3) -> 9928 | K59: =CEILING('прайс-лист2'!L55*Титульный!$AY$1,Титульный!$AY$3) -> 10688 | L59: - | M59: - | N59: - | O59: =CEILING('прайс-лист2'!P55*Титульный!$AY$1,Титульный!$AY$3) -> 16258 | P59: =CEILING('прайс-лист2'!Q55*Титульный!$AY$1,Титульный!$AY$3) -> 17798 | Q59: =CEILING('прайс-лист2'!R55*Титульный!$AY$1,Титульный!$AY$3) -> 15348 | R59: - | S59: -
A60: Шкаф (420) 1дв витрина 1дв глух 2240х560 | C60: 560х440х2240 | D60: =CEILING('прайс-лист2'!E56*Титульный!$AY$1,Титульный!$AY$3) -> 13855 | E60: =CEILING('прайс-лист2'!F56*Титульный!$AY$1,Титульный!$AY$3) -> 18565 | F60: =CEILING('прайс-лист2'!G56*Титульный!$AY$1,Титульный!$AY$3) -> 14565 | G60: =CEILING('прайс-лист2'!H56*Титульный!$AY$1,Титульный!$AY$3) -> 16335 | H60: =CEILING('прайс-лист2'!I56*Титульный!$AY$1,Титульный!$AY$3) -> 10817 | I60: =CEILING('прайс-лист2'!J56*Титульный!$AY$1,Титульный!$AY$3) -> 10957 | J60: =CEILING('прайс-лист2'!K56*Титульный!$AY$1,Титульный!$AY$3) -> 11337 | K60: =CEILING('прайс-лист2'!L56*Титульный!$AY$1,Титульный!$AY$3) -> 12367 | L60: - | M60: - | N60: - | O60: =CEILING('прайс-лист2'!P56*Титульный!$AY$1,Титульный!$AY$3) -> 19527 | P60: =CEILING('прайс-лист2'!Q56*Титульный!$AY$1,Титульный!$AY$3) -> 21597 | Q60: =CEILING('прайс-лист2'!R56*Титульный!$AY$1,Титульный!$AY$3) -> 17197 | R60: - | S60: -
A61: Шкаф (420) 1дв витрина зеркало 1дв глух 2040х420 | C61: 420х440х2040 | D61: =CEILING('прайс-лист2'!E57*Титульный!$AY$1,Титульный!$AY$3) -> 13608 | E61: =CEILING('прайс-лист2'!F57*Титульный!$AY$1,Титульный!$AY$3) -> 16818 | F61: =CEILING('прайс-лист2'!G57*Титульный!$AY$1,Титульный!$AY$3) -> 14098 | G61: =CEILING('прайс-лист2'!H57*Титульный!$AY$1,Титульный!$AY$3) -> 15298 | H61: - | I61: - | J61: - | K61: - | L61: - | M61: - | N61: - | O61: =CEILING('прайс-лист2'!P57*Титульный!$AY$1,Титульный!$AY$3) -> 17672 | P61: =CEILING('прайс-лист2'!Q57*Титульный!$AY$1,Титульный!$AY$3) -> 19062 | Q61: =CEILING('прайс-лист2'!R57*Титульный!$AY$1,Титульный!$AY$3) -> 17012 | R61: - | S61: -
A62: Шкаф (420) 1дв витрина зеркало 1дв глух 2040х560 | C62: 560х440х2040 | D62: =CEILING('прайс-лист2'!E58*Титульный!$AY$1,Титульный!$AY$3) -> 16064 | E62: =CEILING('прайс-лист2'!F58*Титульный!$AY$1,Титульный!$AY$3) -> 20344 | F62: =CEILING('прайс-лист2'!G58*Титульный!$AY$1,Титульный!$AY$3) -> 16704 | G62: =CEILING('прайс-лист2'!H58*Титульный!$AY$1,Титульный!$AY$3) -> 18314 | H62: - | I62: - | J62: - | K62: - | L62: - | M62: - | N62: - | O62: =CEILING('прайс-лист2'!P58*Титульный!$AY$1,Титульный!$AY$3) -> 21158 | P62: =CEILING('прайс-лист2'!Q58*Титульный!$AY$1,Титульный!$AY$3) -> 23038 | Q62: =CEILING('прайс-лист2'!R58*Титульный!$AY$1,Титульный!$AY$3) -> 19278 | R62: - | S62: -
A63: Шкаф (420) 2дв витрина 2дв глух 2040х840 | C63: 840х440х2040 | D63: =CEILING('прайс-лист2'!E59*Титульный!$AY$1,Титульный!$AY$3) -> 18980 | E63: =CEILING('прайс-лист2'!F59*Титульный!$AY$1,Титульный!$AY$3) -> 25400 | F63: =CEILING('прайс-лист2'!G59*Титульный!$AY$1,Титульный!$AY$3) -> 19960 | G63: =CEILING('прайс-лист2'!H59*Титульный!$AY$1,Титульный!$AY$3) -> 22360 | H63: =CEILING('прайс-лист2'!I59*Титульный!$AY$1,Титульный!$AY$3) -> 14448 | I63: =CEILING('прайс-лист2'!J59*Титульный!$AY$1,Титульный!$AY$3) -> 14628 | J63: =CEILING('прайс-лист2'!K59*Титульный!$AY$1,Титульный!$AY$3) -> 15148 | K63: =CEILING('прайс-лист2'!L59*Титульный!$AY$1,Титульный!$AY$3) -> 16548 | L63: - | M63: - | N63: - | O63: =CEILING('прайс-лист2'!P59*Титульный!$AY$1,Титульный!$AY$3) -> 26708 | P63: =CEILING('прайс-лист2'!Q59*Титульный!$AY$1,Титульный!$AY$3) -> 29488 | Q63: =CEILING('прайс-лист2'!R59*Титульный!$AY$1,Титульный!$AY$3) -> 25388 | R63: - | S63: -
A64: Шкаф (420) 2дв витрина 2дв глух 2240х840 | C64: 840х440х2240 | D64: =CEILING('прайс-лист2'!E60*Титульный!$AY$1,Титульный!$AY$3) -> 20609 | E64: =CEILING('прайс-лист2'!F60*Титульный!$AY$1,Титульный!$AY$3) -> 27689 | F64: =CEILING('прайс-лист2'!G60*Титульный!$AY$1,Титульный!$AY$3) -> 21689 | G64: =CEILING('прайс-лист2'!H60*Титульный!$AY$1,Титульный!$AY$3) -> 24329 | H64: =CEILING('прайс-лист2'!I60*Титульный!$AY$1,Титульный!$AY$3) -> 15581 | I64: =CEILING('прайс-лист2'!J60*Титульный!$AY$1,Титульный!$AY$3) -> 15781 | J64: =CEILING('прайс-лист2'!K60*Титульный!$AY$1,Титульный!$AY$3) -> 16361 | K64: =CEILING('прайс-лист2'!L60*Титульный!$AY$1,Титульный!$AY$3) -> 17881 | L64: - | M64: - | N64: - | O64: =CEILING('прайс-лист2'!P60*Титульный!$AY$1,Титульный!$AY$3) -> 29021 | P64: =CEILING('прайс-лист2'!Q60*Титульный!$AY$1,Титульный!$AY$3) -> 32101 | Q64: =CEILING('прайс-лист2'!R60*Титульный!$AY$1,Титульный!$AY$3) -> 27201 | R64: - | S64: -
A65: Шкаф (420) ДО 1дв 2040х560 | C65: 560х440х2040 | D65: =CEILING('прайс-лист2'!E61*Титульный!$AY$1,Титульный!$AY$3) -> 10704 | E65: =CEILING('прайс-лист2'!F61*Титульный!$AY$1,Титульный!$AY$3) -> 14994 | F65: =CEILING('прайс-лист2'!G61*Титульный!$AY$1,Титульный!$AY$3) -> 11354 | G65: =CEILING('прайс-лист2'!H61*Титульный!$AY$1,Титульный!$AY$3) -> 12954 | H65: =CEILING('прайс-лист2'!I61*Титульный!$AY$1,Титульный!$AY$3) -> 8774 | I65: =CEILING('прайс-лист2'!J61*Титульный!$AY$1,Титульный!$AY$3) -> 8884 | J65: =CEILING('прайс-лист2'!K61*Титульный!$AY$1,Титульный!$AY$3) -> 9224 | K65: =CEILING('прайс-лист2'!L61*Титульный!$AY$1,Титульный!$AY$3) -> 10114 | L65: - | M65: =CEILING('прайс-лист2'!N61*Титульный!$AY$1,Титульный!$AY$3) -> 13544 | N65: =CEILING('прайс-лист2'!O61*Титульный!$AY$1,Титульный!$AY$3) -> 14514 | O65: =CEILING('прайс-лист2'!P61*Титульный!$AY$1,Титульный!$AY$3) -> 15974 | P65: =CEILING('прайс-лист2'!Q61*Титульный!$AY$1,Титульный!$AY$3) -> 17774 | Q65: =CEILING('прайс-лист2'!R61*Титульный!$AY$1,Титульный!$AY$3) -> 17644 | R65: =CEILING('прайс-лист2'!S61*Титульный!$AY$1,Титульный!$AY$3) -> 1220 | S65: =CEILING('прайс-лист2'!T61*Титульный!$AY$1,Титульный!$AY$3) -> 3084
A66: Шкаф (420) ДО 1дв 2240х560 | C66: 560х440х2240 | D66: =CEILING('прайс-лист2'!E62*Титульный!$AY$1,Титульный!$AY$3) -> 11372 | E66: =CEILING('прайс-лист2'!F62*Титульный!$AY$1,Титульный!$AY$3) -> 16102 | F66: =CEILING('прайс-лист2'!G62*Титульный!$AY$1,Титульный!$AY$3) -> 12092 | G66: =CEILING('прайс-лист2'!H62*Титульный!$AY$1,Титульный!$AY$3) -> 13852 | H66: =CEILING('прайс-лист2'!I62*Титульный!$AY$1,Титульный!$AY$3) -> 9252 | I66: =CEILING('прайс-лист2'!J62*Титульный!$AY$1,Титульный!$AY$3) -> 9382 | J66: =CEILING('прайс-лист2'!K62*Титульный!$AY$1,Титульный!$AY$3) -> 9742 | K66: =CEILING('прайс-лист2'!L62*Титульный!$AY$1,Титульный!$AY$3) -> 10722 | L66: - | M66: =CEILING('прайс-лист2'!N62*Титульный!$AY$1,Титульный!$AY$3) -> 14482 | N66: =CEILING('прайс-лист2'!O62*Титульный!$AY$1,Титульный!$AY$3) -> 15532 | O66: =CEILING('прайс-лист2'!P62*Титульный!$AY$1,Титульный!$AY$3) -> 17162 | P66: =CEILING('прайс-лист2'!Q62*Титульный!$AY$1,Титульный!$AY$3) -> 19132 | Q66: =CEILING('прайс-лист2'!R62*Титульный!$AY$1,Титульный!$AY$3) -> 18942 | R66: =CEILING('прайс-лист2'!S62*Титульный!$AY$1,Титульный!$AY$3) -> 1490 | S66: =CEILING('прайс-лист2'!T62*Титульный!$AY$1,Титульный!$AY$3) -> 2797
A67: Шкаф (420) ДО 2дв 2040х840 | C67: 840х440х2040 | D67: =CEILING('прайс-лист2'!E63*Титульный!$AY$1,Титульный!$AY$3) -> 15129 | E67: =CEILING('прайс-лист2'!F63*Титульный!$AY$1,Титульный!$AY$3) -> 21549 | F67: =CEILING('прайс-лист2'!G63*Титульный!$AY$1,Титульный!$AY$3) -> 16089 | G67: =CEILING('прайс-лист2'!H63*Титульный!$AY$1,Титульный!$AY$3) -> 18489 | H67: =CEILING('прайс-лист2'!I63*Титульный!$AY$1,Титульный!$AY$3) -> 12229 | I67: =CEILING('прайс-лист2'!J63*Титульный!$AY$1,Титульный!$AY$3) -> 12389 | J67: =CEILING('прайс-лист2'!K63*Титульный!$AY$1,Титульный!$AY$3) -> 12889 | K67: =CEILING('прайс-лист2'!L63*Титульный!$AY$1,Титульный!$AY$3) -> 14229 | L67: - | M67: =CEILING('прайс-лист2'!N63*Титульный!$AY$1,Титульный!$AY$3) -> 19709 | N67: =CEILING('прайс-лист2'!O63*Титульный!$AY$1,Титульный!$AY$3) -> 21549 | O67: =CEILING('прайс-лист2'!P63*Титульный!$AY$1,Титульный!$AY$3) -> 23369 | P67: =CEILING('прайс-лист2'!Q63*Титульный!$AY$1,Титульный!$AY$3) -> 26049 | Q67: =CEILING('прайс-лист2'!R63*Титульный!$AY$1,Титульный!$AY$3) -> 26629 | R67: =CEILING('прайс-лист2'!S63*Титульный!$AY$1,Титульный!$AY$3) -> 1698 | S67: =CEILING('прайс-лист2'!T63*Титульный!$AY$1,Титульный!$AY$3) -> 4946
A68: Шкаф (420) ДО 2дв 2240х840 | C68: 840х440х2240 | D68: =CEILING('прайс-лист2'!E64*Титульный!$AY$1,Титульный!$AY$3) -> 16044 | E68: =CEILING('прайс-лист2'!F64*Титульный!$AY$1,Титульный!$AY$3) -> 23104 | F68: =CEILING('прайс-лист2'!G64*Титульный!$AY$1,Титульный!$AY$3) -> 17104 | G68: =CEILING('прайс-лист2'!H64*Титульный!$AY$1,Титульный!$AY$3) -> 19744 | H68: =CEILING('прайс-лист2'!I64*Титульный!$AY$1,Титульный!$AY$3) -> 12864 | I68: =CEILING('прайс-лист2'!J64*Титульный!$AY$1,Титульный!$AY$3) -> 13044 | J68: =CEILING('прайс-лист2'!K64*Титульный!$AY$1,Титульный!$AY$3) -> 13604 | K68: =CEILING('прайс-лист2'!L64*Титульный!$AY$1,Титульный!$AY$3) -> 15064 | L68: - | M68: =CEILING('прайс-лист2'!N64*Титульный!$AY$1,Титульный!$AY$3) -> 21064 | N68: =CEILING('прайс-лист2'!O64*Титульный!$AY$1,Титульный!$AY$3) -> 23064 | O68: =CEILING('прайс-лист2'!P64*Титульный!$AY$1,Титульный!$AY$3) -> 25084 | P68: =CEILING('прайс-лист2'!Q64*Титульный!$AY$1,Титульный!$AY$3) -> 28024 | Q68: =CEILING('прайс-лист2'!R64*Титульный!$AY$1,Титульный!$AY$3) -> 28584 | R68: =CEILING('прайс-лист2'!S64*Титульный!$AY$1,Титульный!$AY$3) -> 1926 | S68: =CEILING('прайс-лист2'!T64*Титульный!$AY$1,Титульный!$AY$3) -> 5350
A69: Внимание!!! Для наборов мебели "Марго" использовать только накладные зеркала
A70: Шкафы глубиной 420мм
A71: Наименование | B71: Эскиз | C71: Габариты, ШхГхВ мм. | D71: МДФ фасады | H71: Марго16 | M71: UV-лак | O71: ТСС | Q71: ТСС сборный | R71: Стоимость зеркал
D72: 1 ЦК | E72: 1 ЦК + патина | F72: 2 ЦК | G72: 3 ЦК | H72: 1 ц.к. | I72: 2 ц.к. | J72: 3 ц.к. | K72: 4 ц.к. | L72: 5 ц.к. | M72: UV-лак кромка ABC/AL кромка | N72: кромка 3D | O72: 1 ЦК | P72: 2 ЦК | R72: Зеркало в рамке** | S72: Зеркало накладное*
A73: Шкаф (420) ДО 2дв 2ящ 2040х840 | C73: 840х440х2040 | D73: =CEILING('прайс-лист2'!E65*Титульный!$AY$1,Титульный!$AY$3) -> 16231 | E73: =CEILING('прайс-лист2'!F65*Титульный!$AY$1,Титульный!$AY$3) -> 22651 | F73: =CEILING('прайс-лист2'!G65*Титульный!$AY$1,Титульный!$AY$3) -> 17211 | G73: =CEILING('прайс-лист2'!H65*Титульный!$AY$1,Титульный!$AY$3) -> 19591 | H73: =CEILING('прайс-лист2'!I65*Титульный!$AY$1,Титульный!$AY$3) -> 13351 | I73: =CEILING('прайс-лист2'!J65*Титульный!$AY$1,Титульный!$AY$3) -> 13511 | J73: =CEILING('прайс-лист2'!K65*Титульный!$AY$1,Титульный!$AY$3) -> 14011 | K73: =CEILING('прайс-лист2'!L65*Титульный!$AY$1,Титульный!$AY$3) -> 15351 | L73: - | M73: =CEILING('прайс-лист2'!N65*Титульный!$AY$1,Титульный!$AY$3) -> 21251 | N73: =CEILING('прайс-лист2'!O65*Титульный!$AY$1,Титульный!$AY$3) -> 23591 | O73: =CEILING('прайс-лист2'!P65*Титульный!$AY$1,Титульный!$AY$3) -> 24911 | P73: =CEILING('прайс-лист2'!Q65*Титульный!$AY$1,Титульный!$AY$3) -> 27571 | Q73: =CEILING('прайс-лист2'!R65*Титульный!$AY$1,Титульный!$AY$3) -> 28591 | R73: =CEILING('прайс-лист2'!S65*Титульный!$AY$1,Титульный!$AY$3) -> 1698 | S73: =CEILING('прайс-лист2'!T65*Титульный!$AY$1,Титульный!$AY$3) -> 4946
A74: Шкаф (420) ДО 2дв 2ящ 2240х840 | C74: 840х440х2240 | D74: =CEILING('прайс-лист2'!E66*Титульный!$AY$1,Титульный!$AY$3) -> 17147 | E74: =CEILING('прайс-лист2'!F66*Титульный!$AY$1,Титульный!$AY$3) -> 24227 | F74: =CEILING('прайс-лист2'!G66*Титульный!$AY$1,Титульный!$AY$3) -> 18227 | G74: =CEILING('прайс-лист2'!H66*Титульный!$AY$1,Титульный!$AY$3) -> 20847 | H74: =CEILING('прайс-лист2'!I66*Титульный!$AY$1,Титульный!$AY$3) -> 13967 | I74: =CEILING('прайс-лист2'!J66*Титульный!$AY$1,Титульный!$AY$3) -> 14167 | J74: =CEILING('прайс-лист2'!K66*Титульный!$AY$1,Титульный!$AY$3) -> 14707 | K74: =CEILING('прайс-лист2'!L66*Титульный!$AY$1,Титульный!$AY$3) -> 16187 | L74: - | M74: =CEILING('прайс-лист2'!N66*Титульный!$AY$1,Титульный!$AY$3) -> 22607 | N74: =CEILING('прайс-лист2'!O66*Титульный!$AY$1,Титульный!$AY$3) -> 25087 | O74: =CEILING('прайс-лист2'!P66*Титульный!$AY$1,Титульный!$AY$3) -> 26627 | P74: =CEILING('прайс-лист2'!Q66*Титульный!$AY$1,Титульный!$AY$3) -> 29567 | Q74: =CEILING('прайс-лист2'!R66*Титульный!$AY$1,Титульный!$AY$3) -> 30547 | R74: =CEILING('прайс-лист2'!S66*Титульный!$AY$1,Титульный!$AY$3) -> 1926 | S74: =CEILING('прайс-лист2'!T66*Титульный!$AY$1,Титульный!$AY$3) -> 5350
A75: Шкаф (420) ДО 2дв 2ящ шар 2040х840 | C75: 840х440х2040 | D75: =CEILING('прайс-лист2'!E67*Титульный!$AY$1,Титульный!$AY$3) -> 16952 | E75: =CEILING('прайс-лист2'!F67*Титульный!$AY$1,Титульный!$AY$3) -> 23372 | F75: =CEILING('прайс-лист2'!G67*Титульный!$AY$1,Титульный!$AY$3) -> 17932 | G75: =CEILING('прайс-лист2'!H67*Титульный!$AY$1,Титульный!$AY$3) -> 20312 | H75: =CEILING('прайс-лист2'!I67*Титульный!$AY$1,Титульный!$AY$3) -> 14072 | I75: =CEILING('прайс-лист2'!J67*Титульный!$AY$1,Титульный!$AY$3) -> 14232 | J75: =CEILING('прайс-лист2'!K67*Титульный!$AY$1,Титульный!$AY$3) -> 14732 | K75: =CEILING('прайс-лист2'!L67*Титульный!$AY$1,Титульный!$AY$3) -> 16072 | L75: - | M75: =CEILING('прайс-лист2'!N67*Титульный!$AY$1,Титульный!$AY$3) -> 21972 | N75: =CEILING('прайс-лист2'!O67*Титульный!$AY$1,Титульный!$AY$3) -> 24312 | O75: =CEILING('прайс-лист2'!P67*Титульный!$AY$1,Титульный!$AY$3) -> 25632 | P75: =CEILING('прайс-лист2'!Q67*Титульный!$AY$1,Титульный!$AY$3) -> 28292 | Q75: =CEILING('прайс-лист2'!R67*Титульный!$AY$1,Титульный!$AY$3) -> 29312 | R75: =CEILING('прайс-лист2'!S67*Титульный!$AY$1,Титульный!$AY$3) -> 1698 | S75: =CEILING('прайс-лист2'!T67*Титульный!$AY$1,Титульный!$AY$3) -> 4946
A76: Шкаф (420) ДО 2дв 2ящ шар 2240х840 | C76: 840х440х2240 | D76: =CEILING('прайс-лист2'!E68*Титульный!$AY$1,Титульный!$AY$3) -> 17877 | E76: =CEILING('прайс-лист2'!F68*Титульный!$AY$1,Титульный!$AY$3) -> 24957 | F76: =CEILING('прайс-лист2'!G68*Титульный!$AY$1,Титульный!$AY$3) -> 18957 | G76: =CEILING('прайс-лист2'!H68*Титульный!$AY$1,Титульный!$AY$3) -> 21577 | H76: =CEILING('прайс-лист2'!I68*Титульный!$AY$1,Титульный!$AY$3) -> 14697 | I76: =CEILING('прайс-лист2'!J68*Титульный!$AY$1,Титульный!$AY$3) -> 14897 | J76: =CEILING('прайс-лист2'!K68*Титульный!$AY$1,Титульный!$AY$3) -> 15437 | K76: =CEILING('прайс-лист2'!L68*Титульный!$AY$1,Титульный!$AY$3) -> 16917 | L76: - | M76: =CEILING('прайс-лист2'!N68*Титульный!$AY$1,Титульный!$AY$3) -> 23337 | N76: =CEILING('прайс-лист2'!O68*Титульный!$AY$1,Титульный!$AY$3) -> 25817 | O76: =CEILING('прайс-лист2'!P68*Титульный!$AY$1,Титульный!$AY$3) -> 27357 | P76: =CEILING('прайс-лист2'!Q68*Титульный!$AY$1,Титульный!$AY$3) -> 30297 | Q76: =CEILING('прайс-лист2'!R68*Титульный!$AY$1,Титульный!$AY$3) -> 31277 | R76: =CEILING('прайс-лист2'!S68*Титульный!$AY$1,Титульный!$AY$3) -> 1926 | S76: =CEILING('прайс-лист2'!T68*Титульный!$AY$1,Титульный!$AY$3) -> 5350
A77: Шкаф (420) Ниша 2дв 2040х420 | C77: 420х440х2040 | D77: =CEILING('прайс-лист2'!E69*Титульный!$AY$1,Титульный!$AY$3) -> 9087 | E77: =CEILING('прайс-лист2'!F69*Титульный!$AY$1,Титульный!$AY$3) -> 11667 | F77: =CEILING('прайс-лист2'!G69*Титульный!$AY$1,Титульный!$AY$3) -> 9487 | G77: =CEILING('прайс-лист2'!H69*Титульный!$AY$1,Титульный!$AY$3) -> 10447 | H77: =CEILING('прайс-лист2'!I69*Титульный!$AY$1,Титульный!$AY$3) -> 7947 | I77: =CEILING('прайс-лист2'!J69*Титульный!$AY$1,Титульный!$AY$3) -> 8007 | J77: =CEILING('прайс-лист2'!K69*Титульный!$AY$1,Титульный!$AY$3) -> 8207 | K77: =CEILING('прайс-лист2'!L69*Титульный!$AY$1,Титульный!$AY$3) -> 8747 | L77: - | M77: =CEILING('прайс-лист2'!N69*Титульный!$AY$1,Титульный!$AY$3) -> 11107 | N77: =CEILING('прайс-лист2'!O69*Титульный!$AY$1,Титульный!$AY$3) -> 12027 | O77: =CEILING('прайс-лист2'!P69*Титульный!$AY$1,Титульный!$AY$3) -> 12567 | P77: =CEILING('прайс-лист2'!Q69*Титульный!$AY$1,Титульный!$AY$3) -> 13627 | Q77: =CEILING('прайс-лист2'!R69*Титульный!$AY$1,Титульный!$AY$3) -> 14387 | R77: - | S77: -
A78: Шкаф (420) Ниша 2дв 2040х560 | C78: 420х580х2040 | D78: - | E78: - | F78: - | G78: - | H78: - | I78: - | J78: - | K78: - | L78: - | M78: =CEILING('прайс-лист2'!N70*Титульный!$AY$1,Титульный!$AY$3) -> 14201 | N78: =CEILING('прайс-лист2'!O70*Титульный!$AY$1,Титульный!$AY$3) -> 15241 | O78: =CEILING('прайс-лист2'!P70*Титульный!$AY$1,Титульный!$AY$3) -> 16141 | P78: =CEILING('прайс-лист2'!Q70*Титульный!$AY$1,Титульный!$AY$3) -> 17581 | Q78: =CEILING('прайс-лист2'!R70*Титульный!$AY$1,Титульный!$AY$3) -> 18101 | R78: - | S78: -
A79: Шкаф (420) Ниша 2дв 2240х420 | C79: 420х440х2240 | D79: =CEILING('прайс-лист2'!E71*Титульный!$AY$1,Титульный!$AY$3) -> 9908 | E79: - | F79: =CEILING('прайс-лист2'!G71*Титульный!$AY$1,Титульный!$AY$3) -> 10348 | G79: =CEILING('прайс-лист2'!H71*Титульный!$AY$1,Титульный!$AY$3) -> 11428 | H79: =CEILING('прайс-лист2'!I71*Титульный!$AY$1,Титульный!$AY$3) -> 8608 | I79: =CEILING('прайс-лист2'!J71*Титульный!$AY$1,Титульный!$AY$3) -> 8688 | J79: =CEILING('прайс-лист2'!K71*Титульный!$AY$1,Титульный!$AY$3) -> 8908 | K79: =CEILING('прайс-лист2'!L71*Титульный!$AY$1,Титульный!$AY$3) -> 9508 | L79: - | M79: =CEILING('прайс-лист2'!N71*Титульный!$AY$1,Титульный!$AY$3) -> 12138 | N79: =CEILING('прайс-лист2'!O71*Титульный!$AY$1,Титульный!$AY$3) -> 13128 | O79: =CEILING('прайс-лист2'!P71*Титульный!$AY$1,Титульный!$AY$3) -> 13778 | P79: =CEILING('прайс-лист2'!Q71*Титульный!$AY$1,Титульный!$AY$3) -> 14978 | Q79: =CEILING('прайс-лист2'!R71*Титульный!$AY$1,Титульный!$AY$3) -> 15718 | R79: - | S79: -
A80: Шкаф (420) Ниша 2дв 2240х560 | C80: 420х580х2240 | D80: - | E80: - | F80: - | G80: - | H80: - | I80: - | J80: - | K80: - | L80: - | M80: =CEILING('прайс-лист2'!N72*Титульный!$AY$1,Титульный!$AY$3) -> 15650 | N80: =CEILING('прайс-лист2'!O72*Титульный!$AY$1,Титульный!$AY$3) -> 16760 | O80: =CEILING('прайс-лист2'!P72*Титульный!$AY$1,Титульный!$AY$3) -> 17840 | P80: =CEILING('прайс-лист2'!Q72*Титульный!$AY$1,Титульный!$AY$3) -> 19450 | Q80: =CEILING('прайс-лист2'!R72*Титульный!$AY$1,Титульный!$AY$3) -> 19910 | R80: - | S80: -
A81: Шкаф (420) Ниша 4дв 2040х840 | C81: 840х440х2040 | D81: =CEILING('прайс-лист2'!E73*Титульный!$AY$1,Титульный!$AY$3) -> 15194 | E81: =CEILING('прайс-лист2'!F73*Титульный!$AY$1,Титульный!$AY$3) -> 20354 | F81: =CEILING('прайс-лист2'!G73*Титульный!$AY$1,Титульный!$AY$3) -> 15994 | G81: =CEILING('прайс-лист2'!H73*Титульный!$AY$1,Титульный!$AY$3) -> 17914 | H81: =CEILING('прайс-лист2'!I73*Титульный!$AY$1,Титульный!$AY$3) -> 12914 | I81: =CEILING('прайс-лист2'!J73*Титульный!$AY$1,Титульный!$AY$3) -> 13034 | J81: =CEILING('прайс-лист2'!K73*Титульный!$AY$1,Титульный!$AY$3) -> 13434 | K81: =CEILING('прайс-лист2'!L73*Титульный!$AY$1,Титульный!$AY$3) -> 14514 | L81: - | M81: =CEILING('прайс-лист2'!N73*Титульный!$AY$1,Титульный!$AY$3) -> 19234 | N81: =CEILING('прайс-лист2'!O73*Титульный!$AY$1,Титульный!$AY$3) -> 21074 | O81: =CEILING('прайс-лист2'!P73*Титульный!$AY$1,Титульный!$AY$3) -> 22154 | P81: =CEILING('прайс-лист2'!Q73*Титульный!$AY$1,Титульный!$AY$3) -> 24274 | Q81: =CEILING('прайс-лист2'!R73*Титульный!$AY$1,Титульный!$AY$3) -> 25794 | R81: - | S81: -
A82: Шкаф (420) Ниша 4дв 2240х840 | C82: 840х440х2240 | D82: =CEILING('прайс-лист2'!E74*Титульный!$AY$1,Титульный!$AY$3) -> 18622 | E82: =CEILING('прайс-лист2'!F74*Титульный!$AY$1,Титульный!$AY$3) -> 24402 | F82: =CEILING('прайс-лист2'!G74*Титульный!$AY$1,Титульный!$AY$3) -> 19502 | G82: =CEILING('прайс-лист2'!H74*Титульный!$AY$1,Титульный!$AY$3) -> 21662 | H82: =CEILING('прайс-лист2'!I74*Титульный!$AY$1,Титульный!$AY$3) -> 16022 | I82: =CEILING('прайс-лист2'!J74*Титульный!$AY$1,Титульный!$AY$3) -> 16182 | J82: =CEILING('прайс-лист2'!K74*Титульный!$AY$1,Титульный!$AY$3) -> 16622 | K82: =CEILING('прайс-лист2'!L74*Титульный!$AY$1,Титульный!$AY$3) -> 17822 | L82: - | M82: =CEILING('прайс-лист2'!N74*Титульный!$AY$1,Титульный!$AY$3) -> 23082 | N82: =CEILING('прайс-лист2'!O74*Титульный!$AY$1,Титульный!$AY$3) -> 25062 | O82: =CEILING('прайс-лист2'!P74*Титульный!$AY$1,Титульный!$AY$3) -> 26362 | P82: =CEILING('прайс-лист2'!Q74*Титульный!$AY$1,Титульный!$AY$3) -> 28762 | Q82: =CEILING('прайс-лист2'!R74*Титульный!$AY$1,Титульный!$AY$3) -> 30242 | R82: - | S82: -
A83: Шкаф (420) Торцевой 2040х420 ЛЕВ\ПР | C83: 420х440х2040 | D83: =CEILING('прайс-лист2'!E75*Титульный!$AY$1,Титульный!$AY$3) -> 11678 | E83: =CEILING('прайс-лист2'!F75*Титульный!$AY$1,Титульный!$AY$3) -> 16768 | F83: =CEILING('прайс-лист2'!G75*Титульный!$AY$1,Титульный!$AY$3) -> 12448 | G83: =CEILING('прайс-лист2'!H75*Титульный!$AY$1,Титульный!$AY$3) -> 14338 | H83: =CEILING('прайс-лист2'!I75*Титульный!$AY$1,Титульный!$AY$3) -> 9378 | I83: =CEILING('прайс-лист2'!J75*Титульный!$AY$1,Титульный!$AY$3) -> 9518 | J83: =CEILING('прайс-лист2'!K75*Титульный!$AY$1,Титульный!$AY$3) -> 9908 | K83: =CEILING('прайс-лист2'!L75*Титульный!$AY$1,Титульный!$AY$3) -> 10978 | L83: - | M83: =CEILING('прайс-лист2'!N75*Титульный!$AY$1,Титульный!$AY$3) -> 15598 | N83: =CEILING('прайс-лист2'!O75*Титульный!$AY$1,Титульный!$AY$3) -> 17368 | O83: =CEILING('прайс-лист2'!P75*Титульный!$AY$1,Титульный!$AY$3) -> 18478 | P83: =CEILING('прайс-лист2'!Q75*Титульный!$AY$1,Титульный!$AY$3) -> 20608 | Q83: =CEILING('прайс-лист2'!R75*Титульный!$AY$1,Титульный!$AY$3) -> 20888 | R83: - | S83: -
A84: Шкаф (420) Торцевой 2240х420 ЛЕВ\ПР | C84: 420х440х2240 | D84: =CEILING('прайс-лист2'!E76*Титульный!$AY$1,Титульный!$AY$3) -> 12597 | E84: =CEILING('прайс-лист2'!F76*Титульный!$AY$1,Титульный!$AY$3) -> 18207 | F84: =CEILING('прайс-лист2'!G76*Титульный!$AY$1,Титульный!$AY$3) -> 13457 | G84: =CEILING('прайс-лист2'!H76*Титульный!$AY$1,Титульный!$AY$3) -> 15537 | H84: =CEILING('прайс-лист2'!I76*Титульный!$AY$1,Титульный!$AY$3) -> 10087 | I84: =CEILING('прайс-лист2'!J76*Титульный!$AY$1,Титульный!$AY$3) -> 10227 | J84: =CEILING('прайс-лист2'!K76*Титульный!$AY$1,Титульный!$AY$3) -> 10667 | K84: =CEILING('прайс-лист2'!L76*Титульный!$AY$1,Титульный!$AY$3) -> 11827 | L84: - | M84: =CEILING('прайс-лист2'!N76*Титульный!$AY$1,Титульный!$AY$3) -> 16897 | N84: =CEILING('прайс-лист2'!O76*Титульный!$AY$1,Титульный!$AY$3) -> 18827 | O84: =CEILING('прайс-лист2'!P76*Титульный!$AY$1,Титульный!$AY$3) -> 20077 | P84: =CEILING('прайс-лист2'!Q76*Титульный!$AY$1,Титульный!$AY$3) -> 22417 | Q84: =CEILING('прайс-лист2'!R76*Титульный!$AY$1,Титульный!$AY$3) -> 22647 | R84: - | S84: -
A85: Шкаф (420) 4 двери, 1160х1120 | C85: 1120х440х1160 | D85: =CEILING('прайс-лист2'!E77*Титульный!$AY$1,Титульный!$AY$3) -> 14436 | E85: =CEILING('прайс-лист2'!F77*Титульный!$AY$1,Титульный!$AY$3) -> 19236 | F85: =CEILING('прайс-лист2'!G77*Титульный!$AY$1,Титульный!$AY$3) -> 15156 | G85: =CEILING('прайс-лист2'!H77*Титульный!$AY$1,Титульный!$AY$3) -> 16956 | H85: =CEILING('прайс-лист2'!I77*Титульный!$AY$1,Титульный!$AY$3) -> 12276 | I85: =CEILING('прайс-лист2'!J77*Титульный!$AY$1,Титульный!$AY$3) -> 12396 | J85: =CEILING('прайс-лист2'!K77*Титульный!$AY$1,Титульный!$AY$3) -> 12796 | K85: =CEILING('прайс-лист2'!L77*Титульный!$AY$1,Титульный!$AY$3) -> 13796 | L85: - | M85: - | N85: - | O85: =CEILING('прайс-лист2'!P77*Титульный!$AY$1,Титульный!$AY$3) -> 20876 | P85: =CEILING('прайс-лист2'!Q77*Титульный!$AY$1,Титульный!$AY$3) -> 22876 | Q85: =CEILING('прайс-лист2'!R77*Титульный!$AY$1,Титульный!$AY$3) -> 24276 | R85: - | S85: -
A86: Шкафы глубиной 560мм
A87: Шкаф (560) 1дв 2040х420 | C87: 420х580х2040 | D87: =CEILING('прайс-лист2'!E79*Титульный!$AY$1,Титульный!$AY$3) -> 10627 | E87: =CEILING('прайс-лист2'!F79*Титульный!$AY$1,Титульный!$AY$3) -> 13837 | F87: =CEILING('прайс-лист2'!G79*Титульный!$AY$1,Титульный!$AY$3) -> 11107 | G87: =CEILING('прайс-лист2'!H79*Титульный!$AY$1,Титульный!$AY$3) -> 12307 | H87: =CEILING('прайс-лист2'!I79*Титульный!$AY$1,Титульный!$AY$3) -> 9177 | I87: =CEILING('прайс-лист2'!J79*Титульный!$AY$1,Титульный!$AY$3) -> 9257 | J87: =CEILING('прайс-лист2'!K79*Титульный!$AY$1,Титульный!$AY$3) -> 9507 | K87: =CEILING('прайс-лист2'!L79*Титульный!$AY$1,Титульный!$AY$3) -> 10177 | L87: - | M87: =CEILING('прайс-лист2'!N79*Титульный!$AY$1,Титульный!$AY$3) -> 12917 | N87: =CEILING('прайс-лист2'!O79*Титульный!$AY$1,Титульный!$AY$3) -> 13837 | O87: =CEILING('прайс-лист2'!P79*Титульный!$AY$1,Титульный!$AY$3) -> 14747 | P87: =CEILING('прайс-лист2'!Q79*Титульный!$AY$1,Титульный!$AY$3) -> 16087 | Q87: =CEILING('прайс-лист2'!R79*Титульный!$AY$1,Титульный!$AY$3) -> 16377 | R87: =CEILING('прайс-лист2'!S79*Титульный!$AY$1,Титульный!$AY$3) -> 849 | S87: =CEILING('прайс-лист2'!T79*Титульный!$AY$1,Титульный!$AY$3) -> 2473
A88: Шкаф (560) 1дв 2040х560 | C88: 560х580х2040 | D88: =CEILING('прайс-лист2'!E80*Титульный!$AY$1,Титульный!$AY$3) -> 12511 | E88: =CEILING('прайс-лист2'!F80*Титульный!$AY$1,Титульный!$AY$3) -> 16801 | F88: =CEILING('прайс-лист2'!G80*Титульный!$AY$1,Титульный!$AY$3) -> 13161 | G88: =CEILING('прайс-лист2'!H80*Титульный!$AY$1,Титульный!$AY$3) -> 14761 | H88: =CEILING('прайс-лист2'!I80*Титульный!$AY$1,Титульный!$AY$3) -> 10581 | I88: =CEILING('прайс-лист2'!J80*Титульный!$AY$1,Титульный!$AY$3) -> 10691 | J88: =CEILING('прайс-лист2'!K80*Титульный!$AY$1,Титульный!$AY$3) -> 11031 | K88: =CEILING('прайс-лист2'!L80*Титульный!$AY$1,Титульный!$AY$3) -> 11921 | L88: - | M88: =CEILING('прайс-лист2'!N80*Титульный!$AY$1,Титульный!$AY$3) -> 15351 | N88: =CEILING('прайс-лист2'!O80*Титульный!$AY$1,Титульный!$AY$3) -> 16321 | O88: =CEILING('прайс-лист2'!P80*Титульный!$AY$1,Титульный!$AY$3) -> 17781 | P88: =CEILING('прайс-лист2'!Q80*Титульный!$AY$1,Титульный!$AY$3) -> 19581 | Q88: =CEILING('прайс-лист2'!R80*Титульный!$AY$1,Титульный!$AY$3) -> 19451 | R88: =CEILING('прайс-лист2'!S80*Титульный!$AY$1,Титульный!$AY$3) -> 1220 | S88: =CEILING('прайс-лист2'!T80*Титульный!$AY$1,Титульный!$AY$3) -> 3084
A89: Шкаф (560) 1дв 2240х420 | C89: 420х580х2240 | D89: =CEILING('прайс-лист2'!E81*Титульный!$AY$1,Титульный!$AY$3) -> 11668 | E89: =CEILING('прайс-лист2'!F81*Титульный!$AY$1,Титульный!$AY$3) -> 15198 | F89: =CEILING('прайс-лист2'!G81*Титульный!$AY$1,Титульный!$AY$3) -> 12198 | G89: =CEILING('прайс-лист2'!H81*Титульный!$AY$1,Титульный!$AY$3) -> 13518 | H89: =CEILING('прайс-лист2'!I81*Титульный!$AY$1,Титульный!$AY$3) -> 10078 | I89: =CEILING('прайс-лист2'!J81*Титульный!$AY$1,Титульный!$AY$3) -> 10168 | J89: =CEILING('прайс-лист2'!K81*Титульный!$AY$1,Титульный!$AY$3) -> 10448 | K89: =CEILING('прайс-лист2'!L81*Титульный!$AY$1,Титульный!$AY$3) -> 11178 | L89: - | M89: =CEILING('прайс-лист2'!N81*Титульный!$AY$1,Титульный!$AY$3) -> 14178 | N89: =CEILING('прайс-лист2'!O81*Титульный!$AY$1,Титульный!$AY$3) -> 15178 | O89: =CEILING('прайс-лист2'!P81*Титульный!$AY$1,Титульный!$AY$3) -> 16188 | P89: =CEILING('прайс-лист2'!Q81*Титульный!$AY$1,Титульный!$AY$3) -> 17658 | Q89: =CEILING('прайс-лист2'!R81*Титульный!$AY$1,Титульный!$AY$3) -> 17938 | R89: =CEILING('прайс-лист2'!S81*Титульный!$AY$1,Титульный!$AY$3) -> 963 | S89: =CEILING('прайс-лист2'!T81*Титульный!$AY$1,Титульный!$AY$3) -> 2675
A90: Шкаф (560) 1дв 2240х560 | C90: 560х580х2240 | D90: =CEILING('прайс-лист2'!E82*Титульный!$AY$1,Титульный!$AY$3) -> 13622 | E90: =CEILING('прайс-лист2'!F82*Титульный!$AY$1,Титульный!$AY$3) -> 18352 | F90: =CEILING('прайс-лист2'!G82*Титульный!$AY$1,Титульный!$AY$3) -> 14342 | G90: =CEILING('прайс-лист2'!H82*Титульный!$AY$1,Титульный!$AY$3) -> 16102 | H90: =CEILING('прайс-лист2'!I82*Титульный!$AY$1,Титульный!$AY$3) -> 11502 | I90: =CEILING('прайс-лист2'!J82*Титульный!$AY$1,Титульный!$AY$3) -> 11632 | J90: =CEILING('прайс-лист2'!K82*Титульный!$AY$1,Титульный!$AY$3) -> 11992 | K90: =CEILING('прайс-лист2'!L82*Титульный!$AY$1,Титульный!$AY$3) -> 12972 | L90: - | M90: =CEILING('прайс-лист2'!N82*Титульный!$AY$1,Титульный!$AY$3) -> 16732 | N90: =CEILING('прайс-лист2'!O82*Титульный!$AY$1,Титульный!$AY$3) -> 17782 | O90: =CEILING('прайс-лист2'!P82*Титульный!$AY$1,Титульный!$AY$3) -> 19412 | P90: =CEILING('прайс-лист2'!Q82*Титульный!$AY$1,Титульный!$AY$3) -> 21382 | Q90: =CEILING('прайс-лист2'!R82*Титульный!$AY$1,Титульный!$AY$3) -> 21192 | R90: =CEILING('прайс-лист2'!S82*Титульный!$AY$1,Титульный!$AY$3) -> 1490 | S90: =CEILING('прайс-лист2'!T82*Титульный!$AY$1,Титульный!$AY$3) -> 3130
A91: Шкаф (560) 1дв 2ящ 2040х420 | C91: 420х580х2040 | D91: =CEILING('прайс-лист2'!E83*Титульный!$AY$1,Титульный!$AY$3) -> 12089 | E91: =CEILING('прайс-лист2'!F83*Титульный!$AY$1,Титульный!$AY$3) -> 15299 | F91: =CEILING('прайс-лист2'!G83*Титульный!$AY$1,Титульный!$AY$3) -> 12579 | G91: =CEILING('прайс-лист2'!H83*Титульный!$AY$1,Титульный!$AY$3) -> 13779 | H91: =CEILING('прайс-лист2'!I83*Титульный!$AY$1,Титульный!$AY$3) -> 10659 | I91: =CEILING('прайс-лист2'!J83*Титульный!$AY$1,Титульный!$AY$3) -> 10719 | J91: =CEILING('прайс-лист2'!K83*Титульный!$AY$1,Титульный!$AY$3) -> 10979 | K91: =CEILING('прайс-лист2'!L83*Титульный!$AY$1,Титульный!$AY$3) -> 11639 | L91: - | M91: =CEILING('прайс-лист2'!N83*Титульный!$AY$1,Титульный!$AY$3) -> 14659 | N91: =CEILING('прайс-лист2'!O83*Титульный!$AY$1,Титульный!$AY$3) -> 15909 | O91: =CEILING('прайс-лист2'!P83*Титульный!$AY$1,Титульный!$AY$3) -> 16499 | P91: =CEILING('прайс-лист2'!Q83*Титульный!$AY$1,Титульный!$AY$3) -> 17829 | Q91: =CEILING('прайс-лист2'!R83*Титульный!$AY$1,Титульный!$AY$3) -> 18569 | R91: =CEILING('прайс-лист2'!S83*Титульный!$AY$1,Титульный!$AY$3) -> 849 | S91: =CEILING('прайс-лист2'!T83*Титульный!$AY$1,Титульный!$AY$3) -> 2473
A92: Шкаф (560) 1дв 2ящ 2040х560 | C92: 560х580х2040 | D92: =CEILING('прайс-лист2'!E84*Титульный!$AY$1,Титульный!$AY$3) -> 13753 | E92: =CEILING('прайс-лист2'!F84*Титульный!$AY$1,Титульный!$AY$3) -> 18043 | F92: =CEILING('прайс-лист2'!G84*Титульный!$AY$1,Титульный!$AY$3) -> 14403 | G92: =CEILING('прайс-лист2'!H84*Титульный!$AY$1,Титульный!$AY$3) -> 16013 | H92: =CEILING('прайс-лист2'!I84*Титульный!$AY$1,Титульный!$AY$3) -> 11823 | I92: =CEILING('прайс-лист2'!J84*Титульный!$AY$1,Титульный!$AY$3) -> 11933 | J92: =CEILING('прайс-лист2'!K84*Титульный!$AY$1,Титульный!$AY$3) -> 12283 | K92: =CEILING('прайс-лист2'!L84*Титульный!$AY$1,Титульный!$AY$3) -> 13153 | L92: - | M92: =CEILING('прайс-лист2'!N84*Титульный!$AY$1,Титульный!$AY$3) -> 16963 | N92: =CEILING('прайс-лист2'!O84*Титульный!$AY$1,Титульный!$AY$3) -> 18363 | O92: =CEILING('прайс-лист2'!P84*Титульный!$AY$1,Титульный!$AY$3) -> 19403 | P92: =CEILING('прайс-лист2'!Q84*Титульный!$AY$1,Титульный!$AY$3) -> 21183 | Q92: =CEILING('прайс-лист2'!R84*Титульный!$AY$1,Титульный!$AY$3) -> 21583 | R92: =CEILING('прайс-лист2'!S84*Титульный!$AY$1,Титульный!$AY$3) -> 1220 | S92: =CEILING('прайс-лист2'!T84*Титульный!$AY$1,Титульный!$AY$3) -> 3084
A93: Шкаф (560) 1дв 2ящ 2240х420 | C93: 420х580х2240 | D93: =CEILING('прайс-лист2'!E85*Титульный!$AY$1,Титульный!$AY$3) -> 12809 | E93: =CEILING('прайс-лист2'!F85*Титульный!$AY$1,Титульный!$AY$3) -> 16349 | F93: =CEILING('прайс-лист2'!G85*Титульный!$AY$1,Титульный!$AY$3) -> 13349 | G93: =CEILING('прайс-лист2'!H85*Титульный!$AY$1,Титульный!$AY$3) -> 14669 | H93: =CEILING('прайс-лист2'!I85*Титульный!$AY$1,Титульный!$AY$3) -> 11229 | I93: =CEILING('прайс-лист2'!J85*Титульный!$AY$1,Титульный!$AY$3) -> 11309 | J93: =CEILING('прайс-лист2'!K85*Титульный!$AY$1,Титульный!$AY$3) -> 11589 | K93: =CEILING('прайс-лист2'!L85*Титульный!$AY$1,Титульный!$AY$3) -> 12319 | L93: - | M93: =CEILING('прайс-лист2'!N85*Титульный!$AY$1,Титульный!$AY$3) -> 15599 | N93: =CEILING('прайс-лист2'!O85*Титульный!$AY$1,Титульный!$AY$3) -> 16919 | O93: =CEILING('прайс-лист2'!P85*Титульный!$AY$1,Титульный!$AY$3) -> 17619 | P93: =CEILING('прайс-лист2'!Q85*Титульный!$AY$1,Титульный!$AY$3) -> 19089 | Q93: =CEILING('прайс-лист2'!R85*Титульный!$AY$1,Титульный!$AY$3) -> 19809 | R93: =CEILING('прайс-лист2'!S85*Титульный!$AY$1,Титульный!$AY$3) -> 963 | S93: =CEILING('прайс-лист2'!T85*Титульный!$AY$1,Титульный!$AY$3) -> 2675
A94: Шкаф (560) 1дв 2ящ 2240х560 | C94: 560х580х2240 | D94: =CEILING('прайс-лист2'!E86*Титульный!$AY$1,Титульный!$AY$3) -> 14892 | E94: =CEILING('прайс-лист2'!F86*Титульный!$AY$1,Титульный!$AY$3) -> 19612 | F94: =CEILING('прайс-лист2'!G86*Титульный!$AY$1,Титульный!$AY$3) -> 15612 | G94: =CEILING('прайс-лист2'!H86*Титульный!$AY$1,Титульный!$AY$3) -> 17382 | H94: =CEILING('прайс-лист2'!I86*Титульный!$AY$1,Титульный!$AY$3) -> 12782 | I94: =CEILING('прайс-лист2'!J86*Титульный!$AY$1,Титульный!$AY$3) -> 12902 | J94: =CEILING('прайс-лист2'!K86*Титульный!$AY$1,Титульный!$AY$3) -> 13282 | K94: =CEILING('прайс-лист2'!L86*Титульный!$AY$1,Титульный!$AY$3) -> 14242 | L94: - | M94: =CEILING('прайс-лист2'!N86*Титульный!$AY$1,Титульный!$AY$3) -> 18372 | N94: =CEILING('прайс-лист2'!O86*Титульный!$AY$1,Титульный!$AY$3) -> 19842 | O94: =CEILING('прайс-лист2'!P86*Титульный!$AY$1,Титульный!$AY$3) -> 21062 | P94: =CEILING('прайс-лист2'!Q86*Титульный!$AY$1,Титульный!$AY$3) -> 23012 | Q94: =CEILING('прайс-лист2'!R86*Титульный!$AY$1,Титульный!$AY$3) -> 23352 | R94: =CEILING('прайс-лист2'!S86*Титульный!$AY$1,Титульный!$AY$3) -> 1490 | S94: =CEILING('прайс-лист2'!T86*Титульный!$AY$1,Титульный!$AY$3) -> 3130
A95: Шкаф (560) 2дв 1ящ 2040х560 | C95: 560х580х2040 | D95: =CEILING('прайс-лист2'!E87*Титульный!$AY$1,Титульный!$AY$3) -> 12834 | E95: =CEILING('прайс-лист2'!F87*Титульный!$AY$1,Титульный!$AY$3) -> 17124 | F95: =CEILING('прайс-лист2'!G87*Титульный!$AY$1,Титульный!$AY$3) -> 13484 | G95: =CEILING('прайс-лист2'!H87*Титульный!$AY$1,Титульный!$AY$3) -> 15084 | H95: =CEILING('прайс-лист2'!I87*Титульный!$AY$1,Титульный!$AY$3) -> 10904 | I95: =CEILING('прайс-лист2'!J87*Титульный!$AY$1,Титульный!$AY$3) -> 11014 | J95: =CEILING('прайс-лист2'!K87*Титульный!$AY$1,Титульный!$AY$3) -> 11354 | K95: =CEILING('прайс-лист2'!L87*Титульный!$AY$1,Титульный!$AY$3) -> 12234 | L95: - | M95: =CEILING('прайс-лист2'!N87*Титульный!$AY$1,Титульный!$AY$3) -> 16044 | N95: =CEILING('прайс-лист2'!O87*Титульный!$AY$1,Титульный!$AY$3) -> 17434 | O95: =CEILING('прайс-лист2'!P87*Титульный!$AY$1,Титульный!$AY$3) -> 18474 | P95: =CEILING('прайс-лист2'!Q87*Титульный!$AY$1,Титульный!$AY$3) -> 20264 | Q95: =CEILING('прайс-лист2'!R87*Титульный!$AY$1,Титульный!$AY$3) -> 20924 | R95: - | S95: -
A96: Шкаф (560) 2дв 1ящ 2240х560 | C96: 560х580х2240 | D96: =CEILING('прайс-лист2'!E88*Титульный!$AY$1,Титульный!$AY$3) -> 13990 | E96: =CEILING('прайс-лист2'!F88*Титульный!$AY$1,Титульный!$AY$3) -> 18700 | F96: =CEILING('прайс-лист2'!G88*Титульный!$AY$1,Титульный!$AY$3) -> 14700 | G96: =CEILING('прайс-лист2'!H88*Титульный!$AY$1,Титульный!$AY$3) -> 16460 | H96: =CEILING('прайс-лист2'!I88*Титульный!$AY$1,Титульный!$AY$3) -> 11870 | I96: =CEILING('прайс-лист2'!J88*Титульный!$AY$1,Титульный!$AY$3) -> 11990 | J96: =CEILING('прайс-лист2'!K88*Титульный!$AY$1,Титульный!$AY$3) -> 12360 | K96: =CEILING('прайс-лист2'!L88*Титульный!$AY$1,Титульный!$AY$3) -> 13330 | L96: - | M96: =CEILING('прайс-лист2'!N88*Титульный!$AY$1,Титульный!$AY$3) -> 17460 | N96: =CEILING('прайс-лист2'!O88*Титульный!$AY$1,Титульный!$AY$3) -> 18930 | O96: =CEILING('прайс-лист2'!P88*Титульный!$AY$1,Титульный!$AY$3) -> 20140 | P96: =CEILING('прайс-лист2'!Q88*Титульный!$AY$1,Титульный!$AY$3) -> 22100 | Q96: =CEILING('прайс-лист2'!R88*Титульный!$AY$1,Титульный!$AY$3) -> 22700 | R96: - | S96: -
A97: Шкаф (560) 2дв 2040х840 | C97: 840х580х2040 | D97: =CEILING('прайс-лист2'!E89*Титульный!$AY$1,Титульный!$AY$3) -> 17684 | E97: =CEILING('прайс-лист2'!F89*Титульный!$AY$1,Титульный!$AY$3) -> 24104 | F97: =CEILING('прайс-лист2'!G89*Титульный!$AY$1,Титульный!$AY$3) -> 18644 | G97: =CEILING('прайс-лист2'!H89*Титульный!$AY$1,Титульный!$AY$3) -> 21044 | H97: =CEILING('прайс-лист2'!I89*Титульный!$AY$1,Титульный!$AY$3) -> 14784 | I97: =CEILING('прайс-лист2'!J89*Титульный!$AY$1,Титульный!$AY$3) -> 14944 | J97: =CEILING('прайс-лист2'!K89*Титульный!$AY$1,Титульный!$AY$3) -> 15444 | K97: =CEILING('прайс-лист2'!L89*Титульный!$AY$1,Титульный!$AY$3) -> 16784 | L97: - | M97: =CEILING('прайс-лист2'!N89*Титульный!$AY$1,Титульный!$AY$3) -> 22264 | N97: =CEILING('прайс-лист2'!O89*Титульный!$AY$1,Титульный!$AY$3) -> 24104 | O97: =CEILING('прайс-лист2'!P89*Титульный!$AY$1,Титульный!$AY$3) -> 25924 | P97: =CEILING('прайс-лист2'!Q89*Титульный!$AY$1,Титульный!$AY$3) -> 28604 | Q97: =CEILING('прайс-лист2'!R89*Титульный!$AY$1,Титульный!$AY$3) -> 29184 | R97: =CEILING('прайс-лист2'!S89*Титульный!$AY$1,Титульный!$AY$3) -> 1698 | S97: =CEILING('прайс-лист2'!T89*Титульный!$AY$1,Титульный!$AY$3) -> 4946
A98: Шкаф (560) 2дв 2240х840 | C98: 840х580х2240 | D98: =CEILING('прайс-лист2'!E90*Титульный!$AY$1,Титульный!$AY$3) -> 19270 | E98: =CEILING('прайс-лист2'!F90*Титульный!$AY$1,Титульный!$AY$3) -> 26330 | F98: =CEILING('прайс-лист2'!G90*Титульный!$AY$1,Титульный!$AY$3) -> 20330 | G98: =CEILING('прайс-лист2'!H90*Титульный!$AY$1,Титульный!$AY$3) -> 22970 | H98: =CEILING('прайс-лист2'!I90*Титульный!$AY$1,Титульный!$AY$3) -> 16090 | I98: =CEILING('прайс-лист2'!J90*Титульный!$AY$1,Титульный!$AY$3) -> 16270 | J98: =CEILING('прайс-лист2'!K90*Титульный!$AY$1,Титульный!$AY$3) -> 16830 | K98: =CEILING('прайс-лист2'!L90*Титульный!$AY$1,Титульный!$AY$3) -> 18290 | L98: - | M98: =CEILING('прайс-лист2'!N90*Титульный!$AY$1,Титульный!$AY$3) -> 24290 | N98: =CEILING('прайс-лист2'!O90*Титульный!$AY$1,Титульный!$AY$3) -> 26290 | O98: =CEILING('прайс-лист2'!P90*Титульный!$AY$1,Титульный!$AY$3) -> 28310 | P98: =CEILING('прайс-лист2'!Q90*Титульный!$AY$1,Титульный!$AY$3) -> 31250 | Q98: =CEILING('прайс-лист2'!R90*Титульный!$AY$1,Титульный!$AY$3) -> 31810 | R98: =CEILING('прайс-лист2'!S90*Титульный!$AY$1,Титульный!$AY$3) -> 1926 | S98: =CEILING('прайс-лист2'!T90*Титульный!$AY$1,Титульный!$AY$3) -> 5350
A99: Шкаф (560) 2дв 2ящ 2040х840 | C99: 840х580х2040 | D99: =CEILING('прайс-лист2'!E91*Титульный!$AY$1,Титульный!$AY$3) -> 18749 | E99: =CEILING('прайс-лист2'!F91*Титульный!$AY$1,Титульный!$AY$3) -> 25169 | F99: =CEILING('прайс-лист2'!G91*Титульный!$AY$1,Титульный!$AY$3) -> 19729 | G99: =CEILING('прайс-лист2'!H91*Титульный!$AY$1,Титульный!$AY$3) -> 22109 | H99: =CEILING('прайс-лист2'!I91*Титульный!$AY$1,Титульный!$AY$3) -> 15869 | I99: =CEILING('прайс-лист2'!J91*Титульный!$AY$1,Титульный!$AY$3) -> 16029 | J99: =CEILING('прайс-лист2'!K91*Титульный!$AY$1,Титульный!$AY$3) -> 16529 | K99: =CEILING('прайс-лист2'!L91*Титульный!$AY$1,Титульный!$AY$3) -> 17869 | L99: - | M99: =CEILING('прайс-лист2'!N91*Титульный!$AY$1,Титульный!$AY$3) -> 23769 | N99: =CEILING('прайс-лист2'!O91*Титульный!$AY$1,Титульный!$AY$3) -> 26109 | O99: =CEILING('прайс-лист2'!P91*Титульный!$AY$1,Титульный!$AY$3) -> 27429 | P99: =CEILING('прайс-лист2'!Q91*Титульный!$AY$1,Титульный!$AY$3) -> 30089 | Q99: =CEILING('прайс-лист2'!R91*Титульный!$AY$1,Титульный!$AY$3) -> 31109 | R99: =CEILING('прайс-лист2'!S91*Титульный!$AY$1,Титульный!$AY$3) -> 1698 | S99: =CEILING('прайс-лист2'!T91*Титульный!$AY$1,Титульный!$AY$3) -> 4946
A100: Шкаф (560) 2дв 2ящ 2240х840 | C100: 840х580х2240 | D100: =CEILING('прайс-лист2'!E92*Титульный!$AY$1,Титульный!$AY$3) -> 20335 | E100: =CEILING('прайс-лист2'!F92*Титульный!$AY$1,Титульный!$AY$3) -> 27415 | F100: =CEILING('прайс-лист2'!G92*Титульный!$AY$1,Титульный!$AY$3) -> 21415 | G100: =CEILING('прайс-лист2'!H92*Титульный!$AY$1,Титульный!$AY$3) -> 24035 | H100: =CEILING('прайс-лист2'!I92*Титульный!$AY$1,Титульный!$AY$3) -> 17155 | I100: =CEILING('прайс-лист2'!J92*Титульный!$AY$1,Титульный!$AY$3) -> 17355 | J100: =CEILING('прайс-лист2'!K92*Титульный!$AY$1,Титульный!$AY$3) -> 17895 | K100: =CEILING('прайс-лист2'!L92*Титульный!$AY$1,Титульный!$AY$3) -> 19375 | L100: - | M100: =CEILING('прайс-лист2'!N92*Титульный!$AY$1,Титульный!$AY$3) -> 25795 | N100: =CEILING('прайс-лист2'!O92*Титульный!$AY$1,Титульный!$AY$3) -> 28275 | O100: =CEILING('прайс-лист2'!P92*Титульный!$AY$1,Титульный!$AY$3) -> 29815 | P100: =CEILING('прайс-лист2'!Q92*Титульный!$AY$1,Титульный!$AY$3) -> 32755 | Q100: =CEILING('прайс-лист2'!R92*Титульный!$AY$1,Титульный!$AY$3) -> 33735 | R100: =CEILING('прайс-лист2'!S92*Титульный!$AY$1,Титульный!$AY$3) -> 1926 | S100: =CEILING('прайс-лист2'!T92*Титульный!$AY$1,Титульный!$AY$3) -> 5350
A101: Шкаф (560) ДО 1дв 2040х420 | C101: 420х580х2040 | D101: =CEILING('прайс-лист2'!E93*Титульный!$AY$1,Титульный!$AY$3) -> 10015 | E101: =CEILING('прайс-лист2'!F93*Титульный!$AY$1,Титульный!$AY$3) -> 13225 | F101: =CEILING('прайс-лист2'!G93*Титульный!$AY$1,Титульный!$AY$3) -> 10495 | G101: =CEILING('прайс-лист2'!H93*Титульный!$AY$1,Титульный!$AY$3) -> 11695 | H101: =CEILING('прайс-лист2'!I93*Титульный!$AY$1,Титульный!$AY$3) -> 8565 | I101: =CEILING('прайс-лист2'!J93*Титульный!$AY$1,Титульный!$AY$3) -> 8645 | J101: =CEILING('прайс-лист2'!K93*Титульный!$AY$1,Титульный!$AY$3) -> 8895 | K101: =CEILING('прайс-лист2'!L93*Титульный!$AY$1,Титульный!$AY$3) -> 9565 | L101: - | M101: =CEILING('прайс-лист2'!N93*Титульный!$AY$1,Титульный!$AY$3) -> 12305 | N101: =CEILING('прайс-лист2'!O93*Титульный!$AY$1,Титульный!$AY$3) -> 13225 | O101: =CEILING('прайс-лист2'!P93*Титульный!$AY$1,Титульный!$AY$3) -> 14135 | P101: =CEILING('прайс-лист2'!Q93*Титульный!$AY$1,Титульный!$AY$3) -> 15475 | Q101: =CEILING('прайс-лист2'!R93*Титульный!$AY$1,Титульный!$AY$3) -> 15765 | R101: =CEILING('прайс-лист2'!S93*Титульный!$AY$1,Титульный!$AY$3) -> 849 | S101: =CEILING('прайс-лист2'!T93*Титульный!$AY$1,Титульный!$AY$3) -> 2473
A102: Шкаф (560) ДО 1дв 2040х560 | C102: 560х580х2040 | D102: =CEILING('прайс-лист2'!E94*Титульный!$AY$1,Титульный!$AY$3) -> 11539 | E102: =CEILING('прайс-лист2'!F94*Титульный!$AY$1,Титульный!$AY$3) -> 15829 | F102: =CEILING('прайс-лист2'!G94*Титульный!$AY$1,Титульный!$AY$3) -> 12189 | G102: =CEILING('прайс-лист2'!H94*Титульный!$AY$1,Титульный!$AY$3) -> 13789 | H102: =CEILING('прайс-лист2'!I94*Титульный!$AY$1,Титульный!$AY$3) -> 9609 | I102: =CEILING('прайс-лист2'!J94*Титульный!$AY$1,Титульный!$AY$3) -> 9719 | J102: =CEILING('прайс-лист2'!K94*Титульный!$AY$1,Титульный!$AY$3) -> 10059 | K102: =CEILING('прайс-лист2'!L94*Титульный!$AY$1,Титульный!$AY$3) -> 10949 | L102: - | M102: =CEILING('прайс-лист2'!N94*Титульный!$AY$1,Титульный!$AY$3) -> 14379 | N102: =CEILING('прайс-лист2'!O94*Титульный!$AY$1,Титульный!$AY$3) -> 15349 | O102: =CEILING('прайс-лист2'!P94*Титульный!$AY$1,Титульный!$AY$3) -> 16809 | P102: =CEILING('прайс-лист2'!Q94*Титульный!$AY$1,Титульный!$AY$3) -> 18609 | Q102: =CEILING('прайс-лист2'!R94*Титульный!$AY$1,Титульный!$AY$3) -> 18479 | R102: =CEILING('прайс-лист2'!S94*Титульный!$AY$1,Титульный!$AY$3) -> 1220 | S102: =CEILING('прайс-лист2'!T94*Титульный!$AY$1,Титульный!$AY$3) -> 3084
A103: Шкаф (560) ДО 1дв 2240х420 | C103: 420х580х2240 | D103: =CEILING('прайс-лист2'!E95*Титульный!$AY$1,Титульный!$AY$3) -> 10653 | E103: =CEILING('прайс-лист2'!F95*Титульный!$AY$1,Титульный!$AY$3) -> 14183 | F103: =CEILING('прайс-лист2'!G95*Титульный!$AY$1,Титульный!$AY$3) -> 11183 | G103: =CEILING('прайс-лист2'!H95*Титульный!$AY$1,Титульный!$AY$3) -> 12503 | H103: =CEILING('прайс-лист2'!I95*Титульный!$AY$1,Титульный!$AY$3) -> 9063 | I103: =CEILING('прайс-лист2'!J95*Титульный!$AY$1,Титульный!$AY$3) -> 9153 | J103: =CEILING('прайс-лист2'!K95*Титульный!$AY$1,Титульный!$AY$3) -> 9433 | K103: =CEILING('прайс-лист2'!L95*Титульный!$AY$1,Титульный!$AY$3) -> 10163 | L103: - | M103: =CEILING('прайс-лист2'!N95*Титульный!$AY$1,Титульный!$AY$3) -> 13163 | N103: =CEILING('прайс-лист2'!O95*Титульный!$AY$1,Титульный!$AY$3) -> 14163 | O103: =CEILING('прайс-лист2'!P95*Титульный!$AY$1,Титульный!$AY$3) -> 15173 | P103: =CEILING('прайс-лист2'!Q95*Титульный!$AY$1,Титульный!$AY$3) -> 16643 | Q103: =CEILING('прайс-лист2'!R95*Титульный!$AY$1,Титульный!$AY$3) -> 16923 | R103: =CEILING('прайс-лист2'!S95*Титульный!$AY$1,Титульный!$AY$3) -> 963 | S103: =CEILING('прайс-лист2'!T95*Титульный!$AY$1,Титульный!$AY$3) -> 1545
A104: Шкаф (560) ДО 1дв 2240х560 | C104: 560х580х2240 | D104: =CEILING('прайс-лист2'!E96*Титульный!$AY$1,Титульный!$AY$3) -> 12261 | E104: =CEILING('прайс-лист2'!F96*Титульный!$AY$1,Титульный!$AY$3) -> 16991 | F104: =CEILING('прайс-лист2'!G96*Титульный!$AY$1,Титульный!$AY$3) -> 12981 | G104: =CEILING('прайс-лист2'!H96*Титульный!$AY$1,Титульный!$AY$3) -> 14741 | H104: =CEILING('прайс-лист2'!I96*Титульный!$AY$1,Титульный!$AY$3) -> 10141 | I104: =CEILING('прайс-лист2'!J96*Титульный!$AY$1,Титульный!$AY$3) -> 10271 | J104: =CEILING('прайс-лист2'!K96*Титульный!$AY$1,Титульный!$AY$3) -> 10631 | K104: =CEILING('прайс-лист2'!L96*Титульный!$AY$1,Титульный!$AY$3) -> 11611 | L104: - | M104: =CEILING('прайс-лист2'!N96*Титульный!$AY$1,Титульный!$AY$3) -> 15371 | N104: =CEILING('прайс-лист2'!O96*Титульный!$AY$1,Титульный!$AY$3) -> 16421 | O104: =CEILING('прайс-лист2'!P96*Титульный!$AY$1,Титульный!$AY$3) -> 18051 | P104: =CEILING('прайс-лист2'!Q96*Титульный!$AY$1,Титульный!$AY$3) -> 20021 | Q104: =CEILING('прайс-лист2'!R96*Титульный!$AY$1,Титульный!$AY$3) -> 19831 | R104: =CEILING('прайс-лист2'!S96*Титульный!$AY$1,Титульный!$AY$3) -> 1490 | S104: =CEILING('прайс-лист2'!T96*Титульный!$AY$1,Титульный!$AY$3) -> 3130
A105: Внимание!!! Для наборов мебели "Марго" использовать только накладные зеркала
A106: Шкафы глубиной 560мм
A107: Наименование | B107: Эскиз | C107: Габариты, ШхГхВ мм. | D107: МДФ фасады | H107: Марго16 | M107: UV-лак | O107: ТСС | Q107: ТСС сборный | R107: Стоимость зеркал
D108: 1 ЦК | E108: 1 ЦК + патина | F108: 2 ЦК | G108: 3 ЦК | H108: 1 ц.к. | I108: 2 ц.к. | J108: 3 ц.к. | K108: 4 ц.к. | L108: 5 ц.к. | M108: UV-лак кромка ABC/AL кромка | N108: кромка 3D | O108: 1 ЦК | P108: 2 ЦК | R108: Зеркало в рамке** | S108: Зеркало накладное*
A109: Шкаф (560) ДО 2дв 2040х840 | C109: 840х580х2040 | D109: =CEILING('прайс-лист2'!E97*Титульный!$AY$1,Титульный!$AY$3) -> 16290 | E109: =CEILING('прайс-лист2'!F97*Титульный!$AY$1,Титульный!$AY$3) -> 22710 | F109: =CEILING('прайс-лист2'!G97*Титульный!$AY$1,Титульный!$AY$3) -> 17250 | G109: =CEILING('прайс-лист2'!H97*Титульный!$AY$1,Титульный!$AY$3) -> 19650 | H109: =CEILING('прайс-лист2'!I97*Титульный!$AY$1,Титульный!$AY$3) -> 13390 | I109: =CEILING('прайс-лист2'!J97*Титульный!$AY$1,Титульный!$AY$3) -> 13550 | J109: =CEILING('прайс-лист2'!K97*Титульный!$AY$1,Титульный!$AY$3) -> 14050 | K109: =CEILING('прайс-лист2'!L97*Титульный!$AY$1,Титульный!$AY$3) -> 15390 | L109: - | M109: =CEILING('прайс-лист2'!N97*Титульный!$AY$1,Титульный!$AY$3) -> 20870 | N109: =CEILING('прайс-лист2'!O97*Титульный!$AY$1,Титульный!$AY$3) -> 22710 | O109: =CEILING('прайс-лист2'!P97*Титульный!$AY$1,Титульный!$AY$3) -> 24530 | P109: =CEILING('прайс-лист2'!Q97*Титульный!$AY$1,Титульный!$AY$3) -> 27210 | Q109: =CEILING('прайс-лист2'!R97*Титульный!$AY$1,Титульный!$AY$3) -> 27790 | R109: =CEILING('прайс-лист2'!S97*Титульный!$AY$1,Титульный!$AY$3) -> 1698 | S109: =CEILING('прайс-лист2'!T97*Титульный!$AY$1,Титульный!$AY$3) -> 4946
A110: Шкаф (560) ДО 2дв 2040х1120 | C110: 1120х580х2040 | D110: =CEILING('прайс-лист2'!E98*Титульный!$AY$1,Титульный!$AY$3) -> 19417 | E110: =CEILING('прайс-лист2'!F98*Титульный!$AY$1,Титульный!$AY$3) -> 27997 | F110: =CEILING('прайс-лист2'!G98*Титульный!$AY$1,Титульный!$AY$3) -> 20717 | G110: =CEILING('прайс-лист2'!H98*Титульный!$AY$1,Титульный!$AY$3) -> 23917 | H110: =CEILING('прайс-лист2'!I98*Титульный!$AY$1,Титульный!$AY$3) -> 15557 | I110: =CEILING('прайс-лист2'!J98*Титульный!$AY$1,Титульный!$AY$3) -> 15777 | J110: =CEILING('прайс-лист2'!K98*Титульный!$AY$1,Титульный!$AY$3) -> 16457 | K110: =CEILING('прайс-лист2'!L98*Титульный!$AY$1,Титульный!$AY$3) -> 18237 | L110: - | M110: =CEILING('прайс-лист2'!N98*Титульный!$AY$1,Титульный!$AY$3) -> 25097 | N110: =CEILING('прайс-лист2'!O98*Титульный!$AY$1,Титульный!$AY$3) -> 27037 | O110: =CEILING('прайс-лист2'!P98*Титульный!$AY$1,Титульный!$AY$3) -> 29957 | P110: =CEILING('прайс-лист2'!Q98*Титульный!$AY$1,Титульный!$AY$3) -> 33557 | Q110: =CEILING('прайс-лист2'!R98*Титульный!$AY$1,Титульный!$AY$3) -> 33297 | R110: =CEILING('прайс-лист2'!S98*Титульный!$AY$1,Титульный!$AY$3) -> 2440 | S110: =CEILING('прайс-лист2'!T98*Титульный!$AY$1,Титульный!$AY$3) -> 6168
A111: Шкаф (560) ДО 2дв 2240х840 | C111: 840х580х2240 | D111: =CEILING('прайс-лист2'!E99*Титульный!$AY$1,Титульный!$AY$3) -> 17273 | E111: =CEILING('прайс-лист2'!F99*Титульный!$AY$1,Титульный!$AY$3) -> 24333 | F111: =CEILING('прайс-лист2'!G99*Титульный!$AY$1,Титульный!$AY$3) -> 18333 | G111: =CEILING('прайс-лист2'!H99*Титульный!$AY$1,Титульный!$AY$3) -> 20973 | H111: =CEILING('прайс-лист2'!I99*Титульный!$AY$1,Титульный!$AY$3) -> 14093 | I111: =CEILING('прайс-лист2'!J99*Титульный!$AY$1,Титульный!$AY$3) -> 14273 | J111: =CEILING('прайс-лист2'!K99*Титульный!$AY$1,Титульный!$AY$3) -> 14833 | K111: =CEILING('прайс-лист2'!L99*Титульный!$AY$1,Титульный!$AY$3) -> 16293 | L111: - | M111: =CEILING('прайс-лист2'!N99*Титульный!$AY$1,Титульный!$AY$3) -> 22293 | N111: =CEILING('прайс-лист2'!O99*Титульный!$AY$1,Титульный!$AY$3) -> 24293 | O111: =CEILING('прайс-лист2'!P99*Титульный!$AY$1,Титульный!$AY$3) -> 26313 | P111: =CEILING('прайс-лист2'!Q99*Титульный!$AY$1,Титульный!$AY$3) -> 29253 | Q111: =CEILING('прайс-лист2'!R99*Титульный!$AY$1,Титульный!$AY$3) -> 29813 | R111: =CEILING('прайс-лист2'!S99*Титульный!$AY$1,Титульный!$AY$3) -> 1926 | S111: =CEILING('прайс-лист2'!T99*Титульный!$AY$1,Титульный!$AY$3) -> 5350
A112: Шкаф (560) ДО 2дв 2240х1120 | C112: 1120х580х2240 | D112: =CEILING('прайс-лист2'!E100*Титульный!$AY$1,Титульный!$AY$3) -> 20611 | E112: =CEILING('прайс-лист2'!F100*Титульный!$AY$1,Титульный!$AY$3) -> 30071 | F112: =CEILING('прайс-лист2'!G100*Титульный!$AY$1,Титульный!$AY$3) -> 22051 | G112: =CEILING('прайс-лист2'!H100*Титульный!$AY$1,Титульный!$AY$3) -> 25571 | H112: =CEILING('прайс-лист2'!I100*Титульный!$AY$1,Титульный!$AY$3) -> 16371 | I112: =CEILING('прайс-лист2'!J100*Титульный!$AY$1,Титульный!$AY$3) -> 16631 | J112: =CEILING('прайс-лист2'!K100*Титульный!$AY$1,Титульный!$AY$3) -> 17351 | K112: =CEILING('прайс-лист2'!L100*Титульный!$AY$1,Титульный!$AY$3) -> 19311 | L112: - | M112: =CEILING('прайс-лист2'!N100*Титульный!$AY$1,Титульный!$AY$3) -> 26831 | N112: =CEILING('прайс-лист2'!O100*Титульный!$AY$1,Титульный!$AY$3) -> 28931 | O112: =CEILING('прайс-лист2'!P100*Титульный!$AY$1,Титульный!$AY$3) -> 32191 | P112: =CEILING('прайс-лист2'!Q100*Титульный!$AY$1,Титульный!$AY$3) -> 36131 | Q112: =CEILING('прайс-лист2'!R100*Титульный!$AY$1,Титульный!$AY$3) -> 35751 | R112: =CEILING('прайс-лист2'!S100*Титульный!$AY$1,Титульный!$AY$3) -> 2980 | S112: =CEILING('прайс-лист2'!T100*Титульный!$AY$1,Титульный!$AY$3) -> 6260
A113: Шкаф (560) ДО 2дв 2ящ 2040х840 | C113: 840х580х2040 | D113: =CEILING('прайс-лист2'!E101*Титульный!$AY$1,Титульный!$AY$3) -> 18240 | E113: =CEILING('прайс-лист2'!F101*Титульный!$AY$1,Титульный!$AY$3) -> 24660 | F113: =CEILING('прайс-лист2'!G101*Титульный!$AY$1,Титульный!$AY$3) -> 19220 | G113: =CEILING('прайс-лист2'!H101*Титульный!$AY$1,Титульный!$AY$3) -> 21600 | H113: =CEILING('прайс-лист2'!I101*Титульный!$AY$1,Титульный!$AY$3) -> 15360 | I113: =CEILING('прайс-лист2'!J101*Титульный!$AY$1,Титульный!$AY$3) -> 15520 | J113: =CEILING('прайс-лист2'!K101*Титульный!$AY$1,Титульный!$AY$3) -> 16020 | K113: =CEILING('прайс-лист2'!L101*Титульный!$AY$1,Титульный!$AY$3) -> 17360 | L113: - | M113: =CEILING('прайс-лист2'!N101*Титульный!$AY$1,Титульный!$AY$3) -> 23260 | N113: =CEILING('прайс-лист2'!O101*Титульный!$AY$1,Титульный!$AY$3) -> 25600 | O113: =CEILING('прайс-лист2'!P101*Титульный!$AY$1,Титульный!$AY$3) -> 26920 | P113: =CEILING('прайс-лист2'!Q101*Титульный!$AY$1,Титульный!$AY$3) -> 29580 | Q113: =CEILING('прайс-лист2'!R101*Титульный!$AY$1,Титульный!$AY$3) -> 30600 | R113: =CEILING('прайс-лист2'!S101*Титульный!$AY$1,Титульный!$AY$3) -> 1698 | S113: =CEILING('прайс-лист2'!T101*Титульный!$AY$1,Титульный!$AY$3) -> 4946
A114: Шкаф (560) ДО 2дв 2ящ 2240х840 | C114: 840х580х2240 | D114: =CEILING('прайс-лист2'!E102*Титульный!$AY$1,Титульный!$AY$3) -> 19223 | E114: =CEILING('прайс-лист2'!F102*Титульный!$AY$1,Титульный!$AY$3) -> 26303 | F114: =CEILING('прайс-лист2'!G102*Титульный!$AY$1,Титульный!$AY$3) -> 20303 | G114: =CEILING('прайс-лист2'!H102*Титульный!$AY$1,Титульный!$AY$3) -> 22923 | H114: =CEILING('прайс-лист2'!I102*Титульный!$AY$1,Титульный!$AY$3) -> 16043 | I114: =CEILING('прайс-лист2'!J102*Титульный!$AY$1,Титульный!$AY$3) -> 16243 | J114: =CEILING('прайс-лист2'!K102*Титульный!$AY$1,Титульный!$AY$3) -> 16783 | K114: =CEILING('прайс-лист2'!L102*Титульный!$AY$1,Титульный!$AY$3) -> 18263 | L114: - | M114: =CEILING('прайс-лист2'!N102*Титульный!$AY$1,Титульный!$AY$3) -> 24683 | N114: =CEILING('прайс-лист2'!O102*Титульный!$AY$1,Титульный!$AY$3) -> 27163 | O114: =CEILING('прайс-лист2'!P102*Титульный!$AY$1,Титульный!$AY$3) -> 28703 | P114: =CEILING('прайс-лист2'!Q102*Титульный!$AY$1,Титульный!$AY$3) -> 31643 | Q114: =CEILING('прайс-лист2'!R102*Титульный!$AY$1,Титульный!$AY$3) -> 32623 | R114: =CEILING('прайс-лист2'!S102*Титульный!$AY$1,Титульный!$AY$3) -> 2980 | S114: =CEILING('прайс-лист2'!T102*Титульный!$AY$1,Титульный!$AY$3) -> 6260
A115: Шкаф (560) Комб 2дв 2040х840 | C115: 840х580х2040 | D115: =CEILING('прайс-лист2'!E103*Титульный!$AY$1,Титульный!$AY$3) -> 18946 | E115: =CEILING('прайс-лист2'!F103*Титульный!$AY$1,Титульный!$AY$3) -> 25366 | F115: =CEILING('прайс-лист2'!G103*Титульный!$AY$1,Титульный!$AY$3) -> 19906 | G115: =CEILING('прайс-лист2'!H103*Титульный!$AY$1,Титульный!$AY$3) -> 22306 | H115: =CEILING('прайс-лист2'!I103*Титульный!$AY$1,Титульный!$AY$3) -> 16046 | I115: =CEILING('прайс-лист2'!J103*Титульный!$AY$1,Титульный!$AY$3) -> 16206 | J115: =CEILING('прайс-лист2'!K103*Титульный!$AY$1,Титульный!$AY$3) -> 16706 | K115: =CEILING('прайс-лист2'!L103*Титульный!$AY$1,Титульный!$AY$3) -> 18046 | L115: - | M115: =CEILING('прайс-лист2'!N103*Титульный!$AY$1,Титульный!$AY$3) -> 23526 | N115: =CEILING('прайс-лист2'!O103*Титульный!$AY$1,Титульный!$AY$3) -> 25366 | O115: =CEILING('прайс-лист2'!P103*Титульный!$AY$1,Титульный!$AY$3) -> 27186 | P115: =CEILING('прайс-лист2'!Q103*Титульный!$AY$1,Титульный!$AY$3) -> 29866 | Q115: =CEILING('прайс-лист2'!R103*Титульный!$AY$1,Титульный!$AY$3) -> 30446 | R115: =CEILING('прайс-лист2'!S103*Титульный!$AY$1,Титульный!$AY$3) -> 1698 | S115: =CEILING('прайс-лист2'!T103*Титульный!$AY$1,Титульный!$AY$3) -> 4946
A116: Шкаф (560) Комб 2дв 2240х840 | C116: 840х580х2240 | D116: =CEILING('прайс-лист2'!E104*Титульный!$AY$1,Титульный!$AY$3) -> 20357 | E116: =CEILING('прайс-лист2'!F104*Титульный!$AY$1,Титульный!$AY$3) -> 27417 | F116: =CEILING('прайс-лист2'!G104*Титульный!$AY$1,Титульный!$AY$3) -> 21417 | G116: =CEILING('прайс-лист2'!H104*Титульный!$AY$1,Титульный!$AY$3) -> 24057 | H116: =CEILING('прайс-лист2'!I104*Титульный!$AY$1,Титульный!$AY$3) -> 17177 | I116: =CEILING('прайс-лист2'!J104*Титульный!$AY$1,Титульный!$AY$3) -> 17357 | J116: =CEILING('прайс-лист2'!K104*Титульный!$AY$1,Титульный!$AY$3) -> 17917 | K116: =CEILING('прайс-лист2'!L104*Титульный!$AY$1,Титульный!$AY$3) -> 19377 | L116: - | M116: =CEILING('прайс-лист2'!N104*Титульный!$AY$1,Титульный!$AY$3) -> 25377 | N116: =CEILING('прайс-лист2'!O104*Титульный!$AY$1,Титульный!$AY$3) -> 27377 | O116: =CEILING('прайс-лист2'!P104*Титульный!$AY$1,Титульный!$AY$3) -> 29397 | P116: =CEILING('прайс-лист2'!Q104*Титульный!$AY$1,Титульный!$AY$3) -> 32337 | Q116: =CEILING('прайс-лист2'!R104*Титульный!$AY$1,Титульный!$AY$3) -> 32897 | R116: =CEILING('прайс-лист2'!S104*Титульный!$AY$1,Титульный!$AY$3) -> 2440 | S116: =CEILING('прайс-лист2'!T104*Титульный!$AY$1,Титульный!$AY$3) -> 6168
A117: Шкаф (560) Комб 2дв 2040х1120 | C117: 1120х580х2040 | D117: =CEILING('прайс-лист2'!E105*Титульный!$AY$1,Титульный!$AY$3) -> 21907 | E117: =CEILING('прайс-лист2'!F105*Титульный!$AY$1,Титульный!$AY$3) -> 30487 | F117: =CEILING('прайс-лист2'!G105*Титульный!$AY$1,Титульный!$AY$3) -> 23207 | G117: =CEILING('прайс-лист2'!H105*Титульный!$AY$1,Титульный!$AY$3) -> 26407 | H117: =CEILING('прайс-лист2'!I105*Титульный!$AY$1,Титульный!$AY$3) -> 18047 | I117: =CEILING('прайс-лист2'!J105*Титульный!$AY$1,Титульный!$AY$3) -> 18267 | J117: =CEILING('прайс-лист2'!K105*Титульный!$AY$1,Титульный!$AY$3) -> 18947 | K117: =CEILING('прайс-лист2'!L105*Титульный!$AY$1,Титульный!$AY$3) -> 20727 | L117: - | M117: =CEILING('прайс-лист2'!N105*Титульный!$AY$1,Титульный!$AY$3) -> 27587 | N117: =CEILING('прайс-лист2'!O105*Титульный!$AY$1,Титульный!$AY$3) -> 29527 | O117: =CEILING('прайс-лист2'!P105*Титульный!$AY$1,Титульный!$AY$3) -> 32447 | P117: =CEILING('прайс-лист2'!Q105*Титульный!$AY$1,Титульный!$AY$3) -> 36047 | Q117: =CEILING('прайс-лист2'!R105*Титульный!$AY$1,Титульный!$AY$3) -> 35787 | R117: =CEILING('прайс-лист2'!S105*Титульный!$AY$1,Титульный!$AY$3) -> 2440 | S117: =CEILING('прайс-лист2'!T105*Титульный!$AY$1,Титульный!$AY$3) -> 6168
A118: Шкаф (560) Комб 2дв 2240х1120 | C118: 1120х580х2240 | D118: =CEILING('прайс-лист2'!E106*Титульный!$AY$1,Титульный!$AY$3) -> 23481 | E118: =CEILING('прайс-лист2'!F106*Титульный!$AY$1,Титульный!$AY$3) -> 32941 | F118: =CEILING('прайс-лист2'!G106*Титульный!$AY$1,Титульный!$AY$3) -> 24921 | G118: =CEILING('прайс-лист2'!H106*Титульный!$AY$1,Титульный!$AY$3) -> 28441 | H118: =CEILING('прайс-лист2'!I106*Титульный!$AY$1,Титульный!$AY$3) -> 19241 | I118: =CEILING('прайс-лист2'!J106*Титульный!$AY$1,Титульный!$AY$3) -> 19501 | J118: =CEILING('прайс-лист2'!K106*Титульный!$AY$1,Титульный!$AY$3) -> 20221 | K118: =CEILING('прайс-лист2'!L106*Титульный!$AY$1,Титульный!$AY$3) -> 22181 | L118: - | M118: =CEILING('прайс-лист2'!N106*Титульный!$AY$1,Титульный!$AY$3) -> 29701 | N118: =CEILING('прайс-лист2'!O106*Титульный!$AY$1,Титульный!$AY$3) -> 31801 | O118: =CEILING('прайс-лист2'!P106*Титульный!$AY$1,Титульный!$AY$3) -> 35061 | P118: =CEILING('прайс-лист2'!Q106*Титульный!$AY$1,Титульный!$AY$3) -> 39001 | Q118: =CEILING('прайс-лист2'!R106*Титульный!$AY$1,Титульный!$AY$3) -> 38621 | R118: =CEILING('прайс-лист2'!S106*Титульный!$AY$1,Титульный!$AY$3) -> 2980 | S118: =CEILING('прайс-лист2'!T106*Титульный!$AY$1,Титульный!$AY$3) -> 6260
A119: Шкаф (560) Комб 3дв 2040х1260 | C119: 1260х580х2040 | D119: =CEILING('прайс-лист2'!E107*Титульный!$AY$1,Титульный!$AY$3) -> 24924 | E119: =CEILING('прайс-лист2'!F107*Титульный!$AY$1,Титульный!$AY$3) -> 34554 | F119: =CEILING('прайс-лист2'!G107*Титульный!$AY$1,Титульный!$AY$3) -> 26364 | G119: =CEILING('прайс-лист2'!H107*Титульный!$AY$1,Титульный!$AY$3) -> 29964 | H119: =CEILING('прайс-лист2'!I107*Титульный!$AY$1,Титульный!$AY$3) -> 20574 | I119: =CEILING('прайс-лист2'!J107*Титульный!$AY$1,Титульный!$AY$3) -> 20814 | J119: =CEILING('прайс-лист2'!K107*Титульный!$AY$1,Титульный!$AY$3) -> 21564 | K119: =CEILING('прайс-лист2'!L107*Титульный!$AY$1,Титульный!$AY$3) -> 23574 | L119: - | M119: =CEILING('прайс-лист2'!N107*Титульный!$AY$1,Титульный!$AY$3) -> 31794 | N119: =CEILING('прайс-лист2'!O107*Титульный!$AY$1,Титульный!$AY$3) -> 34554 | O119: =CEILING('прайс-лист2'!P107*Титульный!$AY$1,Титульный!$AY$3) -> 37284 | P119: =CEILING('прайс-лист2'!Q107*Титульный!$AY$1,Титульный!$AY$3) -> 41304 | Q119: =CEILING('прайс-лист2'!R107*Титульный!$AY$1,Титульный!$AY$3) -> 42174 | R119: =CEILING('прайс-лист2'!S107*Титульный!$AY$1,Титульный!$AY$3) -> 849 | S119: =CEILING('прайс-лист2'!T107*Титульный!$AY$1,Титульный!$AY$3) -> 1428
A120: Шкаф (560) Комб 3дв 2040х1400 | C120: 1400х580х2040 | D120: =CEILING('прайс-лист2'!E108*Титульный!$AY$1,Титульный!$AY$3) -> 26432 | E120: =CEILING('прайс-лист2'!F108*Титульный!$AY$1,Титульный!$AY$3) -> 37142 | F120: =CEILING('прайс-лист2'!G108*Титульный!$AY$1,Титульный!$AY$3) -> 28042 | G120: =CEILING('прайс-лист2'!H108*Титульный!$AY$1,Титульный!$AY$3) -> 32042 | H120: =CEILING('прайс-лист2'!I108*Титульный!$AY$1,Титульный!$AY$3) -> 21602 | I120: =CEILING('прайс-лист2'!J108*Титульный!$AY$1,Титульный!$AY$3) -> 21872 | J120: =CEILING('прайс-лист2'!K108*Титульный!$AY$1,Титульный!$AY$3) -> 22712 | K120: =CEILING('прайс-лист2'!L108*Титульный!$AY$1,Титульный!$AY$3) -> 24942 | L120: - | M120: =CEILING('прайс-лист2'!N108*Титульный!$AY$1,Титульный!$AY$3) -> 33852 | N120: =CEILING('прайс-лист2'!O108*Титульный!$AY$1,Титульный!$AY$3) -> 36662 | O120: =CEILING('прайс-лист2'!P108*Титульный!$AY$1,Титульный!$AY$3) -> 39942 | P120: =CEILING('прайс-лист2'!Q108*Титульный!$AY$1,Титульный!$AY$3) -> 44422 | Q120: =CEILING('прайс-лист2'!R108*Титульный!$AY$1,Титульный!$AY$3) -> 44872 | R120: =CEILING('прайс-лист2'!S108*Титульный!$AY$1,Титульный!$AY$3) -> 1220 | S120: =CEILING('прайс-лист2'!T108*Титульный!$AY$1,Титульный!$AY$3) -> 3084
A121: Шкаф (560) Комб 3дв 2040х1680 | C121: 1680х580х2040 | D121: =CEILING('прайс-лист2'!E109*Титульный!$AY$1,Титульный!$AY$3) -> 29634 | E121: =CEILING('прайс-лист2'!F109*Титульный!$AY$1,Титульный!$AY$3) -> 42504 | F121: =CEILING('прайс-лист2'!G109*Титульный!$AY$1,Титульный!$AY$3) -> 31584 | G121: =CEILING('прайс-лист2'!H109*Титульный!$AY$1,Титульный!$AY$3) -> 36384 | H121: =CEILING('прайс-лист2'!I109*Титульный!$AY$1,Титульный!$AY$3) -> 23844 | I121: =CEILING('прайс-лист2'!J109*Титульный!$AY$1,Титульный!$AY$3) -> 24174 | J121: =CEILING('прайс-лист2'!K109*Титульный!$AY$1,Титульный!$AY$3) -> 25194 | K121: =CEILING('прайс-лист2'!L109*Титульный!$AY$1,Титульный!$AY$3) -> 27864 | L121: - | M121: =CEILING('прайс-лист2'!N109*Титульный!$AY$1,Титульный!$AY$3) -> 38154 | N121: =CEILING('прайс-лист2'!O109*Титульный!$AY$1,Титульный!$AY$3) -> 41064 | O121: =CEILING('прайс-лист2'!P109*Титульный!$AY$1,Титульный!$AY$3) -> 45444 | P121: =CEILING('прайс-лист2'!Q109*Титульный!$AY$1,Титульный!$AY$3) -> 50844 | Q121: =CEILING('прайс-лист2'!R109*Титульный!$AY$1,Титульный!$AY$3) -> 50454 | R121: =CEILING('прайс-лист2'!S109*Титульный!$AY$1,Титульный!$AY$3) -> 1220 | S121: =CEILING('прайс-лист2'!T109*Титульный!$AY$1,Титульный!$AY$3) -> 3084
A122: Шкаф (560) Комб 3дв 2240х1260 | C122: 1260х580х2240 | D122: =CEILING('прайс-лист2'!E110*Титульный!$AY$1,Титульный!$AY$3) -> 26708 | E122: =CEILING('прайс-лист2'!F110*Титульный!$AY$1,Титульный!$AY$3) -> 37298 | F122: =CEILING('прайс-лист2'!G110*Титульный!$AY$1,Титульный!$AY$3) -> 28298 | G122: =CEILING('прайс-лист2'!H110*Титульный!$AY$1,Титульный!$AY$3) -> 32258 | H122: =CEILING('прайс-лист2'!I110*Титульный!$AY$1,Титульный!$AY$3) -> 21938 | I122: =CEILING('прайс-лист2'!J110*Титульный!$AY$1,Титульный!$AY$3) -> 22208 | J122: =CEILING('прайс-лист2'!K110*Титульный!$AY$1,Титульный!$AY$3) -> 23048 | K122: =CEILING('прайс-лист2'!L110*Титульный!$AY$1,Титульный!$AY$3) -> 25238 | L122: - | M122: =CEILING('прайс-лист2'!N110*Титульный!$AY$1,Титульный!$AY$3) -> 34238 | N122: =CEILING('прайс-лист2'!O110*Титульный!$AY$1,Титульный!$AY$3) -> 37238 | O122: =CEILING('прайс-лист2'!P110*Титульный!$AY$1,Титульный!$AY$3) -> 40268 | P122: =CEILING('прайс-лист2'!Q110*Титульный!$AY$1,Титульный!$AY$3) -> 44678 | Q122: =CEILING('прайс-лист2'!R110*Титульный!$AY$1,Титульный!$AY$3) -> 45518 | R122: =CEILING('прайс-лист2'!S110*Титульный!$AY$1,Титульный!$AY$3) -> 963 | S122: =CEILING('прайс-лист2'!T110*Титульный!$AY$1,Титульный!$AY$3) -> 1545
A123: Шкаф (560) Комб 3дв 2240х1400 | C123: 1400х580х2240 | D123: =CEILING('прайс-лист2'!E111*Титульный!$AY$1,Титульный!$AY$3) -> 28307 | E123: =CEILING('прайс-лист2'!F111*Титульный!$AY$1,Титульный!$AY$3) -> 40097 | F123: =CEILING('прайс-лист2'!G111*Титульный!$AY$1,Титульный!$AY$3) -> 30087 | G123: =CEILING('прайс-лист2'!H111*Титульный!$AY$1,Титульный!$AY$3) -> 34487 | H123: =CEILING('прайс-лист2'!I111*Титульный!$AY$1,Титульный!$AY$3) -> 23007 | I123: =CEILING('прайс-лист2'!J111*Титульный!$AY$1,Титульный!$AY$3) -> 23317 | J123: =CEILING('прайс-лист2'!K111*Титульный!$AY$1,Титульный!$AY$3) -> 24237 | K123: =CEILING('прайс-лист2'!L111*Титульный!$AY$1,Титульный!$AY$3) -> 26677 | L123: - | M123: =CEILING('прайс-лист2'!N111*Титульный!$AY$1,Титульный!$AY$3) -> 36437 | N123: =CEILING('прайс-лист2'!O111*Титульный!$AY$1,Титульный!$AY$3) -> 39487 | O123: =CEILING('прайс-лист2'!P111*Титульный!$AY$1,Титульный!$AY$3) -> 43137 | P123: =CEILING('прайс-лист2'!Q111*Титульный!$AY$1,Титульный!$AY$3) -> 48047 | Q123: =CEILING('прайс-лист2'!R111*Титульный!$AY$1,Титульный!$AY$3) -> 48417 | R123: =CEILING('прайс-лист2'!S111*Титульный!$AY$1,Титульный!$AY$3) -> 1490 | S123: =CEILING('прайс-лист2'!T111*Титульный!$AY$1,Титульный!$AY$3) -> 3130
A124: Шкаф (560) Комб 3дв 2240х1680 | C124: 1680х580х2240 | D124: =CEILING('прайс-лист2'!E112*Титульный!$AY$1,Титульный!$AY$3) -> 31969 | E124: =CEILING('прайс-лист2'!F112*Титульный!$AY$1,Титульный!$AY$3) -> 46159 | F124: =CEILING('прайс-лист2'!G112*Титульный!$AY$1,Титульный!$AY$3) -> 34129 | G124: =CEILING('прайс-лист2'!H112*Титульный!$AY$1,Титульный!$AY$3) -> 39409 | H124: =CEILING('прайс-лист2'!I112*Титульный!$AY$1,Титульный!$AY$3) -> 25609 | I124: =CEILING('прайс-лист2'!J112*Титульный!$AY$1,Титульный!$AY$3) -> 25999 | J124: =CEILING('прайс-лист2'!K112*Титульный!$AY$1,Титульный!$AY$3) -> 27079 | K124: =CEILING('прайс-лист2'!L112*Титульный!$AY$1,Титульный!$AY$3) -> 30019 | L124: - | M124: =CEILING('прайс-лист2'!N112*Титульный!$AY$1,Титульный!$AY$3) -> 41299 | N124: =CEILING('прайс-лист2'!O112*Титульный!$AY$1,Титульный!$AY$3) -> 44449 | O124: =CEILING('прайс-лист2'!P112*Титульный!$AY$1,Титульный!$AY$3) -> 49339 | P124: =CEILING('прайс-лист2'!Q112*Титульный!$AY$1,Титульный!$AY$3) -> 55249 | Q124: =CEILING('прайс-лист2'!R112*Титульный!$AY$1,Титульный!$AY$3) -> 54679 | R124: =CEILING('прайс-лист2'!S112*Титульный!$AY$1,Титульный!$AY$3) -> 1490 | S124: =CEILING('прайс-лист2'!T112*Титульный!$AY$1,Титульный!$AY$3) -> 3130
A125: Шкаф (560) Комб 3дв 2ящ 2040х1400 | C125: 1400х580х2040 | D125: =CEILING('прайс-лист2'!E113*Титульный!$AY$1,Титульный!$AY$3) -> 29711 | E125: =CEILING('прайс-лист2'!F113*Титульный!$AY$1,Титульный!$AY$3) -> 40421 | F125: =CEILING('прайс-лист2'!G113*Титульный!$AY$1,Титульный!$AY$3) -> 31321 | G125: =CEILING('прайс-лист2'!H113*Титульный!$AY$1,Титульный!$AY$3) -> 35331 | H125: =CEILING('прайс-лист2'!I113*Титульный!$AY$1,Титульный!$AY$3) -> 24881 | I125: =CEILING('прайс-лист2'!J113*Титульный!$AY$1,Титульный!$AY$3) -> 25151 | J125: =CEILING('прайс-лист2'!K113*Титульный!$AY$1,Титульный!$AY$3) -> 26001 | K125: =CEILING('прайс-лист2'!L113*Титульный!$AY$1,Титульный!$AY$3) -> 28211 | L125: - | M125: =CEILING('прайс-лист2'!N113*Титульный!$AY$1,Титульный!$AY$3) -> 37501 | N125: =CEILING('прайс-лист2'!O113*Титульный!$AY$1,Титульный!$AY$3) -> 40741 | O125: =CEILING('прайс-лист2'!P113*Титульный!$AY$1,Титульный!$AY$3) -> 43601 | P125: =CEILING('прайс-лист2'!Q113*Титульный!$AY$1,Титульный!$AY$3) -> 48061 | Q125: =CEILING('прайс-лист2'!R113*Титульный!$AY$1,Титульный!$AY$3) -> 49041 | R125: =CEILING('прайс-лист2'!S113*Титульный!$AY$1,Титульный!$AY$3) -> 1220 | S125: =CEILING('прайс-лист2'!T113*Титульный!$AY$1,Титульный!$AY$3) -> 3084
A126: Шкаф (560) Комб 3дв 2ящ 2040х1680 | C126: 1680х580х2040 | D126: =CEILING('прайс-лист2'!E114*Титульный!$AY$1,Титульный!$AY$3) -> 32693 | E126: =CEILING('прайс-лист2'!F114*Титульный!$AY$1,Титульный!$AY$3) -> 45563 | F126: =CEILING('прайс-лист2'!G114*Титульный!$AY$1,Титульный!$AY$3) -> 34643 | G126: =CEILING('прайс-лист2'!H114*Титульный!$AY$1,Титульный!$AY$3) -> 39453 | H126: =CEILING('прайс-лист2'!I114*Титульный!$AY$1,Титульный!$AY$3) -> 26903 | I126: =CEILING('прайс-лист2'!J114*Титульный!$AY$1,Титульный!$AY$3) -> 27233 | J126: =CEILING('прайс-лист2'!K114*Титульный!$AY$1,Титульный!$AY$3) -> 28263 | K126: =CEILING('прайс-лист2'!L114*Титульный!$AY$1,Титульный!$AY$3) -> 30913 | L126: - | M126: =CEILING('прайс-лист2'!N114*Титульный!$AY$1,Титульный!$AY$3) -> 41583 | N126: =CEILING('прайс-лист2'!O114*Титульный!$AY$1,Титульный!$AY$3) -> 44923 | O126: =CEILING('прайс-лист2'!P114*Титульный!$AY$1,Титульный!$AY$3) -> 48883 | P126: =CEILING('прайс-лист2'!Q114*Титульный!$AY$1,Титульный!$AY$3) -> 54263 | Q126: =CEILING('прайс-лист2'!R114*Титульный!$AY$1,Титульный!$AY$3) -> 54403 | R126: =CEILING('прайс-лист2'!S114*Титульный!$AY$1,Титульный!$AY$3) -> 1220 | S126: =CEILING('прайс-лист2'!T114*Титульный!$AY$1,Титульный!$AY$3) -> 3084
A127: Шкаф (560) Комб 3дв 2ящ 2240х1400 | C127: 1400х580х2240 | D127: =CEILING('прайс-лист2'!E119*Титульный!$AY$1,Титульный!$AY$3) -> 31809 | E127: =CEILING('прайс-лист2'!F119*Титульный!$AY$1,Титульный!$AY$3) -> 43589 | F127: =CEILING('прайс-лист2'!G119*Титульный!$AY$1,Титульный!$AY$3) -> 33589 | G127: =CEILING('прайс-лист2'!H119*Титульный!$AY$1,Титульный!$AY$3) -> 37999 | H127: =CEILING('прайс-лист2'!I119*Титульный!$AY$1,Титульный!$AY$3) -> 26519 | I127: =CEILING('прайс-лист2'!J119*Титульный!$AY$1,Титульный!$AY$3) -> 26819 | J127: =CEILING('прайс-лист2'!K119*Титульный!$AY$1,Титульный!$AY$3) -> 27759 | K127: =CEILING('прайс-лист2'!L119*Титульный!$AY$1,Титульный!$AY$3) -> 30179 | L127: - | M127: =CEILING('прайс-лист2'!N119*Титульный!$AY$1,Титульный!$AY$3) -> 40309 | N127: =CEILING('прайс-лист2'!O119*Титульный!$AY$1,Титульный!$AY$3) -> 43779 | O127: =CEILING('прайс-лист2'!P119*Титульный!$AY$1,Титульный!$AY$3) -> 47019 | P127: =CEILING('прайс-лист2'!Q119*Титульный!$AY$1,Титульный!$AY$3) -> 51909 | Q127: =CEILING('прайс-лист2'!R119*Титульный!$AY$1,Титульный!$AY$3) -> 52809 | R127: =CEILING('прайс-лист2'!S119*Титульный!$AY$1,Титульный!$AY$3) -> 1490 | S127: =CEILING('прайс-лист2'!T119*Титульный!$AY$1,Титульный!$AY$3) -> 3130
A128: Шкаф (560) Комб 3дв 2ящ 2240х1680 | C128: 1680х580х2240 | D128: =CEILING('прайс-лист2'!E120*Титульный!$AY$1,Титульный!$AY$3) -> 35011 | E128: =CEILING('прайс-лист2'!F120*Титульный!$AY$1,Титульный!$AY$3) -> 49191 | F128: =CEILING('прайс-лист2'!G120*Титульный!$AY$1,Титульный!$AY$3) -> 37171 | G128: =CEILING('прайс-лист2'!H120*Титульный!$AY$1,Титульный!$AY$3) -> 42461 | H128: =CEILING('прайс-лист2'!I120*Титульный!$AY$1,Титульный!$AY$3) -> 28661 | I128: =CEILING('прайс-лист2'!J120*Титульный!$AY$1,Титульный!$AY$3) -> 29041 | J128: =CEILING('прайс-лист2'!K120*Титульный!$AY$1,Титульный!$AY$3) -> 30141 | K128: =CEILING('прайс-лист2'!L120*Титульный!$AY$1,Титульный!$AY$3) -> 33061 | L128: - | M128: =CEILING('прайс-лист2'!N120*Титульный!$AY$1,Титульный!$AY$3) -> 44711 | N128: =CEILING('прайс-лист2'!O120*Титульный!$AY$1,Титульный!$AY$3) -> 48281 | O128: =CEILING('прайс-лист2'!P120*Титульный!$AY$1,Титульный!$AY$3) -> 52761 | P128: =CEILING('прайс-лист2'!Q120*Титульный!$AY$1,Титульный!$AY$3) -> 58651 | Q128: =CEILING('прайс-лист2'!R120*Титульный!$AY$1,Титульный!$AY$3) -> 58611 | R128: =CEILING('прайс-лист2'!S120*Титульный!$AY$1,Титульный!$AY$3) -> 1490 | S128: =CEILING('прайс-лист2'!T120*Титульный!$AY$1,Титульный!$AY$3) -> 3130
A129: Шкаф (560) Комб 4дв 2040х1960 | C129: 1960х580х2040 | D129: =CEILING('прайс-лист2'!E121*Титульный!$AY$1,Титульный!$AY$3) -> 37049 | E129: =CEILING('прайс-лист2'!F121*Титульный!$AY$1,Титульный!$AY$3) -> 52049 | F129: =CEILING('прайс-лист2'!G121*Титульный!$AY$1,Титульный!$AY$3) -> 39309 | G129: =CEILING('прайс-лист2'!H121*Титульный!$AY$1,Титульный!$AY$3) -> 44909 | H129: =CEILING('прайс-лист2'!I121*Титульный!$AY$1,Титульный!$AY$3) -> 30289 | I129: =CEILING('прайс-лист2'!J121*Титульный!$AY$1,Титульный!$AY$3) -> 30669 | J129: =CEILING('прайс-лист2'!K121*Титульный!$AY$1,Титульный!$AY$3) -> 31849 | K129: =CEILING('прайс-лист2'!L121*Титульный!$AY$1,Титульный!$AY$3) -> 34969 | L129: - | M129: =CEILING('прайс-лист2'!N121*Титульный!$AY$1,Титульный!$AY$3) -> 47309 | N129: =CEILING('прайс-лист2'!O121*Титульный!$AY$1,Титульный!$AY$3) -> 51089 | O129: =CEILING('прайс-лист2'!P121*Титульный!$AY$1,Титульный!$AY$3) -> 55829 | P129: =CEILING('прайс-лист2'!Q121*Титульный!$AY$1,Титульный!$AY$3) -> 62109 | Q129: =CEILING('прайс-лист2'!R121*Титульный!$AY$1,Титульный!$AY$3) -> 62429 | R129: =CEILING('прайс-лист2'!S121*Титульный!$AY$1,Титульный!$AY$3) -> 1698 | S129: =CEILING('прайс-лист2'!T121*Титульный!$AY$1,Титульный!$AY$3) -> 2856
A130: Шкаф (560) Комб 4дв 2240х1960 | C130: 1960х580х2240 | D130: =CEILING('прайс-лист2'!E122*Титульный!$AY$1,Титульный!$AY$3) -> 40042 | E130: =CEILING('прайс-лист2'!F122*Титульный!$AY$1,Титульный!$AY$3) -> 56562 | F130: =CEILING('прайс-лист2'!G122*Титульный!$AY$1,Титульный!$AY$3) -> 42542 | G130: =CEILING('прайс-лист2'!H122*Титульный!$AY$1,Титульный!$AY$3) -> 48702 | H130: =CEILING('прайс-лист2'!I122*Титульный!$AY$1,Титульный!$AY$3) -> 32622 | I130: =CEILING('прайс-лист2'!J122*Титульный!$AY$1,Титульный!$AY$3) -> 33062 | J130: =CEILING('прайс-лист2'!K122*Титульный!$AY$1,Титульный!$AY$3) -> 34342 | K130: =CEILING('прайс-лист2'!L122*Титульный!$AY$1,Титульный!$AY$3) -> 37762 | L130: - | M130: =CEILING('прайс-лист2'!N122*Титульный!$AY$1,Титульный!$AY$3) -> 51282 | N130: =CEILING('прайс-лист2'!O122*Титульный!$AY$1,Титульный!$AY$3) -> 55382 | O130: =CEILING('прайс-лист2'!P122*Титульный!$AY$1,Титульный!$AY$3) -> 60662 | P130: =CEILING('прайс-лист2'!Q122*Титульный!$AY$1,Титульный!$AY$3) -> 67542 | Q130: =CEILING('прайс-лист2'!R122*Титульный!$AY$1,Титульный!$AY$3) -> 67722 | R130: =CEILING('прайс-лист2'!S122*Титульный!$AY$1,Титульный!$AY$3) -> 1926 | S130: =CEILING('прайс-лист2'!T122*Титульный!$AY$1,Титульный!$AY$3) -> 3090
A131: Шкаф (560) Комб 4дв 2ящ 2040х1960 | C131: 1960х580х2040 | D131: =CEILING('прайс-лист2'!E123*Титульный!$AY$1,Титульный!$AY$3) -> 37887 | E131: =CEILING('прайс-лист2'!F123*Титульный!$AY$1,Титульный!$AY$3) -> 52887 | F131: =CEILING('прайс-лист2'!G123*Титульный!$AY$1,Титульный!$AY$3) -> 40167 | G131: =CEILING('прайс-лист2'!H123*Титульный!$AY$1,Титульный!$AY$3) -> 45747 | H131: =CEILING('прайс-лист2'!I123*Титульный!$AY$1,Титульный!$AY$3) -> 31147 | I131: =CEILING('прайс-лист2'!J123*Титульный!$AY$1,Титульный!$AY$3) -> 31527 | J131: =CEILING('прайс-лист2'!K123*Титульный!$AY$1,Титульный!$AY$3) -> 32707 | K131: =CEILING('прайс-лист2'!L123*Титульный!$AY$1,Титульный!$AY$3) -> 35827 | L131: - | M131: =CEILING('прайс-лист2'!N123*Титульный!$AY$1,Титульный!$AY$3) -> 48587 | N131: =CEILING('прайс-лист2'!O123*Титульный!$AY$1,Титульный!$AY$3) -> 52867 | O131: =CEILING('прайс-лист2'!P123*Титульный!$AY$1,Титульный!$AY$3) -> 57107 | P131: =CEILING('прайс-лист2'!Q123*Титульный!$AY$1,Титульный!$AY$3) -> 63367 | Q131: =CEILING('прайс-лист2'!R123*Титульный!$AY$1,Титульный!$AY$3) -> 64127 | R131: =CEILING('прайс-лист2'!S123*Титульный!$AY$1,Титульный!$AY$3) -> 1698 | S131: =CEILING('прайс-лист2'!T123*Титульный!$AY$1,Титульный!$AY$3) -> 2856
A132: Шкаф (560) Комб 4дв 2ящ 2240х1960 | C132: 1960х580х2240 | D132: =CEILING('прайс-лист2'!E124*Титульный!$AY$1,Титульный!$AY$3) -> 40620 | E132: =CEILING('прайс-лист2'!F124*Титульный!$AY$1,Титульный!$AY$3) -> 57160 | F132: =CEILING('прайс-лист2'!G124*Титульный!$AY$1,Титульный!$AY$3) -> 43140 | G132: =CEILING('прайс-лист2'!H124*Титульный!$AY$1,Титульный!$AY$3) -> 49280 | H132: =CEILING('прайс-лист2'!I124*Титульный!$AY$1,Титульный!$AY$3) -> 33200 | I132: =CEILING('прайс-лист2'!J124*Титульный!$AY$1,Титульный!$AY$3) -> 33660 | J132: =CEILING('прайс-лист2'!K124*Титульный!$AY$1,Титульный!$AY$3) -> 34920 | K132: =CEILING('прайс-лист2'!L124*Титульный!$AY$1,Титульный!$AY$3) -> 38360 | L132: - | M132: =CEILING('прайс-лист2'!N124*Титульный!$AY$1,Титульный!$AY$3) -> 52300 | N132: =CEILING('прайс-лист2'!O124*Титульный!$AY$1,Титульный!$AY$3) -> 56880 | O132: =CEILING('прайс-лист2'!P124*Титульный!$AY$1,Титульный!$AY$3) -> 61680 | P132: =CEILING('прайс-лист2'!Q124*Титульный!$AY$1,Титульный!$AY$3) -> 68560 | Q132: =CEILING('прайс-лист2'!R124*Титульный!$AY$1,Титульный!$AY$3) -> 69160 | R132: =CEILING('прайс-лист2'!S124*Титульный!$AY$1,Титульный!$AY$3) -> 1926 | S132: =CEILING('прайс-лист2'!T124*Титульный!$AY$1,Титульный!$AY$3) -> 3090
A133: Внимание!!! Для наборов мебели "Марго" использовать только накладные зеркала
A134: Шкафы глубиной 560мм
A135: Наименование | B135: Эскиз | C135: Габариты, ШхГхВ мм. | D135: МДФ фасады | H135: Марго16 | M135: UV-лак | O135: ТСС | Q135: ТСС сборный | R135: Стоимость зеркал
D136: 1 ЦК | E136: 1 ЦК + патина | F136: 2 ЦК | G136: 3 ЦК | H136: 1 ц.к. | I136: 2 ц.к. | J136: 3 ц.к. | K136: 4 ц.к. | L136: 5 ц.к. | M136: UV-лак кромка ABC/AL кромка | N136: кромка 3D | O136: 1 ЦК | P136: 2 ЦК | R136: Зеркало в рамке** | S136: Зеркало накладное*
A137: Шкаф (560) Торцевой 2040х420 лев./пр | C137: 420х580х2040 | D137: =CEILING('прайс-лист2'!E125*Титульный!$AY$1,Титульный!$AY$3) -> 14002 | E137: =CEILING('прайс-лист2'!F125*Титульный!$AY$1,Титульный!$AY$3) -> 20172 | F137: =CEILING('прайс-лист2'!G125*Титульный!$AY$1,Титульный!$AY$3) -> 14932 | G137: =CEILING('прайс-лист2'!H125*Титульный!$AY$1,Титульный!$AY$3) -> 17232 | H137: =CEILING('прайс-лист2'!I125*Титульный!$AY$1,Титульный!$AY$3) -> 11222 | I137: =CEILING('прайс-лист2'!J125*Титульный!$AY$1,Титульный!$AY$3) -> 11392 | J137: =CEILING('прайс-лист2'!K125*Титульный!$AY$1,Титульный!$AY$3) -> 11862 | K137: =CEILING('прайс-лист2'!L125*Титульный!$AY$1,Титульный!$AY$3) -> 13152 | L137: - | M137: =CEILING('прайс-лист2'!N125*Титульный!$AY$1,Титульный!$AY$3) -> 18472 | N137: =CEILING('прайс-лист2'!O125*Титульный!$AY$1,Титульный!$AY$3) -> 20292 | O137: =CEILING('прайс-лист2'!P125*Титульный!$AY$1,Титульный!$AY$3) -> 21962 | P137: =CEILING('прайс-лист2'!Q125*Титульный!$AY$1,Титульный!$AY$3) -> 24542 | Q137: =CEILING('прайс-лист2'!R125*Титульный!$AY$1,Титульный!$AY$3) -> 25262 | R137: - | S137: -
A138: Шкаф (560) Торцевой 2240х420 лев./пр | C138: 420х580х2240 | D138: =CEILING('прайс-лист2'!E126*Титульный!$AY$1,Титульный!$AY$3) -> 15124 | E138: =CEILING('прайс-лист2'!F126*Титульный!$AY$1,Титульный!$AY$3) -> 21914 | F138: =CEILING('прайс-лист2'!G126*Титульный!$AY$1,Титульный!$AY$3) -> 16154 | G138: =CEILING('прайс-лист2'!H126*Титульный!$AY$1,Титульный!$AY$3) -> 18684 | H138: =CEILING('прайс-лист2'!I126*Титульный!$AY$1,Титульный!$AY$3) -> 12084 | I138: =CEILING('прайс-лист2'!J126*Титульный!$AY$1,Титульный!$AY$3) -> 12254 | J138: =CEILING('прайс-лист2'!K126*Титульный!$AY$1,Титульный!$AY$3) -> 12784 | K138: =CEILING('прайс-лист2'!L126*Титульный!$AY$1,Титульный!$AY$3) -> 14194 | L138: - | M138: =CEILING('прайс-лист2'!N126*Титульный!$AY$1,Титульный!$AY$3) -> 20014 | N138: =CEILING('прайс-лист2'!O126*Титульный!$AY$1,Титульный!$AY$3) -> 21994 | O138: =CEILING('прайс-лист2'!P126*Титульный!$AY$1,Титульный!$AY$3) -> 23864 | P138: =CEILING('прайс-лист2'!Q126*Титульный!$AY$1,Титульный!$AY$3) -> 26694 | Q138: =CEILING('прайс-лист2'!R126*Титульный!$AY$1,Титульный!$AY$3) -> 27394 | R138: - | S138: -
A139: Шкафы антресольные и стеллажи (340) (420)
A140: Шкаф (340) антр 1 дв. 400х1200 | C140: 1200х360х400 | D140: =CEILING('прайс-лист2'!E128*Титульный!$AY$1,Титульный!$AY$3) -> 5402 | E140: =CEILING('прайс-лист2'!F128*Титульный!$AY$1,Титульный!$AY$3) -> 7232 | F140: =CEILING('прайс-лист2'!G128*Титульный!$AY$1,Титульный!$AY$3) -> 5682 | G140: =CEILING('прайс-лист2'!H128*Титульный!$AY$1,Титульный!$AY$3) -> 6362 | H140: =CEILING('прайс-лист2'!I128*Титульный!$AY$1,Титульный!$AY$3) -> 4572 | I140: =CEILING('прайс-лист2'!J128*Титульный!$AY$1,Титульный!$AY$3) -> 4622 | J140: =CEILING('прайс-лист2'!K128*Титульный!$AY$1,Титульный!$AY$3) -> 4762 | K140: =CEILING('прайс-лист2'!L128*Титульный!$AY$1,Титульный!$AY$3) -> 5152 | L140: - | M140: =CEILING('прайс-лист2'!N128*Титульный!$AY$1,Титульный!$AY$3) -> 6792 | N140: =CEILING('прайс-лист2'!O128*Титульный!$AY$1,Титульный!$AY$3) -> 7392 | O140: =CEILING('прайс-лист2'!P128*Титульный!$AY$1,Титульный!$AY$3) -> 7822 | P140: =CEILING('прайс-лист2'!Q128*Титульный!$AY$1,Титульный!$AY$3) -> 8592 | Q140: =CEILING('прайс-лист2'!R128*Титульный!$AY$1,Титульный!$AY$3) -> 8972 | R140: - | S140: -
A141: Шкаф (340) антр 1 дв. 400х1260 | C141: 1260х360х400 | D141: =CEILING('прайс-лист2'!E129*Титульный!$AY$1,Титульный!$AY$3) -> 5501 | E141: =CEILING('прайс-лист2'!F129*Титульный!$AY$1,Титульный!$AY$3) -> 7431 | F141: =CEILING('прайс-лист2'!G129*Титульный!$AY$1,Титульный!$AY$3) -> 5791 | G141: =CEILING('прайс-лист2'!H129*Титульный!$AY$1,Титульный!$AY$3) -> 6511 | H141: =CEILING('прайс-лист2'!I129*Титульный!$AY$1,Титульный!$AY$3) -> 4631 | I141: =CEILING('прайс-лист2'!J129*Титульный!$AY$1,Титульный!$AY$3) -> 4681 | J141: =CEILING('прайс-лист2'!K129*Титульный!$AY$1,Титульный!$AY$3) -> 4831 | K141: =CEILING('прайс-лист2'!L129*Титульный!$AY$1,Титульный!$AY$3) -> 5231 | L141: - | M141: =CEILING('прайс-лист2'!N129*Титульный!$AY$1,Титульный!$AY$3) -> 6951 | N141: =CEILING('прайс-лист2'!O129*Титульный!$AY$1,Титульный!$AY$3) -> 7581 | O141: =CEILING('прайс-лист2'!P129*Титульный!$AY$1,Титульный!$AY$3) -> 8041 | P141: =CEILING('прайс-лист2'!Q129*Титульный!$AY$1,Титульный!$AY$3) -> 8841 | Q141: =CEILING('прайс-лист2'!R129*Титульный!$AY$1,Титульный!$AY$3) -> 9221 | R141: - | S141: -
A142: Шкаф (340) антр 1 дв. 400х840 | C142: 840х360х400 | D142: =CEILING('прайс-лист2'!E130*Титульный!$AY$1,Титульный!$AY$3) -> 4410 | E142: =CEILING('прайс-лист2'!F130*Титульный!$AY$1,Титульный!$AY$3) -> 5700 | F142: =CEILING('прайс-лист2'!G130*Титульный!$AY$1,Титульный!$AY$3) -> 4610 | G142: =CEILING('прайс-лист2'!H130*Титульный!$AY$1,Титульный!$AY$3) -> 5090 | H142: =CEILING('прайс-лист2'!I130*Титульный!$AY$1,Титульный!$AY$3) -> 3840 | I142: =CEILING('прайс-лист2'!J130*Титульный!$AY$1,Титульный!$AY$3) -> 3870 | J142: =CEILING('прайс-лист2'!K130*Титульный!$AY$1,Титульный!$AY$3) -> 3970 | K142: =CEILING('прайс-лист2'!L130*Титульный!$AY$1,Титульный!$AY$3) -> 4240 | L142: - | M142: =CEILING('прайс-лист2'!N130*Титульный!$AY$1,Титульный!$AY$3) -> 5420 | N142: =CEILING('прайс-лист2'!O130*Титульный!$AY$1,Титульный!$AY$3) -> 5890 | O142: =CEILING('прайс-лист2'!P130*Титульный!$AY$1,Титульный!$AY$3) -> 6150 | P142: =CEILING('прайс-лист2'!Q130*Титульный!$AY$1,Титульный!$AY$3) -> 6690 | Q142: =CEILING('прайс-лист2'!R130*Титульный!$AY$1,Титульный!$AY$3) -> 7080 | R142: - | S142: -
A143: Шкаф (340) антр 1 дв. стекло 400х1260 | C143: 1260х360х400 | D143: =CEILING('прайс-лист2'!E131*Титульный!$AY$1,Титульный!$AY$3) -> 6449 | E143: =CEILING('прайс-лист2'!F131*Титульный!$AY$1,Титульный!$AY$3) -> 8379 | F143: =CEILING('прайс-лист2'!G131*Титульный!$AY$1,Титульный!$AY$3) -> 6739 | G143: =CEILING('прайс-лист2'!H131*Титульный!$AY$1,Титульный!$AY$3) -> 7459 | H143: =CEILING('прайс-лист2'!I131*Титульный!$AY$1,Титульный!$AY$3) -> 4774 | I143: =CEILING('прайс-лист2'!J131*Титульный!$AY$1,Титульный!$AY$3) -> 4834 | J143: =CEILING('прайс-лист2'!K131*Титульный!$AY$1,Титульный!$AY$3) -> 4984 | K143: =CEILING('прайс-лист2'!L131*Титульный!$AY$1,Титульный!$AY$3) -> 5404 | L143: - | M143: - | N143: - | O143: - | P143: - | Q143: - | R143: - | S143: -
A144: Шкаф (340) антр 1 дв. стекло 400х840 | C144: 840х360х400 | D144: =CEILING('прайс-лист2'!E132*Титульный!$AY$1,Титульный!$AY$3) -> 5023 | E144: =CEILING('прайс-лист2'!F132*Титульный!$AY$1,Титульный!$AY$3) -> 6313 | F144: =CEILING('прайс-лист2'!G132*Титульный!$AY$1,Титульный!$AY$3) -> 5223 | G144: =CEILING('прайс-лист2'!H132*Титульный!$AY$1,Титульный!$AY$3) -> 5703 | H144: =CEILING('прайс-лист2'!I132*Титульный!$AY$1,Титульный!$AY$3) -> 3946 | I144: =CEILING('прайс-лист2'!J132*Титульный!$AY$1,Титульный!$AY$3) -> 3976 | J144: =CEILING('прайс-лист2'!K132*Титульный!$AY$1,Титульный!$AY$3) -> 4076 | K144: =CEILING('прайс-лист2'!L132*Титульный!$AY$1,Титульный!$AY$3) -> 4346 | L144: - | M144: - | N144: - | O144: - | P144: - | Q144: - | R144: - | S144: -
A145: Шкаф (340) антр 2 дв. ниша 400х1400 | C145: 1400х360х400 | D145: =CEILING('прайс-лист2'!E133*Титульный!$AY$1,Титульный!$AY$3) -> 6521 | E145: =CEILING('прайс-лист2'!F133*Титульный!$AY$1,Титульный!$AY$3) -> 8221 | F145: =CEILING('прайс-лист2'!G133*Титульный!$AY$1,Титульный!$AY$3) -> 6781 | G145: =CEILING('прайс-лист2'!H133*Титульный!$AY$1,Титульный!$AY$3) -> 7421 | H145: =CEILING('прайс-лист2'!I133*Титульный!$AY$1,Титульный!$AY$3) -> 5741 | I145: =CEILING('прайс-лист2'!J133*Титульный!$AY$1,Титульный!$AY$3) -> 5801 | J145: =CEILING('прайс-лист2'!K133*Титульный!$AY$1,Титульный!$AY$3) -> 5921 | K145: =CEILING('прайс-лист2'!L133*Титульный!$AY$1,Титульный!$AY$3) -> 6281 | L145: - | M145: =CEILING('прайс-лист2'!N133*Титульный!$AY$1,Титульный!$AY$3) -> 7961 | N145: =CEILING('прайс-лист2'!O133*Титульный!$AY$1,Титульный!$AY$3) -> 8681 | O145: =CEILING('прайс-лист2'!P133*Титульный!$AY$1,Титульный!$AY$3) -> 8921 | P145: =CEILING('прайс-лист2'!Q133*Титульный!$AY$1,Титульный!$AY$3) -> 9641 | Q145: =CEILING('прайс-лист2'!R133*Титульный!$AY$1,Титульный!$AY$3) -> 10421 | R145: - | S145: -
A146: Шкаф (340) антр 2 дв. ниша 400х1640 | C146: 1640х360х400 | D146: =CEILING('прайс-лист2'!E134*Титульный!$AY$1,Титульный!$AY$3) -> 6973 | E146: =CEILING('прайс-лист2'!F134*Титульный!$AY$1,Титульный!$AY$3) -> 8673 | F146: =CEILING('прайс-лист2'!G134*Титульный!$AY$1,Титульный!$AY$3) -> 7233 | G146: =CEILING('прайс-лист2'!H134*Титульный!$AY$1,Титульный!$AY$3) -> 7873 | H146: =CEILING('прайс-лист2'!I134*Титульный!$AY$1,Титульный!$AY$3) -> 6193 | I146: =CEILING('прайс-лист2'!J134*Титульный!$AY$1,Титульный!$AY$3) -> 6253 | J146: =CEILING('прайс-лист2'!K134*Титульный!$AY$1,Титульный!$AY$3) -> 6373 | K146: =CEILING('прайс-лист2'!L134*Титульный!$AY$1,Титульный!$AY$3) -> 6733 | L146: - | M146: =CEILING('прайс-лист2'!N134*Титульный!$AY$1,Титульный!$AY$3) -> 8413 | N146: =CEILING('прайс-лист2'!O134*Титульный!$AY$1,Титульный!$AY$3) -> 9133 | O146: =CEILING('прайс-лист2'!P134*Титульный!$AY$1,Титульный!$AY$3) -> 9373 | P146: =CEILING('прайс-лист2'!Q134*Титульный!$AY$1,Титульный!$AY$3) -> 10093 | Q146: =CEILING('прайс-лист2'!R134*Титульный!$AY$1,Титульный!$AY$3) -> 10873 | R146: - | S146: -
A147: Шкаф (340) антр 2 дв. ниша 400х2040 | C147: 2040х360х400 | D147: =CEILING('прайс-лист2'!E135*Титульный!$AY$1,Титульный!$AY$3) -> 8225 | E147: =CEILING('прайс-лист2'!F135*Титульный!$AY$1,Титульный!$AY$3) -> 10305 | F147: =CEILING('прайс-лист2'!G135*Титульный!$AY$1,Титульный!$AY$3) -> 8525 | G147: =CEILING('прайс-лист2'!H135*Титульный!$AY$1,Титульный!$AY$3) -> 9305 | H147: =CEILING('прайс-лист2'!I135*Титульный!$AY$1,Титульный!$AY$3) -> 7285 | I147: =CEILING('прайс-лист2'!J135*Титульный!$AY$1,Титульный!$AY$3) -> 7345 | J147: =CEILING('прайс-лист2'!K135*Титульный!$AY$1,Титульный!$AY$3) -> 7505 | K147: =CEILING('прайс-лист2'!L135*Титульный!$AY$1,Титульный!$AY$3) -> 7925 | L147: - | M147: =CEILING('прайс-лист2'!N135*Титульный!$AY$1,Титульный!$AY$3) -> 9905 | N147: =CEILING('прайс-лист2'!O135*Титульный!$AY$1,Титульный!$AY$3) -> 10725 | O147: =CEILING('прайс-лист2'!P135*Титульный!$AY$1,Титульный!$AY$3) -> 11085 | P147: =CEILING('прайс-лист2'!Q135*Титульный!$AY$1,Титульный!$AY$3) -> 11945 | Q147: =CEILING('прайс-лист2'!R135*Титульный!$AY$1,Титульный!$AY$3) -> 12745 | R147: - | S147: -
A148: Стеллаж (340) навесной 300х300 | C148: 300х340х300 | D148: =CEILING('прайс-лист2'!E136*Титульный!$AY$1,Титульный!$AY$3) -> 890 | E148: =CEILING('прайс-лист2'!F136*Титульный!$AY$1,Титульный!$AY$3) -> 890 | F148: =CEILING('прайс-лист2'!G136*Титульный!$AY$1,Титульный!$AY$3) -> 890 | G148: =CEILING('прайс-лист2'!H136*Титульный!$AY$1,Титульный!$AY$3) -> 890 | H148: =CEILING('прайс-лист2'!I136*Титульный!$AY$1,Титульный!$AY$3) -> 890 | I148: =CEILING('прайс-лист2'!J136*Титульный!$AY$1,Титульный!$AY$3) -> 890 | J148: =CEILING('прайс-лист2'!K136*Титульный!$AY$1,Титульный!$AY$3) -> 890 | K148: =CEILING('прайс-лист2'!L136*Титульный!$AY$1,Титульный!$AY$3) -> 890 | L148: - | M148: =CEILING('прайс-лист2'!N136*Титульный!$AY$1,Титульный!$AY$3) -> 890 | N148: =CEILING('прайс-лист2'!O136*Титульный!$AY$1,Титульный!$AY$3) -> 890 | O148: =CEILING('прайс-лист2'!P136*Титульный!$AY$1,Титульный!$AY$3) -> 890 | P148: =CEILING('прайс-лист2'!Q136*Титульный!$AY$1,Титульный!$AY$3) -> 890 | Q148: =CEILING('прайс-лист2'!R136*Титульный!$AY$1,Титульный!$AY$3) -> 890 | R148: - | S148: -
A149: Стеллаж (340) навесной 300х1260 | C149: 1260х340х300 | D149: =CEILING('прайс-лист2'!E137*Титульный!$AY$1,Титульный!$AY$3) -> 2523 | E149: =CEILING('прайс-лист2'!F137*Титульный!$AY$1,Титульный!$AY$3) -> 2523 | F149: =CEILING('прайс-лист2'!G137*Титульный!$AY$1,Титульный!$AY$3) -> 2523 | G149: =CEILING('прайс-лист2'!H137*Титульный!$AY$1,Титульный!$AY$3) -> 2523 | H149: =CEILING('прайс-лист2'!I137*Титульный!$AY$1,Титульный!$AY$3) -> 2523 | I149: =CEILING('прайс-лист2'!J137*Титульный!$AY$1,Титульный!$AY$3) -> 2523 | J149: =CEILING('прайс-лист2'!K137*Титульный!$AY$1,Титульный!$AY$3) -> 2523 | K149: =CEILING('прайс-лист2'!L137*Титульный!$AY$1,Титульный!$AY$3) -> 2523 | L149: - | M149: =CEILING('прайс-лист2'!N137*Титульный!$AY$1,Титульный!$AY$3) -> 2523 | N149: =CEILING('прайс-лист2'!O137*Титульный!$AY$1,Титульный!$AY$3) -> 2523 | O149: =CEILING('прайс-лист2'!P137*Титульный!$AY$1,Титульный!$AY$3) -> 2523 | P149: =CEILING('прайс-лист2'!Q137*Титульный!$AY$1,Титульный!$AY$3) -> 2523 | Q149: =CEILING('прайс-лист2'!R137*Титульный!$AY$1,Титульный!$AY$3) -> 2523 | R149: - | S149: -
A150: Стеллаж (340) 2040х300 | C150: 300х340х2040 | D150: =CEILING('прайс-лист2'!E138*Титульный!$AY$1,Титульный!$AY$3) -> 3860 | E150: =CEILING('прайс-лист2'!F138*Титульный!$AY$1,Титульный!$AY$3) -> 3860 | F150: =CEILING('прайс-лист2'!G138*Титульный!$AY$1,Титульный!$AY$3) -> 3860 | G150: =CEILING('прайс-лист2'!H138*Титульный!$AY$1,Титульный!$AY$3) -> 3860 | H150: =CEILING('прайс-лист2'!I138*Титульный!$AY$1,Титульный!$AY$3) -> 3860 | I150: - | J150: - | K150: - | L150: - | M150: =CEILING('прайс-лист2'!N138*Титульный!$AY$1,Титульный!$AY$3) -> 3860 | N150: =CEILING('прайс-лист2'!O138*Титульный!$AY$1,Титульный!$AY$3) -> 3860 | O150: =CEILING('прайс-лист2'!P138*Титульный!$AY$1,Титульный!$AY$3) -> 3860 | P150: =CEILING('прайс-лист2'!Q138*Титульный!$AY$1,Титульный!$AY$3) -> 3860 | Q150: =CEILING('прайс-лист2'!R138*Титульный!$AY$1,Титульный!$AY$3) -> 3860 | R150: - | S150: -
A151: Стеллаж (340) 2240х300 | C151: 300х340х2240 | D151: =CEILING('прайс-лист2'!E139*Титульный!$AY$1,Титульный!$AY$3) -> 4202 | E151: =CEILING('прайс-лист2'!F139*Титульный!$AY$1,Титульный!$AY$3) -> 4202 | F151: =CEILING('прайс-лист2'!G139*Титульный!$AY$1,Титульный!$AY$3) -> 4202 | G151: =CEILING('прайс-лист2'!H139*Титульный!$AY$1,Титульный!$AY$3) -> 4202 | H151: =CEILING('прайс-лист2'!I139*Титульный!$AY$1,Титульный!$AY$3) -> 4202 | I151: - | J151: - | K151: - | L151: - | M151: =CEILING('прайс-лист2'!N139*Титульный!$AY$1,Титульный!$AY$3) -> 4202 | N151: =CEILING('прайс-лист2'!O139*Титульный!$AY$1,Титульный!$AY$3) -> 4202 | O151: =CEILING('прайс-лист2'!P139*Титульный!$AY$1,Титульный!$AY$3) -> 4202 | P151: =CEILING('прайс-лист2'!Q139*Титульный!$AY$1,Титульный!$AY$3) -> 4202 | Q151: =CEILING('прайс-лист2'!R139*Титульный!$AY$1,Титульный!$AY$3) -> 4202 | R151: - | S151: -
A152: Стеллаж (420) 2040х420 | C152: 420х420х2040 | D152: =CEILING('прайс-лист2'!E140*Титульный!$AY$1,Титульный!$AY$3) -> 4905 | E152: =CEILING('прайс-лист2'!F140*Титульный!$AY$1,Титульный!$AY$3) -> 4905 | F152: =CEILING('прайс-лист2'!G140*Титульный!$AY$1,Титульный!$AY$3) -> 4905 | G152: =CEILING('прайс-лист2'!H140*Титульный!$AY$1,Титульный!$AY$3) -> 4905 | H152: =CEILING('прайс-лист2'!I140*Титульный!$AY$1,Титульный!$AY$3) -> 4905 | I152: - | J152: - | K152: - | L152: - | M152: =CEILING('прайс-лист2'!N140*Титульный!$AY$1,Титульный!$AY$3) -> 4905 | N152: =CEILING('прайс-лист2'!O140*Титульный!$AY$1,Титульный!$AY$3) -> 4905 | O152: =CEILING('прайс-лист2'!P140*Титульный!$AY$1,Титульный!$AY$3) -> 4905 | P152: =CEILING('прайс-лист2'!Q140*Титульный!$AY$1,Титульный!$AY$3) -> 4905 | Q152: =CEILING('прайс-лист2'!R140*Титульный!$AY$1,Титульный!$AY$3) -> 4905 | R152: - | S152: -
A153: Стеллаж (420) 2040х560 | C153: 560х420х2040 | D153: =CEILING('прайс-лист2'!E141*Титульный!$AY$1,Титульный!$AY$3) -> 5486 | E153: =CEILING('прайс-лист2'!F141*Титульный!$AY$1,Титульный!$AY$3) -> 5486 | F153: =CEILING('прайс-лист2'!G141*Титульный!$AY$1,Титульный!$AY$3) -> 5486 | G153: =CEILING('прайс-лист2'!H141*Титульный!$AY$1,Титульный!$AY$3) -> 5486 | H153: =CEILING('прайс-лист2'!I141*Титульный!$AY$1,Титульный!$AY$3) -> 5486 | I153: - | J153: - | K153: - | L153: - | M153: =CEILING('прайс-лист2'!N141*Титульный!$AY$1,Титульный!$AY$3) -> 5486 | N153: =CEILING('прайс-лист2'!O141*Титульный!$AY$1,Титульный!$AY$3) -> 5486 | O153: =CEILING('прайс-лист2'!P141*Титульный!$AY$1,Титульный!$AY$3) -> 5486 | P153: =CEILING('прайс-лист2'!Q141*Титульный!$AY$1,Титульный!$AY$3) -> 5486 | Q153: =CEILING('прайс-лист2'!R141*Титульный!$AY$1,Титульный!$AY$3) -> 5486 | R153: - | S153: -
A154: Стеллаж (420) 2040х840 | C154: 840х420х2040 | D154: =CEILING('прайс-лист2'!E142*Титульный!$AY$1,Титульный!$AY$3) -> 6608 | E154: =CEILING('прайс-лист2'!F142*Титульный!$AY$1,Титульный!$AY$3) -> 6608 | F154: =CEILING('прайс-лист2'!G142*Титульный!$AY$1,Титульный!$AY$3) -> 6608 | G154: =CEILING('прайс-лист2'!H142*Титульный!$AY$1,Титульный!$AY$3) -> 6608 | H154: =CEILING('прайс-лист2'!I142*Титульный!$AY$1,Титульный!$AY$3) -> 6608 | I154: - | J154: - | K154: - | L154: - | M154: =CEILING('прайс-лист2'!N142*Титульный!$AY$1,Титульный!$AY$3) -> 6608 | N154: =CEILING('прайс-лист2'!O142*Титульный!$AY$1,Титульный!$AY$3) -> 6608 | O154: =CEILING('прайс-лист2'!P142*Титульный!$AY$1,Титульный!$AY$3) -> 6608 | P154: =CEILING('прайс-лист2'!Q142*Титульный!$AY$1,Титульный!$AY$3) -> 6608 | Q154: =CEILING('прайс-лист2'!R142*Титульный!$AY$1,Титульный!$AY$3) -> 6608 | R154: - | S154: -
A155: Стеллаж (420) 2240х420 | C155: 420х420х2240 | D155: =CEILING('прайс-лист2'!E143*Титульный!$AY$1,Титульный!$AY$3) -> 5469 | E155: =CEILING('прайс-лист2'!F143*Титульный!$AY$1,Титульный!$AY$3) -> 5469 | F155: =CEILING('прайс-лист2'!G143*Титульный!$AY$1,Титульный!$AY$3) -> 5469 | G155: =CEILING('прайс-лист2'!H143*Титульный!$AY$1,Титульный!$AY$3) -> 5469 | H155: =CEILING('прайс-лист2'!I143*Титульный!$AY$1,Титульный!$AY$3) -> 5469 | I155: - | J155: - | K155: - | L155: - | M155: =CEILING('прайс-лист2'!N143*Титульный!$AY$1,Титульный!$AY$3) -> 5469 | N155: =CEILING('прайс-лист2'!O143*Титульный!$AY$1,Титульный!$AY$3) -> 5469 | O155: =CEILING('прайс-лист2'!P143*Титульный!$AY$1,Титульный!$AY$3) -> 5469 | P155: =CEILING('прайс-лист2'!Q143*Титульный!$AY$1,Титульный!$AY$3) -> 5469 | Q155: =CEILING('прайс-лист2'!R143*Титульный!$AY$1,Титульный!$AY$3) -> 5469 | R155: - | S155: -
A156: Стеллаж (420) 2240х560 | C156: 560х420х2240 | D156: =CEILING('прайс-лист2'!E144*Титульный!$AY$1,Титульный!$AY$3) -> 6141 | E156: =CEILING('прайс-лист2'!F144*Титульный!$AY$1,Титульный!$AY$3) -> 6141 | F156: =CEILING('прайс-лист2'!G144*Титульный!$AY$1,Титульный!$AY$3) -> 6141 | G156: =CEILING('прайс-лист2'!H144*Титульный!$AY$1,Титульный!$AY$3) -> 6141 | H156: =CEILING('прайс-лист2'!I144*Титульный!$AY$1,Титульный!$AY$3) -> 6141 | I156: - | J156: - | K156: - | L156: - | M156: =CEILING('прайс-лист2'!N144*Титульный!$AY$1,Титульный!$AY$3) -> 6141 | N156: =CEILING('прайс-лист2'!O144*Титульный!$AY$1,Титульный!$AY$3) -> 6141 | O156: =CEILING('прайс-лист2'!P144*Титульный!$AY$1,Титульный!$AY$3) -> 6141 | P156: =CEILING('прайс-лист2'!Q144*Титульный!$AY$1,Титульный!$AY$3) -> 6141 | Q156: =CEILING('прайс-лист2'!R144*Титульный!$AY$1,Титульный!$AY$3) -> 6141 | R156: - | S156: -
A157: Стеллаж (420) 2240х840 | C157: 840х420х2240 | D157: =CEILING('прайс-лист2'!E145*Титульный!$AY$1,Титульный!$AY$3) -> 7441 | E157: =CEILING('прайс-лист2'!F145*Титульный!$AY$1,Титульный!$AY$3) -> 7441 | F157: =CEILING('прайс-лист2'!G145*Титульный!$AY$1,Титульный!$AY$3) -> 7441 | G157: =CEILING('прайс-лист2'!H145*Титульный!$AY$1,Титульный!$AY$3) -> 7441 | H157: =CEILING('прайс-лист2'!I145*Титульный!$AY$1,Титульный!$AY$3) -> 7441 | I157: - | J157: - | K157: - | L157: - | M157: =CEILING('прайс-лист2'!N145*Титульный!$AY$1,Титульный!$AY$3) -> 7441 | N157: =CEILING('прайс-лист2'!O145*Титульный!$AY$1,Титульный!$AY$3) -> 7441 | O157: =CEILING('прайс-лист2'!P145*Титульный!$AY$1,Титульный!$AY$3) -> 7441 | P157: =CEILING('прайс-лист2'!Q145*Титульный!$AY$1,Титульный!$AY$3) -> 7441 | Q157: =CEILING('прайс-лист2'!R145*Титульный!$AY$1,Титульный!$AY$3) -> 7441 | R157: - | S157: -
A158: Стеллаж (420) 2 дв 2240х840 | C158: 840х420х2240 | D158: =CEILING('прайс-лист2'!E146*Титульный!$AY$1,Титульный!$AY$3) -> 10581 | E158: =CEILING('прайс-лист2'!F146*Титульный!$AY$1,Титульный!$AY$3) -> 11861 | F158: =CEILING('прайс-лист2'!G146*Титульный!$AY$1,Титульный!$AY$3) -> 10781 | G158: =CEILING('прайс-лист2'!H146*Титульный!$AY$1,Титульный!$AY$3) -> 11261 | H158: =CEILING('прайс-лист2'!I146*Титульный!$AY$1,Титульный!$AY$3) -> 10001 | I158: - | J158: - | K158: - | L158: - | M158: =CEILING('прайс-лист2'!N146*Титульный!$AY$1,Титульный!$AY$3) -> 11721 | N158: =CEILING('прайс-лист2'!O146*Титульный!$AY$1,Титульный!$AY$3) -> 12341 | O158: =CEILING('прайс-лист2'!P146*Титульный!$AY$1,Титульный!$AY$3) -> 12461 | P158: =CEILING('прайс-лист2'!Q146*Титульный!$AY$1,Титульный!$AY$3) -> 12981 | Q158: =CEILING('прайс-лист2'!R146*Титульный!$AY$1,Титульный!$AY$3) -> 13781 | R158: - | S158: -
A159: Стеллаж (420) 2 ящика 2240х560 | C159: 560х420х2240 | D159: =CEILING('прайс-лист2'!E147*Титульный!$AY$1,Титульный!$AY$3) -> 9467 | E159: =CEILING('прайс-лист2'!F147*Титульный!$AY$1,Титульный!$AY$3) -> 10327 | F159: =CEILING('прайс-лист2'!G147*Титульный!$AY$1,Титульный!$AY$3) -> 9607 | G159: =CEILING('прайс-лист2'!H147*Титульный!$AY$1,Титульный!$AY$3) -> 9927 | H159: =CEILING('прайс-лист2'!I147*Титульный!$AY$1,Титульный!$AY$3) -> 9087 | I159: - | J159: - | K159: - | L159: - | M159: =CEILING('прайс-лист2'!N147*Титульный!$AY$1,Титульный!$AY$3) -> 10367 | N159: =CEILING('прайс-лист2'!O147*Титульный!$AY$1,Титульный!$AY$3) -> 10947 | O159: =CEILING('прайс-лист2'!P147*Титульный!$AY$1,Титульный!$AY$3) -> 10867 | P159: =CEILING('прайс-лист2'!Q147*Титульный!$AY$1,Титульный!$AY$3) -> 11207 | Q159: =CEILING('прайс-лист2'!R147*Титульный!$AY$1,Титульный!$AY$3) -> 11607 | R159: - | S159: -
A160: Стеллаж навесной (420) Н=600х1260 | C160: 1260х600х420 | D160: =CEILING('прайс-лист2'!E148*Титульный!$AY$1,Титульный!$AY$3) -> 4828 | R160: - | S160: -
A161: Антресоли
A162: Антресоль (420) 1дв 400х420 лев\пр | C162: 420х440х400 | D162: =CEILING('прайс-лист2'!E150*Титульный!$AY$1,Титульный!$AY$3) -> 3082 | E162: =CEILING('прайс-лист2'!F150*Титульный!$AY$1,Титульный!$AY$3) -> 3722 | F162: =CEILING('прайс-лист2'!G150*Титульный!$AY$1,Титульный!$AY$3) -> 3182 | G162: =CEILING('прайс-лист2'!H150*Титульный!$AY$1,Титульный!$AY$3) -> 3422 | H162: =CEILING('прайс-лист2'!I150*Титульный!$AY$1,Титульный!$AY$3) -> 2792 | I162: =CEILING('прайс-лист2'!J150*Титульный!$AY$1,Титульный!$AY$3) -> 2812 | J162: =CEILING('прайс-лист2'!K150*Титульный!$AY$1,Титульный!$AY$3) -> 2862 | K162: =CEILING('прайс-лист2'!L150*Титульный!$AY$1,Титульный!$AY$3) -> 2992 | L162: - | M162: =CEILING('прайс-лист2'!N150*Титульный!$AY$1,Титульный!$AY$3) -> 3652 | N162: =CEILING('прайс-лист2'!O150*Титульный!$AY$1,Титульный!$AY$3) -> 3962 | O162: =CEILING('прайс-лист2'!P150*Титульный!$AY$1,Титульный!$AY$3) -> 4022 | P162: =CEILING('прайс-лист2'!Q150*Титульный!$AY$1,Титульный!$AY$3) -> 4282 | Q162: =CEILING('прайс-лист2'!R150*Титульный!$AY$1,Титульный!$AY$3) -> 4682 | R162: - | S162: -
A163: Антресоль (420) 1дв 400х560 лев\пр | C163: 560х440х400 | D163: =CEILING('прайс-лист2'!E151*Титульный!$AY$1,Титульный!$AY$3) -> 3582 | E163: =CEILING('прайс-лист2'!F151*Титульный!$AY$1,Титульный!$AY$3) -> 4432 | F163: =CEILING('прайс-лист2'!G151*Титульный!$AY$1,Титульный!$AY$3) -> 3712 | G163: =CEILING('прайс-лист2'!H151*Титульный!$AY$1,Титульный!$AY$3) -> 4032 | H163: =CEILING('прайс-лист2'!I151*Титульный!$AY$1,Титульный!$AY$3) -> 3192 | I163: =CEILING('прайс-лист2'!J151*Титульный!$AY$1,Титульный!$AY$3) -> 3222 | J163: =CEILING('прайс-лист2'!K151*Титульный!$AY$1,Титульный!$AY$3) -> 3282 | K163: =CEILING('прайс-лист2'!L151*Титульный!$AY$1,Титульный!$AY$3) -> 3462 | L163: - | M163: =CEILING('прайс-лист2'!N151*Титульный!$AY$1,Титульный!$AY$3) -> 4302 | N163: =CEILING('прайс-лист2'!O151*Титульный!$AY$1,Титульный!$AY$3) -> 4662 | O163: =CEILING('прайс-лист2'!P151*Титульный!$AY$1,Титульный!$AY$3) -> 4782 | P163: =CEILING('прайс-лист2'!Q151*Титульный!$AY$1,Титульный!$AY$3) -> 5142 | Q163: =CEILING('прайс-лист2'!R151*Титульный!$AY$1,Титульный!$AY$3) -> 5532 | R163: - | S163: -
A164: Антресоль (420) 2дв 400х840 | C164: 840х440х400 | D164: =CEILING('прайс-лист2'!E152*Титульный!$AY$1,Титульный!$AY$3) -> 5163 | E164: =CEILING('прайс-лист2'!F152*Титульный!$AY$1,Титульный!$AY$3) -> 6443 | F164: =CEILING('прайс-лист2'!G152*Титульный!$AY$1,Титульный!$AY$3) -> 5363 | G164: =CEILING('прайс-лист2'!H152*Титульный!$AY$1,Титульный!$AY$3) -> 5843 | H164: =CEILING('прайс-лист2'!I152*Титульный!$AY$1,Титульный!$AY$3) -> 4583 | I164: =CEILING('прайс-лист2'!J152*Титульный!$AY$1,Титульный!$AY$3) -> 4623 | J164: =CEILING('прайс-лист2'!K152*Титульный!$AY$1,Титульный!$AY$3) -> 4723 | K164: =CEILING('прайс-лист2'!L152*Титульный!$AY$1,Титульный!$AY$3) -> 4983 | L164: - | M164: =CEILING('прайс-лист2'!N152*Титульный!$AY$1,Титульный!$AY$3) -> 6303 | N164: =CEILING('прайс-лист2'!O152*Титульный!$AY$1,Титульный!$AY$3) -> 6923 | O164: =CEILING('прайс-лист2'!P152*Титульный!$AY$1,Титульный!$AY$3) -> 7043 | P164: =CEILING('прайс-лист2'!Q152*Титульный!$AY$1,Титульный!$AY$3) -> 7563 | Q164: =CEILING('прайс-лист2'!R152*Титульный!$AY$1,Титульный!$AY$3) -> 8363 | R164: - | S164: -
A165: Антресоль (420) 3дв 400х1260 | C165: 1260х440х400 | D165: =CEILING('прайс-лист2'!E153*Титульный!$AY$1,Титульный!$AY$3) -> 7412 | E165: =CEILING('прайс-лист2'!F153*Титульный!$AY$1,Титульный!$AY$3) -> 9332 | F165: =CEILING('прайс-лист2'!G153*Титульный!$AY$1,Титульный!$AY$3) -> 7712 | G165: =CEILING('прайс-лист2'!H153*Титульный!$AY$1,Титульный!$AY$3) -> 8432 | H165: =CEILING('прайс-лист2'!I153*Титульный!$AY$1,Титульный!$AY$3) -> 6542 | I165: =CEILING('прайс-лист2'!J153*Титульный!$AY$1,Титульный!$AY$3) -> 6602 | J165: =CEILING('прайс-лист2'!K153*Титульный!$AY$1,Титульный!$AY$3) -> 6752 | K165: =CEILING('прайс-лист2'!L153*Титульный!$AY$1,Титульный!$AY$3) -> 7142 | L165: - | M165: =CEILING('прайс-лист2'!N153*Титульный!$AY$1,Титульный!$AY$3) -> 9122 | N165: =CEILING('прайс-лист2'!O153*Титульный!$AY$1,Титульный!$AY$3) -> 10052 | O165: =CEILING('прайс-лист2'!P153*Титульный!$AY$1,Титульный!$AY$3) -> 10232 | P165: =CEILING('прайс-лист2'!Q153*Титульный!$AY$1,Титульный!$AY$3) -> 11012 | Q165: =CEILING('прайс-лист2'!R153*Титульный!$AY$1,Титульный!$AY$3) -> 12212 | R165: - | S165: -
A166: Антресоль угл. (420) трап. 400х732х732 | C166: 732х732 | D166: =CEILING('прайс-лист2'!E154*Титульный!$AY$1,Титульный!$AY$3) -> 5281 | E166: =CEILING('прайс-лист2'!F154*Титульный!$AY$1,Титульный!$AY$3) -> 5921 | F166: =CEILING('прайс-лист2'!G154*Титульный!$AY$1,Титульный!$AY$3) -> 5381 | G166: =CEILING('прайс-лист2'!H154*Титульный!$AY$1,Титульный!$AY$3) -> 5621 | H166: =CEILING('прайс-лист2'!I154*Титульный!$AY$1,Титульный!$AY$3) -> 4991 | I166: =CEILING('прайс-лист2'!J154*Титульный!$AY$1,Титульный!$AY$3) -> 5011 | J166: =CEILING('прайс-лист2'!K154*Титульный!$AY$1,Титульный!$AY$3) -> 5061 | K166: =CEILING('прайс-лист2'!L154*Титульный!$AY$1,Титульный!$AY$3) -> 5191 | L166: - | M166: =CEILING('прайс-лист2'!N154*Титульный!$AY$1,Титульный!$AY$3) -> 5851 | N166: =CEILING('прайс-лист2'!O154*Титульный!$AY$1,Титульный!$AY$3) -> 6161 | O166: =CEILING('прайс-лист2'!P154*Титульный!$AY$1,Титульный!$AY$3) -> 6221 | P166: =CEILING('прайс-лист2'!Q154*Титульный!$AY$1,Титульный!$AY$3) -> 6481 | Q166: =CEILING('прайс-лист2'!R154*Титульный!$AY$1,Титульный!$AY$3) -> 6881 | R166: - | S166: -
A167: Антресоли
A168: Наименование | B168: Эскиз | C168: Габариты, ШхГхВ мм. | D168: МДФ фасады | H168: Марго16 | M168: UV-лак | O168: ТСС | Q168: ТСС сборный | R168: Стоимость зеркал
D169: 1 ЦК | E169: 1 ЦК + патина | F169: 2 ЦК | G169: 3 ЦК | H169: 1 ц.к. | I169: 2 ц.к. | J169: 3 ц.к. | K169: 4 ц.к. | L169: 5 ц.к. | M169: UV-лак кромка ABC/AL кромка | N169: кромка 3D | O169: 1 ЦК | P169: 2 ЦК | R169: Зеркало в рамке** | S169: Зеркало накладное*
A170: Антресоль (340) 2 дв. 400х840 | C170: 840х360х400 | D170: =CEILING('прайс-лист2'!E155*Титульный!$AY$1,Титульный!$AY$3) -> 4914 | E170: =CEILING('прайс-лист2'!F155*Титульный!$AY$1,Титульный!$AY$3) -> 6194 | F170: =CEILING('прайс-лист2'!G155*Титульный!$AY$1,Титульный!$AY$3) -> 5114 | G170: =CEILING('прайс-лист2'!H155*Титульный!$AY$1,Титульный!$AY$3) -> 5594 | H170: =CEILING('прайс-лист2'!I155*Титульный!$AY$1,Титульный!$AY$3) -> 4334 | I170: =CEILING('прайс-лист2'!J155*Титульный!$AY$1,Титульный!$AY$3) -> 4374 | J170: =CEILING('прайс-лист2'!K155*Титульный!$AY$1,Титульный!$AY$3) -> 4474 | K170: =CEILING('прайс-лист2'!L155*Титульный!$AY$1,Титульный!$AY$3) -> 4734 | L170: - | M170: =CEILING('прайс-лист2'!N155*Титульный!$AY$1,Титульный!$AY$3) -> 6054 | N170: =CEILING('прайс-лист2'!O155*Титульный!$AY$1,Титульный!$AY$3) -> 6674 | O170: =CEILING('прайс-лист2'!P155*Титульный!$AY$1,Титульный!$AY$3) -> 6794 | P170: =CEILING('прайс-лист2'!Q155*Титульный!$AY$1,Титульный!$AY$3) -> 7314 | Q170: =CEILING('прайс-лист2'!R155*Титульный!$AY$1,Титульный!$AY$3) -> 8114 | R170: - | S170: -
A171: Антресоль (340) 2 дв расп. ниша 400х1260 | C171: 1260х360х400 | D171: =CEILING('прайс-лист2'!E156*Титульный!$AY$1,Титульный!$AY$3) -> 6057 | E171: =CEILING('прайс-лист2'!F156*Титульный!$AY$1,Титульный!$AY$3) -> 7337 | F171: =CEILING('прайс-лист2'!G156*Титульный!$AY$1,Титульный!$AY$3) -> 6257 | G171: =CEILING('прайс-лист2'!H156*Титульный!$AY$1,Титульный!$AY$3) -> 6737 | H171: =CEILING('прайс-лист2'!I156*Титульный!$AY$1,Титульный!$AY$3) -> 5477 | I171: =CEILING('прайс-лист2'!J156*Титульный!$AY$1,Титульный!$AY$3) -> 5517 | J171: =CEILING('прайс-лист2'!K156*Титульный!$AY$1,Титульный!$AY$3) -> 5617 | K171: =CEILING('прайс-лист2'!L156*Титульный!$AY$1,Титульный!$AY$3) -> 5877 | L171: - | M171: =CEILING('прайс-лист2'!N156*Титульный!$AY$1,Титульный!$AY$3) -> 7197 | N171: =CEILING('прайс-лист2'!O156*Титульный!$AY$1,Титульный!$AY$3) -> 7817 | O171: =CEILING('прайс-лист2'!P156*Титульный!$AY$1,Титульный!$AY$3) -> 7937 | P171: =CEILING('прайс-лист2'!Q156*Титульный!$AY$1,Титульный!$AY$3) -> 8457 | Q171: =CEILING('прайс-лист2'!R156*Титульный!$AY$1,Титульный!$AY$3) -> 9257 | R171: - | S171: -
A172: Антресоль торц (420) 400х420 лев\пр | C172: 420х440х400 | D172: =CEILING('прайс-лист2'!E157*Титульный!$AY$1,Титульный!$AY$3) -> 4383 | E172: =CEILING('прайс-лист2'!F157*Титульный!$AY$1,Титульный!$AY$3) -> 5403 | F172: =CEILING('прайс-лист2'!G157*Титульный!$AY$1,Титульный!$AY$3) -> 4543 | G172: =CEILING('прайс-лист2'!H157*Титульный!$AY$1,Титульный!$AY$3) -> 4913 | H172: =CEILING('прайс-лист2'!I157*Титульный!$AY$1,Титульный!$AY$3) -> 3933 | I172: =CEILING('прайс-лист2'!J157*Титульный!$AY$1,Титульный!$AY$3) -> 3963 | J172: =CEILING('прайс-лист2'!K157*Титульный!$AY$1,Титульный!$AY$3) -> 4033 | K172: =CEILING('прайс-лист2'!L157*Титульный!$AY$1,Титульный!$AY$3) -> 4243 | L172: - | M172: =CEILING('прайс-лист2'!N157*Титульный!$AY$1,Титульный!$AY$3) -> 5353 | N172: =CEILING('прайс-лист2'!O157*Титульный!$AY$1,Титульный!$AY$3) -> 5903 | O172: =CEILING('прайс-лист2'!P157*Титульный!$AY$1,Титульный!$AY$3) -> 5923 | P172: =CEILING('прайс-лист2'!Q157*Титульный!$AY$1,Титульный!$AY$3) -> 6343 | Q172: =CEILING('прайс-лист2'!R157*Титульный!$AY$1,Титульный!$AY$3) -> 6953 | R172: - | S172: -
A173: Антресоль (560) 1дв 400х420 лев\пр | C173: 420х580х400 | D173: =CEILING('прайс-лист2'!E158*Титульный!$AY$1,Титульный!$AY$3) -> 3528 | E173: =CEILING('прайс-лист2'!F158*Титульный!$AY$1,Титульный!$AY$3) -> 4168 | F173: =CEILING('прайс-лист2'!G158*Титульный!$AY$1,Титульный!$AY$3) -> 3628 | G173: =CEILING('прайс-лист2'!H158*Титульный!$AY$1,Титульный!$AY$3) -> 3868 | H173: =CEILING('прайс-лист2'!I158*Титульный!$AY$1,Титульный!$AY$3) -> 3238 | I173: =CEILING('прайс-лист2'!J158*Титульный!$AY$1,Титульный!$AY$3) -> 3258 | J173: =CEILING('прайс-лист2'!K158*Титульный!$AY$1,Титульный!$AY$3) -> 3308 | K173: =CEILING('прайс-лист2'!L158*Титульный!$AY$1,Титульный!$AY$3) -> 3438 | L173: - | M173: =CEILING('прайс-лист2'!N158*Титульный!$AY$1,Титульный!$AY$3) -> 4098 | N173: =CEILING('прайс-лист2'!O158*Титульный!$AY$1,Титульный!$AY$3) -> 4408 | O173: =CEILING('прайс-лист2'!P158*Титульный!$AY$1,Титульный!$AY$3) -> 4468 | P173: =CEILING('прайс-лист2'!Q158*Титульный!$AY$1,Титульный!$AY$3) -> 4728 | Q173: =CEILING('прайс-лист2'!R158*Титульный!$AY$1,Титульный!$AY$3) -> 5128 | R173: - | S173: -
A174: Антресоль (560) 1дв 400х560 лев\пр | C174: 560х580х400 | D174: =CEILING('прайс-лист2'!E159*Титульный!$AY$1,Титульный!$AY$3) -> 3965 | E174: =CEILING('прайс-лист2'!F159*Титульный!$AY$1,Титульный!$AY$3) -> 4815 | F174: =CEILING('прайс-лист2'!G159*Титульный!$AY$1,Титульный!$AY$3) -> 4095 | G174: =CEILING('прайс-лист2'!H159*Титульный!$AY$1,Титульный!$AY$3) -> 4415 | H174: =CEILING('прайс-лист2'!I159*Титульный!$AY$1,Титульный!$AY$3) -> 3575 | I174: =CEILING('прайс-лист2'!J159*Титульный!$AY$1,Титульный!$AY$3) -> 3605 | J174: =CEILING('прайс-лист2'!K159*Титульный!$AY$1,Титульный!$AY$3) -> 3665 | K174: =CEILING('прайс-лист2'!L159*Титульный!$AY$1,Титульный!$AY$3) -> 3845 | L174: - | M174: =CEILING('прайс-лист2'!N159*Титульный!$AY$1,Титульный!$AY$3) -> 4685 | N174: =CEILING('прайс-лист2'!O159*Титульный!$AY$1,Титульный!$AY$3) -> 5045 | O174: =CEILING('прайс-лист2'!P159*Титульный!$AY$1,Титульный!$AY$3) -> 5165 | P174: =CEILING('прайс-лист2'!Q159*Титульный!$AY$1,Титульный!$AY$3) -> 5525 | Q174: =CEILING('прайс-лист2'!R159*Титульный!$AY$1,Титульный!$AY$3) -> 5915 | R174: - | S174: -
A175: Антресоль (560) 2дв 400х840 | C175: 840х580х400 | D175: =CEILING('прайс-лист2'!E160*Титульный!$AY$1,Титульный!$AY$3) -> 5651 | E175: =CEILING('прайс-лист2'!F160*Титульный!$AY$1,Титульный!$AY$3) -> 6931 | F175: =CEILING('прайс-лист2'!G160*Титульный!$AY$1,Титульный!$AY$3) -> 5851 | G175: =CEILING('прайс-лист2'!H160*Титульный!$AY$1,Титульный!$AY$3) -> 6331 | H175: =CEILING('прайс-лист2'!I160*Титульный!$AY$1,Титульный!$AY$3) -> 5071 | I175: =CEILING('прайс-лист2'!J160*Титульный!$AY$1,Титульный!$AY$3) -> 5111 | J175: =CEILING('прайс-лист2'!K160*Титульный!$AY$1,Титульный!$AY$3) -> 5211 | K175: =CEILING('прайс-лист2'!L160*Титульный!$AY$1,Титульный!$AY$3) -> 5471 | L175: - | M175: =CEILING('прайс-лист2'!N160*Титульный!$AY$1,Титульный!$AY$3) -> 6791 | N175: =CEILING('прайс-лист2'!O160*Титульный!$AY$1,Титульный!$AY$3) -> 7411 | O175: =CEILING('прайс-лист2'!P160*Титульный!$AY$1,Титульный!$AY$3) -> 7531 | P175: =CEILING('прайс-лист2'!Q160*Титульный!$AY$1,Титульный!$AY$3) -> 8051 | Q175: =CEILING('прайс-лист2'!R160*Титульный!$AY$1,Титульный!$AY$3) -> 8851 | R175: - | S175: -
A176: Антресоль (560) 3дв 400х1260 | C176: 1260х580х400 | D176: =CEILING('прайс-лист2'!E162*Титульный!$AY$1,Титульный!$AY$3) -> 8117 | E176: =CEILING('прайс-лист2'!F162*Титульный!$AY$1,Титульный!$AY$3) -> 10037 | F176: =CEILING('прайс-лист2'!G162*Титульный!$AY$1,Титульный!$AY$3) -> 8417 | G176: =CEILING('прайс-лист2'!H162*Титульный!$AY$1,Титульный!$AY$3) -> 9137 | H176: =CEILING('прайс-лист2'!I162*Титульный!$AY$1,Титульный!$AY$3) -> 7247 | I176: =CEILING('прайс-лист2'!J162*Титульный!$AY$1,Титульный!$AY$3) -> 7307 | J176: =CEILING('прайс-лист2'!K162*Титульный!$AY$1,Титульный!$AY$3) -> 7457 | K176: =CEILING('прайс-лист2'!L162*Титульный!$AY$1,Титульный!$AY$3) -> 7847 | L176: - | M176: =CEILING('прайс-лист2'!N162*Титульный!$AY$1,Титульный!$AY$3) -> 9827 | N176: =CEILING('прайс-лист2'!O162*Титульный!$AY$1,Титульный!$AY$3) -> 10757 | O176: =CEILING('прайс-лист2'!P162*Титульный!$AY$1,Титульный!$AY$3) -> 10937 | P176: =CEILING('прайс-лист2'!Q162*Титульный!$AY$1,Титульный!$AY$3) -> 11717 | Q176: =CEILING('прайс-лист2'!R162*Титульный!$AY$1,Титульный!$AY$3) -> 12917 | R176: - | S176: -
A177: Антресоль угл. (560) трап. 400х975х975 | C177: 975х975 | D177: =CEILING('прайс-лист2'!E163*Титульный!$AY$1,Титульный!$AY$3) -> 6833 | E177: =CEILING('прайс-лист2'!F163*Титульный!$AY$1,Титульный!$AY$3) -> 7683 | F177: =CEILING('прайс-лист2'!G163*Титульный!$AY$1,Титульный!$AY$3) -> 6963 | G177: =CEILING('прайс-лист2'!H163*Титульный!$AY$1,Титульный!$AY$3) -> 7283 | H177: =CEILING('прайс-лист2'!I163*Титульный!$AY$1,Титульный!$AY$3) -> 6443 | I177: =CEILING('прайс-лист2'!J163*Титульный!$AY$1,Титульный!$AY$3) -> 6473 | J177: =CEILING('прайс-лист2'!K163*Титульный!$AY$1,Титульный!$AY$3) -> 6533 | K177: =CEILING('прайс-лист2'!L163*Титульный!$AY$1,Титульный!$AY$3) -> 6713 | L177: - | M177: =CEILING('прайс-лист2'!N163*Титульный!$AY$1,Титульный!$AY$3) -> 7553 | N177: =CEILING('прайс-лист2'!O163*Титульный!$AY$1,Титульный!$AY$3) -> 7913 | O177: =CEILING('прайс-лист2'!P163*Титульный!$AY$1,Титульный!$AY$3) -> 8033 | P177: =CEILING('прайс-лист2'!Q163*Титульный!$AY$1,Титульный!$AY$3) -> 8393 | Q177: =CEILING('прайс-лист2'!R163*Титульный!$AY$1,Титульный!$AY$3) -> 8783 | R177: - | S177: -
A178: Шкафы угловые и стеллажи торцевые
A179: Шкаф Угл (420х420) Трап 2040х732х732 | C179: 732х732 | D179: =CEILING('прайс-лист2'!E165*Титульный!$AY$1,Титульный!$AY$3) -> 16038 | E179: =CEILING('прайс-лист2'!F165*Титульный!$AY$1,Титульный!$AY$3) -> 19248 | F179: =CEILING('прайс-лист2'!G165*Титульный!$AY$1,Титульный!$AY$3) -> 16518 | G179: =CEILING('прайс-лист2'!H165*Титульный!$AY$1,Титульный!$AY$3) -> 17718 | H179: =CEILING('прайс-лист2'!I165*Титульный!$AY$1,Титульный!$AY$3) -> 14588 | I179: =CEILING('прайс-лист2'!J165*Титульный!$AY$1,Титульный!$AY$3) -> 14668 | J179: =CEILING('прайс-лист2'!K165*Титульный!$AY$1,Титульный!$AY$3) -> 14918 | K179: =CEILING('прайс-лист2'!L165*Титульный!$AY$1,Титульный!$AY$3) -> 15588 | L179: - | M179: =CEILING('прайс-лист2'!N165*Титульный!$AY$1,Титульный!$AY$3) -> 18328 | N179: =CEILING('прайс-лист2'!O165*Титульный!$AY$1,Титульный!$AY$3) -> 19248 | O179: =CEILING('прайс-лист2'!P165*Титульный!$AY$1,Титульный!$AY$3) -> 20158 | P179: =CEILING('прайс-лист2'!Q165*Титульный!$AY$1,Титульный!$AY$3) -> 21498 | Q179: =CEILING('прайс-лист2'!R165*Титульный!$AY$1,Титульный!$AY$3) -> 21788 | R179: =CEILING('прайс-лист2'!S165*Титульный!$AY$1,Титульный!$AY$3) -> 849 | S179: =CEILING('прайс-лист2'!T165*Титульный!$AY$1,Титульный!$AY$3) -> 2473
A180: Шкаф Угл (420х420) Трап 2240х732х732 | C180: 732х732 | D180: =CEILING('прайс-лист2'!E166*Титульный!$AY$1,Титульный!$AY$3) -> 17024 | E180: - | F180: =CEILING('прайс-лист2'!G166*Титульный!$AY$1,Титульный!$AY$3) -> 17554 | G180: =CEILING('прайс-лист2'!H166*Титульный!$AY$1,Титульный!$AY$3) -> 18874 | H180: =CEILING('прайс-лист2'!I166*Титульный!$AY$1,Титульный!$AY$3) -> 15434 | I180: =CEILING('прайс-лист2'!J166*Титульный!$AY$1,Титульный!$AY$3) -> 15524 | J180: =CEILING('прайс-лист2'!K166*Титульный!$AY$1,Титульный!$AY$3) -> 15804 | K180: =CEILING('прайс-лист2'!L166*Титульный!$AY$1,Титульный!$AY$3) -> 16534 | L180: - | M180: =CEILING('прайс-лист2'!N166*Титульный!$AY$1,Титульный!$AY$3) -> 19534 | N180: =CEILING('прайс-лист2'!O166*Титульный!$AY$1,Титульный!$AY$3) -> 20534 | O180: =CEILING('прайс-лист2'!P166*Титульный!$AY$1,Титульный!$AY$3) -> 21544 | P180: =CEILING('прайс-лист2'!Q166*Титульный!$AY$1,Титульный!$AY$3) -> 23014 | Q180: =CEILING('прайс-лист2'!R166*Титульный!$AY$1,Титульный!$AY$3) -> 23294 | R180: =CEILING('прайс-лист2'!S166*Титульный!$AY$1,Титульный!$AY$3) -> 963 | S180: =CEILING('прайс-лист2'!T166*Титульный!$AY$1,Титульный!$AY$3) -> 2675
A181: Шкаф Угл (560х420) Прямой 2040х1000 лев/пр.** | C181: 1000 | D181: =CEILING('прайс-лист2'!E167*Титульный!$AY$1,Титульный!$AY$3) -> 18612 | E181: =CEILING('прайс-лист2'!F167*Титульный!$AY$1,Титульный!$AY$3) -> 26272 | F181: =CEILING('прайс-лист2'!G167*Титульный!$AY$1,Титульный!$AY$3) -> 19772 | G181: =CEILING('прайс-лист2'!H167*Титульный!$AY$1,Титульный!$AY$3) -> 22632 | H181: =CEILING('прайс-лист2'!I167*Титульный!$AY$1,Титульный!$AY$3) -> 15172 | I181: =CEILING('прайс-лист2'!J167*Титульный!$AY$1,Титульный!$AY$3) -> 15372 | J181: =CEILING('прайс-лист2'!K167*Титульный!$AY$1,Титульный!$AY$3) -> 15972 | K181: =CEILING('прайс-лист2'!L167*Титульный!$AY$1,Титульный!$AY$3) -> 17562 | L181: - | M181: =CEILING('прайс-лист2'!N167*Титульный!$AY$1,Титульный!$AY$3) -> 23832 | N181: =CEILING('прайс-лист2'!O167*Титульный!$AY$1,Титульный!$AY$3) -> 25732 | O181: =CEILING('прайс-лист2'!P167*Титульный!$AY$1,Титульный!$AY$3) -> 28172 | P181: =CEILING('прайс-лист2'!Q167*Титульный!$AY$1,Титульный!$AY$3) -> 31382 | Q181: =CEILING('прайс-лист2'!R167*Титульный!$AY$1,Титульный!$AY$3) -> 31482 | R181: =CEILING('прайс-лист2'!S167*Титульный!$AY$1,Титульный!$AY$3) -> 1220 | S181: =CEILING('прайс-лист2'!T167*Титульный!$AY$1,Титульный!$AY$3) -> 3084
A182: Шкаф Угл (560х420) Прямой 2240х1000 лев/пр** | C182: 1000 | D182: =CEILING('прайс-лист2'!E168*Титульный!$AY$1,Титульный!$AY$3) -> 19742 | E182: - | F182: =CEILING('прайс-лист2'!G168*Титульный!$AY$1,Титульный!$AY$3) -> 21022 | G182: =CEILING('прайс-лист2'!H168*Титульный!$AY$1,Титульный!$AY$3) -> 24172 | H182: =CEILING('прайс-лист2'!I168*Титульный!$AY$1,Титульный!$AY$3) -> 15962 | I182: =CEILING('прайс-лист2'!J168*Титульный!$AY$1,Титульный!$AY$3) -> 16182 | J182: =CEILING('прайс-лист2'!K168*Титульный!$AY$1,Титульный!$AY$3) -> 16832 | K182: =CEILING('прайс-лист2'!L168*Титульный!$AY$1,Титульный!$AY$3) -> 18582 | L182: - | M182: =CEILING('прайс-лист2'!N168*Титульный!$AY$1,Титульный!$AY$3) -> 25452 | N182: =CEILING('прайс-лист2'!O168*Титульный!$AY$1,Титульный!$AY$3) -> 27502 | O182: =CEILING('прайс-лист2'!P168*Титульный!$AY$1,Титульный!$AY$3) -> 30232 | P182: =CEILING('прайс-лист2'!Q168*Титульный!$AY$1,Титульный!$AY$3) -> 33752 | Q182: =CEILING('прайс-лист2'!R168*Титульный!$AY$1,Титульный!$AY$3) -> 33772 | R182: =CEILING('прайс-лист2'!S168*Титульный!$AY$1,Титульный!$AY$3) -> 1490 | S182: =CEILING('прайс-лист2'!T168*Титульный!$AY$1,Титульный!$AY$3) -> 3130
A183: Шкаф Угл (560х420) Прямой 2040х1000 ФП ЛДСП лев/пр** | C183: 1000 | D183: =CEILING('прайс-лист2'!E169*Титульный!$AY$1,Титульный!$AY$3) -> 16437 | E183: - | F183: =CEILING('прайс-лист2'!G169*Титульный!$AY$1,Титульный!$AY$3) -> 17087 | G183: =CEILING('прайс-лист2'!H169*Титульный!$AY$1,Титульный!$AY$3) -> 18687 | H183: =CEILING('прайс-лист2'!I169*Титульный!$AY$1,Титульный!$AY$3) -> 14507 | I183: =CEILING('прайс-лист2'!J169*Титульный!$AY$1,Титульный!$AY$3) -> 14617 | J183: =CEILING('прайс-лист2'!K169*Титульный!$AY$1,Титульный!$AY$3) -> 14957 | K183: =CEILING('прайс-лист2'!L169*Титульный!$AY$1,Титульный!$AY$3) -> 15847 | L183: - | M183: =CEILING('прайс-лист2'!N169*Титульный!$AY$1,Титульный!$AY$3) -> 19277 | N183: =CEILING('прайс-лист2'!O169*Титульный!$AY$1,Титульный!$AY$3) -> 20247 | O183: =CEILING('прайс-лист2'!P169*Титульный!$AY$1,Титульный!$AY$3) -> 21707 | P183: =CEILING('прайс-лист2'!Q169*Титульный!$AY$1,Титульный!$AY$3) -> 23507 | Q183: =CEILING('прайс-лист2'!R169*Титульный!$AY$1,Титульный!$AY$3) -> 23377 | R183: - | S183: -
A184: Шкаф Угл (560х420) Прямой 2240х1000 ФП ЛДСП лев/пр** | C184: 1000 | D184: =CEILING('прайс-лист2'!E170*Титульный!$AY$1,Титульный!$AY$3) -> 17396 | E184: - | F184: =CEILING('прайс-лист2'!G170*Титульный!$AY$1,Титульный!$AY$3) -> 18116 | G184: =CEILING('прайс-лист2'!H170*Титульный!$AY$1,Титульный!$AY$3) -> 19876 | H184: =CEILING('прайс-лист2'!I170*Титульный!$AY$1,Титульный!$AY$3) -> 15276 | I184: =CEILING('прайс-лист2'!J170*Титульный!$AY$1,Титульный!$AY$3) -> 15406 | J184: =CEILING('прайс-лист2'!K170*Титульный!$AY$1,Титульный!$AY$3) -> 15766 | K184: =CEILING('прайс-лист2'!L170*Титульный!$AY$1,Титульный!$AY$3) -> 16746 | L184: - | M184: =CEILING('прайс-лист2'!N170*Титульный!$AY$1,Титульный!$AY$3) -> 20506 | N184: =CEILING('прайс-лист2'!O170*Титульный!$AY$1,Титульный!$AY$3) -> 21556 | O184: =CEILING('прайс-лист2'!P170*Титульный!$AY$1,Титульный!$AY$3) -> 23186 | P184: =CEILING('прайс-лист2'!Q170*Титульный!$AY$1,Титульный!$AY$3) -> 25156 | Q184: =CEILING('прайс-лист2'!R170*Титульный!$AY$1,Титульный!$AY$3) -> 24966 | R184: =CEILING('прайс-лист2'!S170*Титульный!$AY$1,Титульный!$AY$3) -> 1490 | S184: =CEILING('прайс-лист2'!T170*Титульный!$AY$1,Титульный!$AY$3) -> 1808
A185: Шкаф Угл (560х420) Трап 2040х830х970 лев ** | C185: 830х970 | D185: =CEILING('прайс-лист2'!E171*Титульный!$AY$1,Титульный!$AY$3) -> 18484 | E185: =CEILING('прайс-лист2'!F171*Титульный!$AY$1,Титульный!$AY$3) -> 22774 | F185: =CEILING('прайс-лист2'!G171*Титульный!$AY$1,Титульный!$AY$3) -> 19134 | G185: =CEILING('прайс-лист2'!H171*Титульный!$AY$1,Титульный!$AY$3) -> 20734 | H185: =CEILING('прайс-лист2'!I171*Титульный!$AY$1,Титульный!$AY$3) -> 16554 | I185: =CEILING('прайс-лист2'!J171*Титульный!$AY$1,Титульный!$AY$3) -> 16664 | J185: =CEILING('прайс-лист2'!K171*Титульный!$AY$1,Титульный!$AY$3) -> 17004 | K185: =CEILING('прайс-лист2'!L171*Титульный!$AY$1,Титульный!$AY$3) -> 17894 | L185: - | M185: =CEILING('прайс-лист2'!N171*Титульный!$AY$1,Титульный!$AY$3) -> 21324 | N185: =CEILING('прайс-лист2'!O171*Титульный!$AY$1,Титульный!$AY$3) -> 22294 | O185: =CEILING('прайс-лист2'!P171*Титульный!$AY$1,Титульный!$AY$3) -> 23754 | P185: =CEILING('прайс-лист2'!Q171*Титульный!$AY$1,Титульный!$AY$3) -> 25554 | Q185: =CEILING('прайс-лист2'!R171*Титульный!$AY$1,Титульный!$AY$3) -> 25424 | R185: =CEILING('прайс-лист2'!S171*Титульный!$AY$1,Титульный!$AY$3) -> 1220 | S185: =CEILING('прайс-лист2'!T171*Титульный!$AY$1,Титульный!$AY$3) -> 3084
A186: Шкаф Угл (560х420) Трап 2040х830х970 пр **
A187: Шкаф Угл (560х420) Трап 2240х830х970 лев** | C187: 830х970 | D187: =CEILING('прайс-лист2'!E173*Титульный!$AY$1,Титульный!$AY$3) -> 19468 | E187: - | F187: =CEILING('прайс-лист2'!G173*Титульный!$AY$1,Титульный!$AY$3) -> 20188 | G187: =CEILING('прайс-лист2'!H173*Титульный!$AY$1,Титульный!$AY$3) -> 21948 | H187: =CEILING('прайс-лист2'!I173*Титульный!$AY$1,Титульный!$AY$3) -> 17348 | I187: =CEILING('прайс-лист2'!J173*Титульный!$AY$1,Титульный!$AY$3) -> 17478 | J187: =CEILING('прайс-лист2'!K173*Титульный!$AY$1,Титульный!$AY$3) -> 17838 | K187: =CEILING('прайс-лист2'!L173*Титульный!$AY$1,Титульный!$AY$3) -> 18818 | L187: - | M187: =CEILING('прайс-лист2'!N173*Титульный!$AY$1,Титульный!$AY$3) -> 22578 | N187: =CEILING('прайс-лист2'!O173*Титульный!$AY$1,Титульный!$AY$3) -> 23628 | O187: =CEILING('прайс-лист2'!P173*Титульный!$AY$1,Титульный!$AY$3) -> 25258 | P187: =CEILING('прайс-лист2'!Q173*Титульный!$AY$1,Титульный!$AY$3) -> 27228 | Q187: =CEILING('прайс-лист2'!R173*Титульный!$AY$1,Титульный!$AY$3) -> 27038 | R187: =CEILING('прайс-лист2'!S173*Титульный!$AY$1,Титульный!$AY$3) -> 1490 | S187: =CEILING('прайс-лист2'!T173*Титульный!$AY$1,Титульный!$AY$3) -> 1808
A188: Шкаф Угл (560х420) Трап 2240х830х970 пр**
A189: Шкаф Угл (420х420) Комб. Трап 2040х732х732 | C189: 732х732 | D189: =CEILING('прайс-лист2'!E175*Титульный!$AY$1,Титульный!$AY$3) -> 16038 | E189: =CEILING('прайс-лист2'!F175*Титульный!$AY$1,Титульный!$AY$3) -> 19248 | F189: =CEILING('прайс-лист2'!G175*Титульный!$AY$1,Титульный!$AY$3) -> 16518 | G189: =CEILING('прайс-лист2'!H175*Титульный!$AY$1,Титульный!$AY$3) -> 17718 | H189: =CEILING('прайс-лист2'!I175*Титульный!$AY$1,Титульный!$AY$3) -> 14588 | I189: =CEILING('прайс-лист2'!J175*Титульный!$AY$1,Титульный!$AY$3) -> 14668 | J189: =CEILING('прайс-лист2'!K175*Титульный!$AY$1,Титульный!$AY$3) -> 14918 | K189: =CEILING('прайс-лист2'!L175*Титульный!$AY$1,Титульный!$AY$3) -> 15588 | L189: - | M189: =CEILING('прайс-лист2'!N175*Титульный!$AY$1,Титульный!$AY$3) -> 18328 | N189: =CEILING('прайс-лист2'!O175*Титульный!$AY$1,Титульный!$AY$3) -> 19248 | O189: =CEILING('прайс-лист2'!P175*Титульный!$AY$1,Титульный!$AY$3) -> 20158 | P189: =CEILING('прайс-лист2'!Q175*Титульный!$AY$1,Титульный!$AY$3) -> 21498 | Q189: =CEILING('прайс-лист2'!R175*Титульный!$AY$1,Титульный!$AY$3) -> 21788 | R189: =CEILING('прайс-лист2'!S175*Титульный!$AY$1,Титульный!$AY$3) -> 849 | S189: =CEILING('прайс-лист2'!T175*Титульный!$AY$1,Титульный!$AY$3) -> 2473
A190: Шкаф Угл (420х420) Комб. Трап 2240х732х732 | C190: 732х732 | D190: =CEILING('прайс-лист2'!E176*Титульный!$AY$1,Титульный!$AY$3) -> 17024 | E190: - | F190: =CEILING('прайс-лист2'!G176*Титульный!$AY$1,Титульный!$AY$3) -> 17554 | G190: =CEILING('прайс-лист2'!H176*Титульный!$AY$1,Титульный!$AY$3) -> 18874 | H190: =CEILING('прайс-лист2'!I176*Титульный!$AY$1,Титульный!$AY$3) -> 15434 | I190: =CEILING('прайс-лист2'!J176*Титульный!$AY$1,Титульный!$AY$3) -> 15524 | J190: =CEILING('прайс-лист2'!K176*Титульный!$AY$1,Титульный!$AY$3) -> 15804 | K190: =CEILING('прайс-лист2'!L176*Титульный!$AY$1,Титульный!$AY$3) -> 16534 | L190: - | M190: =CEILING('прайс-лист2'!N176*Титульный!$AY$1,Титульный!$AY$3) -> 19534 | N190: =CEILING('прайс-лист2'!O176*Титульный!$AY$1,Титульный!$AY$3) -> 20534 | O190: =CEILING('прайс-лист2'!P176*Титульный!$AY$1,Титульный!$AY$3) -> 21544 | P190: =CEILING('прайс-лист2'!Q176*Титульный!$AY$1,Титульный!$AY$3) -> 23014 | Q190: =CEILING('прайс-лист2'!R176*Титульный!$AY$1,Титульный!$AY$3) -> 23294 | R190: =CEILING('прайс-лист2'!S176*Титульный!$AY$1,Титульный!$AY$3) -> 1220 | S190: =CEILING('прайс-лист2'!T176*Титульный!$AY$1,Титульный!$AY$3) -> 3084
A191: Шкаф Угл (560х560) Трап 2040х970х970 | C191: 970х970 | D191: =CEILING('прайс-лист2'!E177*Титульный!$AY$1,Титульный!$AY$3) -> 19437 | E191: =CEILING('прайс-лист2'!F177*Титульный!$AY$1,Титульный!$AY$3) -> 23727 | F191: =CEILING('прайс-лист2'!G177*Титульный!$AY$1,Титульный!$AY$3) -> 20087 | G191: =CEILING('прайс-лист2'!H177*Титульный!$AY$1,Титульный!$AY$3) -> 21687 | H191: =CEILING('прайс-лист2'!I177*Титульный!$AY$1,Титульный!$AY$3) -> 17507 | I191: =CEILING('прайс-лист2'!J177*Титульный!$AY$1,Титульный!$AY$3) -> 17617 | J191: =CEILING('прайс-лист2'!K177*Титульный!$AY$1,Титульный!$AY$3) -> 17957 | K191: =CEILING('прайс-лист2'!L177*Титульный!$AY$1,Титульный!$AY$3) -> 18847 | L191: - | M191: =CEILING('прайс-лист2'!N177*Титульный!$AY$1,Титульный!$AY$3) -> 22277 | N191: =CEILING('прайс-лист2'!O177*Титульный!$AY$1,Титульный!$AY$3) -> 23247 | O191: =CEILING('прайс-лист2'!P177*Титульный!$AY$1,Титульный!$AY$3) -> 24707 | P191: =CEILING('прайс-лист2'!Q177*Титульный!$AY$1,Титульный!$AY$3) -> 26507 | Q191: =CEILING('прайс-лист2'!R177*Титульный!$AY$1,Титульный!$AY$3) -> 26377 | R191: =CEILING('прайс-лист2'!S177*Титульный!$AY$1,Титульный!$AY$3) -> 963 | S191: =CEILING('прайс-лист2'!T177*Титульный!$AY$1,Титульный!$AY$3) -> 2675
A192: Шкаф Угл (560х560) Трап 2240х970х970 | C192: 970х970 | D192: =CEILING('прайс-лист2'!E178*Титульный!$AY$1,Титульный!$AY$3) -> 20463 | E192: - | F192: =CEILING('прайс-лист2'!G178*Титульный!$AY$1,Титульный!$AY$3) -> 21183 | G192: =CEILING('прайс-лист2'!H178*Титульный!$AY$1,Титульный!$AY$3) -> 22943 | H192: =CEILING('прайс-лист2'!I178*Титульный!$AY$1,Титульный!$AY$3) -> 18343 | I192: =CEILING('прайс-лист2'!J178*Титульный!$AY$1,Титульный!$AY$3) -> 18473 | J192: =CEILING('прайс-лист2'!K178*Титульный!$AY$1,Титульный!$AY$3) -> 18833 | K192: =CEILING('прайс-лист2'!L178*Титульный!$AY$1,Титульный!$AY$3) -> 19813 | L192: - | M192: =CEILING('прайс-лист2'!N178*Титульный!$AY$1,Титульный!$AY$3) -> 23573 | N192: =CEILING('прайс-лист2'!O178*Титульный!$AY$1,Титульный!$AY$3) -> 24623 | O192: =CEILING('прайс-лист2'!P178*Титульный!$AY$1,Титульный!$AY$3) -> 26253 | P192: =CEILING('прайс-лист2'!Q178*Титульный!$AY$1,Титульный!$AY$3) -> 28223 | Q192: =CEILING('прайс-лист2'!R178*Титульный!$AY$1,Титульный!$AY$3) -> 28033 | R192: =CEILING('прайс-лист2'!S178*Титульный!$AY$1,Титульный!$AY$3) -> 1490 | S192: =CEILING('прайс-лист2'!T178*Титульный!$AY$1,Титульный!$AY$3) -> 3130
A193: Шкаф Угл (560х560) Комб. Трап 2040х975х975 | C193: 975х975 | D193: =CEILING('прайс-лист2'!E179*Титульный!$AY$1,Титульный!$AY$3) -> 20436 | E193: =CEILING('прайс-лист2'!F179*Титульный!$AY$1,Титульный!$AY$3) -> 24726 | F193: =CEILING('прайс-лист2'!G179*Титульный!$AY$1,Титульный!$AY$3) -> 21086 | G193: =CEILING('прайс-лист2'!H179*Титульный!$AY$1,Титульный!$AY$3) -> 22686 | H193: =CEILING('прайс-лист2'!I179*Титульный!$AY$1,Титульный!$AY$3) -> 18506 | I193: =CEILING('прайс-лист2'!J179*Титульный!$AY$1,Титульный!$AY$3) -> 18616 | J193: =CEILING('прайс-лист2'!K179*Титульный!$AY$1,Титульный!$AY$3) -> 18956 | K193: =CEILING('прайс-лист2'!L179*Титульный!$AY$1,Титульный!$AY$3) -> 19846 | L193: - | M193: =CEILING('прайс-лист2'!N179*Титульный!$AY$1,Титульный!$AY$3) -> 23276 | N193: =CEILING('прайс-лист2'!O179*Титульный!$AY$1,Титульный!$AY$3) -> 24246 | O193: =CEILING('прайс-лист2'!P179*Титульный!$AY$1,Титульный!$AY$3) -> 25706 | P193: =CEILING('прайс-лист2'!Q179*Титульный!$AY$1,Титульный!$AY$3) -> 27506 | Q193: =CEILING('прайс-лист2'!R179*Титульный!$AY$1,Титульный!$AY$3) -> 27376 | R193: =CEILING('прайс-лист2'!S179*Титульный!$AY$1,Титульный!$AY$3) -> 853 | S193: =CEILING('прайс-лист2'!T179*Титульный!$AY$1,Титульный!$AY$3) -> 2156
A194: Шкаф Угл (560х560) Комб. Трап 2240х975х975 | C194: 975х975 | D194: =CEILING('прайс-лист2'!E180*Титульный!$AY$1,Титульный!$AY$3) -> 21180 | E194: - | F194: =CEILING('прайс-лист2'!G180*Титульный!$AY$1,Титульный!$AY$3) -> 21900 | G194: =CEILING('прайс-лист2'!H180*Титульный!$AY$1,Титульный!$AY$3) -> 23660 | H194: =CEILING('прайс-лист2'!I180*Титульный!$AY$1,Титульный!$AY$3) -> 19060 | I194: =CEILING('прайс-лист2'!J180*Титульный!$AY$1,Титульный!$AY$3) -> 19190 | J194: =CEILING('прайс-лист2'!K180*Титульный!$AY$1,Титульный!$AY$3) -> 19550 | K194: =CEILING('прайс-лист2'!L180*Титульный!$AY$1,Титульный!$AY$3) -> 20530 | L194: - | M194: =CEILING('прайс-лист2'!N180*Титульный!$AY$1,Титульный!$AY$3) -> 24290 | N194: =CEILING('прайс-лист2'!O180*Титульный!$AY$1,Титульный!$AY$3) -> 25340 | O194: =CEILING('прайс-лист2'!P180*Титульный!$AY$1,Титульный!$AY$3) -> 26970 | P194: =CEILING('прайс-лист2'!Q180*Титульный!$AY$1,Титульный!$AY$3) -> 28940 | Q194: =CEILING('прайс-лист2'!R180*Титульный!$AY$1,Титульный!$AY$3) -> 28750 | R194: =CEILING('прайс-лист2'!S180*Титульный!$AY$1,Титульный!$AY$3) -> 1041 | S194: =CEILING('прайс-лист2'!T180*Титульный!$AY$1,Титульный!$AY$3) -> 2188
A195: Стеллаж (420) Торцевой 2040х300 Радиусный | C195: 300х420х2040 | D195: =CEILING('прайс-лист2'!E181*Титульный!$AY$1,Титульный!$AY$3) -> 3708 | R195: - | S195: -
A196: Стеллаж (420) Торцевой 2240х300 Радиусный | C196: 300х420х2240 | D196: =CEILING('прайс-лист2'!E182*Титульный!$AY$1,Титульный!$AY$3) -> 4134 | R196: - | S196: -
A197: Стеллаж (560) Торцевой 2040х300 Радиусный | C197: 300х560х2040 | D197: =CEILING('прайс-лист2'!E183*Титульный!$AY$1,Титульный!$AY$3) -> 4312 | R197: - | S197: -
A198: Стеллаж (560) Торцевой 2240х300 Радиусный | C198: 300х560х2240 | D198: =CEILING('прайс-лист2'!E184*Титульный!$AY$1,Титульный!$AY$3) -> 4835 | R198: - | S198: -
A199: Внимание!!! Для наборов мебели "Марго" использовать только накладные зеркала
A200: Кровати
... 206 more rows

Sheet прайс-лист2 (hidden)
B1: Шкафы глубиной 420мм
B2: Наименование | C2: Эскиз | D2: Ширина, мм | E2: МДФ фасады | I2: Марго | N2: UV-лак | P2: ТСС | R2: ТСС сборный
E3: 1 ЦК | F3: 1 ЦК + патина | G3: 2 ЦК | H3: 3 ЦК | I3: Марго 1 ц.к. | J3: Марго 2 ц.к. | K3: Марго 3 ц.к. | L3: Марго 4 ц.к. | M3: Марго 5 ц.к. | N3: кромка АВС | O3: кромка 3D | P3: 1 ЦК | Q3: 2 ЦК | S3: Зеркало в рамке** | T3: Зеркало накладное*
B4: Шкаф (420) 1дв 2040х420 | D4: 420 | E4: 9478 | F4: 12688 | G4: 9958 | H4: 11158 | I4: 8028 | J4: 8108 | K4: 8358 | L4: 9028 | N4: 11768 | O4: 12688 | P4: 13598 | Q4: 14938 | R4: 15228 | S4: =X16 -> 849 | T4: =X29 -> 2473 | W4: Зеркало 1030х410 F10 | X4: 1562
B5: Шкаф (420) 1дв 2040х560 | D5: 560 | E5: 11208 | F5: 15498 | G5: 11858 | H5: 13458 | I5: 9278 | J5: 9388 | K5: 9728 | L5: 10618 | N5: 14048 | O5: 15018 | P5: 16478 | Q5: 18278 | R5: 18148 | S5: =X17 -> 1220 | T5: =X30 -> 3084 | W5: Зеркало 1032х412 F10 | X5: 1720 | Y5: 1563
B6: Шкаф (420) 1дв 2240х420 | D6: 420 | E6: 10285 | F6: 13815 | G6: 10815 | H6: 12135 | I6: 8695 | J6: 8785 | K6: 9065 | L6: 9795 | N6: 12795 | O6: 13795 | P6: 14805 | Q6: 16275 | R6: 16555 | S6: =X23 -> 963 | T6: =X32 -> 2675 | W6: Зеркало 1100х400 (арка) 3 мм. Р.О. | X6: 712 | Y6: 647
B7: Шкаф (420) 1дв 2240х560 | D7: 560 | E7: 12192 | F7: 16922 | G7: 12912 | H7: 14672 | I7: 10072 | J7: 10202 | K7: 10562 | L7: 11542 | N7: 15302 | O7: 16352 | P7: 17982 | Q7: 19952 | R7: 19762 | S7: =X24 -> 1490 | T7: =X33 -> 3130 | W7: Зеркало 1120х300 | X7: 596 | Y7: 541
B8: Шкаф (420) 1дв 1240х420 | D8: 420х420х1240 | E8: 6357 | F8: 8287 | G8: 6647 | H8: 7367 | I8: 5487 | J8: 5537 | K8: 5687 | L8: 6087 | N8: 7787 | O8: 8407 | P8: 8887 | Q8: 9687 | R8: 10037 | S8: - | T8: - | W8: Зеркало 1134х380 F10 | X8: 1758 | Y8: 1598
B9: Шкаф (420) 1дв 1240х560 | D9: 560х420х1240 | E9: 7339 | F9: 9919 | G9: 7729 | H9: 8689 | I9: 6189 | J9: 6249 | K9: 6449 | L9: 6989 | N9: 9119 | O9: 9789 | P9: 10579 | Q9: 11659 | R9: 11789 | S9: - | T9: - | W9: Зеркало 1134х520 F10 | X9: 2042 | Y9: 1856
B10: Шкаф (420) 1дв витрина 1240х420 | D10: 420 | E10: 7465 | F10: 9395 | G10: 7755 | H10: 8475 | I10: 6189 | J10: 6249 | K10: 6399 | L10: 6819 | N10: 8759 | O10: 9579 | P10: 9899 | Q10: 10739 | R10: 9079 | S10: - | T10: - | W10: Зеркало 1165х402 3 мм. | X10: 752 | Y10: 683
B11: Шкаф (420) 1дв витрина 1240х560 | D11: 560 | E11: 8851 | F11: 11431 | G11: 9241 | H11: 10201 | I11: 7104 | J11: 7174 | K11: 7384 | L11: 7944 | N11: 10384 | O11: 11334 | P11: 11904 | Q11: 13034 | R11: 10164 | S11: - | T11: - | W11: Зеркало 1230х410 F10 | X11: 1896 | Y11: 1723
B12: Шкаф (420) 1дв витрина 2040х420 | D12: 420 | E12: 10377 | F12: 13587 | G12: 10857 | H12: 12057 | I12: 8228 | J12: 8318 | K12: 8588 | L12: 9298 | N12: 12378 | O12: 13538 | P12: 14318 | Q12: 15748 | R12: 12488 | S12: - | T12: - | W12: Зеркало 1232х412 F10 | X12: 2086 | Y12: 1896
B13: Шкаф (420) 1дв витрина 2040х560 | D13: 560 | E13: 11859 | F13: 16149 | G13: 12509 | H13: 14109 | I13: 8909 | J13: 9029 | K13: 9379 | L13: 10329 | N13: 14199 | O13: 15479 | P13: 16789 | Q13: 18709 | R13: 13269 | S13: - | T13: - | W13: Зеркало 1280х318 | X13: 784 | Y13: 712
B14: Шкаф (420) 1дв витрина 2240х420 | D14: 420 | E14: 11265 | F14: 14795 | G14: 11795 | H14: 13115 | I14: 8894 | J14: 8994 | K14: 9294 | L14: 10074 | N14: 13444 | O14: 14684 | P14: 15584 | Q14: 17164 | R14: 13504 | S14: - | T14: - | W14: Зеркало 1399х384 3мм. | X14: 866 | Y14: 787
B15: Шкаф (420) 1дв 2ящ 2040х420 | D15: 420 | E15: 10395 | F15: 13605 | G15: 10885 | H15: 12085 | I15: 8965 | J15: 9025 | K15: 9285 | L15: 9945 | N15: 12965 | O15: 14215 | P15: 14805 | Q15: 16135 | R15: 16875 | S15: =S4 -> 849 | T15: =X20 -> 2090 | W15: Зеркало 1498х364 шлиф | X15: 669 | Y15: 608
B16: Шкаф (420) 1дв 2ящ 2240х420 | D16: 420 | E16: 11201 | F16: 14741 | G16: 11741 | H16: 13061 | I16: 9621 | J16: 9701 | K16: 9981 | L16: 10711 | N16: 13991 | O16: 15311 | P16: 16011 | Q16: 17481 | R16: 18201 | S16: =S6 -> 963 | T16: =X25 -> 2281 | W16: Зеркало 1500х320 | X16: 849 | Y16: 771
B17: Шкаф (420) 1дв 2ящ 2040х560 | D17: 560 | E17: 12226 | F17: 16516 | G17: 12876 | H17: 14486 | I17: 10296 | J17: 10406 | K17: 10756 | L17: 11626 | N17: 15436 | O17: 16836 | P17: 17876 | Q17: 19656 | R17: 20056 | S17: =S5 -> 1220 | T17: =X22 -> 2448 | W17: Зеркало 1500х460 | X17: 1220 | Y17: 1109
B18: Шкаф (420) 1дв 2ящ 2240х560 | D18: 560 | E18: 13198 | F18: 17918 | G18: 13918 | H18: 15688 | I18: 11088 | J18: 11208 | K18: 11588 | L18: 12548 | N18: 16678 | O18: 18148 | P18: 19368 | Q18: 21318 | R18: 21658 | S18: =S7 -> 1490 | T18: =X27 -> 2797 | W18: Зеркало 1570х386 шлиф | X18: 1241 | Y18: 1128
B19: Шкаф (420) 1дв 2ящ Шар 2040х420 | D19: 420 | E19: 10934 | F19: 14144 | G19: 11424 | H19: 12624 | I19: 9504 | J19: 9564 | K19: 9824 | L19: 10484 | N19: 13504 | O19: 14754 | P19: 15344 | Q19: 16674 | R19: 17414 | S19: =S15 -> 849 | T19: =T15 -> 2090 | W19: Зеркало 1570х526 шлиф | X19: 1616 | Y19: 1469
B20: Шкаф (420) 1дв 2ящ Шар 2240х420 | D20: 420 | E20: 11730 | F20: 15270 | G20: 12270 | H20: 13590 | I20: 10150 | J20: 10230 | K20: 10510 | L20: 11240 | N20: 14520 | O20: 15840 | P20: 16540 | Q20: 18010 | R20: 18730 | S20: =S16 -> 963 | T20: 2281 | W20: Зеркало 1592х318 F10 | X20: 2090 | Y20: 1900
B21: Шкаф (420) 1дв 2ящ Шар 2040х560 | D21: 560 | E21: 12697 | F21: 16987 | G21: 13347 | H21: 14957 | I21: 10767 | J21: 10877 | K21: 11227 | L21: 12097 | N21: 15907 | O21: 17307 | P21: 18347 | Q21: 20127 | R21: 20527 | S21: 1220 | T21: 2448 | W21: Зеркало 1592х318 еврокр | X21: 871 | Y21: 791
B22: Шкаф (420) 1дв 2ящ Шар 2240х560 | D22: 560 | E22: 13609 | F22: 18329 | G22: 14329 | H22: 16099 | I22: 11499 | J22: 11619 | K22: 11999 | L22: 12959 | N22: 17089 | O22: 18559 | P22: 19779 | Q22: 21729 | R22: 22069 | S22: 1490 | T22: 2797 | W22: Зеркало 1592х458 F10 | X22: 2448
B23: Шкаф (420) 1дв 2ящ витрина 2040х420 | D23: 420 | E23: 11171 | F23: 14381 | G23: 11661 | H23: 12861 | I23: 9115 | J23: 9185 | K23: 9455 | L23: 10145 | N23: 13455 | O23: 14925 | P23: 15375 | Q23: 16765 | R23: 14735 | S23: - | T23: - | W23: Зеркало 1700х320 | X23: 963
B24: Шкаф (420) 1дв 2ящ витрина 2240х420 | D24: 420 | E24: 11992 | F24: 15532 | G24: 12532 | H24: 13852 | I24: 9794 | J24: 9874 | K24: 10174 | L24: 10924 | N24: 14524 | O24: 16074 | P24: 16644 | Q24: 18184 | R24: 15754 | S24: - | T24: - | W24: Зеркало 1700х460 | X24: 1490
B25: Шкаф (420) 2дв 1ящ 2040х420 | D25: 420 | E25: 9870 | F25: 13090 | G25: 10360 | H25: 11560 | I25: 8430 | J25: 8510 | K25: 8760 | L25: 9420 | N25: 12440 | O25: 13680 | P25: 14270 | Q25: 15600 | R25: 16550 | S25: - | T25: - | W25: Зеркало 1792х318 F10 | X25: 2281
B26: Шкаф (420) 2дв 1ящ 2240х420 | D26: 420 | E26: 10664 | F26: 14204 | G26: 11204 | H26: 12524 | I26: 9084 | J26: 9164 | K26: 9444 | L26: 10174 | N26: 13454 | O26: 14774 | P26: 15464 | Q26: 16934 | R26: 17864 | S26: - | T26: - | W26: Зеркало 1792х318 еврокр | X26: 987
B27: Шкаф (420) 2дв 1ящ витрина 2040х420 | D27: 420 | E27: 10643 | F27: 13863 | G27: 11133 | H27: 12333 | I27: 8631 | J27: 8711 | K27: 8961 | L27: 9641 | N27: 13061 | O27: 14701 | P27: 14911 | Q27: 16281 | R27: 14371 | S27: - | T27: - | W27: Зеркало 1792х458 F10 | X27: 2797
B28: Шкаф (420) 2дв 1ящ витрина 2240х420 | D28: 420 | E28: 11602 | F28: 15142 | G28: 12142 | H28: 13462 | I28: 9368 | J28: 9458 | K28: 9738 | L28: 10488 | N28: 14198 | O28: 15918 | P28: 16258 | Q28: 17768 | R28: 15458 | S28: - | T28: - | W28: Зеркало 1920х300 | X28: 1019
B29: Шкаф (420) 2дв 1ящ шар 2040х420 | D29: 420 | E29: 10064 | F29: 13284 | G29: 10554 | H29: 11754 | I29: 8624 | J29: 8704 | K29: 8954 | L29: 9614 | N29: 12634 | O29: 13874 | P29: 14464 | Q29: 15794 | R29: 16744 | W29: Зеркало 1992х318 F10 | X29: 2473
B30: Шкаф (420) 2дв 1ящ шар 2240х420 | D30: 420 | E30: 10851 | F30: 14391 | G30: 11391 | H30: 12711 | I30: 9271 | J30: 9351 | K30: 9631 | L30: 10361 | N30: 13641 | O30: 14961 | P30: 15651 | Q30: 17121 | R30: 18051 | W30: Зеркало 1992х458 F10 | X30: 3084
B31: Шкаф (420) 2дв 1ящ шар витрина 2040х420 | D31: 420 | E31: 10965 | F31: 14185 | G31: 11455 | H31: 12655 | I31: 8953 | J31: 9033 | K31: 9283 | L31: 9963 | N31: 13383 | O31: 15023 | P31: 15233 | Q31: 16603 | R31: 14693 | W31: Зеркало 2028х384 F10 | X31: 2675
B32: Шкаф (420) 2дв 1ящ шар витрина 2240х420 | D32: 420 | E32: 11785 | F32: 15325 | G32: 12325 | H32: 13645 | I32: 9551 | J32: 9641 | K32: 9921 | L32: 10671 | N32: 14381 | O32: 16101 | P32: 16441 | Q32: 17951 | R32: 15641 | W32: Зеркало 2192х318 F10 | X32: 2675
B33: Шкаф (420) 2дв 2040х840 | D33: 840 | E33: 15950 | F33: 22370 | G33: 16910 | H33: 19310 | I33: 13050 | J33: 13210 | K33: 13710 | L33: 15050 | N33: 20530 | O33: 22370 | P33: 24190 | Q33: 26870 | R33: 27450 | S33: =S15*2 -> 1698 | T33: =X29*2 -> 4946 | W33: Зеркало 2192х458 F10 | X33: 3130
B34: Шкаф (420) 2дв 2240х840 | D34: 840 | E34: 17319 | F34: 24379 | G34: 18379 | H34: 21019 | I34: 14139 | J34: 14319 | K34: 14879 | L34: 16339 | N34: 22339 | O34: 24339 | P34: 26359 | Q34: 29299 | R34: 29859 | S34: =S16*2 -> 1926 | T34: =X32*2 -> 5350 | W34: Зеркало 520х690 еврокр | X34: 1015
B35: Шкаф (420) комб 2дв 2040х840 | D35: 840 | E35: 17280 | F35: 23700 | G35: 18240 | H35: 20640 | I35: 14380 | J35: 14540 | K35: 15040 | L35: 16380 | N35: 21860 | O35: 23700 | P35: 25520 | Q35: 28200 | R35: 28780 | S35: =S33 -> 1698 | T35: =T33 -> 4946 | W35: Зеркало 568х688 3 мм. фиг. | X35: 1071
B36: Шкаф (420) комб 2дв 2240х840 | D36: 840 | E36: 18524 | F36: 25584 | G36: 19584 | H36: 22224 | I36: 15344 | J36: 15524 | K36: 16084 | L36: 17544 | N36: 23544 | O36: 25544 | P36: 27564 | Q36: 30504 | R36: 31064 | S36: =S34 -> 1926 | T36: =T34 -> 5350 | W36: Зеркало 600х560 (прямое) F10 | X36: 1441
B37: Шкаф (420) 2дв витрина 2040х840 | D37: 840 | E37: 18425 | F37: 24845 | G37: 19385 | H37: 21785 | I37: 13447 | J37: 13627 | K37: 14167 | L37: 15587 | N37: 21747 | O37: 24067 | P37: 25627 | Q37: 28487 | R37: 21967 | S37: - | T37: - | W37: Зеркало 600х560 (трапеция) F10 | X37: 1441
B38: Шкаф (420) 2дв витрина 2240х840 | D38: 840 | E38: 20041 | F38: 27101 | G38: 21101 | H38: 23741 | I38: 14545 | J38: 14745 | K38: 15345 | L38: 16905 | N38: 23645 | O38: 26125 | P38: 27925 | Q38: 31085 | R38: 23765 | S38: - | T38: - | W38: Зеркало 600х760 (прямое) F10 | X38: 1711
B39: Шкаф (420) 2дв 2ящ 2040х840 | D39: 840 | E39: 17005 | F39: 23425 | G39: 17985 | H39: 20365 | I39: 14125 | J39: 14285 | K39: 14785 | L39: 16125 | N39: 22025 | O39: 24365 | P39: 25685 | Q39: 28345 | R39: 29365 | S39: =S33 -> 1698 | T39: =T33 -> 4946 | W39: Зеркало 600х760 (трапеция) F10 | X39: 1711
B40: Шкаф (420) 2дв 2ящ 2240х840 | D40: 840 | E40: 18402 | F40: 25482 | G40: 19482 | H40: 22102 | I40: 15222 | J40: 15422 | K40: 15962 | L40: 17442 | N40: 23862 | O40: 26342 | P40: 27882 | Q40: 30822 | R40: 31802 | S40: =S34 -> 1926 | T40: =T34 -> 5350 | W40: Зеркало 600х960 (прямое) F10 | X40: 1974
B41: Шкаф (420) 2дв 2ящ витрина 2040х840 | D41: 840 | E41: 18960 | F41: 25380 | G41: 19940 | H41: 22320 | I41: 14428 | J41: 14608 | K41: 15128 | L41: 16528 | N41: 23008 | O41: 25788 | P41: 26828 | Q41: 29608 | R41: 25088 | S41: - | T41: - | W41: Зеркало 600х960 (трапеция) F10 | X41: 1974
B42: Шкаф (420) 2дв 2ящ витрина 2240х840 | D42: 840 | E42: 20338 | F42: 27418 | G42: 21418 | H42: 24038 | I42: 15310 | J42: 15510 | K42: 16090 | L42: 17610 | N42: 24670 | O42: 27610 | P42: 28890 | Q42: 31970 | R42: 26650 | S42: - | T42: - | W42: Зеркало 700х600 | X42: 744
B43: Шкаф (420) 2дв 2ящ шар 2040х840 | D43: 840 | E43: 17130 | F43: 23550 | G43: 18110 | H43: 20490 | I43: 14250 | J43: 14410 | K43: 14910 | L43: 16250 | N43: 22150 | O43: 24490 | P43: 25810 | Q43: 28470 | R43: 29490 | S43: - | T43: - | W43: Зеркало 800х580 | X43: 823
B44: Шкаф (420) 2дв 2ящ шар 2240х840 | D44: 840 | E44: 18500 | F44: 25580 | G44: 19580 | H44: 22200 | I44: 15320 | J44: 15520 | K44: 16060 | L44: 17540 | N44: 23960 | O44: 26440 | P44: 27980 | Q44: 30920 | R44: 31900 | S44: - | T44: - | W44: Зеркало 700х600 | X44: 520
B45: Шкаф (420) 2дв 2ящ шар витрина 2040х840 | D45: 840 | E45: 19080 | F45: 25500 | G45: 20060 | H45: 22440 | I45: 14548 | J45: 14728 | K45: 15248 | L45: 16648 | N45: 23128 | O45: 25908 | P45: 26948 | Q45: 29728 | R45: 25208 | S45: - | T45: - | W45: Зеркало 800х580 | X45: 575
B46: Шкаф (420) 2дв 2ящ шар витрина 2240х840 | D46: 840 | E46: 20965 | F46: 28045 | G46: 22045 | H46: 24665 | I46: 15937 | J46: 16137 | K46: 16717 | L46: 18237 | N46: 25297 | O46: 28237 | P46: 29517 | Q46: 32597 | R46: 27277 | S46: - | T46: -
B47: Шкаф (420) 1дв полувитрина 2040х420 | D47: 420х440х2040 | E47: 10400 | F47: 13610 | G47: 10880 | H47: 12080 | I47: 8364 | J47: 8454 | K47: 8724 | L47: 9434 | N47: 12514 | O47: 13674 | P47: 14454 | Q47: 15884 | R47: 12624 | S47: - | T47: -
B48: Шкаф (420) 1дв полувитрина 2040х560 | D48: 560х440х2040 | E48: 12313 | F48: 16603 | G48: 12963 | H48: 14563 | I48: 9527 | J48: 9647 | K48: 9997 | L48: 10947 | N48: 14817 | O48: 16097 | P48: 17407 | Q48: 19327 | R48: 13887 | S48: - | T48: -
B49: Шкаф (420) 1дв полувитрина 2240х420 | D49: 420х440х2240 | E49: 11229 | F49: 14759 | G49: 11759 | H49: 13079 | I49: 9041 | J49: 9141 | K49: 9441 | L49: 10221 | N49: 13591 | O49: 14831 | P49: 15731 | Q49: 17311 | R49: 13651 | S49: - | T49: -
B50: Шкаф (420) 1дв полувитрина 2240х560 | D50: 560х440х2240 | E50: 13321 | F50: 18051 | G50: 14041 | H50: 15801 | I50: 10333 | J50: 10463 | K50: 10863 | L50: 11903 | N50: 16133 | O50: 17493 | P50: 18993 | Q50: 21103 | R50: 15033 | S50: - | T50: -
B51: Шкаф (420) 2дв полувитрина 2040х840 | D51: 840х440х2040 | E51: 18033 | F51: 24453 | G51: 18993 | H51: 21393 | I51: 13561 | J51: 13741 | K51: 14281 | L51: 15701 | N51: 21861 | O51: 24181 | P51: 25741 | Q51: 28601 | R51: 22081 | S51: - | T51: -
B52: Шкаф (420) 2дв полувитрина 2240х840 | D52: 840х440х2240 | E52: 19658 | F52: 26718 | G52: 20718 | H52: 23358 | I52: 14670 | J52: 14870 | K52: 15470 | L52: 17030 | N52: 23770 | O52: 26250 | P52: 28050 | Q52: 31210 | R52: 23890 | S52: - | T52: -
B53: Шкаф (420) 1дв витрина 1дв глух 2040х420 | D53: 420х440х2040 | E53: 10915 | F53: 14125 | G53: 11405 | H53: 12605 | I53: 8849 | J53: 8939 | K53: 9199 | L53: 9899 | N53: 13069 | O53: 14369 | P53: 14979 | Q53: 16369 | R53: 14319 | S53: - | T53: -
B54: Шкаф (420) 1дв витрина 1дв глух 2040х560 | D54: 560х440х2040 | E54: 12843 | F54: 17123 | G54: 13483 | H54: 15093 | I54: 10007 | J54: 10127 | K54: 10467 | L54: 11407 | N54: 15397 | O54: 16867 | P54: 17937 | Q54: 19817 | R54: 16057 | S54: - | T54: -
B55: Шкаф (420) 1дв витрина 1дв глух 2240х420 | D55: 420х440х2240 | E55: 11746 | F55: 15286 | G55: 12286 | H55: 13606 | I55: 9538 | J55: 9638 | K55: 9928 | L55: 10688 | N55: 14148 | O55: 15528 | P55: 16258 | Q55: 17798 | R55: 15348 | S55: - | T55: -
B56: Шкаф (420) 1дв витрина 1дв глух 2240х560 | D56: 560х440х2240 | E56: 13855 | F56: 18565 | G56: 14565 | H56: 16335 | I56: 10817 | J56: 10957 | K56: 11337 | L56: 12367 | N56: 16717 | O56: 18277 | P56: 19527 | Q56: 21597 | R56: 17197 | S56: - | T56: -
B57: Шкаф (420) 1дв витрина зеркало 1дв глух 2040х420 | D57: 420х440х2040 | E57: 13608 | F57: 16818 | G57: 14098 | H57: 15298 | I57: 11542 | J57: 11632 | K57: 11892 | L57: 12592 | N57: 15762 | O57: 17062 | P57: 17672 | Q57: 19062 | R57: 17012
B58: Шкаф (420) 1дв витрина зеркало 1дв глух 2040х560 | D58: 560х440х2040 | E58: 16064 | F58: 20344 | G58: 16704 | H58: 18314 | I58: 13228 | J58: 13348 | K58: 13688 | L58: 14628 | N58: 18618 | O58: 20088 | P58: 21158 | Q58: 23038 | R58: 19278
B59: Шкаф (420) 2дв витрина 2дв глух 2040х840 | D59: 840х440х2040 | E59: 18980 | F59: 25400 | G59: 19960 | H59: 22360 | I59: 14448 | J59: 14628 | K59: 15148 | L59: 16548 | N59: 22888 | O59: 25488 | P59: 26708 | Q59: 29488 | R59: 25388
B60: Шкаф (420) 2дв витрина 2дв глух 2240х840 | D60: 840х440х2240 | E60: 20609 | F60: 27689 | G60: 21689 | H60: 24329 | I60: 15581 | J60: 15781 | K60: 16361 | L60: 17881 | N60: 24801 | O60: 27561 | P60: 29021 | Q60: 32101 | R60: 27201
B61: Шкаф (420) ДО 1дв 2040х560 | D61: 560х440х2040 | E61: 10704 | F61: 14994 | G61: 11354 | H61: 12954 | I61: 8774 | J61: 8884 | K61: 9224 | L61: 10114 | N61: 13544 | O61: 14514 | P61: 15974 | Q61: 17774 | R61: 17644 | S61: =S5 -> 1220 | T61: =T5 -> 3084
B62: Шкаф (420) ДО 1дв 2240х560 | D62: 560х440х2240 | E62: 11372 | F62: 16102 | G62: 12092 | H62: 13852 | I62: 9252 | J62: 9382 | K62: 9742 | L62: 10722 | N62: 14482 | O62: 15532 | P62: 17162 | Q62: 19132 | R62: 18942 | S62: =S18 -> 1490 | T62: =T18 -> 2797
B63: Шкаф (420) ДО 2дв 2040х840 | D63: 840 | E63: 15129 | F63: 21549 | G63: 16089 | H63: 18489 | I63: 12229 | J63: 12389 | K63: 12889 | L63: 14229 | N63: 19709 | O63: 21549 | P63: 23369 | Q63: 26049 | R63: 26629 | S63: =S39 -> 1698 | T63: =T39 -> 4946
B64: Шкаф (420) ДО 2дв 2240х840 | D64: 840 | E64: 16044 | F64: 23104 | G64: 17104 | H64: 19744 | I64: 12864 | J64: 13044 | K64: 13604 | L64: 15064 | N64: 21064 | O64: 23064 | P64: 25084 | Q64: 28024 | R64: 28584 | S64: =S40 -> 1926 | T64: =T40 -> 5350
B65: Шкаф (420) ДО 2дв 2ящ 2040х840 | D65: 840 | E65: 16231 | F65: 22651 | G65: 17211 | H65: 19591 | I65: 13351 | J65: 13511 | K65: 14011 | L65: 15351 | N65: 21251 | O65: 23591 | P65: 24911 | Q65: 27571 | R65: 28591 | S65: =S63 -> 1698 | T65: 4946
B66: Шкаф (420) ДО 2дв 2ящ 2240х840 | D66: 840 | E66: 17147 | F66: 24227 | G66: 18227 | H66: 20847 | I66: 13967 | J66: 14167 | K66: 14707 | L66: 16187 | N66: 22607 | O66: 25087 | P66: 26627 | Q66: 29567 | R66: 30547 | S66: 1926 | T66: 5350
B67: Шкаф (420) ДО 2дв 2ящ шар 2040х840 | D67: 840 | E67: 16952 | F67: 23372 | G67: 17932 | H67: 20312 | I67: 14072 | J67: 14232 | K67: 14732 | L67: 16072 | N67: 21972 | O67: 24312 | P67: 25632 | Q67: 28292 | R67: 29312 | S67: 1698 | T67: 4946
B68: Шкаф (420) ДО 2дв 2ящ шар 2240х840 | D68: 840 | E68: 17877 | F68: 24957 | G68: 18957 | H68: 21577 | I68: 14697 | J68: 14897 | K68: 15437 | L68: 16917 | N68: 23337 | O68: 25817 | P68: 27357 | Q68: 30297 | R68: 31277 | S68: 1926 | T68: 5350
B69: Шкаф (420) Ниша 2дв 2040х420 | D69: 420 | E69: 9087 | F69: 11667 | G69: 9487 | H69: 10447 | I69: 7947 | J69: 8007 | K69: 8207 | L69: 8747 | N69: 11107 | O69: 12027 | P69: 12567 | Q69: 13627 | R69: 14387 | S69: - | T69: -
B70: Шкаф (420) Ниша 2дв 2040х560 | D70: 560 | E70: 11701 | F70: 15141 | G70: 12221 | H70: 13501 | I70: 10161 | J70: 10261 | K70: 10521 | L70: 11221 | N70: 14201 | O70: 15241 | P70: 16141 | Q70: 17581 | R70: 18101
B71: Шкаф (420) Ниша 2дв 2240х420 | D71: 420 | E71: 9908 | F71: 12798 | G71: 10348 | H71: 11428 | I71: 8608 | J71: 8688 | K71: 8908 | L71: 9508 | N71: 12138 | O71: 13128 | P71: 13778 | Q71: 14978 | R71: 15718 | S71: - | T71: -
B72: Шкаф (420) Ниша 2дв 2240х560 | D72: 560 | E72: 12890 | F72: 16750 | G72: 13470 | H72: 14910 | I72: 11150 | J72: 11260 | K72: 11560 | L72: 12350 | N72: 15650 | O72: 16760 | P72: 17840 | Q72: 19450 | R72: 19910
B73: Шкаф (420) Ниша 4дв 2040х840 | D73: 840 | E73: 15194 | F73: 20354 | G73: 15994 | H73: 17914 | I73: 12914 | J73: 13034 | K73: 13434 | L73: 14514 | N73: 19234 | O73: 21074 | P73: 22154 | Q73: 24274 | R73: 25794 | S73: - | T73: -
B74: Шкаф (420) Ниша 4дв 2240х840 | D74: 840 | E74: 18622 | F74: 24402 | G74: 19502 | H74: 21662 | I74: 16022 | J74: 16182 | K74: 16622 | L74: 17822 | N74: 23082 | O74: 25062 | P74: 26362 | Q74: 28762 | R74: 30242 | S74: - | T74: -
B75: Шкаф (420) Торцевой 2040х420 ЛЕВ\ПР | D75: 420 | E75: 11678 | F75: 16768 | G75: 12448 | H75: 14338 | I75: 9378 | J75: 9518 | K75: 9908 | L75: 10978 | N75: 15598 | O75: 17368 | P75: 18478 | Q75: 20608 | R75: 20888 | S75: - | T75: -
B76: Шкаф (420) Торцевой 2240х420 ЛЕВ\ПР | D76: 420 | E76: 12597 | F76: 18207 | G76: 13457 | H76: 15537 | I76: 10087 | J76: 10227 | K76: 10667 | L76: 11827 | N76: 16897 | O76: 18827 | P76: 20077 | Q76: 22417 | R76: 22647 | S76: - | T76: -
B77: Шкаф (420) 4 двери, 1160х1120 | D77: 1120х440х1160 | E77: 14436 | F77: 19236 | G77: 15156 | H77: 16956 | I77: 12276 | J77: 12396 | K77: 12796 | L77: 13796 | N77: 18156 | O77: 19876 | P77: 20876 | Q77: 22876 | R77: 24276 | S77: - | T77: -
B78: Шкафы глубиной 560мм
B79: Шкаф (560) 1дв 2040х420 | D79: 420 | E79: 10627 | F79: 13837 | G79: 11107 | H79: 12307 | I79: 9177 | J79: 9257 | K79: 9507 | L79: 10177 | N79: 12917 | O79: 13837 | P79: 14747 | Q79: 16087 | R79: 16377 | S79: =S4 -> 849 | T79: 2473
B80: Шкаф (560) 1дв 2040х560 | D80: 560 | E80: 12511 | F80: 16801 | G80: 13161 | H80: 14761 | I80: 10581 | J80: 10691 | K80: 11031 | L80: 11921 | N80: 15351 | O80: 16321 | P80: 17781 | Q80: 19581 | R80: 19451 | S80: 1220 | T80: 3084
B81: Шкаф (560) 1дв 2240х420 | D81: 420 | E81: 11668 | F81: 15198 | G81: 12198 | H81: 13518 | I81: 10078 | J81: 10168 | K81: 10448 | L81: 11178 | N81: 14178 | O81: 15178 | P81: 16188 | Q81: 17658 | R81: 17938 | S81: 963 | T81: 2675
B82: Шкаф (560) 1дв 2240х560 | D82: 560 | E82: 13622 | F82: 18352 | G82: 14342 | H82: 16102 | I82: 11502 | J82: 11632 | K82: 11992 | L82: 12972 | N82: 16732 | O82: 17782 | P82: 19412 | Q82: 21382 | R82: 21192 | S82: 1490 | T82: 3130
B83: Шкаф (560) 1дв 2ящ 2040х420 | D83: 420х580х2040 | E83: 12089 | F83: 15299 | G83: 12579 | H83: 13779 | I83: 10659 | J83: 10719 | K83: 10979 | L83: 11639 | N83: 14659 | O83: 15909 | P83: 16499 | Q83: 17829 | R83: 18569 | S83: =S79 -> 849 | T83: =T79 -> 2473
B84: Шкаф (560) 1дв 2ящ 2040х560 | D84: 560 | E84: 13753 | F84: 18043 | G84: 14403 | H84: 16013 | I84: 11823 | J84: 11933 | K84: 12283 | L84: 13153 | N84: 16963 | O84: 18363 | P84: 19403 | Q84: 21183 | R84: 21583 | S84: =S80 -> 1220 | T84: =T80 -> 3084
B85: Шкаф (560) 1дв 2ящ 2240х420 | D85: 420х580х2240 | E85: 12809 | F85: 16349 | G85: 13349 | H85: 14669 | I85: 11229 | J85: 11309 | K85: 11589 | L85: 12319 | N85: 15599 | O85: 16919 | P85: 17619 | Q85: 19089 | R85: 19809 | S85: =S81 -> 963 | T85: 2675
B86: Шкаф (560) 1дв 2ящ 2240х560 | D86: 560 | E86: 14892 | F86: 19612 | G86: 15612 | H86: 17382 | I86: 12782 | J86: 12902 | K86: 13282 | L86: 14242 | N86: 18372 | O86: 19842 | P86: 21062 | Q86: 23012 | R86: 23352 | S86: =S82 -> 1490 | T86: 3130
B87: Шкаф (560) 2дв 1ящ 2040х560 | D87: 560 | E87: 12834 | F87: 17124 | G87: 13484 | H87: 15084 | I87: 10904 | J87: 11014 | K87: 11354 | L87: 12234 | N87: 16044 | O87: 17434 | P87: 18474 | Q87: 20264 | R87: 20924 | S87: - | T87: -
B88: Шкаф (560) 2дв 1ящ 2240х560 | D88: 560 | E88: 13990 | F88: 18700 | G88: 14700 | H88: 16460 | I88: 11870 | J88: 11990 | K88: 12360 | L88: 13330 | N88: 17460 | O88: 18930 | P88: 20140 | Q88: 22100 | R88: 22700 | S88: - | T88: -
B89: Шкаф (560) 2дв 2040х840 | D89: 840 | E89: 17684 | F89: 24104 | G89: 18644 | H89: 21044 | I89: 14784 | J89: 14944 | K89: 15444 | L89: 16784 | N89: 22264 | O89: 24104 | P89: 25924 | Q89: 28604 | R89: 29184 | S89: =S65 -> 1698 | T89: =T65 -> 4946
B90: Шкаф (560) 2дв 2240х840 | D90: 840 | E90: 19270 | F90: 26330 | G90: 20330 | H90: 22970 | I90: 16090 | J90: 16270 | K90: 16830 | L90: 18290 | N90: 24290 | O90: 26290 | P90: 28310 | Q90: 31250 | R90: 31810 | S90: =S66 -> 1926 | T90: =T66 -> 5350
B91: Шкаф (560) 2дв 2ящ 2040х840 | D91: 840 | E91: 18749 | F91: 25169 | G91: 19729 | H91: 22109 | I91: 15869 | J91: 16029 | K91: 16529 | L91: 17869 | N91: 23769 | O91: 26109 | P91: 27429 | Q91: 30089 | R91: 31109 | S91: =S89 -> 1698 | T91: =T89 -> 4946
B92: Шкаф (560) 2дв 2ящ 2240х840 | D92: 840 | E92: 20335 | F92: 27415 | G92: 21415 | H92: 24035 | I92: 17155 | J92: 17355 | K92: 17895 | L92: 19375 | N92: 25795 | O92: 28275 | P92: 29815 | Q92: 32755 | R92: 33735 | S92: =S90 -> 1926 | T92: =T90 -> 5350
B93: Шкаф (560) ДО 1дв 2040х420 | D93: 420 | E93: 10015 | F93: 13225 | G93: 10495 | H93: 11695 | I93: 8565 | J93: 8645 | K93: 8895 | L93: 9565 | N93: 12305 | O93: 13225 | P93: 14135 | Q93: 15475 | R93: 15765 | S93: =S4 -> 849 | T93: =T4 -> 2473
B94: Шкаф (560) ДО 1дв 2040х560 | D94: 560 | E94: 11539 | F94: 15829 | G94: 12189 | H94: 13789 | I94: 9609 | J94: 9719 | K94: 10059 | L94: 10949 | N94: 14379 | O94: 15349 | P94: 16809 | Q94: 18609 | R94: 18479 | S94: =S5 -> 1220 | T94: =T5 -> 3084
B95: Шкаф (560) ДО 1дв 2240х420 | D95: 420 | E95: 10653 | F95: 14183 | G95: 11183 | H95: 12503 | I95: 9063 | J95: 9153 | K95: 9433 | L95: 10163 | N95: 13163 | O95: 14163 | P95: 15173 | Q95: 16643 | R95: 16923 | S95: =S85 -> 963 | T95: 1545
B96: Шкаф (560) ДО 1дв 2240х560 | D96: 560 | E96: 12261 | F96: 16991 | G96: 12981 | H96: 14741 | I96: 10141 | J96: 10271 | K96: 10631 | L96: 11611 | N96: 15371 | O96: 16421 | P96: 18051 | Q96: 20021 | R96: 19831 | S96: =S82 -> 1490 | T96: =T82 -> 3130
B97: Шкаф (560) ДО 2дв 2040х840 | D97: 840 | E97: 16290 | F97: 22710 | G97: 17250 | H97: 19650 | I97: 13390 | J97: 13550 | K97: 14050 | L97: 15390 | N97: 20870 | O97: 22710 | P97: 24530 | Q97: 27210 | R97: 27790 | S97: =S89 -> 1698 | T97: =T89 -> 4946
B98: Шкаф (560) ДО 2дв 2040х1120 | D98: 1120 | E98: 19417 | F98: 27997 | G98: 20717 | H98: 23917 | I98: 15557 | J98: 15777 | K98: 16457 | L98: 18237 | N98: 25097 | O98: 27037 | P98: 29957 | Q98: 33557 | R98: 33297 | S98: =S5*2 -> 2440 | T98: 6168
B99: Шкаф (560) ДО 2дв 2240х840 | D99: 840 | E99: 17273 | F99: 24333 | G99: 18333 | H99: 20973 | I99: 14093 | J99: 14273 | K99: 14833 | L99: 16293 | N99: 22293 | O99: 24293 | P99: 26313 | Q99: 29253 | R99: 29813 | S99: 1926 | T99: 5350
B100: Шкаф (560) ДО 2дв 2240х1120 | D100: 1120 | E100: 20611 | F100: 30071 | G100: 22051 | H100: 25571 | I100: 16371 | J100: 16631 | K100: 17351 | L100: 19311 | N100: 26831 | O100: 28931 | P100: 32191 | Q100: 36131 | R100: 35751 | S100: 2980 | T100: 6260
B101: Шкаф (560) ДО 2дв 2ящ 2040х840 | D101: 840 | E101: 18240 | F101: 24660 | G101: 19220 | H101: 21600 | I101: 15360 | J101: 15520 | K101: 16020 | L101: 17360 | N101: 23260 | O101: 25600 | P101: 26920 | Q101: 29580 | R101: 30600 | S101: =S93*2 -> 1698 | T101: =T93*2 -> 4946
B102: Шкаф (560) ДО 2дв 2ящ 2240х840 | D102: 840 | E102: 19223 | F102: 26303 | G102: 20303 | H102: 22923 | I102: 16043 | J102: 16243 | K102: 16783 | L102: 18263 | N102: 24683 | O102: 27163 | P102: 28703 | Q102: 31643 | R102: 32623 | S102: =S100 -> 2980 | T102: =T100 -> 6260
B103: Шкаф (560) Комб 2дв 2040х840 | D103: 840 | E103: 18946 | F103: 25366 | G103: 19906 | H103: 22306 | I103: 16046 | J103: 16206 | K103: 16706 | L103: 18046 | N103: 23526 | O103: 25366 | P103: 27186 | Q103: 29866 | R103: 30446 | S103: =S93*2 -> 1698 | T103: =T93*2 -> 4946
B104: Шкаф (560) Комб 2дв 2240х840 | D104: 840 | E104: 20357 | F104: 27417 | G104: 21417 | H104: 24057 | I104: 17177 | J104: 17357 | K104: 17917 | L104: 19377 | N104: 25377 | O104: 27377 | P104: 29397 | Q104: 32337 | R104: 32897 | S104: =S94*2 -> 2440 | T104: =T94*2 -> 6168
B105: Шкаф (560) Комб 2дв 2040х1120 | D105: 1120 | E105: 21907 | F105: 30487 | G105: 23207 | H105: 26407 | I105: 18047 | J105: 18267 | K105: 18947 | L105: 20727 | N105: 27587 | O105: 29527 | P105: 32447 | Q105: 36047 | R105: 35787 | S105: =S98 -> 2440 | T105: =T98 -> 6168
B106: Шкаф (560) Комб 2дв 2240х1120 | D106: 1120 | E106: 23481 | F106: 32941 | G106: 24921 | H106: 28441 | I106: 19241 | J106: 19501 | K106: 20221 | L106: 22181 | N106: 29701 | O106: 31801 | P106: 35061 | Q106: 39001 | R106: 38621 | S106: =S96*2 -> 2980 | T106: =T100 -> 6260
B107: Шкаф (560) Комб 3дв 2040х1260 | D107: 1260 | E107: 24924 | F107: 34554 | G107: 26364 | H107: 29964 | I107: 20574 | J107: 20814 | K107: 21564 | L107: 23574 | N107: 31794 | O107: 34554 | P107: 37284 | Q107: 41304 | R107: 42174 | S107: =S93 -> 849 | T107: 1428
B108: Шкаф (560) Комб 3дв 2040х1400 | D108: 1400 | E108: 26432 | F108: 37142 | G108: 28042 | H108: 32042 | I108: 21602 | J108: 21872 | K108: 22712 | L108: 24942 | N108: 33852 | O108: 36662 | P108: 39942 | Q108: 44422 | R108: 44872 | S108: =S94 -> 1220 | T108: =T94 -> 3084
B109: Шкаф (560) Комб 3дв 2040х1680 | D109: 1680 | E109: 29634 | F109: 42504 | G109: 31584 | H109: 36384 | I109: 23844 | J109: 24174 | K109: 25194 | L109: 27864 | N109: 38154 | O109: 41064 | P109: 45444 | Q109: 50844 | R109: 50454 | S109: =S108 -> 1220 | T109: =T108 -> 3084
B110: Шкаф (560) Комб 3дв 2240х1260 | D110: 1260 | E110: 26708 | F110: 37298 | G110: 28298 | H110: 32258 | I110: 21938 | J110: 22208 | K110: 23048 | L110: 25238 | N110: 34238 | O110: 37238 | P110: 40268 | Q110: 44678 | R110: 45518 | S110: =S95 -> 963 | T110: 1545
B111: Шкаф (560) Комб 3дв 2240х1400 | D111: 1400 | E111: 28307 | F111: 40097 | G111: 30087 | H111: 34487 | I111: 23007 | J111: 23317 | K111: 24237 | L111: 26677 | N111: 36437 | O111: 39487 | P111: 43137 | Q111: 48047 | R111: 48417 | S111: =S96 -> 1490 | T111: =T96 -> 3130
B112: Шкаф (560) Комб 3дв 2240х1680 | D112: 1680 | E112: 31969 | F112: 46159 | G112: 34129 | H112: 39409 | I112: 25609 | J112: 25999 | K112: 27079 | L112: 30019 | N112: 41299 | O112: 44449 | P112: 49339 | Q112: 55249 | R112: 54679 | S112: =S111 -> 1490 | T112: =T111 -> 3130
B113: Шкаф (560) Комб 3дв 2ящ 2040х1400 | D113: 1400 | E113: 29711 | F113: 40421 | G113: 31321 | H113: 35331 | I113: 24881 | J113: 25151 | K113: 26001 | L113: 28211 | N113: 37501 | O113: 40741 | P113: 43601 | Q113: 48061 | R113: 49041 | S113: =S108 -> 1220 | T113: =T108 -> 3084
B114: Шкаф (560) Комб 3дв 2ящ 2040х1680 | D114: 1680 | E114: 32693 | F114: 45563 | G114: 34643 | H114: 39453 | I114: 26903 | J114: 27233 | K114: 28263 | L114: 30913 | N114: 41583 | O114: 44923 | P114: 48883 | Q114: 54263 | R114: 54403 | S114: =S109 -> 1220 | T114: =T109 -> 3084
B116: Шкафы глубиной 560мм
B117: Наименование | C117: Эскиз | D117: Ширина, мм | E117: Цена руб.
E118: 1 ЦК | F118: 1 ЦК + патина | G118: 2 ЦК | H118: 3 ЦК | I118: Марго 1 ц.к. | J118: Марго 3 ц.к. | S118: Зеркало в рамке* | T118: Зеркало накладное*
B119: Шкаф (560) Комб 3дв 2ящ 2240х1400 | D119: 1400 | E119: 31809 | F119: 43589 | G119: 33589 | H119: 37999 | I119: 26519 | J119: 26819 | K119: 27759 | L119: 30179 | N119: 40309 | O119: 43779 | P119: 47019 | Q119: 51909 | R119: 52809 | S119: =S111 -> 1490 | T119: =T111 -> 3130
B120: Шкаф (560) Комб 3дв 2ящ 2240х1680 | D120: 1680 | E120: 35011 | F120: 49191 | G120: 37171 | H120: 42461 | I120: 28661 | J120: 29041 | K120: 30141 | L120: 33061 | N120: 44711 | O120: 48281 | P120: 52761 | Q120: 58651 | R120: 58611 | S120: =S112 -> 1490 | T120: =T112 -> 3130
B121: Шкаф (560) Комб 4дв 2040х1960 | D121: 1960 | E121: 37049 | F121: 52049 | G121: 39309 | H121: 44909 | I121: 30289 | J121: 30669 | K121: 31849 | L121: 34969 | N121: 47309 | O121: 51089 | P121: 55829 | Q121: 62109 | R121: 62429 | S121: =S107*2 -> 1698 | T121: =T107*2 -> 2856
B122: Шкаф (560) Комб 4дв 2240х1960 | D122: 1960 | E122: 40042 | F122: 56562 | G122: 42542 | H122: 48702 | I122: 32622 | J122: 33062 | K122: 34342 | L122: 37762 | N122: 51282 | O122: 55382 | P122: 60662 | Q122: 67542 | R122: 67722 | S122: =S110*2 -> 1926 | T122: =T110*2 -> 3090
B123: Шкаф (560) Комб 4дв 2ящ 2040х1960 | D123: 1960 | E123: 37887 | F123: 52887 | G123: 40167 | H123: 45747 | I123: 31147 | J123: 31527 | K123: 32707 | L123: 35827 | N123: 48587 | O123: 52867 | P123: 57107 | Q123: 63367 | R123: 64127 | S123: =S107*2 -> 1698 | T123: =T107*2 -> 2856
B124: Шкаф (560) Комб 4дв 2ящ 2240х1960 | D124: 1960 | E124: 40620 | F124: 57160 | G124: 43140 | H124: 49280 | I124: 33200 | J124: 33660 | K124: 34920 | L124: 38360 | N124: 52300 | O124: 56880 | P124: 61680 | Q124: 68560 | R124: 69160 | S124: =S110*2 -> 1926 | T124: =T110*2 -> 3090
B125: Шкаф (560) Торцевой 2040х420 лев./пр | D125: 420 | E125: 14002 | F125: 20172 | G125: 14932 | H125: 17232 | I125: 11222 | J125: 11392 | K125: 11862 | L125: 13152 | N125: 18472 | O125: 20292 | P125: 21962 | Q125: 24542 | R125: 25262 | S125: - | T125: -
B126: Шкаф (560) Торцевой 2240х420 лев./пр | D126: 420 | E126: 15124 | F126: 21914 | G126: 16154 | H126: 18684 | I126: 12084 | J126: 12254 | K126: 12784 | L126: 14194 | N126: 20014 | O126: 21994 | P126: 23864 | Q126: 26694 | R126: 27394 | S126: - | T126: -
B127: Шкафы антресольные и стеллажи
B128: Шкаф (340) антр 1 дв. 400х1200 | D128: 1200х360х400 | E128: 5402 | F128: 7232 | G128: 5682 | H128: 6362 | I128: 4572 | J128: 4622 | K128: 4762 | L128: 5152 | N128: 6792 | O128: 7392 | P128: 7822 | Q128: 8592 | R128: 8972
B129: Шкаф (340) антр 1 дв. 400х1260 | D129: 1260х360х400 | E129: 5501 | F129: 7431 | G129: 5791 | H129: 6511 | I129: 4631 | J129: 4681 | K129: 4831 | L129: 5231 | N129: 6951 | O129: 7581 | P129: 8041 | Q129: 8841 | R129: 9221 | S129: - | T129: -
B130: Шкаф (340) антр 1 дв. 400х840 | D130: 840х360х400 | E130: 4410 | F130: 5700 | G130: 4610 | H130: 5090 | I130: 3840 | J130: 3870 | K130: 3970 | L130: 4240 | N130: 5420 | O130: 5890 | P130: 6150 | Q130: 6690 | R130: 7080 | S130: - | T130: -
B131: Шкаф (340) антр 1 дв. стекло 400х1260 | D131: 1260х360х400 | E131: 6449 | F131: 8379 | G131: 6739 | H131: 7459 | I131: 4774 | J131: 4834 | K131: 4984 | L131: 5404 | N131: 7354 | O131: 8184 | P131: 8494 | Q131: 9334 | R131: 7744 | S131: - | T131: -
B132: Шкаф (340) антр 1 дв. стекло 400х840 | D132: 840х360х400 | E132: 5023 | F132: 6313 | G132: 5223 | H132: 5703 | I132: 3946 | J132: 3976 | K132: 4076 | L132: 4346 | N132: 5716 | O132: 6376 | P132: 6456 | Q132: 7006 | R132: 6176 | S132: - | T132: -
B133: Шкаф (340) антр 2 дв. ниша 400х1400 | D133: 1400х360х400 | E133: 6521 | F133: 8221 | G133: 6781 | H133: 7421 | I133: 5741 | J133: 5801 | K133: 5921 | L133: 6281 | N133: 7961 | O133: 8681 | P133: 8921 | Q133: 9641 | R133: 10421 | S133: - | T133: -
B134: Шкаф (340) антр 2 дв. ниша 400х1640 | D134: 1640х360х400 | E134: 6973 | F134: 8673 | G134: 7233 | H134: 7873 | I134: 6193 | J134: 6253 | K134: 6373 | L134: 6733 | N134: 8413 | O134: 9133 | P134: 9373 | Q134: 10093 | R134: 10873 | S134: - | T134: -
B135: Шкаф (340) антр 2 дв. ниша 400х2040 | D135: 2040х360х400 | E135: 8225 | F135: 10305 | G135: 8525 | H135: 9305 | I135: 7285 | J135: 7345 | K135: 7505 | L135: 7925 | N135: 9905 | O135: 10725 | P135: 11085 | Q135: 11945 | R135: 12745 | S135: - | T135: -
B136: Стеллаж (340) навесной 300х300 | D136: 300х340х300 | E136: 890 | F136: 890 | G136: 890 | H136: 890 | I136: 890 | J136: 890 | K136: 890 | L136: 890 | N136: 890 | O136: 890 | P136: 890 | Q136: 890 | R136: 890 | S136: - | T136: -
B137: Стеллаж (340) навесной 300х1260 | D137: 1260х340х300 | E137: 2523 | F137: 2523 | G137: 2523 | H137: 2523 | I137: 2523 | J137: 2523 | K137: 2523 | L137: 2523 | N137: 2523 | O137: 2523 | P137: 2523 | Q137: 2523 | R137: 2523 | S137: - | T137: -
B138: Стеллаж (340) 2040х300 | D138: 300х340х2040 | E138: 3860 | F138: 3860 | G138: 3860 | H138: 3860 | I138: 3860 | J138: 3860 | K138: 3860 | L138: 3860 | N138: 3860 | O138: 3860 | P138: 3860 | Q138: 3860 | R138: 3860 | S138: - | T138: -
B139: Стеллаж (340) 2240х300 | D139: 300х340х2240 | E139: 4202 | F139: 4202 | G139: 4202 | H139: 4202 | I139: 4202 | J139: 4202 | K139: 4202 | L139: 4202 | N139: 4202 | O139: 4202 | P139: 4202 | Q139: 4202 | R139: 4202 | S139: - | T139: -
B140: Стеллаж (420) 2040х420 | D140: 420х420х2040 | E140: 4905 | F140: 4905 | G140: 4905 | H140: 4905 | I140: 4905 | J140: 4905 | K140: 4905 | L140: 4905 | N140: 4905 | O140: 4905 | P140: 4905 | Q140: 4905 | R140: 4905
B141: Стеллаж (420) 2040х560 | D141: 560х420х2040 | E141: 5486 | F141: 5486 | G141: 5486 | H141: 5486 | I141: 5486 | J141: 5486 | K141: 5486 | L141: 5486 | N141: 5486 | O141: 5486 | P141: 5486 | Q141: 5486 | R141: 5486
B142: Стеллаж (420) 2040х840 | D142: 840х420х2040 | E142: 6608 | F142: 6608 | G142: 6608 | H142: 6608 | I142: 6608 | J142: 6608 | K142: 6608 | L142: 6608 | N142: 6608 | O142: 6608 | P142: 6608 | Q142: 6608 | R142: 6608
B143: Стеллаж (420) 2240х420 | D143: 420х420х2240 | E143: 5469 | F143: 5469 | G143: 5469 | H143: 5469 | I143: 5469 | J143: 5469 | K143: 5469 | L143: 5469 | N143: 5469 | O143: 5469 | P143: 5469 | Q143: 5469 | R143: 5469
B144: Стеллаж (420) 2240х560 | D144: 560х420х2240 | E144: 6141 | F144: 6141 | G144: 6141 | H144: 6141 | I144: 6141 | J144: 6141 | K144: 6141 | L144: 6141 | N144: 6141 | O144: 6141 | P144: 6141 | Q144: 6141 | R144: 6141
B145: Стеллаж (420) 2240х840 | D145: 840х420х2240 | E145: 7441 | F145: 7441 | G145: 7441 | H145: 7441 | I145: 7441 | J145: 7441 | K145: 7441 | L145: 7441 | N145: 7441 | O145: 7441 | P145: 7441 | Q145: 7441 | R145: 7441
B146: Стеллаж (420) 2 дв 2240х840 | D146: 840х420х2240 | E146: 10581 | F146: 11861 | G146: 10781 | H146: 11261 | I146: 10001 | J146: 10041 | K146: 10141 | L146: 10401 | N146: 11721 | O146: 12341 | P146: 12461 | Q146: 12981 | R146: 13781
B147: Стеллаж (420) 2 ящика 2240х560 | D147: 560х420х2240 | E147: 9467 | F147: 10327 | G147: 9607 | H147: 9927 | I147: 9087 | J147: 9107 | K147: 9187 | L147: 9347 | N147: 10367 | O147: 10947 | P147: 10867 | Q147: 11207 | R147: 11607
B148: Стеллаж навесной (420) Н=600х1260 | D148: 1260х600х420 | E148: 4828 | F148: 4828 | G148: 4828 | H148: 4828 | I148: 4828 | J148: 4828 | K148: 4828 | L148: 4828 | N148: 4828 | O148: 4828 | P148: 4828 | Q148: 4828 | R148: 4828
B149: Антресоли
B150: Антресоль (420) 1дв 400х420 лев\пр | D150: 420х440х400 | E150: 3082 | F150: 3722 | G150: 3182 | H150: 3422 | I150: 2792 | J150: 2812 | K150: 2862 | L150: 2992 | N150: 3652 | O150: 3962 | P150: 4022 | Q150: 4282 | R150: 4682
B151: Антресоль (420) 1дв 400х560 лев\пр | D151: 560х440х400 | E151: 3582 | F151: 4432 | G151: 3712 | H151: 4032 | I151: 3192 | J151: 3222 | K151: 3282 | L151: 3462 | N151: 4302 | O151: 4662 | P151: 4782 | Q151: 5142 | R151: 5532
B152: Антресоль (420) 2дв 400х840 | D152: 840х440х400 | E152: 5163 | F152: 6443 | G152: 5363 | H152: 5843 | I152: 4583 | J152: 4623 | K152: 4723 | L152: 4983 | N152: 6303 | O152: 6923 | P152: 7043 | Q152: 7563 | R152: 8363
B153: Антресоль (420) 3дв 400х1260 | D153: 1260х440х400 | E153: 7412 | F153: 9332 | G153: 7712 | H153: 8432 | I153: 6542 | J153: 6602 | K153: 6752 | L153: 7142 | N153: 9122 | O153: 10052 | P153: 10232 | Q153: 11012 | R153: 12212
B154: Антресоль угл. (420) трап. 400х732х732 | D154: 732х732 | E154: 5281 | F154: 5921 | G154: 5381 | H154: 5621 | I154: 4991 | J154: 5011 | K154: 5061 | L154: 5191 | N154: 5851 | O154: 6161 | P154: 6221 | Q154: 6481 | R154: 6881
B155: Антресоль (340) 2 дв. 400х840 | D155: 840х360х400 | E155: 4914 | F155: 6194 | G155: 5114 | H155: 5594 | I155: 4334 | J155: 4374 | K155: 4474 | L155: 4734 | N155: 6054 | O155: 6674 | P155: 6794 | Q155: 7314 | R155: 8114
B156: Антресоль (340) 2 дв расп. ниша 400х1260 | D156: 1260х360х400 | E156: 6057 | F156: 7337 | G156: 6257 | H156: 6737 | I156: 5477 | J156: 5517 | K156: 5617 | L156: 5877 | N156: 7197 | O156: 7817 | P156: 7937 | Q156: 8457 | R156: 9257
B157: Антресоль торц (420) 400х420 лев\пр | D157: 420х440х400 | E157: 4383 | F157: 5403 | G157: 4543 | H157: 4913 | I157: 3933 | J157: 3963 | K157: 4033 | L157: 4243 | N157: 5353 | O157: 5903 | P157: 5923 | Q157: 6343 | R157: 6953
B158: Антресоль (560) 1дв 400х420 лев\пр | D158: 420х580х400 | E158: 3528 | F158: 4168 | G158: 3628 | H158: 3868 | I158: 3238 | J158: 3258 | K158: 3308 | L158: 3438 | N158: 4098 | O158: 4408 | P158: 4468 | Q158: 4728 | R158: 5128
B159: Антресоль (560) 1дв 400х560 лев\пр | D159: 560х580х400 | E159: 3965 | F159: 4815 | G159: 4095 | H159: 4415 | I159: 3575 | J159: 3605 | K159: 3665 | L159: 3845 | N159: 4685 | O159: 5045 | P159: 5165 | Q159: 5525 | R159: 5915
B160: Антресоль (560) 2дв 400х840 | D160: 840х580х400 | E160: 5651 | F160: 6931 | G160: 5851 | H160: 6331 | I160: 5071 | J160: 5111 | K160: 5211 | L160: 5471 | N160: 6791 | O160: 7411 | P160: 7531 | Q160: 8051 | R160: 8851
B161: Антресоль (560) 2дв 400х1120 | D161: 1120х580х400 | E161: 6538 | F161: 8238 | G161: 6798 | H161: 7438 | I161: 5758 | J161: 5818 | K161: 5938 | L161: 6298 | N161: 7978 | O161: 8698 | P161: 8938 | Q161: 9658 | R161: 10438
B162: Антресоль (560) 3дв 400х1260 | D162: 1260х580х400 | E162: 8117 | F162: 10037 | G162: 8417 | H162: 9137 | I162: 7247 | J162: 7307 | K162: 7457 | L162: 7847 | N162: 9827 | O162: 10757 | P162: 10937 | Q162: 11717 | R162: 12917
B163: Антресоль угл. (560) трап. 400х975х975 | D163: 975х975 | E163: 6833 | F163: 7683 | G163: 6963 | H163: 7283 | I163: 6443 | J163: 6473 | K163: 6533 | L163: 6713 | N163: 7553 | O163: 7913 | P163: 8033 | Q163: 8393 | R163: 8783
B164: Шкафы угловые и стеллажи торцевые
B165: Шкаф Угл (420х420) Трап 2040х732х732 | D165: 732х732 | E165: 16038 | F165: 19248 | G165: 16518 | H165: 17718 | I165: 14588 | J165: 14668 | K165: 14918 | L165: 15588 | N165: 18328 | O165: 19248 | P165: 20158 | Q165: 21498 | R165: 21788 | S165: =S4 -> 849 | T165: =T4 -> 2473
B166: Шкаф Угл (420х420) Трап 2240х732х732 | D166: 732х732 | E166: 17024 | F166: 20554 | G166: 17554 | H166: 18874 | I166: 15434 | J166: 15524 | K166: 15804 | L166: 16534 | N166: 19534 | O166: 20534 | P166: 21544 | Q166: 23014 | R166: 23294 | S166: =S6 -> 963 | T166: =T6 -> 2675
B167: Шкаф Угл (560х420) Прямой 2040х1000 лев/пр.** | D167: 1000 | E167: 18612 | F167: 26272 | G167: 19772 | H167: 22632 | I167: 15172 | J167: 15372 | K167: 15972 | L167: 17562 | N167: 23832 | O167: 25732 | P167: 28172 | Q167: 31382 | R167: 31482 | S167: =S5 -> 1220 | T167: =T5 -> 3084
B168: Шкаф Угл (560х420) Прямой 2240х1000 лев/пр** | D168: 1000 | E168: 19742 | F168: 28182 | G168: 21022 | H168: 24172 | I168: 15962 | J168: 16182 | K168: 16832 | L168: 18582 | N168: 25452 | O168: 27502 | P168: 30232 | Q168: 33752 | R168: 33772 | S168: =S7 -> 1490 | T168: =T7 -> 3130
B169: Шкаф Угл (560х420) Прямой 2040х1000 ФП ЛДСП лев/пр** | D169: 1000 | E169: 16437 | F169: 20727 | G169: 17087 | H169: 18687 | I169: 14507 | J169: 14617 | K169: 14957 | L169: 15847 | N169: 19277 | O169: 20247 | P169: 21707 | Q169: 23507 | R169: 23377 | S169: 853 | T169: 2156
B170: Шкаф Угл (560х420) Прямой 2240х1000 ФП ЛДСП лев/пр** | D170: 1000 | E170: 17396 | F170: 22126 | G170: 18116 | H170: 19876 | I170: 15276 | J170: 15406 | K170: 15766 | L170: 16746 | N170: 20506 | O170: 21556 | P170: 23186 | Q170: 25156 | R170: 24966 | S170: =S112 -> 1490 | T170: 1808
B171: Шкаф Угл (560х420) Трап 2040х830х970 лев ** | D171: 830х970 | E171: 18484 | F171: 22774 | G171: 19134 | H171: 20734 | I171: 16554 | J171: 16664 | K171: 17004 | L171: 17894 | N171: 21324 | O171: 22294 | P171: 23754 | Q171: 25554 | R171: 25424 | S171: =S167 -> 1220 | T171: =T167 -> 3084
B172: Шкаф Угл (560х420) Трап 2040х830х970 пр ** | E172: 18484 | F172: 22774 | G172: 19134 | H172: 20734 | I172: 16554 | J172: 16664 | K172: 17004 | L172: 17894 | N172: 21324 | O172: 22294 | P172: 23754 | Q172: 25554 | R172: 25424
B173: Шкаф Угл (560х420) Трап 2240х830х970 лев** | D173: 830х970 | E173: 19468 | F173: 24198 | G173: 20188 | H173: 21948 | I173: 17348 | J173: 17478 | K173: 17838 | L173: 18818 | N173: 22578 | O173: 23628 | P173: 25258 | Q173: 27228 | R173: 27038 | S173: =S170 -> 1490 | T173: =T170 -> 1808
B174: Шкаф Угл (560х420) Трап 2240х830х970 пр** | E174: 19468 | F174: 24198 | G174: 20188 | H174: 21948 | I174: 17348 | J174: 17478 | K174: 17838 | L174: 18818 | N174: 22578 | O174: 23628 | P174: 25258 | Q174: 27228 | R174: 27038
B175: Шкаф Угл (420х420) Комб. Трап 2040х732х732 | D175: 732х732 | E175: 16038 | F175: 19248 | G175: 16518 | H175: 17718 | I175: 14588 | J175: 14668 | K175: 14918 | L175: 15588 | N175: 18328 | O175: 19248 | P175: 20158 | Q175: 21498 | R175: 21788 | S175: =S4 -> 849 | T175: 2473
B176: Шкаф Угл (420х420) Комб. Трап 2240х732х732 | D176: 732х732 | E176: 17024 | F176: 20554 | G176: 17554 | H176: 18874 | I176: 15434 | J176: 15524 | K176: 15804 | L176: 16534 | N176: 19534 | O176: 20534 | P176: 21544 | Q176: 23014 | R176: 23294 | S176: 1220 | T176: 3084
B177: Шкаф Угл (560х560) Трап 2040х970х970 | D177: 970х970 | E177: 19437 | F177: 23727 | G177: 20087 | H177: 21687 | I177: 17507 | J177: 17617 | K177: 17957 | L177: 18847 | N177: 22277 | O177: 23247 | P177: 24707 | Q177: 26507 | R177: 26377 | S177: 963 | T177: 2675
B178: Шкаф Угл (560х560) Трап 2240х970х970 | D178: 970х970 | E178: 20463 | F178: 25193 | G178: 21183 | H178: 22943 | I178: 18343 | J178: 18473 | K178: 18833 | L178: 19813 | N178: 23573 | O178: 24623 | P178: 26253 | Q178: 28223 | R178: 28033 | S178: 1490 | T178: 3130
B179: Шкаф Угл (560х560) Комб. Трап 2040х975х975 | D179: 975х975 | E179: 20436 | F179: 24726 | G179: 21086 | H179: 22686 | I179: 18506 | J179: 18616 | K179: 18956 | L179: 19846 | N179: 23276 | O179: 24246 | P179: 25706 | Q179: 27506 | R179: 27376 | S179: 853 | T179: 2156
B180: Шкаф Угл (560х560) Комб. Трап 2240х975х975 | D180: 975х975 | E180: 21180 | F180: 25910 | G180: 21900 | H180: 23660 | I180: 19060 | J180: 19190 | K180: 19550 | L180: 20530 | N180: 24290 | O180: 25340 | P180: 26970 | Q180: 28940 | R180: 28750 | S180: 1041 | T180: 2188
B181: Стеллаж (420) Торцевой 2040х300 Радиусный | D181: 300 | E181: 3708 | F181: 3708 | G181: 3708 | H181: 3708 | I181: 3708 | J181: 3708 | K181: 3708 | L181: 3708 | N181: 3708 | O181: 3708 | P181: 3708 | Q181: 3708 | R181: 3708 | S181: - | T181: -
B182: Стеллаж (420) Торцевой 2240х300 Радиусный | D182: 300 | E182: 4134 | F182: 4134 | G182: 4134 | H182: 4134 | I182: 4134 | J182: 4134 | K182: 4134 | L182: 4134 | N182: 4134 | O182: 4134 | P182: 4134 | Q182: 4134 | R182: 4134 | S182: - | T182: -
B183: Стеллаж (560) Торцевой 2040х300 Радиусный | D183: 300 | E183: 4312 | F183: 4312 | G183: 4312 | H183: 4312 | I183: 4312 | J183: 4312 | K183: 4312 | L183: 4312 | N183: 4312 | O183: 4312 | P183: 4312 | Q183: 4312 | R183: 4312 | S183: - | T183: -
B184: Стеллаж (560) Торцевой 2240х300 Радиусный | D184: 300 | E184: 4835 | F184: 4835 | G184: 4835 | H184: 4835 | I184: 4835 | J184: 4835 | K184: 4835 | L184: 4835 | N184: 4835 | O184: 4835 | P184: 4835 | Q184: 4835 | R184: 4835 | S184: - | T184: -
B186: Кровати
B187: Наименование | C187: Эскиз | D187: Ширина, мм | E187: МДФ фасады | I187: Марго | J187: Марго16 | O187: UV-лак | Q187: ТСС | S187: ТСС сборный
E188: 1 ЦК | F188: 1 ЦК + патина | G188: 2 ЦК | H188: 3 ЦК | I188: 1 ц.к. | J188: 1 ц.к. | K188: 2 ц.к. | L188: 3 ц.к. | M188: 4 ц.к. | N188: 5 ц.к. | O188: UV-лак кромка ABC/AL кромка | P188: кромка 3D | Q188: 1 ЦК | R188: 2 ЦК
B189: Кровать L-2050 мм., без основания и без матраца | D189: 800 | E189: 7451 | F189: 11711 | G189: 8131 | H189: 9781 | J189: 4031 | K189: 4141 | L189: 4481 | M189: 5361 | O189: 8801 | P189: 9951 | Q189: 11221 | R189: 13001 | S189: 13351
D190: 900 | E190: 8101 | F190: 12851 | G190: 8861 | H190: 10701 | J190: 4291 | K190: 4421 | L190: 4791 | M190: 5771 | O190: 9551 | P190: 10781 | Q190: 12251 | R190: 14241 | S190: 14491
D191: 1200 | E191: 10017 | F191: 16207 | G191: 11007 | H191: 13407 | J191: 5057 | K191: 5217 | L191: 5697 | M191: 6987 | O191: 11797 | P191: 13247 | Q191: 15307 | R191: 17897 | S191: 17877
D192: 1400 | E192: 11317 | F192: 18477 | G192: 12467 | H192: 15237 | J192: 5587 | K192: 5777 | L192: 6327 | M192: 7817 | O192: 13297 | P192: 14897 | Q192: 17357 | R192: 20347 | S192: 20157
D193: 1600 | E193: 12639 | F193: 20769 | G193: 13949 | H193: 17089 | J193: 6149 | K193: 6359 | L193: 6989 | M193: 8679 | O193: 14839 | P193: 16599 | Q193: 19439 | R193: 22839 | S193: 22469
D194: 1800 | E194: 14106 | F194: 23186 | G194: 15566 | H194: 19086 | J194: 6836 | K194: 7076 | L194: 7776 | M194: 9666 | O194: 16516 | P194: 18416 | Q194: 21656 | R194: 25456 | S194: 24906
B195: Кровать L-2150 мм., без основания и без матраца с наборным изголовьем | D195: 800 | E195: 7973 | F195: 11963 | G195: 8633 | H195: 10173 | I195: 4813 | J195: 4813 | K195: 4903 | L195: 5203 | M195: 6033 | N195: 10203 | O195: 10203 | P195: 12343 | Q195: 12443 | R195: 14113 | S195: 15533
D196: 900 | E196: 6903 | F196: 11333 | G196: 7563 | H196: 9213 | I196: 4903 | J196: 4903 | K196: 5033 | L196: 5363 | M196: 6283 | N196: 11023 | O196: 11023 | P196: 13323 | Q196: 13503 | R196: 15353 | S196: 16773
D197: 1200 | E197: 8193 | F197: 13963 | G197: 9063 | H197: 11213 | I197: 5603 | J197: 5603 | K197: 5753 | L197: 6213 | M197: 7383 | N197: 13453 | O197: 13453 | P197: 16343 | Q197: 16693 | R197: 19093 | S197: 20513
D198: 1400 | E198: 11603 | F198: 18263 | G198: 12673 | H198: 15233 | I198: 6273 | J198: 6273 | K198: 6443 | L198: 6973 | M198: 8353 | N198: 15053 | O198: 15053 | P198: 18343 | Q198: 18823 | R198: 21603 | S198: 22983
D199: 1600 | E199: 12823 | F199: 20373 | G199: 14013 | H199: 16933 | I199: 6763 | J199: 6763 | K199: 6973 | L199: 7543 | M199: 9133 | N199: 16663 | O199: 16663 | P199: 20313 | Q199: 20953 | R199: 24103 | S199: 25473
D200: 1800 | E200: 14003 | F200: 22463 | G200: 15383 | H200: 18633 | I200: 7243 | J200: 7243 | K200: 7463 | L200: 8133 | M200: 9893 | N200: 18263 | O200: 18263 | P200: 22313 | Q200: 23073 | R200: 26583 | S200: 27933
B201: Кровать 2 ящика 800х1600 | D201: 800 | E201: 11368 | F201: 12808 | G201: 11588 | H201: 12128 | O201: 12748 | P201: 13528 | Q201: 13548 | R201: 14148 | S201: 14508
B202: Кровать 2 ящика 800х2000 | D202: 800 | E202: 12867 | F202: 14667 | G202: 13147 | H202: 13807 | O202: 14547 | P202: 15487 | Q202: 15547 | R202: 16287 | S202: 16647
... 174 more rows

Sheet Альфа_Бета_пр (hidden)
A1: МЕБЕЛЬ ДЛЯ ГОСТИННОЙ
A2: Наименование | B2: Эскиз | C2: Габариты, ШхГхВ мм. | D2: МДФ фасады
D3: 1 ЦК | E3: 1 ЦК + патина | F3: 2 ЦК | G3: 3 ЦК
A4: «Бета»
A5: Тумба ТВ 1160 | C5: 1160х550х460 | D5: =CEILING('Альфа_Бета_пр (2)'!D5*Титульный!$AY$1,Титульный!$AY$3) -> 10455 | E5: =CEILING('Альфа_Бета_пр (2)'!E5*Титульный!$AY$1,Титульный!$AY$3) -> 14685 | F5: =CEILING('Альфа_Бета_пр (2)'!F5*Титульный!$AY$1,Титульный!$AY$3) -> 11055 | G5: =CEILING('Альфа_Бета_пр (2)'!G5*Титульный!$AY$1,Титульный!$AY$3) -> 12535 | M5: - | N5: -
A6: Тумба ТВ 1160 ниша | C6: 1160х550х460 | D6: =CEILING('Альфа_Бета_пр (2)'!D6*Титульный!$AY$1,Титульный!$AY$3) -> 8977 | E6: =CEILING('Альфа_Бета_пр (2)'!E6*Титульный!$AY$1,Титульный!$AY$3) -> 13207 | F6: =CEILING('Альфа_Бета_пр (2)'!F6*Титульный!$AY$1,Титульный!$AY$3) -> 9577 | G6: =CEILING('Альфа_Бета_пр (2)'!G6*Титульный!$AY$1,Титульный!$AY$3) -> 11057 | M6: - | N6: -
A7: Тумба ТВ 1680 | C7: 1680х550х460 | D7: =CEILING('Альфа_Бета_пр (2)'!D7*Титульный!$AY$1,Титульный!$AY$3) -> 16890 | E7: =CEILING('Альфа_Бета_пр (2)'!E7*Титульный!$AY$1,Титульный!$AY$3) -> 23030 | F7: =CEILING('Альфа_Бета_пр (2)'!F7*Титульный!$AY$1,Титульный!$AY$3) -> 17770 | G7: =CEILING('Альфа_Бета_пр (2)'!G7*Титульный!$AY$1,Титульный!$AY$3) -> 19910 | M7: - | N7: -
A8: Тумба ТВ 1680 ниша | C8: 1680х550х460 | D8: =CEILING('Альфа_Бета_пр (2)'!D8*Титульный!$AY$1,Титульный!$AY$3) -> 15328 | E8: =CEILING('Альфа_Бета_пр (2)'!E8*Титульный!$AY$1,Титульный!$AY$3) -> 21468 | F8: =CEILING('Альфа_Бета_пр (2)'!F8*Титульный!$AY$1,Титульный!$AY$3) -> 16208 | G8: =CEILING('Альфа_Бета_пр (2)'!G8*Титульный!$AY$1,Титульный!$AY$3) -> 18348 | M8: - | N8: -
A9: Тумба ТВ 2320 | C9: 2320х550х460 | D9: =CEILING('Альфа_Бета_пр (2)'!D9*Титульный!$AY$1,Титульный!$AY$3) -> 20828 | E9: =CEILING('Альфа_Бета_пр (2)'!E9*Титульный!$AY$1,Титульный!$AY$3) -> 29288 | F9: =CEILING('Альфа_Бета_пр (2)'!F9*Титульный!$AY$1,Титульный!$AY$3) -> 22028 | G9: =CEILING('Альфа_Бета_пр (2)'!G9*Титульный!$AY$1,Титульный!$AY$3) -> 24968 | M9: - | N9: -
A10: Тумба ТВ 2320 ниша | C10: 2320х550х460 | D10: =CEILING('Альфа_Бета_пр (2)'!D10*Титульный!$AY$1,Титульный!$AY$3) -> 19352 | E10: =CEILING('Альфа_Бета_пр (2)'!E10*Титульный!$AY$1,Титульный!$AY$3) -> 27812 | F10: =CEILING('Альфа_Бета_пр (2)'!F10*Титульный!$AY$1,Титульный!$AY$3) -> 20552 | G10: =CEILING('Альфа_Бета_пр (2)'!G10*Титульный!$AY$1,Титульный!$AY$3) -> 23492 | M10: - | N10: -
A11: Шкаф 1260х1630 ящики | C11: 1260х340х1630 | D11: =CEILING('Альфа_Бета_пр (2)'!D11*Титульный!$AY$1,Титульный!$AY$3) -> 19195 | E11: =CEILING('Альфа_Бета_пр (2)'!E11*Титульный!$AY$1,Титульный!$AY$3) -> 26925 | F11: =CEILING('Альфа_Бета_пр (2)'!F11*Титульный!$AY$1,Титульный!$AY$3) -> 20265 | G11: =CEILING('Альфа_Бета_пр (2)'!G11*Титульный!$AY$1,Титульный!$AY$3) -> 22875 | M11: - | N11: -
A12: Шкаф 1260х1630 ящ. стекло | C12: 1260х340х1630 | D12: =CEILING('Альфа_Бета_пр (2)'!D12*Титульный!$AY$1,Титульный!$AY$3) -> 18479 | E12: =CEILING('Альфа_Бета_пр (2)'!E12*Титульный!$AY$1,Титульный!$AY$3) -> 26209 | F12: =CEILING('Альфа_Бета_пр (2)'!F12*Титульный!$AY$1,Титульный!$AY$3) -> 19549 | G12: =CEILING('Альфа_Бета_пр (2)'!G12*Титульный!$AY$1,Титульный!$AY$3) -> 22159 | M12: - | N12: -
A13: Шкаф 420х1630 Л/П* | C13: 420х340х1630 | D13: =CEILING('Альфа_Бета_пр (2)'!D13*Титульный!$AY$1,Титульный!$AY$3) -> 6411 | E13: =CEILING('Альфа_Бета_пр (2)'!E13*Титульный!$AY$1,Титульный!$AY$3) -> 8991 | F13: =CEILING('Альфа_Бета_пр (2)'!F13*Титульный!$AY$1,Титульный!$AY$3) -> 6771 | G13: =CEILING('Альфа_Бета_пр (2)'!G13*Титульный!$AY$1,Титульный!$AY$3) -> 7641 | M13: - | N13: -
A14: Шкаф 420х1630 Л/П* стекло | C14: 420х340х1630 | D14: =CEILING('Альфа_Бета_пр (2)'!D14*Титульный!$AY$1,Титульный!$AY$3) -> 6178 | E14: =CEILING('Альфа_Бета_пр (2)'!E14*Титульный!$AY$1,Титульный!$AY$3) -> 8758 | F14: =CEILING('Альфа_Бета_пр (2)'!F14*Титульный!$AY$1,Титульный!$AY$3) -> 6538 | G14: =CEILING('Альфа_Бета_пр (2)'!G14*Титульный!$AY$1,Титульный!$AY$3) -> 7408 | M14: - | N14: -
A15: Шкаф 420х2030 1 дв стекло | C15: 420х340х2030 | D15: =CEILING('Альфа_Бета_пр (2)'!D15*Титульный!$AY$1,Титульный!$AY$3) -> 7370 | E15: =CEILING('Альфа_Бета_пр (2)'!E15*Титульный!$AY$1,Титульный!$AY$3) -> 10590 | F15: =CEILING('Альфа_Бета_пр (2)'!F15*Титульный!$AY$1,Титульный!$AY$3) -> 7810 | G15: =CEILING('Альфа_Бета_пр (2)'!G15*Титульный!$AY$1,Титульный!$AY$3) -> 8910 | M15: - | N15: -
A16: Шкаф 420х2030 2 дв | C16: 420х340х2030 | D16: =CEILING('Альфа_Бета_пр (2)'!D16*Титульный!$AY$1,Титульный!$AY$3) -> 8117 | E16: =CEILING('Альфа_Бета_пр (2)'!E16*Титульный!$AY$1,Титульный!$AY$3) -> 11337 | F16: =CEILING('Альфа_Бета_пр (2)'!F16*Титульный!$AY$1,Титульный!$AY$3) -> 8577 | G16: =CEILING('Альфа_Бета_пр (2)'!G16*Титульный!$AY$1,Титульный!$AY$3) -> 9657 | M16: - | N16: -
A17: Шкаф 840х1630 2 дв | C17: 840х340х1630 | D17: =CEILING('Альфа_Бета_пр (2)'!D17*Титульный!$AY$1,Титульный!$AY$3) -> 11008 | E17: =CEILING('Альфа_Бета_пр (2)'!E17*Титульный!$AY$1,Титульный!$AY$3) -> 16168 | F17: =CEILING('Альфа_Бета_пр (2)'!F17*Титульный!$AY$1,Титульный!$AY$3) -> 11728 | G17: =CEILING('Альфа_Бета_пр (2)'!G17*Титульный!$AY$1,Титульный!$AY$3) -> 13468 | M17: - | N17: -
A18: Шкаф 840х1630 2 дв стекло | C18: 840х340х1630 | D18: =CEILING('Альфа_Бета_пр (2)'!D18*Титульный!$AY$1,Титульный!$AY$3) -> 10326 | E18: =CEILING('Альфа_Бета_пр (2)'!E18*Титульный!$AY$1,Титульный!$AY$3) -> 15486 | F18: =CEILING('Альфа_Бета_пр (2)'!F18*Титульный!$AY$1,Титульный!$AY$3) -> 11046 | G18: =CEILING('Альфа_Бета_пр (2)'!G18*Титульный!$AY$1,Титульный!$AY$3) -> 12786 | M18: - | N18: -
A19: Шкаф 840х2030 2 дв стекло | C19: 840х340х2030 | D19: =CEILING('Альфа_Бета_пр (2)'!D19*Титульный!$AY$1,Титульный!$AY$3) -> 12525 | E19: =CEILING('Альфа_Бета_пр (2)'!E19*Титульный!$AY$1,Титульный!$AY$3) -> 18965 | F19: =CEILING('Альфа_Бета_пр (2)'!F19*Титульный!$AY$1,Титульный!$AY$3) -> 13405 | G19: =CEILING('Альфа_Бета_пр (2)'!G19*Титульный!$AY$1,Титульный!$AY$3) -> 15605 | M19: - | N19: -
A20: Шкаф 840х2030 4 дв | C20: 840х340х2030 | D20: =CEILING('Альфа_Бета_пр (2)'!D20*Титульный!$AY$1,Титульный!$AY$3) -> 14011 | E20: =CEILING('Альфа_Бета_пр (2)'!E20*Титульный!$AY$1,Титульный!$AY$3) -> 20451 | F20: =CEILING('Альфа_Бета_пр (2)'!F20*Титульный!$AY$1,Титульный!$AY$3) -> 14931 | G20: =CEILING('Альфа_Бета_пр (2)'!G20*Титульный!$AY$1,Титульный!$AY$3) -> 17091 | M20: - | N20: -
A21: Шкаф антр.навесной 840х420 | C21: 840х340х420 | D21: =CEILING('Альфа_Бета_пр (2)'!D21*Титульный!$AY$1,Титульный!$AY$3) -> 3712 | E21: =CEILING('Альфа_Бета_пр (2)'!E21*Титульный!$AY$1,Титульный!$AY$3) -> 5062 | F21: =CEILING('Альфа_Бета_пр (2)'!F21*Титульный!$AY$1,Титульный!$AY$3) -> 3892 | G21: =CEILING('Альфа_Бета_пр (2)'!G21*Титульный!$AY$1,Титульный!$AY$3) -> 4352 | M21: - | N21: -
A22: Шкаф антр.навесной 840х420 стекло | C22: 840х340х420 | D22: =CEILING('Альфа_Бета_пр (2)'!D22*Титульный!$AY$1,Титульный!$AY$3) -> 3726 | E22: =CEILING('Альфа_Бета_пр (2)'!E22*Титульный!$AY$1,Титульный!$AY$3) -> 5076 | F22: =CEILING('Альфа_Бета_пр (2)'!F22*Титульный!$AY$1,Титульный!$AY$3) -> 3906 | G22: =CEILING('Альфа_Бета_пр (2)'!G22*Титульный!$AY$1,Титульный!$AY$3) -> 4366 | M22: - | N22: -
A23: Шкаф антр.навесной 1160х420 | C23: 1160х340х420 | D23: =CEILING('Альфа_Бета_пр (2)'!D23*Титульный!$AY$1,Титульный!$AY$3) -> 4435 | E23: =CEILING('Альфа_Бета_пр (2)'!E23*Титульный!$AY$1,Титульный!$AY$3) -> 6295 | F23: =CEILING('Альфа_Бета_пр (2)'!F23*Титульный!$AY$1,Титульный!$AY$3) -> 4695 | G23: =CEILING('Альфа_Бета_пр (2)'!G23*Титульный!$AY$1,Титульный!$AY$3) -> 5325 | M23: - | N23: -
A24: Шкаф антр.навесной 1160х420 стекло | C24: 1160х340х420 | D24: =CEILING('Альфа_Бета_пр (2)'!D24*Титульный!$AY$1,Титульный!$AY$3) -> 4562 | E24: =CEILING('Альфа_Бета_пр (2)'!E24*Титульный!$AY$1,Титульный!$AY$3) -> 6422 | F24: =CEILING('Альфа_Бета_пр (2)'!F24*Титульный!$AY$1,Титульный!$AY$3) -> 4822 | G24: =CEILING('Альфа_Бета_пр (2)'!G24*Титульный!$AY$1,Титульный!$AY$3) -> 5452 | M24: - | N24: -
A25: Шкаф навесной 420х1200 | C25: 420х340х1200 | D25: =CEILING('Альфа_Бета_пр (2)'!D25*Титульный!$AY$1,Титульный!$AY$3) -> 4641 | E25: =CEILING('Альфа_Бета_пр (2)'!E25*Титульный!$AY$1,Титульный!$AY$3) -> 6571 | F25: =CEILING('Альфа_Бета_пр (2)'!F25*Титульный!$AY$1,Титульный!$AY$3) -> 4901 | G25: =CEILING('Альфа_Бета_пр (2)'!G25*Титульный!$AY$1,Титульный!$AY$3) -> 5561 | M25: - | N25: -
A26: Шкаф навесной 420х1200 стекло | C26: 420х340х1200 | D26: =CEILING('Альфа_Бета_пр (2)'!D26*Титульный!$AY$1,Титульный!$AY$3) -> 4372 | E26: =CEILING('Альфа_Бета_пр (2)'!E26*Титульный!$AY$1,Титульный!$AY$3) -> 6302 | F26: =CEILING('Альфа_Бета_пр (2)'!F26*Титульный!$AY$1,Титульный!$AY$3) -> 4632 | G26: =CEILING('Альфа_Бета_пр (2)'!G26*Титульный!$AY$1,Титульный!$AY$3) -> 5292 | M26: - | N26: -
A27: Шкаф навесной 420х1400 | C27: 420х340х1400 | D27: =CEILING('Альфа_Бета_пр (2)'!D27*Титульный!$AY$1,Титульный!$AY$3) -> 5300 | E27: =CEILING('Альфа_Бета_пр (2)'!E27*Титульный!$AY$1,Титульный!$AY$3) -> 7550 | F27: =CEILING('Альфа_Бета_пр (2)'!F27*Титульный!$AY$1,Титульный!$AY$3) -> 5610 | G27: =CEILING('Альфа_Бета_пр (2)'!G27*Титульный!$AY$1,Титульный!$AY$3) -> 6380 | M27: - | N27: -
A28: Шкаф навесной 420х1400 стекло | C28: 420х340х1400 | D28: =CEILING('Альфа_Бета_пр (2)'!D28*Титульный!$AY$1,Титульный!$AY$3) -> 4889 | E28: =CEILING('Альфа_Бета_пр (2)'!E28*Титульный!$AY$1,Титульный!$AY$3) -> 7139 | F28: =CEILING('Альфа_Бета_пр (2)'!F28*Титульный!$AY$1,Титульный!$AY$3) -> 5199 | G28: =CEILING('Альфа_Бета_пр (2)'!G28*Титульный!$AY$1,Титульный!$AY$3) -> 5969 | M28: - | N28: -
A29: Панель 840х400 | C29: 840х16х398 | D29: =CEILING('Альфа_Бета_пр (2)'!D29*Титульный!$AY$1,Титульный!$AY$3) -> 1454 | E29: =CEILING('Альфа_Бета_пр (2)'!E29*Титульный!$AY$1,Титульный!$AY$3) -> 2744 | F29: =CEILING('Альфа_Бета_пр (2)'!F29*Титульный!$AY$1,Титульный!$AY$3) -> 1634 | G29: =CEILING('Альфа_Бета_пр (2)'!G29*Титульный!$AY$1,Титульный!$AY$3) -> 2074 | M29: - | N29: -
A30: Панель 840х400 полка | C30: 840х220х398 | D30: =CEILING('Альфа_Бета_пр (2)'!D30*Титульный!$AY$1,Титульный!$AY$3) -> 2418 | E30: =CEILING('Альфа_Бета_пр (2)'!E30*Титульный!$AY$1,Титульный!$AY$3) -> 3708 | F30: =CEILING('Альфа_Бета_пр (2)'!F30*Титульный!$AY$1,Титульный!$AY$3) -> 2598 | G30: =CEILING('Альфа_Бета_пр (2)'!G30*Титульный!$AY$1,Титульный!$AY$3) -> 3038 | M30: - | N30: -
A31: Панель 1160х400 | C31: 1160х16х398 | D31: =CEILING('Альфа_Бета_пр (2)'!D31*Титульный!$AY$1,Титульный!$AY$3) -> 1894 | E31: =CEILING('Альфа_Бета_пр (2)'!E31*Титульный!$AY$1,Титульный!$AY$3) -> 3664 | F31: =CEILING('Альфа_Бета_пр (2)'!F31*Титульный!$AY$1,Титульный!$AY$3) -> 2134 | G31: =CEILING('Альфа_Бета_пр (2)'!G31*Титульный!$AY$1,Титульный!$AY$3) -> 2734 | M31: - | N31: -
A32: Панель 1160х400 полка | C32: 1160х220х398 | D32: =CEILING('Альфа_Бета_пр (2)'!D32*Титульный!$AY$1,Титульный!$AY$3) -> 2858 | E32: =CEILING('Альфа_Бета_пр (2)'!E32*Титульный!$AY$1,Титульный!$AY$3) -> 4628 | F32: =CEILING('Альфа_Бета_пр (2)'!F32*Титульный!$AY$1,Титульный!$AY$3) -> 3098 | G32: =CEILING('Альфа_Бета_пр (2)'!G32*Титульный!$AY$1,Титульный!$AY$3) -> 3698 | M32: - | N32: -
A33: Панель 1360х400 | C33: 1360х16х398 | D33: =CEILING('Альфа_Бета_пр (2)'!D33*Титульный!$AY$1,Титульный!$AY$3) -> 2154 | E33: =CEILING('Альфа_Бета_пр (2)'!E33*Титульный!$AY$1,Титульный!$AY$3) -> 4244 | F33: =CEILING('Альфа_Бета_пр (2)'!F33*Титульный!$AY$1,Титульный!$AY$3) -> 2444 | G33: =CEILING('Альфа_Бета_пр (2)'!G33*Титульный!$AY$1,Титульный!$AY$3) -> 3154 | M33: - | N33: -
A34: Панель 1360х400 полка | C34: 1360х220х398 | D34: =CEILING('Альфа_Бета_пр (2)'!D34*Титульный!$AY$1,Титульный!$AY$3) -> 3118 | E34: =CEILING('Альфа_Бета_пр (2)'!E34*Титульный!$AY$1,Титульный!$AY$3) -> 5208 | F34: =CEILING('Альфа_Бета_пр (2)'!F34*Титульный!$AY$1,Титульный!$AY$3) -> 3408 | G34: =CEILING('Альфа_Бета_пр (2)'!G34*Титульный!$AY$1,Титульный!$AY$3) -> 4118 | M34: - | N34: -
A35: «Альфа» | M35: - | N35: -
A36: Шкаф МЦ | C36: 840х580х2100 | D36: =CEILING('Альфа_Бета_пр (2)'!D36*Титульный!$AY$1,Титульный!$AY$3) -> 20436 | E36: =CEILING('Альфа_Бета_пр (2)'!E36*Титульный!$AY$1,Титульный!$AY$3) -> 28056 | F36: =CEILING('Альфа_Бета_пр (2)'!F36*Титульный!$AY$1,Титульный!$AY$3) -> 21496 | G36: =CEILING('Альфа_Бета_пр (2)'!G36*Титульный!$AY$1,Титульный!$AY$3) -> 24096 | M36: - | N36: -
A37: Шкаф книжный | C37: 840х580х2040 | D37: =CEILING('Альфа_Бета_пр (2)'!D37*Титульный!$AY$1,Титульный!$AY$3) -> 17799 | E37: =CEILING('Альфа_Бета_пр (2)'!E37*Титульный!$AY$1,Титульный!$AY$3) -> 25099 | F37: =CEILING('Альфа_Бета_пр (2)'!F37*Титульный!$AY$1,Титульный!$AY$3) -> 18829 | G37: =CEILING('Альфа_Бета_пр (2)'!G37*Титульный!$AY$1,Титульный!$AY$3) -> 21309 | M37: - | N37: -
A38: Шкаф комб.низкий | C38: 840х580х1540 | D38: =CEILING('Альфа_Бета_пр (2)'!D38*Титульный!$AY$1,Титульный!$AY$3) -> 14902 | E38: =CEILING('Альфа_Бета_пр (2)'!E38*Титульный!$AY$1,Титульный!$AY$3) -> 20602 | F38: =CEILING('Альфа_Бета_пр (2)'!F38*Титульный!$AY$1,Титульный!$AY$3) -> 15712 | G38: =CEILING('Альфа_Бета_пр (2)'!G38*Титульный!$AY$1,Титульный!$AY$3) -> 17652 | M38: - | N38: -
A39: Шк комб. с баром | C39: 840х580х2040 | D39: =CEILING('Альфа_Бета_пр (2)'!D39*Титульный!$AY$1,Титульный!$AY$3) -> 16854 | E39: =CEILING('Альфа_Бета_пр (2)'!E39*Титульный!$AY$1,Титульный!$AY$3) -> 23204 | F39: =CEILING('Альфа_Бета_пр (2)'!F39*Титульный!$AY$1,Титульный!$AY$3) -> 17744 | G39: =CEILING('Альфа_Бета_пр (2)'!G39*Титульный!$AY$1,Титульный!$AY$3) -> 19904 | M39: - | N39: -
A40: Шкаф ТВ высокий | C40: 840х580х2040 | D40: =CEILING('Альфа_Бета_пр (2)'!D40*Титульный!$AY$1,Титульный!$AY$3) -> 14869 | E40: =CEILING('Альфа_Бета_пр (2)'!E40*Титульный!$AY$1,Титульный!$AY$3) -> 20569 | F40: =CEILING('Альфа_Бета_пр (2)'!F40*Титульный!$AY$1,Титульный!$AY$3) -> 15679 | G40: =CEILING('Альфа_Бета_пр (2)'!G40*Титульный!$AY$1,Титульный!$AY$3) -> 17619 | M40: - | N40: -
A41: Шкаф ТВ низкий | C41: 840х580х1540 | D41: =CEILING('Альфа_Бета_пр (2)'!D41*Титульный!$AY$1,Титульный!$AY$3) -> 11987 | E41: =CEILING('Альфа_Бета_пр (2)'!E41*Титульный!$AY$1,Титульный!$AY$3) -> 16487 | F41: =CEILING('Альфа_Бета_пр (2)'!F41*Титульный!$AY$1,Титульный!$AY$3) -> 12627 | G41: =CEILING('Альфа_Бета_пр (2)'!G41*Титульный!$AY$1,Титульный!$AY$3) -> 14167 | M41: - | N41: -
A42: Шк комб.с ящ. Л/П* | C42: 840х580х2040 | D42: =CEILING('Альфа_Бета_пр (2)'!D42*Титульный!$AY$1,Титульный!$AY$3) -> 19106 | E42: =CEILING('Альфа_Бета_пр (2)'!E42*Титульный!$AY$1,Титульный!$AY$3) -> 25776 | F42: =CEILING('Альфа_Бета_пр (2)'!F42*Титульный!$AY$1,Титульный!$AY$3) -> 20036 | G42: =CEILING('Альфа_Бета_пр (2)'!G42*Титульный!$AY$1,Титульный!$AY$3) -> 22306 | M42: - | N42: -
A43: Шкаф ДО | C43: 840х580х2040 | D43: =CEILING('Альфа_Бета_пр (2)'!D43*Титульный!$AY$1,Титульный!$AY$3) -> 13724 | E43: =CEILING('Альфа_Бета_пр (2)'!E43*Титульный!$AY$1,Титульный!$AY$3) -> 20164 | F43: =CEILING('Альфа_Бета_пр (2)'!F43*Титульный!$AY$1,Титульный!$AY$3) -> 14604 | G43: =CEILING('Альфа_Бета_пр (2)'!G43*Титульный!$AY$1,Титульный!$AY$3) -> 16804 | M43: - | N43: -
A44: Шкаф торц. низ. Л/П* | C44: 580х580х1540 | D44: =CEILING('Альфа_Бета_пр (2)'!D44*Титульный!$AY$1,Титульный!$AY$3) -> 13771 | E44: =CEILING('Альфа_Бета_пр (2)'!E44*Титульный!$AY$1,Титульный!$AY$3) -> 19401 | F44: =CEILING('Альфа_Бета_пр (2)'!F44*Титульный!$AY$1,Титульный!$AY$3) -> 14561 | G44: =CEILING('Альфа_Бета_пр (2)'!G44*Титульный!$AY$1,Титульный!$AY$3) -> 16481 | M44: - | N44: -
A45: Шкаф торц. Л/П* | C45: 580х580х2040 | D45: =CEILING('Альфа_Бета_пр (2)'!D45*Титульный!$AY$1,Титульный!$AY$3) -> 16064 | E45: =CEILING('Альфа_Бета_пр (2)'!E45*Титульный!$AY$1,Титульный!$AY$3) -> 23004 | F45: =CEILING('Альфа_Бета_пр (2)'!F45*Титульный!$AY$1,Титульный!$AY$3) -> 17034 | G45: =CEILING('Альфа_Бета_пр (2)'!G45*Титульный!$AY$1,Титульный!$AY$3) -> 19404 | M45: - | N45: -
A46: Тумба ТВ | C46: 840х580х700 | D46: =CEILING('Альфа_Бета_пр (2)'!D46*Титульный!$AY$1,Титульный!$AY$3) -> 8600 | E46: =CEILING('Альфа_Бета_пр (2)'!E46*Титульный!$AY$1,Титульный!$AY$3) -> 12040 | F46: =CEILING('Альфа_Бета_пр (2)'!F46*Титульный!$AY$1,Титульный!$AY$3) -> 9090 | G46: =CEILING('Альфа_Бета_пр (2)'!G46*Титульный!$AY$1,Титульный!$AY$3) -> 10270 | M46: - | N46: -
A47: Тумба ТВ 1 ящ. | C47: 840х580х550 | D47: =CEILING('Альфа_Бета_пр (2)'!D47*Титульный!$AY$1,Титульный!$AY$3) -> 7164 | E47: =CEILING('Альфа_Бета_пр (2)'!E47*Титульный!$AY$1,Титульный!$AY$3) -> 10604 | F47: =CEILING('Альфа_Бета_пр (2)'!F47*Титульный!$AY$1,Титульный!$AY$3) -> 7654 | G47: =CEILING('Альфа_Бета_пр (2)'!G47*Титульный!$AY$1,Титульный!$AY$3) -> 8834 | M47: - | N47: -
A48: Тумба угл. Л/П* | C48: 580х580х1540 | D48: =CEILING('Альфа_Бета_пр (2)'!D48*Титульный!$AY$1,Титульный!$AY$3) -> 9106 | E48: =CEILING('Альфа_Бета_пр (2)'!E48*Титульный!$AY$1,Титульный!$AY$3) -> 13146 | F48: =CEILING('Альфа_Бета_пр (2)'!F48*Титульный!$AY$1,Титульный!$AY$3) -> 9686 | G48: =CEILING('Альфа_Бета_пр (2)'!G48*Титульный!$AY$1,Титульный!$AY$3) -> 11066 | M48: - | N48: -
A49: Полка угл. Л/П* | C49: 420х420х420 | D49: =CEILING('Альфа_Бета_пр (2)'!D49*Титульный!$AY$1,Титульный!$AY$3) -> 1279 | E49: =CEILING('Альфа_Бета_пр (2)'!E49*Титульный!$AY$1,Титульный!$AY$3) -> 1639 | F49: =CEILING('Альфа_Бета_пр (2)'!F49*Титульный!$AY$1,Титульный!$AY$3) -> 1319 | G49: =CEILING('Альфа_Бета_пр (2)'!G49*Титульный!$AY$1,Титульный!$AY$3) -> 1439 | M49: - | N49: -
A50: Пенал ДБ | C50: 420х580х2040 | D50: =CEILING('Альфа_Бета_пр (2)'!D50*Титульный!$AY$1,Титульный!$AY$3) -> 8664 | E50: =CEILING('Альфа_Бета_пр (2)'!E50*Титульный!$AY$1,Титульный!$AY$3) -> 11884 | F50: =CEILING('Альфа_Бета_пр (2)'!F50*Титульный!$AY$1,Титульный!$AY$3) -> 9104 | G50: =CEILING('Альфа_Бета_пр (2)'!G50*Титульный!$AY$1,Титульный!$AY$3) -> 10204 | M50: - | N50: -
A51: Сириус
A52: Сириус | D52: =CEILING('Альфа_Бета_пр (2)'!D52*Титульный!$AY$1,Титульный!$AY$3) -> 50551 | E52: =CEILING('Альфа_Бета_пр (2)'!E52*Титульный!$AY$1,Титульный!$AY$3) -> 73751 | F52: =CEILING('Альфа_Бета_пр (2)'!F52*Титульный!$AY$1,Титульный!$AY$3) -> 53751 | G52: =CEILING('Альфа_Бета_пр (2)'!G52*Титульный!$AY$1,Титульный!$AY$3) -> 61751

Sheet Альфа_Бета_пр (2) (hidden)
A1: МЕБЕЛЬ ДЛЯ ГОСТИННОЙ
A2: Наименование | B2: Эскиз | C2: Габариты, ШхГхВ мм. | D2: МДФ фасады
D3: 1 ЦК | E3: 1 ЦК + патина | F3: 2 ЦК | G3: 3 ЦК
A4: «Бета»
A5: Тумба ТВ 1160 | D5: 10455 | E5: 14685 | F5: 11055 | G5: 12535
A6: Тумба ТВ 1160 ниша | D6: 8977 | E6: 13207 | F6: 9577 | G6: 11057
A7: Тумба ТВ 1680 | D7: 16890 | E7: 23030 | F7: 17770 | G7: 19910
A8: Тумба ТВ 1680 ниша | D8: 15328 | E8: 21468 | F8: 16208 | G8: 18348
A9: Тумба ТВ 2320 | D9: 20828 | E9: 29288 | F9: 22028 | G9: 24968
A10: Тумба ТВ 2320 ниша | D10: 19352 | E10: 27812 | F10: 20552 | G10: 23492
A11: Шкаф 1260х1630 ящики | D11: 19195 | E11: 26925 | F11: 20265 | G11: 22875
A12: Шкаф 1260х1630 ящ. стекло | D12: 18479 | E12: 26209 | F12: 19549 | G12: 22159
A13: Шкаф 420х1630 Л/П* | D13: 6411 | E13: 8991 | F13: 6771 | G13: 7641
A14: Шкаф 420х1630 Л/П* стекло | D14: 6178 | E14: 8758 | F14: 6538 | G14: 7408
A15: Шкаф 420х2030 1 дв стекло | D15: 7370 | E15: 10590 | F15: 7810 | G15: 8910
A16: Шкаф 420х2030 2 дв | D16: 8117 | E16: 11337 | F16: 8577 | G16: 9657
A17: Шкаф 840х1630 2 дв | D17: 11008 | E17: 16168 | F17: 11728 | G17: 13468
A18: Шкаф 840х1630 2 дв стекло | D18: 10326 | E18: 15486 | F18: 11046 | G18: 12786
A19: Шкаф 840х2030 2 дв стекло | D19: 12525 | E19: 18965 | F19: 13405 | G19: 15605
A20: Шкаф 840х2030 4 дв | D20: 14011 | E20: 20451 | F20: 14931 | G20: 17091
A21: Шкаф антр.навесной 840х420 | D21: 3712 | E21: 5062 | F21: 3892 | G21: 4352
A22: Шкаф антр.навесной 840х420 стекло | D22: 3726 | E22: 5076 | F22: 3906 | G22: 4366
A23: Шкаф антр.навесной 1160х420 | D23: 4435 | E23: 6295 | F23: 4695 | G23: 5325
A24: Шкаф антр.навесной 1160х420 стекло | D24: 4562 | E24: 6422 | F24: 4822 | G24: 5452
A25: Шкаф навесной 420х1200 | D25: 4641 | E25: 6571 | F25: 4901 | G25: 5561
A26: Шкаф навесной 420х1200 стекло | D26: 4372 | E26: 6302 | F26: 4632 | G26: 5292
A27: Шкаф навесной 420х1400 | D27: 5300 | E27: 7550 | F27: 5610 | G27: 6380
A28: Шкаф навесной 420х1400 стекло | D28: 4889 | E28: 7139 | F28: 5199 | G28: 5969
A29: Панель 840х400 | D29: 1454 | E29: 2744 | F29: 1634 | G29: 2074
A30: Панель 840х400 полка | D30: 2418 | E30: 3708 | F30: 2598 | G30: 3038
A31: Панель 1160х400 | D31: 1894 | E31: 3664 | F31: 2134 | G31: 2734
A32: Панель 1160х400 полка | D32: 2858 | E32: 4628 | F32: 3098 | G32: 3698
A33: Панель 1360х400 | D33: 2154 | E33: 4244 | F33: 2444 | G33: 3154
A34: Панель 1360х400 полка | D34: 3118 | E34: 5208 | F34: 3408 | G34: 4118
A35: «Альфа»
A36: Шкаф МЦ | D36: 20436 | E36: 28056 | F36: 21496 | G36: 24096
A37: Шкаф книжный | D37: 17799 | E37: 25099 | F37: 18829 | G37: 21309
A38: Шкаф комб.низкий | D38: 14902 | E38: 20602 | F38: 15712 | G38: 17652
A39: Шк комб. с баром | D39: 16854 | E39: 23204 | F39: 17744 | G39: 19904
A40: Шкаф ТВ высокий | D40: 14869 | E40: 20569 | F40: 15679 | G40: 17619
A41: Шкаф ТВ низкий | D41: 11987 | E41: 16487 | F41: 12627 | G41: 14167
A42: Шк комб.с ящ. Л/П* | D42: 19106 | E42: 25776 | F42: 20036 | G42: 22306
A43: Шкаф ДО | D43: 13724 | E43: 20164 | F43: 14604 | G43: 16804
A44: Шкаф торц. низ. Л/П* | D44: 13771 | E44: 19401 | F44: 14561 | G44: 16481
A45: Шкаф торц. Л/П* | D45: 16064 | E45: 23004 | F45: 17034 | G45: 19404
A46: Тумба ТВ | D46: 8600 | E46: 12040 | F46: 9090 | G46: 10270
A47: Тумба ТВ 1 ящ. | D47: 7164 | E47: 10604 | F47: 7654 | G47: 8834
A48: Тумба угл. Л/П* | D48: 9106 | E48: 13146 | F48: 9686 | G48: 11066
A49: Полка угл. Л/П* | D49: 1279 | E49: 1639 | F49: 1319 | G49: 1439
A50: Пенал ДБ | D50: 8664 | E50: 11884 | F50: 9104 | G50: 10204
A51: Сириус
A52: Сириус | D52: 50551 | E52: 73751 | F52: 53751 | G52: 61751

Sheet Loft
A1: Loft, краткое описание
A2: Набор мебели для гостиной состоит из модулей с вкладным фасадом, т.е. фасад утоплен во внутрь каркаса.
A3: Каркас тумб изготавливается из ЛДСП толщиной 22 мм, а каркас навесных шкафов изготавливается из ЛДСП толщиной 16 мм,
A4: а нижний и верхний горизонты изготавливаются из ЛДСП толщиной 22 мм.
A6: Базовая комплектация
A7: 1. Каркас модулей изготовлен из ЛДСП оклеенной кромкой ПВХ 0,4 мм. Задняя стенка модулей из облагороженной ХДФ;
A8: 2. Фасад UV-лак, толщиной 16 мм. в кромке ABS в цвет фасада;
A9: 3. Петли Hettich Sensys плавного закрывания;
A10: 4. Полки ЛДСП;
A11: 5. Направляющие Blum TUNDEM для деревянных ящиков, без доводчика и частичного выдвижения;
A12: 8. Ручка RS-47, белый + металл;
A13: 9. Регулируемые ножки PI04 на тумбах;
A14: 10. Стекло тонированное в шкафах-витринах.
A15: Фасад UV-лак
A17: Варианты цветового решения фасадов:
A21: Белый скандинавский | C21: Черный | E21: Винный красный | G21: Серый шелк | H21: Крем | I21: Оранжевый
A25: Желтый Нарцисс | B25: Мята | C25: Сирень
A27: Ручка
A31: RS-47, хром+белый
A32: Цветовое исполнение каркасов
A33: Дуб шамони темный, Дуб шамони светлый, Сонома
A35: Состав комплекта
A52: 1. Шкаф (320) навесной 1246 х 420 мм; | F52: 3. Шкаф (320) барный 466х1200 мм.;
A53: 2. Тумба (420) 1 ящик 380х1200; | F53: 4. Полка ЛДСП 22 300х1200.
A56: Прайс-лист
A58: Наименование | E58: Эскиз | F58: Габариты, ШхГхВ мм. | G58: Цена, руб
A60: Шкаф (320) навесной 1246х420 | F60: 420х320х1246 | G60: =CEILING('Loft (2)'!G60*Титульный!$AY$1,Титульный!$AY$3) -> 8324
A61: Шкаф (320) навесной 1446х420 | F61: 420х320х1446 | G61: =CEILING('Loft (2)'!G61*Титульный!$AY$1,Титульный!$AY$3) -> 9369
A62: Шкаф (320) антресольный 466х840 | F62: 840х320х466 | G62: =CEILING('Loft (2)'!G62*Титульный!$AY$1,Титульный!$AY$3) -> 6220
A63: Шкаф (320) антресольный 466х1200 | F63: 1200х320х466 | G63: =CEILING('Loft (2)'!G63*Титульный!$AY$1,Титульный!$AY$3) -> 8181
A64: Шкаф (320) барный 466х1200 | F64: 1200х320х466 | G64: =CEILING('Loft (2)'!G64*Титульный!$AY$1,Титульный!$AY$3) -> 11063
A65: Шкаф (420) 1 дв. 2040х560 | F65: 560х420х2040 | G65: =CEILING('Loft (2)'!G65*Титульный!$AY$1,Титульный!$AY$3) -> 14958
A66: Шкаф (420) 2 дв. 2040х840 | F66: 840х420х2040 | G66: =CEILING('Loft (2)'!G66*Титульный!$AY$1,Титульный!$AY$3) -> 24029
A67: Тумбы
A68: Наименование | E68: Эскиз | F68: Габариты, ШхГхВ мм. | G68: Цена, руб | H68: Замена направляющих
H69: с доводчиком | I69: c Tip-on
A70: Тумба (420) 1 ящ. 380х1200 | F70: 1200х420х380 | G70: =CEILING('Loft (2)'!G70*Титульный!$AY$1,Титульный!$AY$3) -> 8772 | H70: =CEILING('Loft (2)'!H70*Титульный!$AY$1,Титульный!$AY$3) -> 9690 | I70: =CEILING('Loft (2)'!I70*Титульный!$AY$1,Титульный!$AY$3) -> 11377
A71: Тумба (420) 2 ящ. 380х1200 | F71: 1200х420х380 | G71: =CEILING('Loft (2)'!G71*Титульный!$AY$1,Титульный!$AY$3) -> 11716 | H71: =CEILING('Loft (2)'!H71*Титульный!$AY$1,Титульный!$AY$3) -> 13552 | I71: =CEILING('Loft (2)'!I71*Титульный!$AY$1,Титульный!$AY$3) -> 16926
A72: Тумба (420) ниша 1 ящ. 380х1200 | F72: 1200х420х381 | G72: =CEILING('Loft (2)'!G72*Титульный!$AY$1,Титульный!$AY$3) -> 8305 | H72: =CEILING('Loft (2)'!H72*Титульный!$AY$1,Титульный!$AY$3) -> 9487 | I72: =CEILING('Loft (2)'!I72*Титульный!$AY$1,Титульный!$AY$3) -> 11174
A73: Тумба (420) для обуви 860х820 1ящ. | F73: 860х420х820 | G73: =CEILING('Loft (2)'!G73*Титульный!$AY$1,Титульный!$AY$3) -> 17236
A74: Полки
A75: Панель настенная полка ЛДСП 22 300х1200 | F75: 1200х200х300 | G75: =CEILING('Loft (2)'!G75*Титульный!$AY$1,Титульный!$AY$3) -> 1451
A76: Панель настенная полка ЛДСП 22 300х1260 | F76: 1200х200х300 | G76: =CEILING('Loft (2)'!G76*Титульный!$AY$1,Титульный!$AY$3) -> 1641
A77: Панель настенная полка ЛДСП 22 500х1680 | F77: 1680х200х500 | G77: =CEILING('Loft (2)'!G77*Титульный!$AY$1,Титульный!$AY$3) -> 3076
A78: Вешалка
